{"text_format":"1","workbook":"xlsx","n_sheets":2,"sheets":["Feuil1","2020"],"not_rendered":{"charts":0,"images":0,"macros":1,"external_links":0,"defined_names":3,"comments":1,"pivot_tables":0},"unopened":[],"bounds":{"document_bytes":16777216,"sheet_cells":100000,"rows_first":2000,"rows_last":500,"rows_between":2000,"halvings":0,"cell_chars":16384,"cell_head_chars":4096},"cells_cut":0,"cells_raw":0,"read":"whole","date_system":"1900"}

{"sheet":"Feuil1","index":0,"n_rows":5,"n_cols":6,"rows_kept":5,"cut":false,"hidden":false,"merged":[]}
["Avancement",null,null,"Fin d'année",null,"Section"]
["ATT SIGNATURE",null,null,"à rattacher",null,"FONCT"]
["ATT LIVR/PRESTA",null,null,"à basculer",null,"INVEST"]
["ATT FACTURE",null,null,"soldé"]
["SOLDE",null,null,"RAR"]

{"sheet":"2020","index":1,"n_rows":1101,"n_cols":13,"rows_kept":1101,"cut":false,"hidden":false,"merged":[]}
["Emplacement des fichiers source","N° BDC","DATE","SOCIETE","OBJET","MONTANT (HT)","N° ENGAGEMENT","SECTION","AVANCEMENT","NUM FACTURE(S)","MONTANT FACTURE(S)","SOLDE BDC - FACT","FIN D'ANNEE"]
["L:\\2. FINANCES\\2.1 COMPTABILITE\\2.1.7 Bons de Commande\\Bons de commande 2021\\",null,null,null,null,null,null,null,null,null,null,{"$f":"F2-K2","v":0},{"$f":"IF(L2<=0,Feuil1!$D$4,IF(H2=Feuil1!$F$3,Feuil1!$D$5,choix))","v":"soldé"}]
["L:\\2. FINANCES\\2.1 COMPTABILITE\\2.1.7 Bons de Commande\\Bons de commande 2021\\",null,null,null,null,null,null,null,null,null,null,0,{"$f":"IF(L3<=0,Feuil1!$D$4,IF(H3=Feuil1!$F$3,Feuil1!$D$5,choix))","v":"soldé"}]
["L:\\2. FINANCES\\2.1 COMPTABILITE\\2.1.7 Bons de Commande\\Bons de commande 2021\\",null,null,null,null,null,null,null,null,null,null,0,{"$f":"IF(L4<=0,Feuil1!$D$4,IF(H4=Feuil1!$F$3,Feuil1!$D$5,choix))","v":"soldé"}]
["L:\\2. FINANCES\\2.1 COMPTABILITE\\2.1.7 Bons de Commande\\Bons de commande 2021\\",null,null,null,null,null,null,null,null,null,null,0,{"$f":"IF(L5<=0,Feuil1!$D$4,IF(H5=Feuil1!$F$3,Feuil1!$D$5,choix))","v":"soldé"}]
["L:\\2. FINANCES\\2.1 COMPTABILITE\\2.1.7 Bons de Commande\\Bons de commande 2021\\",null,null,null,null,null,null,null,null,null,null,0,{"$f":"IF(L6<=0,Feuil1!$D$4,IF(H6=Feuil1!$F$3,Feuil1!$D$5,choix))","v":"soldé"}]
["L:\\2. FINANCES\\2.1 COMPTABILITE\\2.1.7 Bons de Commande\\Bons de commande 2021\\",null,null,null,null,null,null,null,null,null,null,0,{"$f":"IF(L7<=0,Feuil1!$D$4,IF(H7=Feuil1!$F$3,Feuil1!$D$5,choix))","v":"soldé"}]
["L:\\2. FINANCES\\2.1 COMPTABILITE\\2.1.7 Bons de Commande\\Bons de commande 2021\\",null,null,null,null,null,null,null,null,null,null,0,{"$f":"IF(L8<=0,Feuil1!$D$4,IF(H8=Feuil1!$F$3,Feuil1!$D$5,choix))","v":"soldé"}]
["L:\\2. FINANCES\\2.1 COMPTABILITE\\2.1.7 Bons de Commande\\Bons de commande 2021\\",null,null,null,null,null,null,null,null,null,null,0,{"$f":"IF(L9<=0,Feuil1!$D$4,IF(H9=Feuil1!$F$3,Feuil1!$D$5,choix))","v":"soldé"}]
["L:\\2. FINANCES\\2.1 COMPTABILITE\\2.1.7 Bons de Commande\\Bons de commande 2021\\",null,null,null,null,null,null,null,null,null,null,0,{"$f":"IF(L10<=0,Feuil1!$D$4,IF(H10=Feuil1!$F$3,Feuil1!$D$5,choix))","v":"soldé"}]
["L:\\2. FINANCES\\2.1 COMPTABILITE\\2.1.7 Bons de Commande\\Bons de commande 2021\\",null,null,null,null,null,null,null,null,null,null,0,{"$f":"IF(L11<=0,Feuil1!$D$4,IF(H11=Feuil1!$F$3,Feuil1!$D$5,choix))","v":"soldé"}]
["L:\\2. FINANCES\\2.1 COMPTABILITE\\2.1.7 Bons de Commande\\Bons de commande 2021\\",null,null,null,null,null,null,null,null,null,null,0,{"$f":"IF(L12<=0,Feuil1!$D$4,IF(H12=Feuil1!$F$3,Feuil1!$D$5,choix))","v":"soldé"}]
["L:\\2. FINANCES\\2.1 COMPTABILITE\\2.1.7 Bons de Commande\\Bons de commande 2021\\",null,null,null,null,null,null,null,null,null,null,0,{"$f":"IF(L13<=0,Feuil1!$D$4,IF(H13=Feuil1!$F$3,Feuil1!$D$5,choix))","v":"soldé"}]
["L:\\2. FINANCES\\2.1 COMPTABILITE\\2.1.7 Bons de Commande\\Bons de commande 2021\\",null,null,null,null,null,null,null,null,null,null,0,{"$f":"IF(L14<=0,Feuil1!$D$4,IF(H14=Feuil1!$F$3,Feuil1!$D$5,choix))","v":"soldé"}]
["L:\\2. FINANCES\\2.1 COMPTABILITE\\2.1.7 Bons de Commande\\Bons de commande 2021\\",null,null,null,null,null,null,null,null,null,null,0,{"$f":"IF(L15<=0,Feuil1!$D$4,IF(H15=Feuil1!$F$3,Feuil1!$D$5,choix))","v":"soldé"}]
["L:\\2. FINANCES\\2.1 COMPTABILITE\\2.1.7 Bons de Commande\\Bons de commande 2021\\",null,null,null,null,null,null,null,null,null,null,0,{"$f":"IF(L16<=0,Feuil1!$D$4,IF(H16=Feuil1!$F$3,Feuil1!$D$5,choix))","v":"soldé"}]
["L:\\2. FINANCES\\2.1 COMPTABILITE\\2.1.7 Bons de Commande\\Bons de commande 2021\\",null,null,null,null,null,null,null,null,null,null,0,{"$f":"IF(L17<=0,Feuil1!$D$4,IF(H17=Feuil1!$F$3,Feuil1!$D$5,choix))","v":"soldé"}]
["L:\\2. FINANCES\\2.1 COMPTABILITE\\2.1.7 Bons de Commande\\Bons de commande 2021\\",null,null,null,null,null,null,null,null,null,null,0,{"$f":"IF(L18<=0,Feuil1!$D$4,IF(H18=Feuil1!$F$3,Feuil1!$D$5,choix))","v":"soldé"}]
["L:\\2. FINANCES\\2.1 COMPTABILITE\\2.1.7 Bons de Commande\\Bons de commande 2021\\",null,null,null,null,null,null,null,null,null,null,0,{"$f":"IF(L19<=0,Feuil1!$D$4,IF(H19=Feuil1!$F$3,Feuil1!$D$5,choix))","v":"soldé"}]
["L:\\2. FINANCES\\2.1 COMPTABILITE\\2.1.7 Bons de Commande\\Bons de commande 2021\\",null,null,null,null,null,null,null,null,null,null,0,{"$f":"IF(L20<=0,Feuil1!$D$4,IF(H20=Feuil1!$F$3,Feuil1!$D$5,choix))","v":"soldé"}]
["L:\\2. FINANCES\\2.1 COMPTABILITE\\2.1.7 Bons de Commande\\Bons de commande 2021\\",null,null,null,null,null,null,null,null,null,null,0,{"$f":"IF(L21<=0,Feuil1!$D$4,IF(H21=Feuil1!$F$3,Feuil1!$D$5,choix))","v":"soldé"}]
["L:\\2. FINANCES\\2.1 COMPTABILITE\\2.1.7 Bons de Commande\\Bons de commande 2021\\",null,null,null,null,null,null,null,null,null,null,0,{"$f":"IF(L22<=0,Feuil1!$D$4,IF(H22=Feuil1!$F$3,Feuil1!$D$5,choix))","v":"soldé"}]
["L:\\2. FINANCES\\2.1 COMPTABILITE\\2.1.7 Bons de Commande\\Bons de commande 2021\\",null,null,null,null,null,null,null,null,null,null,0,{"$f":"IF(L23<=0,Feuil1!$D$4,IF(H23=Feuil1!$F$3,Feuil1!$D$5,choix))","v":"soldé"}]
["L:\\2. FINANCES\\2.1 COMPTABILITE\\2.1.7 Bons de Commande\\Bons de commande 2021\\",null,null,null,null,null,null,null,null,null,null,0,{"$f":"IF(L24<=0,Feuil1!$D$4,IF(H24=Feuil1!$F$3,Feuil1!D27,\"SAISIR TEXTE\"))","v":"soldé"}]
["L:\\2. FINANCES\\2.1 COMPTABILITE\\2.1.7 Bons de Commande\\Bons de commande 2021\\",null,null,null,null,null,null,null,null,null,null,0,{"$f":"IF(L25<=0,Feuil1!$D$4,IF(H25=Feuil1!$F$3,Feuil1!D28,\"SAISIR TEXTE\"))","v":"soldé"}]
["L:\\2. FINANCES\\2.1 COMPTABILITE\\2.1.7 Bons de Commande\\Bons de commande 2021\\",null,null,null,null,null,null,null,null,null,null,0,{"$f":"IF(L26<=0,Feuil1!$D$4,IF(H26=Feuil1!$F$3,Feuil1!D29,\"SAISIR TEXTE\"))","v":"soldé"}]
["L:\\2. FINANCES\\2.1 COMPTABILITE\\2.1.7 Bons de Commande\\Bons de commande 2021\\",null,null,null,null,null,null,null,null,null,null,0,{"$f":"IF(L27<=0,Feuil1!$D$4,IF(H27=Feuil1!$F$3,Feuil1!D30,\"SAISIR TEXTE\"))","v":"soldé"}]
["L:\\2. FINANCES\\2.1 COMPTABILITE\\2.1.7 Bons de Commande\\Bons de commande 2021\\",null,null,null,null,null,null,null,null,null,null,0,{"$f":"IF(L28<=0,Feuil1!$D$4,IF(H28=Feuil1!$F$3,Feuil1!D31,\"SAISIR TEXTE\"))","v":"soldé"}]
["L:\\2. FINANCES\\2.1 COMPTABILITE\\2.1.7 Bons de Commande\\Bons de commande 2021\\",null,null,null,null,null,null,null,null,null,null,0,{"$f":"IF(L29<=0,Feuil1!$D$4,IF(H29=Feuil1!$F$3,Feuil1!D32,\"SAISIR TEXTE\"))","v":"soldé"}]
["L:\\2. FINANCES\\2.1 COMPTABILITE\\2.1.7 Bons de Commande\\Bons de commande 2021\\",null,null,null,null,null,null,null,null,null,null,0,{"$f":"IF(L30<=0,Feuil1!$D$4,IF(H30=Feuil1!$F$3,Feuil1!D33,\"SAISIR TEXTE\"))","v":"soldé"}]
["L:\\2. FINANCES\\2.1 COMPTABILITE\\2.1.7 Bons de Commande\\Bons de commande 2021\\",null,null,null,null,null,null,null,null,null,null,0,{"$f":"IF(L31<=0,Feuil1!$D$4,IF(H31=Feuil1!$F$3,Feuil1!D34,\"SAISIR TEXTE\"))","v":"soldé"}]
["L:\\2. FINANCES\\2.1 COMPTABILITE\\2.1.7 Bons de Commande\\Bons de commande 2021\\",null,null,null,null,null,null,null,null,null,null,0,{"$f":"IF(L32<=0,Feuil1!$D$4,IF(H32=Feuil1!$F$3,Feuil1!D35,\"SAISIR TEXTE\"))","v":"soldé"}]
["L:\\2. FINANCES\\2.1 COMPTABILITE\\2.1.7 Bons de Commande\\Bons de commande 2021\\",null,null,null,null,null,null,null,null,null,null,0,{"$f":"IF(L33<=0,Feuil1!$D$4,IF(H33=Feuil1!$F$3,Feuil1!D36,\"SAISIR TEXTE\"))","v":"soldé"}]
["L:\\2. FINANCES\\2.1 COMPTABILITE\\2.1.7 Bons de Commande\\Bons de commande 2021\\",null,null,null,null,null,null,null,null,null,null,0,{"$f":"IF(L34<=0,Feuil1!$D$4,IF(H34=Feuil1!$F$3,Feuil1!D37,\"SAISIR TEXTE\"))","v":"soldé"}]
["L:\\2. FINANCES\\2.1 COMPTABILITE\\2.1.7 Bons de Commande\\Bons de commande 2021\\",null,null,null,null,null,null,null,null,null,null,0,{"$f":"IF(L35<=0,Feuil1!$D$4,IF(H35=Feuil1!$F$3,Feuil1!D38,\"SAISIR TEXTE\"))","v":"soldé"}]
["L:\\2. FINANCES\\2.1 COMPTABILITE\\2.1.7 Bons de Commande\\Bons de commande 2021\\",null,null,null,null,null,null,null,null,null,null,0,{"$f":"IF(L36<=0,Feuil1!$D$4,IF(H36=Feuil1!$F$3,Feuil1!D39,\"SAISIR TEXTE\"))","v":"soldé"}]
["L:\\2. FINANCES\\2.1 COMPTABILITE\\2.1.7 Bons de Commande\\Bons de commande 2021\\",null,null,null,null,null,null,null,null,null,null,0,{"$f":"IF(L37<=0,Feuil1!$D$4,IF(H37=Feuil1!$F$3,Feuil1!D40,\"SAISIR TEXTE\"))","v":"soldé"}]
["L:\\2. FINANCES\\2.1 COMPTABILITE\\2.1.7 Bons de Commande\\Bons de commande 2021\\",null,null,null,null,null,null,null,null,null,null,0,{"$f":"IF(L38<=0,Feuil1!$D$4,IF(H38=Feuil1!$F$3,Feuil1!D41,\"SAISIR TEXTE\"))","v":"soldé"}]
["L:\\2. FINANCES\\2.1 COMPTABILITE\\2.1.7 Bons de Commande\\Bons de commande 2021\\",null,null,null,null,null,null,null,null,null,null,0,{"$f":"IF(L39<=0,Feuil1!$D$4,IF(H39=Feuil1!$F$3,Feuil1!D42,\"SAISIR TEXTE\"))","v":"soldé"}]
["L:\\2. FINANCES\\2.1 COMPTABILITE\\2.1.7 Bons de Commande\\Bons de commande 2021\\",null,null,null,null,null,null,null,null,null,null,0,{"$f":"IF(L40<=0,Feuil1!$D$4,IF(H40=Feuil1!$F$3,Feuil1!D43,\"SAISIR TEXTE\"))","v":"soldé"}]
["L:\\2. FINANCES\\2.1 COMPTABILITE\\2.1.7 Bons de Commande\\Bons de commande 2021\\",null,null,null,null,null,null,null,null,null,null,0,{"$f":"IF(L41<=0,Feuil1!$D$4,IF(H41=Feuil1!$F$3,Feuil1!D44,\"SAISIR TEXTE\"))","v":"soldé"}]
["L:\\2. FINANCES\\2.1 COMPTABILITE\\2.1.7 Bons de Commande\\Bons de commande 2021\\",null,null,null,null,null,null,null,null,null,null,0,{"$f":"IF(L42<=0,Feuil1!$D$4,IF(H42=Feuil1!$F$3,Feuil1!D45,\"SAISIR TEXTE\"))","v":"soldé"}]
["L:\\2. FINANCES\\2.1 COMPTABILITE\\2.1.7 Bons de Commande\\Bons de commande 2021\\",null,null,null,null,null,null,null,null,null,null,0,{"$f":"IF(L43<=0,Feuil1!$D$4,IF(H43=Feuil1!$F$3,Feuil1!D46,\"SAISIR TEXTE\"))","v":"soldé"}]
["L:\\2. FINANCES\\2.1 COMPTABILITE\\2.1.7 Bons de Commande\\Bons de commande 2021\\",null,null,null,null,null,null,null,null,null,null,0,{"$f":"IF(L44<=0,Feuil1!$D$4,IF(H44=Feuil1!$F$3,Feuil1!D47,\"SAISIR TEXTE\"))","v":"soldé"}]
["L:\\2. FINANCES\\2.1 COMPTABILITE\\2.1.7 Bons de Commande\\Bons de commande 2021\\",null,null,null,null,null,null,null,null,null,null,0,{"$f":"IF(L45<=0,Feuil1!$D$4,IF(H45=Feuil1!$F$3,Feuil1!D48,\"SAISIR TEXTE\"))","v":"soldé"}]
["L:\\2. FINANCES\\2.1 COMPTABILITE\\2.1.7 Bons de Commande\\Bons de commande 2021\\",null,null,null,null,null,null,null,null,null,null,0,{"$f":"IF(L46<=0,Feuil1!$D$4,IF(H46=Feuil1!$F$3,Feuil1!D49,\"SAISIR TEXTE\"))","v":"soldé"}]
["L:\\2. FINANCES\\2.1 COMPTABILITE\\2.1.7 Bons de Commande\\Bons de commande 2021\\",null,null,null,null,null,null,null,null,null,null,0,{"$f":"IF(L47<=0,Feuil1!$D$4,IF(H47=Feuil1!$F$3,Feuil1!D50,\"SAISIR TEXTE\"))","v":"soldé"}]
["L:\\2. FINANCES\\2.1 COMPTABILITE\\2.1.7 Bons de Commande\\Bons de commande 2021\\",null,null,null,null,null,null,null,null,null,null,0,{"$f":"IF(L48<=0,Feuil1!$D$4,IF(H48=Feuil1!$F$3,Feuil1!D51,\"SAISIR TEXTE\"))","v":"soldé"}]
["L:\\2. FINANCES\\2.1 COMPTABILITE\\2.1.7 Bons de Commande\\Bons de commande 2021\\",null,null,null,null,null,null,null,null,null,null,0,{"$f":"IF(L49<=0,Feuil1!$D$4,IF(H49=Feuil1!$F$3,Feuil1!D52,\"SAISIR TEXTE\"))","v":"soldé"}]
["L:\\2. FINANCES\\2.1 COMPTABILITE\\2.1.7 Bons de Commande\\Bons de commande 2021\\",null,null,null,null,null,null,null,null,null,null,0,{"$f":"IF(L50<=0,Feuil1!$D$4,IF(H50=Feuil1!$F$3,Feuil1!D53,\"SAISIR TEXTE\"))","v":"soldé"}]
["L:\\2. FINANCES\\2.1 COMPTABILITE\\2.1.7 Bons de Commande\\Bons de commande 2021\\",null,null,null,null,null,null,null,null,null,null,0,{"$f":"IF(L51<=0,Feuil1!$D$4,IF(H51=Feuil1!$F$3,Feuil1!D54,\"SAISIR TEXTE\"))","v":"soldé"}]
["L:\\2. FINANCES\\2.1 COMPTABILITE\\2.1.7 Bons de Commande\\Bons de commande 2021\\",null,null,null,null,null,null,null,null,null,null,0,{"$f":"IF(L52<=0,Feuil1!$D$4,IF(H52=Feuil1!$F$3,Feuil1!D55,\"SAISIR TEXTE\"))","v":"soldé"}]
["L:\\2. FINANCES\\2.1 COMPTABILITE\\2.1.7 Bons de Commande\\Bons de commande 2021\\",null,null,null,null,null,null,null,null,null,null,0,{"$f":"IF(L53<=0,Feuil1!$D$4,IF(H53=Feuil1!$F$3,Feuil1!D56,\"SAISIR TEXTE\"))","v":"soldé"}]
["L:\\2. FINANCES\\2.1 COMPTABILITE\\2.1.7 Bons de Commande\\Bons de commande 2021\\",null,null,null,null,null,null,null,null,null,null,0,{"$f":"IF(L54<=0,Feuil1!$D$4,IF(H54=Feuil1!$F$3,Feuil1!D57,\"SAISIR TEXTE\"))","v":"soldé"}]
["L:\\2. FINANCES\\2.1 COMPTABILITE\\2.1.7 Bons de Commande\\Bons de commande 2021\\",null,null,null,null,null,null,null,null,null,null,0,{"$f":"IF(L55<=0,Feuil1!$D$4,IF(H55=Feuil1!$F$3,Feuil1!D58,\"SAISIR TEXTE\"))","v":"soldé"}]
["L:\\2. FINANCES\\2.1 COMPTABILITE\\2.1.7 Bons de Commande\\Bons de commande 2021\\",null,null,null,null,null,null,null,null,null,null,0,{"$f":"IF(L56<=0,Feuil1!$D$4,IF(H56=Feuil1!$F$3,Feuil1!D59,\"SAISIR TEXTE\"))","v":"soldé"}]
["L:\\2. FINANCES\\2.1 COMPTABILITE\\2.1.7 Bons de Commande\\Bons de commande 2021\\",null,null,null,null,null,null,null,null,null,null,0,{"$f":"IF(L57<=0,Feuil1!$D$4,IF(H57=Feuil1!$F$3,Feuil1!D60,\"SAISIR TEXTE\"))","v":"soldé"}]
["L:\\2. FINANCES\\2.1 COMPTABILITE\\2.1.7 Bons de Commande\\Bons de commande 2021\\",null,null,null,null,null,null,null,null,null,null,0,{"$f":"IF(L58<=0,Feuil1!$D$4,IF(H58=Feuil1!$F$3,Feuil1!D61,\"SAISIR TEXTE\"))","v":"soldé"}]
["L:\\2. FINANCES\\2.1 COMPTABILITE\\2.1.7 Bons de Commande\\Bons de commande 2021\\",null,null,null,null,null,null,null,null,null,null,0,{"$f":"IF(L59<=0,Feuil1!$D$4,IF(H59=Feuil1!$F$3,Feuil1!D62,\"SAISIR TEXTE\"))","v":"soldé"}]
["L:\\2. FINANCES\\2.1 COMPTABILITE\\2.1.7 Bons de Commande\\Bons de commande 2021\\",null,null,null,null,null,null,null,null,null,null,0,{"$f":"IF(L60<=0,Feuil1!$D$4,IF(H60=Feuil1!$F$3,Feuil1!D63,\"SAISIR TEXTE\"))","v":"soldé"}]
["L:\\2. FINANCES\\2.1 COMPTABILITE\\2.1.7 Bons de Commande\\Bons de commande 2021\\",null,null,null,null,null,null,null,null,null,null,0,{"$f":"IF(L61<=0,Feuil1!$D$4,IF(H61=Feuil1!$F$3,Feuil1!D64,\"SAISIR TEXTE\"))","v":"soldé"}]
["L:\\2. FINANCES\\2.1 COMPTABILITE\\2.1.7 Bons de Commande\\Bons de commande 2021\\",null,null,null,null,null,null,null,null,null,null,0,{"$f":"IF(L62<=0,Feuil1!$D$4,IF(H62=Feuil1!$F$3,Feuil1!D65,\"SAISIR TEXTE\"))","v":"soldé"}]
["L:\\2. FINANCES\\2.1 COMPTABILITE\\2.1.7 Bons de Commande\\Bons de commande 2021\\",null,null,null,null,null,null,null,null,null,null,0,{"$f":"IF(L63<=0,Feuil1!$D$4,IF(H63=Feuil1!$F$3,Feuil1!D66,\"SAISIR TEXTE\"))","v":"soldé"}]
["L:\\2. FINANCES\\2.1 COMPTABILITE\\2.1.7 Bons de Commande\\Bons de commande 2021\\",null,null,null,null,null,null,null,null,null,null,0,{"$f":"IF(L64<=0,Feuil1!$D$4,IF(H64=Feuil1!$F$3,Feuil1!D67,\"SAISIR TEXTE\"))","v":"soldé"}]
["L:\\2. FINANCES\\2.1 COMPTABILITE\\2.1.7 Bons de Commande\\Bons de commande 2021\\",null,null,null,null,null,null,null,null,null,null,0,{"$f":"IF(L65<=0,Feuil1!$D$4,IF(H65=Feuil1!$F$3,Feuil1!D68,\"SAISIR TEXTE\"))","v":"soldé"}]
["L:\\2. FINANCES\\2.1 COMPTABILITE\\2.1.7 Bons de Commande\\Bons de commande 2021\\",null,null,null,null,null,null,null,null,null,null,0,{"$f":"IF(L66<=0,Feuil1!$D$4,IF(H66=Feuil1!$F$3,Feuil1!D69,\"SAISIR TEXTE\"))","v":"soldé"}]
["L:\\2. FINANCES\\2.1 COMPTABILITE\\2.1.7 Bons de Commande\\Bons de commande 2021\\",null,null,null,null,null,null,null,null,null,null,{"$f":"F67-K67","v":0},{"$f":"IF(L67<=0,Feuil1!$D$4,IF(H67=Feuil1!$F$3,Feuil1!D70,\"SAISIR TEXTE\"))","v":"soldé"}]
["L:\\2. FINANCES\\2.1 COMPTABILITE\\2.1.7 Bons de Commande\\Bons de commande 2021\\",null,null,null,null,null,null,null,null,null,null,0,{"$f":"IF(L68<=0,Feuil1!$D$4,IF(H68=Feuil1!$F$3,Feuil1!D71,\"SAISIR TEXTE\"))","v":"soldé"}]
["L:\\2. FINANCES\\2.1 COMPTABILITE\\2.1.7 Bons de Commande\\Bons de commande 2021\\",null,null,null,null,null,null,null,null,null,null,0,{"$f":"IF(L69<=0,Feuil1!$D$4,IF(H69=Feuil1!$F$3,Feuil1!D72,\"SAISIR TEXTE\"))","v":"soldé"}]
["L:\\2. FINANCES\\2.1 COMPTABILITE\\2.1.7 Bons de Commande\\Bons de commande 2021\\",null,null,null,null,null,null,null,null,null,null,0,{"$f":"IF(L70<=0,Feuil1!$D$4,IF(H70=Feuil1!$F$3,Feuil1!D73,\"SAISIR TEXTE\"))","v":"soldé"}]
["L:\\2. FINANCES\\2.1 COMPTABILITE\\2.1.7 Bons de Commande\\Bons de commande 2021\\",null,null,null,null,null,null,null,null,null,null,0,{"$f":"IF(L71<=0,Feuil1!$D$4,IF(H71=Feuil1!$F$3,Feuil1!D74,\"SAISIR TEXTE\"))","v":"soldé"}]
["L:\\2. FINANCES\\2.1 COMPTABILITE\\2.1.7 Bons de Commande\\Bons de commande 2021\\",null,null,null,null,null,null,null,null,null,null,0,{"$f":"IF(L72<=0,Feuil1!$D$4,IF(H72=Feuil1!$F$3,Feuil1!D75,\"SAISIR TEXTE\"))","v":"soldé"}]
["L:\\2. FINANCES\\2.1 COMPTABILITE\\2.1.7 Bons de Commande\\Bons de commande 2021\\",null,null,null,null,null,null,null,null,null,null,0,{"$f":"IF(L73<=0,Feuil1!$D$4,IF(H73=Feuil1!$F$3,Feuil1!D76,\"SAISIR TEXTE\"))","v":"soldé"}]
["L:\\2. FINANCES\\2.1 COMPTABILITE\\2.1.7 Bons de Commande\\Bons de commande 2021\\",null,null,null,null,null,null,null,null,null,null,0,{"$f":"IF(L74<=0,Feuil1!$D$4,IF(H74=Feuil1!$F$3,Feuil1!D77,\"SAISIR TEXTE\"))","v":"soldé"}]
["L:\\2. FINANCES\\2.1 COMPTABILITE\\2.1.7 Bons de Commande\\Bons de commande 2021\\",null,null,null,null,null,null,null,null,null,null,0,{"$f":"IF(L75<=0,Feuil1!$D$4,IF(H75=Feuil1!$F$3,Feuil1!D78,\"SAISIR TEXTE\"))","v":"soldé"}]
["L:\\2. FINANCES\\2.1 COMPTABILITE\\2.1.7 Bons de Commande\\Bons de commande 2021\\",null,null,null,null,null,null,null,null,null,null,0,{"$f":"IF(L76<=0,Feuil1!$D$4,IF(H76=Feuil1!$F$3,Feuil1!D79,\"SAISIR TEXTE\"))","v":"soldé"}]
["L:\\2. FINANCES\\2.1 COMPTABILITE\\2.1.7 Bons de Commande\\Bons de commande 2021\\",null,null,null,null,null,null,null,null,null,null,0,{"$f":"IF(L77<=0,Feuil1!$D$4,IF(H77=Feuil1!$F$3,Feuil1!D80,\"SAISIR TEXTE\"))","v":"soldé"}]
["L:\\2. FINANCES\\2.1 COMPTABILITE\\2.1.7 Bons de Commande\\Bons de commande 2021\\",null,null,null,null,null,null,null,null,null,null,0,{"$f":"IF(L78<=0,Feuil1!$D$4,IF(H78=Feuil1!$F$3,Feuil1!D81,\"SAISIR TEXTE\"))","v":"soldé"}]
["L:\\2. FINANCES\\2.1 COMPTABILITE\\2.1.7 Bons de Commande\\Bons de commande 2021\\",null,null,null,null,null,null,null,null,null,null,0,{"$f":"IF(L79<=0,Feuil1!$D$4,IF(H79=Feuil1!$F$3,Feuil1!D82,\"SAISIR TEXTE\"))","v":"soldé"}]
["L:\\2. FINANCES\\2.1 COMPTABILITE\\2.1.7 Bons de Commande\\Bons de commande 2021\\",null,null,null,null,null,null,null,null,null,null,0,{"$f":"IF(L80<=0,Feuil1!$D$4,IF(H80=Feuil1!$F$3,Feuil1!D83,\"SAISIR TEXTE\"))","v":"soldé"}]
["L:\\2. FINANCES\\2.1 COMPTABILITE\\2.1.7 Bons de Commande\\Bons de commande 2021\\",null,null,null,null,null,null,null,null,null,null,0,{"$f":"IF(L81<=0,Feuil1!$D$4,IF(H81=Feuil1!$F$3,Feuil1!D84,\"SAISIR TEXTE\"))","v":"soldé"}]
["L:\\2. FINANCES\\2.1 COMPTABILITE\\2.1.7 Bons de Commande\\Bons de commande 2021\\",null,null,null,null,null,null,null,null,null,null,0,{"$f":"IF(L82<=0,Feuil1!$D$4,IF(H82=Feuil1!$F$3,Feuil1!D85,\"SAISIR TEXTE\"))","v":"soldé"}]
["L:\\2. FINANCES\\2.1 COMPTABILITE\\2.1.7 Bons de Commande\\Bons de commande 2021\\",null,null,null,null,null,null,null,null,null,null,0,{"$f":"IF(L83<=0,Feuil1!$D$4,IF(H83=Feuil1!$F$3,Feuil1!D86,\"SAISIR TEXTE\"))","v":"soldé"}]
["L:\\2. FINANCES\\2.1 COMPTABILITE\\2.1.7 Bons de Commande\\Bons de commande 2021\\",null,null,null,null,null,null,null,null,null,null,0,{"$f":"IF(L84<=0,Feuil1!$D$4,IF(H84=Feuil1!$F$3,Feuil1!D87,\"SAISIR TEXTE\"))","v":"soldé"}]
["L:\\2. FINANCES\\2.1 COMPTABILITE\\2.1.7 Bons de Commande\\Bons de commande 2021\\",null,null,null,null,null,null,null,null,null,null,0,{"$f":"IF(L85<=0,Feuil1!$D$4,IF(H85=Feuil1!$F$3,Feuil1!D88,\"SAISIR TEXTE\"))","v":"soldé"}]
["L:\\2. FINANCES\\2.1 COMPTABILITE\\2.1.7 Bons de Commande\\Bons de commande 2021\\",null,null,null,null,null,null,null,null,null,null,0,{"$f":"IF(L86<=0,Feuil1!$D$4,IF(H86=Feuil1!$F$3,Feuil1!D89,\"SAISIR TEXTE\"))","v":"soldé"}]
["L:\\2. FINANCES\\2.1 COMPTABILITE\\2.1.7 Bons de Commande\\Bons de commande 2021\\",null,null,null,null,null,null,null,null,null,null,0,{"$f":"IF(L87<=0,Feuil1!$D$4,IF(H87=Feuil1!$F$3,Feuil1!D90,\"SAISIR TEXTE\"))","v":"soldé"}]
["L:\\2. FINANCES\\2.1 COMPTABILITE\\2.1.7 Bons de Commande\\Bons de commande 2021\\",null,null,null,null,null,null,null,null,null,null,0,{"$f":"IF(L88<=0,Feuil1!$D$4,IF(H88=Feuil1!$F$3,Feuil1!D91,\"SAISIR TEXTE\"))","v":"soldé"}]
["L:\\2. FINANCES\\2.1 COMPTABILITE\\2.1.7 Bons de Commande\\Bons de commande 2021\\",null,null,null,null,null,null,null,null,null,null,0,{"$f":"IF(L89<=0,Feuil1!$D$4,IF(H89=Feuil1!$F$3,Feuil1!D92,\"SAISIR TEXTE\"))","v":"soldé"}]
["L:\\2. FINANCES\\2.1 COMPTABILITE\\2.1.7 Bons de Commande\\Bons de commande 2021\\",null,null,null,null,null,null,null,null,null,null,0,{"$f":"IF(L90<=0,Feuil1!$D$4,IF(H90=Feuil1!$F$3,Feuil1!D93,\"SAISIR TEXTE\"))","v":"soldé"}]
["L:\\2. FINANCES\\2.1 COMPTABILITE\\2.1.7 Bons de Commande\\Bons de commande 2021\\",null,null,null,null,null,null,null,null,null,null,0,{"$f":"IF(L91<=0,Feuil1!$D$4,IF(H91=Feuil1!$F$3,Feuil1!D94,\"SAISIR TEXTE\"))","v":"soldé"}]
["L:\\2. FINANCES\\2.1 COMPTABILITE\\2.1.7 Bons de Commande\\Bons de commande 2021\\",null,null,null,null,null,null,null,null,null,null,0,{"$f":"IF(L92<=0,Feuil1!$D$4,IF(H92=Feuil1!$F$3,Feuil1!D95,\"SAISIR TEXTE\"))","v":"soldé"}]
["L:\\2. FINANCES\\2.1 COMPTABILITE\\2.1.7 Bons de Commande\\Bons de commande 2021\\",null,null,null,null,null,null,null,null,null,null,0,{"$f":"IF(L93<=0,Feuil1!$D$4,IF(H93=Feuil1!$F$3,Feuil1!D96,\"SAISIR TEXTE\"))","v":"soldé"}]
["L:\\2. FINANCES\\2.1 COMPTABILITE\\2.1.7 Bons de Commande\\Bons de commande 2021\\",null,null,null,null,null,null,null,null,null,null,0,{"$f":"IF(L94<=0,Feuil1!$D$4,IF(H94=Feuil1!$F$3,Feuil1!D97,\"SAISIR TEXTE\"))","v":"soldé"}]
["L:\\2. FINANCES\\2.1 COMPTABILITE\\2.1.7 Bons de Commande\\Bons de commande 2021\\",null,null,null,null,null,null,null,null,null,null,0,{"$f":"IF(L95<=0,Feuil1!$D$4,IF(H95=Feuil1!$F$3,Feuil1!D98,\"SAISIR TEXTE\"))","v":"soldé"}]
["L:\\2. FINANCES\\2.1 COMPTABILITE\\2.1.7 Bons de Commande\\Bons de commande 2021\\",null,null,null,null,null,null,null,null,null,null,0,{"$f":"IF(L96<=0,Feuil1!$D$4,IF(H96=Feuil1!$F$3,Feuil1!D99,\"SAISIR TEXTE\"))","v":"soldé"}]
["L:\\2. FINANCES\\2.1 COMPTABILITE\\2.1.7 Bons de Commande\\Bons de commande 2021\\",null,null,null,null,null,null,null,null,null,null,0,{"$f":"IF(L97<=0,Feuil1!$D$4,IF(H97=Feuil1!$F$3,Feuil1!D100,\"SAISIR TEXTE\"))","v":"soldé"}]
["L:\\2. FINANCES\\2.1 COMPTABILITE\\2.1.7 Bons de Commande\\Bons de commande 2021\\",null,null,null,null,null,null,null,null,null,null,0,{"$f":"IF(L98<=0,Feuil1!$D$4,IF(H98=Feuil1!$F$3,Feuil1!D101,\"SAISIR TEXTE\"))","v":"soldé"}]
["L:\\2. FINANCES\\2.1 COMPTABILITE\\2.1.7 Bons de Commande\\Bons de commande 2021\\",null,null,null,null,null,null,null,null,null,null,0,{"$f":"IF(L99<=0,Feuil1!$D$4,IF(H99=Feuil1!$F$3,Feuil1!D102,\"SAISIR TEXTE\"))","v":"soldé"}]
["L:\\2. FINANCES\\2.1 COMPTABILITE\\2.1.7 Bons de Commande\\Bons de commande 2021\\",null,null,null,null,null,null,null,null,null,null,0,{"$f":"IF(L100<=0,Feuil1!$D$4,IF(H100=Feuil1!$F$3,Feuil1!D103,\"SAISIR TEXTE\"))","v":"soldé"}]
["L:\\2. FINANCES\\2.1 COMPTABILITE\\2.1.7 Bons de Commande\\Bons de commande 2021\\",null,null,null,null,null,null,null,null,null,null,0,{"$f":"IF(L101<=0,Feuil1!$D$4,IF(H101=Feuil1!$F$3,Feuil1!D104,\"SAISIR TEXTE\"))","v":"soldé"}]
["L:\\2. FINANCES\\2.1 COMPTABILITE\\2.1.7 Bons de Commande\\Bons de commande 2021\\",null,null,null,null,null,null,null,null,null,null,0,{"$f":"IF(L102<=0,Feuil1!$D$4,IF(H102=Feuil1!$F$3,Feuil1!D105,\"SAISIR TEXTE\"))","v":"soldé"}]
["L:\\2. FINANCES\\2.1 COMPTABILITE\\2.1.7 Bons de Commande\\Bons de commande 2021\\",null,null,null,null,null,null,null,null,null,null,0,{"$f":"IF(L103<=0,Feuil1!$D$4,IF(H103=Feuil1!$F$3,Feuil1!D106,\"SAISIR TEXTE\"))","v":"soldé"}]
["L:\\2. FINANCES\\2.1 COMPTABILITE\\2.1.7 Bons de Commande\\Bons de commande 2021\\",null,null,null,null,null,null,null,null,null,null,0,{"$f":"IF(L104<=0,Feuil1!$D$4,IF(H104=Feuil1!$F$3,Feuil1!D107,\"SAISIR TEXTE\"))","v":"soldé"}]
["L:\\2. FINANCES\\2.1 COMPTABILITE\\2.1.7 Bons de Commande\\Bons de commande 2021\\",null,null,null,null,null,null,null,null,null,null,0,{"$f":"IF(L105<=0,Feuil1!$D$4,IF(H105=Feuil1!$F$3,Feuil1!D108,\"SAISIR TEXTE\"))","v":"soldé"}]
["L:\\2. FINANCES\\2.1 COMPTABILITE\\2.1.7 Bons de Commande\\Bons de commande 2021\\",null,null,null,null,null,null,null,null,null,null,0,{"$f":"IF(L106<=0,Feuil1!$D$4,IF(H106=Feuil1!$F$3,Feuil1!D109,\"SAISIR TEXTE\"))","v":"soldé"}]
["L:\\2. FINANCES\\2.1 COMPTABILITE\\2.1.7 Bons de Commande\\Bons de commande 2021\\",null,null,null,null,null,null,null,null,null,null,0,{"$f":"IF(L107<=0,Feuil1!$D$4,IF(H107=Feuil1!$F$3,Feuil1!D110,\"SAISIR TEXTE\"))","v":"soldé"}]
["L:\\2. FINANCES\\2.1 COMPTABILITE\\2.1.7 Bons de Commande\\Bons de commande 2021\\",null,null,null,null,null,null,null,null,null,null,0,{"$f":"IF(L108<=0,Feuil1!$D$4,IF(H108=Feuil1!$F$3,Feuil1!D111,\"SAISIR TEXTE\"))","v":"soldé"}]
["L:\\2. FINANCES\\2.1 COMPTABILITE\\2.1.7 Bons de Commande\\Bons de commande 2021\\",null,null,null,null,null,null,null,null,null,null,0,{"$f":"IF(L109<=0,Feuil1!$D$4,IF(H109=Feuil1!$F$3,Feuil1!D112,\"SAISIR TEXTE\"))","v":"soldé"}]
["L:\\2. FINANCES\\2.1 COMPTABILITE\\2.1.7 Bons de Commande\\Bons de commande 2021\\",null,null,null,null,null,null,null,null,null,null,0,{"$f":"IF(L110<=0,Feuil1!$D$4,IF(H110=Feuil1!$F$3,Feuil1!D113,\"SAISIR TEXTE\"))","v":"soldé"}]
["L:\\2. FINANCES\\2.1 COMPTABILITE\\2.1.7 Bons de Commande\\Bons de commande 2021\\",null,null,null,null,null,null,null,null,null,null,0,{"$f":"IF(L111<=0,Feuil1!$D$4,IF(H111=Feuil1!$F$3,Feuil1!D114,\"SAISIR TEXTE\"))","v":"soldé"}]
["L:\\2. FINANCES\\2.1 COMPTABILITE\\2.1.7 Bons de Commande\\Bons de commande 2021\\",null,null,null,null,null,null,null,null,null,null,0,{"$f":"IF(L112<=0,Feuil1!$D$4,IF(H112=Feuil1!$F$3,Feuil1!D115,\"SAISIR TEXTE\"))","v":"soldé"}]
["L:\\2. FINANCES\\2.1 COMPTABILITE\\2.1.7 Bons de Commande\\Bons de commande 2021\\",null,null,null,null,null,null,null,null,null,null,0,{"$f":"IF(L113<=0,Feuil1!$D$4,IF(H113=Feuil1!$F$3,Feuil1!D116,\"SAISIR TEXTE\"))","v":"soldé"}]
["L:\\2. FINANCES\\2.1 COMPTABILITE\\2.1.7 Bons de Commande\\Bons de commande 2021\\",null,null,null,null,null,null,null,null,null,null,0,{"$f":"IF(L114<=0,Feuil1!$D$4,IF(H114=Feuil1!$F$3,Feuil1!D117,\"SAISIR TEXTE\"))","v":"soldé"}]
["L:\\2. FINANCES\\2.1 COMPTABILITE\\2.1.7 Bons de Commande\\Bons de commande 2021\\",null,null,null,null,null,null,null,null,null,null,0,{"$f":"IF(L115<=0,Feuil1!$D$4,IF(H115=Feuil1!$F$3,Feuil1!D118,\"SAISIR TEXTE\"))","v":"soldé"}]
["L:\\2. FINANCES\\2.1 COMPTABILITE\\2.1.7 Bons de Commande\\Bons de commande 2021\\",null,null,null,null,null,null,null,null,null,null,0,{"$f":"IF(L116<=0,Feuil1!$D$4,IF(H116=Feuil1!$F$3,Feuil1!D119,\"SAISIR TEXTE\"))","v":"soldé"}]
["L:\\2. FINANCES\\2.1 COMPTABILITE\\2.1.7 Bons de Commande\\Bons de commande 2021\\",null,null,null,null,null,null,null,null,null,null,0,{"$f":"IF(L117<=0,Feuil1!$D$4,IF(H117=Feuil1!$F$3,Feuil1!D120,\"SAISIR TEXTE\"))","v":"soldé"}]
["L:\\2. FINANCES\\2.1 COMPTABILITE\\2.1.7 Bons de Commande\\Bons de commande 2021\\",null,null,null,null,null,null,null,null,null,null,0,{"$f":"IF(L118<=0,Feuil1!$D$4,IF(H118=Feuil1!$F$3,Feuil1!D121,\"SAISIR TEXTE\"))","v":"soldé"}]
["L:\\2. FINANCES\\2.1 COMPTABILITE\\2.1.7 Bons de Commande\\Bons de commande 2021\\",null,null,null,null,null,null,null,null,null,null,0,{"$f":"IF(L119<=0,Feuil1!$D$4,IF(H119=Feuil1!$F$3,Feuil1!D122,\"SAISIR TEXTE\"))","v":"soldé"}]
["L:\\2. FINANCES\\2.1 COMPTABILITE\\2.1.7 Bons de Commande\\Bons de commande 2021\\",null,null,null,null,null,null,null,null,null,null,0,{"$f":"IF(L120<=0,Feuil1!$D$4,IF(H120=Feuil1!$F$3,Feuil1!D123,\"SAISIR TEXTE\"))","v":"soldé"}]
["L:\\2. FINANCES\\2.1 COMPTABILITE\\2.1.7 Bons de Commande\\Bons de commande 2021\\",null,null,null,null,null,null,null,null,null,null,0,{"$f":"IF(L121<=0,Feuil1!$D$4,IF(H121=Feuil1!$F$3,Feuil1!D124,\"SAISIR TEXTE\"))","v":"soldé"}]
["L:\\2. FINANCES\\2.1 COMPTABILITE\\2.1.7 Bons de Commande\\Bons de commande 2021\\",null,null,null,null,null,null,null,null,null,null,0,{"$f":"IF(L122<=0,Feuil1!$D$4,IF(H122=Feuil1!$F$3,Feuil1!D125,\"SAISIR TEXTE\"))","v":"soldé"}]
["L:\\2. FINANCES\\2.1 COMPTABILITE\\2.1.7 Bons de Commande\\Bons de commande 2021\\",null,null,null,null,null,null,null,null,null,null,0,{"$f":"IF(L123<=0,Feuil1!$D$4,IF(H123=Feuil1!$F$3,Feuil1!D126,\"SAISIR TEXTE\"))","v":"soldé"}]
["L:\\2. FINANCES\\2.1 COMPTABILITE\\2.1.7 Bons de Commande\\Bons de commande 2021\\",null,null,null,null,null,null,null,null,null,null,0,{"$f":"IF(L124<=0,Feuil1!$D$4,IF(H124=Feuil1!$F$3,Feuil1!D127,\"SAISIR TEXTE\"))","v":"soldé"}]
["L:\\2. FINANCES\\2.1 COMPTABILITE\\2.1.7 Bons de Commande\\Bons de commande 2021\\",null,null,null,null,null,null,null,null,null,null,0,{"$f":"IF(L125<=0,Feuil1!$D$4,IF(H125=Feuil1!$F$3,Feuil1!D128,\"SAISIR TEXTE\"))","v":"soldé"}]
["L:\\2. FINANCES\\2.1 COMPTABILITE\\2.1.7 Bons de Commande\\Bons de commande 2021\\",null,null,null,null,null,null,null,null,null,null,0,{"$f":"IF(L126<=0,Feuil1!$D$4,IF(H126=Feuil1!$F$3,Feuil1!D129,\"SAISIR TEXTE\"))","v":"soldé"}]
["L:\\2. FINANCES\\2.1 COMPTABILITE\\2.1.7 Bons de Commande\\Bons de commande 2021\\",null,null,null,null,null,null,null,null,null,null,0,{"$f":"IF(L127<=0,Feuil1!$D$4,IF(H127=Feuil1!$F$3,Feuil1!D130,\"SAISIR TEXTE\"))","v":"soldé"}]
["L:\\2. FINANCES\\2.1 COMPTABILITE\\2.1.7 Bons de Commande\\Bons de commande 2021\\",null,null,null,null,null,null,null,null,null,null,0,{"$f":"IF(L128<=0,Feuil1!$D$4,IF(H128=Feuil1!$F$3,Feuil1!D131,\"SAISIR TEXTE\"))","v":"soldé"}]
["L:\\2. FINANCES\\2.1 COMPTABILITE\\2.1.7 Bons de Commande\\Bons de commande 2021\\",null,null,null,null,null,null,null,null,null,null,0,{"$f":"IF(L129<=0,Feuil1!$D$4,IF(H129=Feuil1!$F$3,Feuil1!D132,\"SAISIR TEXTE\"))","v":"soldé"}]
["L:\\2. FINANCES\\2.1 COMPTABILITE\\2.1.7 Bons de Commande\\Bons de commande 2021\\",null,null,null,null,null,null,null,null,null,null,0,{"$f":"IF(L130<=0,Feuil1!$D$4,IF(H130=Feuil1!$F$3,Feuil1!D133,\"SAISIR TEXTE\"))","v":"soldé"}]
["L:\\2. FINANCES\\2.1 COMPTABILITE\\2.1.7 Bons de Commande\\Bons de commande 2021\\",null,null,null,null,null,null,null,null,null,null,{"$f":"F131-K131","v":0},{"$f":"IF(L131<=0,Feuil1!$D$4,IF(H131=Feuil1!$F$3,Feuil1!D134,\"SAISIR TEXTE\"))","v":"soldé"}]
["L:\\2. FINANCES\\2.1 COMPTABILITE\\2.1.7 Bons de Commande\\Bons de commande 2021\\",null,null,null,null,null,null,null,null,null,null,0,{"$f":"IF(L132<=0,Feuil1!$D$4,IF(H132=Feuil1!$F$3,Feuil1!D135,\"SAISIR TEXTE\"))","v":"soldé"}]
["L:\\2. FINANCES\\2.1 COMPTABILITE\\2.1.7 Bons de Commande\\Bons de commande 2021\\",null,null,null,null,null,null,null,null,null,null,0,{"$f":"IF(L133<=0,Feuil1!$D$4,IF(H133=Feuil1!$F$3,Feuil1!D136,\"SAISIR TEXTE\"))","v":"soldé"}]
["L:\\2. FINANCES\\2.1 COMPTABILITE\\2.1.7 Bons de Commande\\Bons de commande 2021\\",null,null,null,null,null,null,null,null,null,null,0,{"$f":"IF(L134<=0,Feuil1!$D$4,IF(H134=Feuil1!$F$3,Feuil1!D137,\"SAISIR TEXTE\"))","v":"soldé"}]
["L:\\2. FINANCES\\2.1 COMPTABILITE\\2.1.7 Bons de Commande\\Bons de commande 2021\\",null,null,null,null,null,null,null,null,null,null,0,{"$f":"IF(L135<=0,Feuil1!$D$4,IF(H135=Feuil1!$F$3,Feuil1!D138,\"SAISIR TEXTE\"))","v":"soldé"}]
["L:\\2. FINANCES\\2.1 COMPTABILITE\\2.1.7 Bons de Commande\\Bons de commande 2021\\",null,null,null,null,null,null,null,null,null,null,0,{"$f":"IF(L136<=0,Feuil1!$D$4,IF(H136=Feuil1!$F$3,Feuil1!D139,\"SAISIR TEXTE\"))","v":"soldé"}]
["L:\\2. FINANCES\\2.1 COMPTABILITE\\2.1.7 Bons de Commande\\Bons de commande 2021\\",null,null,null,null,null,null,null,null,null,null,0,{"$f":"IF(L137<=0,Feuil1!$D$4,IF(H137=Feuil1!$F$3,Feuil1!D140,\"SAISIR TEXTE\"))","v":"soldé"}]
["L:\\2. FINANCES\\2.1 COMPTABILITE\\2.1.7 Bons de Commande\\Bons de commande 2021\\",null,null,null,null,null,null,null,null,null,null,0,{"$f":"IF(L138<=0,Feuil1!$D$4,IF(H138=Feuil1!$F$3,Feuil1!D141,\"SAISIR TEXTE\"))","v":"soldé"}]
["L:\\2. FINANCES\\2.1 COMPTABILITE\\2.1.7 Bons de Commande\\Bons de commande 2021\\",null,null,null,null,null,null,null,null,null,null,0,{"$f":"IF(L139<=0,Feuil1!$D$4,IF(H139=Feuil1!$F$3,Feuil1!D142,\"SAISIR TEXTE\"))","v":"soldé"}]
["L:\\2. FINANCES\\2.1 COMPTABILITE\\2.1.7 Bons de Commande\\Bons de commande 2021\\",null,null,null,null,null,null,null,null,null,null,0,{"$f":"IF(L140<=0,Feuil1!$D$4,IF(H140=Feuil1!$F$3,Feuil1!D143,\"SAISIR TEXTE\"))","v":"soldé"}]
["L:\\2. FINANCES\\2.1 COMPTABILITE\\2.1.7 Bons de Commande\\Bons de commande 2021\\",null,null,null,null,null,null,null,null,null,null,0,{"$f":"IF(L141<=0,Feuil1!$D$4,IF(H141=Feuil1!$F$3,Feuil1!D144,\"SAISIR TEXTE\"))","v":"soldé"}]
["L:\\2. FINANCES\\2.1 COMPTABILITE\\2.1.7 Bons de Commande\\Bons de commande 2021\\",null,null,null,null,null,null,null,null,null,null,0,{"$f":"IF(L142<=0,Feuil1!$D$4,IF(H142=Feuil1!$F$3,Feuil1!D145,\"SAISIR TEXTE\"))","v":"soldé"}]
["L:\\2. FINANCES\\2.1 COMPTABILITE\\2.1.7 Bons de Commande\\Bons de commande 2021\\",null,null,null,null,null,null,null,null,null,null,0,{"$f":"IF(L143<=0,Feuil1!$D$4,IF(H143=Feuil1!$F$3,Feuil1!D146,\"SAISIR TEXTE\"))","v":"soldé"}]
["L:\\2. FINANCES\\2.1 COMPTABILITE\\2.1.7 Bons de Commande\\Bons de commande 2021\\",null,null,null,null,null,null,null,null,null,null,0,{"$f":"IF(L144<=0,Feuil1!$D$4,IF(H144=Feuil1!$F$3,Feuil1!D147,\"SAISIR TEXTE\"))","v":"soldé"}]
["L:\\2. FINANCES\\2.1 COMPTABILITE\\2.1.7 Bons de Commande\\Bons de commande 2021\\",null,null,null,null,null,null,null,null,null,null,0,{"$f":"IF(L145<=0,Feuil1!$D$4,IF(H145=Feuil1!$F$3,Feuil1!D148,\"SAISIR TEXTE\"))","v":"soldé"}]
["L:\\2. FINANCES\\2.1 COMPTABILITE\\2.1.7 Bons de Commande\\Bons de commande 2021\\",null,null,null,null,null,null,null,null,null,null,0,{"$f":"IF(L146<=0,Feuil1!$D$4,IF(H146=Feuil1!$F$3,Feuil1!D149,\"SAISIR TEXTE\"))","v":"soldé"}]
["L:\\2. FINANCES\\2.1 COMPTABILITE\\2.1.7 Bons de Commande\\Bons de commande 2021\\",null,null,null,null,null,null,null,null,null,null,0,{"$f":"IF(L147<=0,Feuil1!$D$4,IF(H147=Feuil1!$F$3,Feuil1!D150,\"SAISIR TEXTE\"))","v":"soldé"}]
["L:\\2. FINANCES\\2.1 COMPTABILITE\\2.1.7 Bons de Commande\\Bons de commande 2021\\",null,null,null,null,null,null,null,null,null,null,0,{"$f":"IF(L148<=0,Feuil1!$D$4,IF(H148=Feuil1!$F$3,Feuil1!D151,\"SAISIR TEXTE\"))","v":"soldé"}]
["L:\\2. FINANCES\\2.1 COMPTABILITE\\2.1.7 Bons de Commande\\Bons de commande 2021\\",null,null,null,null,null,null,null,null,null,null,0,{"$f":"IF(L149<=0,Feuil1!$D$4,IF(H149=Feuil1!$F$3,Feuil1!D152,\"SAISIR TEXTE\"))","v":"soldé"}]
["L:\\2. FINANCES\\2.1 COMPTABILITE\\2.1.7 Bons de Commande\\Bons de commande 2021\\",null,null,null,null,null,null,null,null,null,null,0,{"$f":"IF(L150<=0,Feuil1!$D$4,IF(H150=Feuil1!$F$3,Feuil1!D153,\"SAISIR TEXTE\"))","v":"soldé"}]
["L:\\2. FINANCES\\2.1 COMPTABILITE\\2.1.7 Bons de Commande\\Bons de commande 2021\\",null,null,null,null,null,null,null,null,null,null,0,{"$f":"IF(L151<=0,Feuil1!$D$4,IF(H151=Feuil1!$F$3,Feuil1!D154,\"SAISIR TEXTE\"))","v":"soldé"}]
["L:\\2. FINANCES\\2.1 COMPTABILITE\\2.1.7 Bons de Commande\\Bons de commande 2021\\",null,null,null,null,null,null,null,null,null,null,0,{"$f":"IF(L152<=0,Feuil1!$D$4,IF(H152=Feuil1!$F$3,Feuil1!D155,\"SAISIR TEXTE\"))","v":"soldé"}]
["L:\\2. FINANCES\\2.1 COMPTABILITE\\2.1.7 Bons de Commande\\Bons de commande 2021\\",null,null,null,null,null,null,null,null,null,null,0,{"$f":"IF(L153<=0,Feuil1!$D$4,IF(H153=Feuil1!$F$3,Feuil1!D156,\"SAISIR TEXTE\"))","v":"soldé"}]
["L:\\2. FINANCES\\2.1 COMPTABILITE\\2.1.7 Bons de Commande\\Bons de commande 2021\\",null,null,null,null,null,null,null,null,null,null,0,{"$f":"IF(L154<=0,Feuil1!$D$4,IF(H154=Feuil1!$F$3,Feuil1!D157,\"SAISIR TEXTE\"))","v":"soldé"}]
["L:\\2. FINANCES\\2.1 COMPTABILITE\\2.1.7 Bons de Commande\\Bons de commande 2021\\",null,null,null,null,null,null,null,null,null,null,0,{"$f":"IF(L155<=0,Feuil1!$D$4,IF(H155=Feuil1!$F$3,Feuil1!D158,\"SAISIR TEXTE\"))","v":"soldé"}]
["L:\\2. FINANCES\\2.1 COMPTABILITE\\2.1.7 Bons de Commande\\Bons de commande 2021\\",null,null,null,null,null,null,null,null,null,null,0,{"$f":"IF(L156<=0,Feuil1!$D$4,IF(H156=Feuil1!$F$3,Feuil1!D159,\"SAISIR TEXTE\"))","v":"soldé"}]
["L:\\2. FINANCES\\2.1 COMPTABILITE\\2.1.7 Bons de Commande\\Bons de commande 2021\\",null,null,null,null,null,null,null,null,null,null,0,{"$f":"IF(L157<=0,Feuil1!$D$4,IF(H157=Feuil1!$F$3,Feuil1!D160,\"SAISIR TEXTE\"))","v":"soldé"}]
["L:\\2. FINANCES\\2.1 COMPTABILITE\\2.1.7 Bons de Commande\\Bons de commande 2021\\",null,null,null,null,null,null,null,null,null,null,0,{"$f":"IF(L158<=0,Feuil1!$D$4,IF(H158=Feuil1!$F$3,Feuil1!D161,\"SAISIR TEXTE\"))","v":"soldé"}]
["L:\\2. FINANCES\\2.1 COMPTABILITE\\2.1.7 Bons de Commande\\Bons de commande 2021\\",null,null,null,null,null,null,null,null,null,null,0,{"$f":"IF(L159<=0,Feuil1!$D$4,IF(H159=Feuil1!$F$3,Feuil1!D162,\"SAISIR TEXTE\"))","v":"soldé"}]
["L:\\2. FINANCES\\2.1 COMPTABILITE\\2.1.7 Bons de Commande\\Bons de commande 2021\\",null,null,null,null,null,null,null,null,null,null,0,{"$f":"IF(L160<=0,Feuil1!$D$4,IF(H160=Feuil1!$F$3,Feuil1!D163,\"SAISIR TEXTE\"))","v":"soldé"}]
["L:\\2. FINANCES\\2.1 COMPTABILITE\\2.1.7 Bons de Commande\\Bons de commande 2021\\",null,null,null,null,null,null,null,null,null,null,0,{"$f":"IF(L161<=0,Feuil1!$D$4,IF(H161=Feuil1!$F$3,Feuil1!D164,\"SAISIR TEXTE\"))","v":"soldé"}]
["L:\\2. FINANCES\\2.1 COMPTABILITE\\2.1.7 Bons de Commande\\Bons de commande 2021\\",null,null,null,null,null,null,null,null,null,null,0,{"$f":"IF(L162<=0,Feuil1!$D$4,IF(H162=Feuil1!$F$3,Feuil1!D165,\"SAISIR TEXTE\"))","v":"soldé"}]
["L:\\2. FINANCES\\2.1 COMPTABILITE\\2.1.7 Bons de Commande\\Bons de commande 2021\\",null,null,null,null,null,null,null,null,null,null,0,{"$f":"IF(L163<=0,Feuil1!$D$4,IF(H163=Feuil1!$F$3,Feuil1!D166,\"SAISIR TEXTE\"))","v":"soldé"}]
["L:\\2. FINANCES\\2.1 COMPTABILITE\\2.1.7 Bons de Commande\\Bons de commande 2021\\",null,null,null,null,null,null,null,null,null,null,0,{"$f":"IF(L164<=0,Feuil1!$D$4,IF(H164=Feuil1!$F$3,Feuil1!D167,\"SAISIR TEXTE\"))","v":"soldé"}]
["L:\\2. FINANCES\\2.1 COMPTABILITE\\2.1.7 Bons de Commande\\Bons de commande 2021\\",null,null,null,null,null,null,null,null,null,null,0,{"$f":"IF(L165<=0,Feuil1!$D$4,IF(H165=Feuil1!$F$3,Feuil1!D168,\"SAISIR TEXTE\"))","v":"soldé"}]
["L:\\2. FINANCES\\2.1 COMPTABILITE\\2.1.7 Bons de Commande\\Bons de commande 2021\\",null,null,null,null,null,null,null,null,null,null,0,{"$f":"IF(L166<=0,Feuil1!$D$4,IF(H166=Feuil1!$F$3,Feuil1!D169,\"SAISIR TEXTE\"))","v":"soldé"}]
["L:\\2. FINANCES\\2.1 COMPTABILITE\\2.1.7 Bons de Commande\\Bons de commande 2021\\",null,null,null,null,null,null,null,null,null,null,0,{"$f":"IF(L167<=0,Feuil1!$D$4,IF(H167=Feuil1!$F$3,Feuil1!D170,\"SAISIR TEXTE\"))","v":"soldé"}]
["L:\\2. FINANCES\\2.1 COMPTABILITE\\2.1.7 Bons de Commande\\Bons de commande 2021\\",null,null,null,null,null,null,null,null,null,null,0,{"$f":"IF(L168<=0,Feuil1!$D$4,IF(H168=Feuil1!$F$3,Feuil1!D171,\"SAISIR TEXTE\"))","v":"soldé"}]
["L:\\2. FINANCES\\2.1 COMPTABILITE\\2.1.7 Bons de Commande\\Bons de commande 2021\\",null,null,null,null,null,null,null,null,null,null,0,{"$f":"IF(L169<=0,Feuil1!$D$4,IF(H169=Feuil1!$F$3,Feuil1!D172,\"SAISIR TEXTE\"))","v":"soldé"}]
["L:\\2. FINANCES\\2.1 COMPTABILITE\\2.1.7 Bons de Commande\\Bons de commande 2021\\",null,null,null,null,null,null,null,null,null,null,0,{"$f":"IF(L170<=0,Feuil1!$D$4,IF(H170=Feuil1!$F$3,Feuil1!D173,\"SAISIR TEXTE\"))","v":"soldé"}]
["L:\\2. FINANCES\\2.1 COMPTABILITE\\2.1.7 Bons de Commande\\Bons de commande 2021\\",null,null,null,null,null,null,null,null,null,null,0,{"$f":"IF(L171<=0,Feuil1!$D$4,IF(H171=Feuil1!$F$3,Feuil1!D174,\"SAISIR TEXTE\"))","v":"soldé"}]
["L:\\2. FINANCES\\2.1 COMPTABILITE\\2.1.7 Bons de Commande\\Bons de commande 2021\\",null,null,null,null,null,null,null,null,null,null,0,{"$f":"IF(L172<=0,Feuil1!$D$4,IF(H172=Feuil1!$F$3,Feuil1!D175,\"SAISIR TEXTE\"))","v":"soldé"}]
["L:\\2. FINANCES\\2.1 COMPTABILITE\\2.1.7 Bons de Commande\\Bons de commande 2021\\",null,null,null,null,null,null,null,null,null,null,0,{"$f":"IF(L173<=0,Feuil1!$D$4,IF(H173=Feuil1!$F$3,Feuil1!D176,\"SAISIR TEXTE\"))","v":"soldé"}]
["L:\\2. FINANCES\\2.1 COMPTABILITE\\2.1.7 Bons de Commande\\Bons de commande 2021\\",null,null,null,null,null,null,null,null,null,null,0,{"$f":"IF(L174<=0,Feuil1!$D$4,IF(H174=Feuil1!$F$3,Feuil1!D177,\"SAISIR TEXTE\"))","v":"soldé"}]
["L:\\2. FINANCES\\2.1 COMPTABILITE\\2.1.7 Bons de Commande\\Bons de commande 2021\\",null,null,null,null,null,null,null,null,null,null,0,{"$f":"IF(L175<=0,Feuil1!$D$4,IF(H175=Feuil1!$F$3,Feuil1!D178,\"SAISIR TEXTE\"))","v":"soldé"}]
["L:\\2. FINANCES\\2.1 COMPTABILITE\\2.1.7 Bons de Commande\\Bons de commande 2021\\",null,null,null,null,null,null,null,null,null,null,0,{"$f":"IF(L176<=0,Feuil1!$D$4,IF(H176=Feuil1!$F$3,Feuil1!D179,\"SAISIR TEXTE\"))","v":"soldé"}]
["L:\\2. FINANCES\\2.1 COMPTABILITE\\2.1.7 Bons de Commande\\Bons de commande 2021\\",null,null,null,null,null,null,null,null,null,null,0,{"$f":"IF(L177<=0,Feuil1!$D$4,IF(H177=Feuil1!$F$3,Feuil1!D180,\"SAISIR TEXTE\"))","v":"soldé"}]
["L:\\2. FINANCES\\2.1 COMPTABILITE\\2.1.7 Bons de Commande\\Bons de commande 2021\\",null,null,null,null,null,null,null,null,null,null,0,{"$f":"IF(L178<=0,Feuil1!$D$4,IF(H178=Feuil1!$F$3,Feuil1!D181,\"SAISIR TEXTE\"))","v":"soldé"}]
["L:\\2. FINANCES\\2.1 COMPTABILITE\\2.1.7 Bons de Commande\\Bons de commande 2021\\",null,null,null,null,null,null,null,null,null,null,0,{"$f":"IF(L179<=0,Feuil1!$D$4,IF(H179=Feuil1!$F$3,Feuil1!D182,\"SAISIR TEXTE\"))","v":"soldé"}]
["L:\\2. FINANCES\\2.1 COMPTABILITE\\2.1.7 Bons de Commande\\Bons de commande 2021\\",null,null,null,null,null,null,null,null,null,null,0,{"$f":"IF(L180<=0,Feuil1!$D$4,IF(H180=Feuil1!$F$3,Feuil1!D183,\"SAISIR TEXTE\"))","v":"soldé"}]
["L:\\2. FINANCES\\2.1 COMPTABILITE\\2.1.7 Bons de Commande\\Bons de commande 2021\\",null,null,null,null,null,null,null,null,null,null,0,{"$f":"IF(L181<=0,Feuil1!$D$4,IF(H181=Feuil1!$F$3,Feuil1!D184,\"SAISIR TEXTE\"))","v":"soldé"}]
["L:\\2. FINANCES\\2.1 COMPTABILITE\\2.1.7 Bons de Commande\\Bons de commande 2021\\",null,null,null,null,null,null,null,null,null,null,0,{"$f":"IF(L182<=0,Feuil1!$D$4,IF(H182=Feuil1!$F$3,Feuil1!D185,\"SAISIR TEXTE\"))","v":"soldé"}]
["L:\\2. FINANCES\\2.1 COMPTABILITE\\2.1.7 Bons de Commande\\Bons de commande 2021\\",null,null,null,null,null,null,null,null,null,null,0,{"$f":"IF(L183<=0,Feuil1!$D$4,IF(H183=Feuil1!$F$3,Feuil1!D186,\"SAISIR TEXTE\"))","v":"soldé"}]
["L:\\2. FINANCES\\2.1 COMPTABILITE\\2.1.7 Bons de Commande\\Bons de commande 2021\\",null,null,null,null,null,null,null,null,null,null,0,{"$f":"IF(L184<=0,Feuil1!$D$4,IF(H184=Feuil1!$F$3,Feuil1!D187,\"SAISIR TEXTE\"))","v":"soldé"}]
["L:\\2. FINANCES\\2.1 COMPTABILITE\\2.1.7 Bons de Commande\\Bons de commande 2021\\",null,null,null,null,null,null,null,null,null,null,0,{"$f":"IF(L185<=0,Feuil1!$D$4,IF(H185=Feuil1!$F$3,Feuil1!D188,\"SAISIR TEXTE\"))","v":"soldé"}]
["L:\\2. FINANCES\\2.1 COMPTABILITE\\2.1.7 Bons de Commande\\Bons de commande 2021\\",null,null,null,null,null,null,null,null,null,null,0,{"$f":"IF(L186<=0,Feuil1!$D$4,IF(H186=Feuil1!$F$3,Feuil1!D189,\"SAISIR TEXTE\"))","v":"soldé"}]
["L:\\2. FINANCES\\2.1 COMPTABILITE\\2.1.7 Bons de Commande\\Bons de commande 2021\\",null,null,null,null,null,null,null,null,null,null,0,{"$f":"IF(L187<=0,Feuil1!$D$4,IF(H187=Feuil1!$F$3,Feuil1!D190,\"SAISIR TEXTE\"))","v":"soldé"}]
["L:\\2. FINANCES\\2.1 COMPTABILITE\\2.1.7 Bons de Commande\\Bons de commande 2021\\",null,null,null,null,null,null,null,null,null,null,0,{"$f":"IF(L188<=0,Feuil1!$D$4,IF(H188=Feuil1!$F$3,Feuil1!D191,\"SAISIR TEXTE\"))","v":"soldé"}]
["L:\\2. FINANCES\\2.1 COMPTABILITE\\2.1.7 Bons de Commande\\Bons de commande 2021\\",null,null,null,null,null,null,null,null,null,null,0,{"$f":"IF(L189<=0,Feuil1!$D$4,IF(H189=Feuil1!$F$3,Feuil1!D192,\"SAISIR TEXTE\"))","v":"soldé"}]
["L:\\2. FINANCES\\2.1 COMPTABILITE\\2.1.7 Bons de Commande\\Bons de commande 2021\\",null,null,null,null,null,null,null,null,null,null,0,{"$f":"IF(L190<=0,Feuil1!$D$4,IF(H190=Feuil1!$F$3,Feuil1!D193,\"SAISIR TEXTE\"))","v":"soldé"}]
["L:\\2. FINANCES\\2.1 COMPTABILITE\\2.1.7 Bons de Commande\\Bons de commande 2021\\",null,null,null,null,null,null,null,null,null,null,0,{"$f":"IF(L191<=0,Feuil1!$D$4,IF(H191=Feuil1!$F$3,Feuil1!D194,\"SAISIR TEXTE\"))","v":"soldé"}]
["L:\\2. FINANCES\\2.1 COMPTABILITE\\2.1.7 Bons de Commande\\Bons de commande 2021\\",null,null,null,null,null,null,null,null,null,null,0,{"$f":"IF(L192<=0,Feuil1!$D$4,IF(H192=Feuil1!$F$3,Feuil1!D195,\"SAISIR TEXTE\"))","v":"soldé"}]
["L:\\2. FINANCES\\2.1 COMPTABILITE\\2.1.7 Bons de Commande\\Bons de commande 2021\\",null,null,null,null,null,null,null,null,null,null,0,{"$f":"IF(L193<=0,Feuil1!$D$4,IF(H193=Feuil1!$F$3,Feuil1!D196,\"SAISIR TEXTE\"))","v":"soldé"}]
["L:\\2. FINANCES\\2.1 COMPTABILITE\\2.1.7 Bons de Commande\\Bons de commande 2021\\",null,null,null,null,null,null,null,null,null,null,0,{"$f":"IF(L194<=0,Feuil1!$D$4,IF(H194=Feuil1!$F$3,Feuil1!D197,\"SAISIR TEXTE\"))","v":"soldé"}]
["L:\\2. FINANCES\\2.1 COMPTABILITE\\2.1.7 Bons de Commande\\Bons de commande 2021\\",null,null,null,null,null,null,null,null,null,null,{"$f":"F195-K195","v":0},{"$f":"IF(L195<=0,Feuil1!$D$4,IF(H195=Feuil1!$F$3,Feuil1!D198,\"SAISIR TEXTE\"))","v":"soldé"}]
["L:\\2. FINANCES\\2.1 COMPTABILITE\\2.1.7 Bons de Commande\\Bons de commande 2021\\",null,null,null,null,null,null,null,null,null,null,0,{"$f":"IF(L196<=0,Feuil1!$D$4,IF(H196=Feuil1!$F$3,Feuil1!D199,\"SAISIR TEXTE\"))","v":"soldé"}]
["L:\\2. FINANCES\\2.1 COMPTABILITE\\2.1.7 Bons de Commande\\Bons de commande 2021\\",null,null,null,null,null,null,null,null,null,null,0,{"$f":"IF(L197<=0,Feuil1!$D$4,IF(H197=Feuil1!$F$3,Feuil1!D200,\"SAISIR TEXTE\"))","v":"soldé"}]
["L:\\2. FINANCES\\2.1 COMPTABILITE\\2.1.7 Bons de Commande\\Bons de commande 2021\\",null,null,null,null,null,null,null,null,null,null,0,{"$f":"IF(L198<=0,Feuil1!$D$4,IF(H198=Feuil1!$F$3,Feuil1!D201,\"SAISIR TEXTE\"))","v":"soldé"}]
["L:\\2. FINANCES\\2.1 COMPTABILITE\\2.1.7 Bons de Commande\\Bons de commande 2021\\",null,null,null,null,null,null,null,null,null,null,0,{"$f":"IF(L199<=0,Feuil1!$D$4,IF(H199=Feuil1!$F$3,Feuil1!D202,\"SAISIR TEXTE\"))","v":"soldé"}]
["L:\\2. FINANCES\\2.1 COMPTABILITE\\2.1.7 Bons de Commande\\Bons de commande 2021\\",null,null,null,null,null,null,null,null,null,null,0,{"$f":"IF(L200<=0,Feuil1!$D$4,IF(H200=Feuil1!$F$3,Feuil1!D203,\"SAISIR TEXTE\"))","v":"soldé"}]
["L:\\2. FINANCES\\2.1 COMPTABILITE\\2.1.7 Bons de Commande\\Bons de commande 2021\\",null,null,null,null,null,null,null,null,null,null,0,{"$f":"IF(L201<=0,Feuil1!$D$4,IF(H201=Feuil1!$F$3,Feuil1!D204,\"SAISIR TEXTE\"))","v":"soldé"}]
["L:\\2. FINANCES\\2.1 COMPTABILITE\\2.1.7 Bons de Commande\\Bons de commande 2021\\",null,null,null,null,null,null,null,null,null,null,0,{"$f":"IF(L202<=0,Feuil1!$D$4,IF(H202=Feuil1!$F$3,Feuil1!D205,\"SAISIR TEXTE\"))","v":"soldé"}]
["L:\\2. FINANCES\\2.1 COMPTABILITE\\2.1.7 Bons de Commande\\Bons de commande 2021\\",null,null,null,null,null,null,null,null,null,null,0,{"$f":"IF(L203<=0,Feuil1!$D$4,IF(H203=Feuil1!$F$3,Feuil1!D206,\"SAISIR TEXTE\"))","v":"soldé"}]
["L:\\2. FINANCES\\2.1 COMPTABILITE\\2.1.7 Bons de Commande\\Bons de commande 2021\\",null,null,null,null,null,null,null,null,null,null,0,{"$f":"IF(L204<=0,Feuil1!$D$4,IF(H204=Feuil1!$F$3,Feuil1!D207,\"SAISIR TEXTE\"))","v":"soldé"}]
["L:\\2. FINANCES\\2.1 COMPTABILITE\\2.1.7 Bons de Commande\\Bons de commande 2021\\",null,null,null,null,null,null,null,null,null,null,0,{"$f":"IF(L205<=0,Feuil1!$D$4,IF(H205=Feuil1!$F$3,Feuil1!D208,\"SAISIR TEXTE\"))","v":"soldé"}]
["L:\\2. FINANCES\\2.1 COMPTABILITE\\2.1.7 Bons de Commande\\Bons de commande 2021\\",null,null,null,null,null,null,null,null,null,null,0,{"$f":"IF(L206<=0,Feuil1!$D$4,IF(H206=Feuil1!$F$3,Feuil1!D209,\"SAISIR TEXTE\"))","v":"soldé"}]
["L:\\2. FINANCES\\2.1 COMPTABILITE\\2.1.7 Bons de Commande\\Bons de commande 2021\\",null,null,null,null,null,null,null,null,null,null,0,{"$f":"IF(L207<=0,Feuil1!$D$4,IF(H207=Feuil1!$F$3,Feuil1!D210,\"SAISIR TEXTE\"))","v":"soldé"}]
["L:\\2. FINANCES\\2.1 COMPTABILITE\\2.1.7 Bons de Commande\\Bons de commande 2021\\",null,null,null,null,null,null,null,null,null,null,0,{"$f":"IF(L208<=0,Feuil1!$D$4,IF(H208=Feuil1!$F$3,Feuil1!D211,\"SAISIR TEXTE\"))","v":"soldé"}]
["L:\\2. FINANCES\\2.1 COMPTABILITE\\2.1.7 Bons de Commande\\Bons de commande 2021\\",null,null,null,null,null,null,null,null,null,null,0,{"$f":"IF(L209<=0,Feuil1!$D$4,IF(H209=Feuil1!$F$3,Feuil1!D212,\"SAISIR TEXTE\"))","v":"soldé"}]
["L:\\2. FINANCES\\2.1 COMPTABILITE\\2.1.7 Bons de Commande\\Bons de commande 2021\\",null,null,null,null,null,null,null,null,null,null,0,{"$f":"IF(L210<=0,Feuil1!$D$4,IF(H210=Feuil1!$F$3,Feuil1!D213,\"SAISIR TEXTE\"))","v":"soldé"}]
["L:\\2. FINANCES\\2.1 COMPTABILITE\\2.1.7 Bons de Commande\\Bons de commande 2021\\",null,null,null,null,null,null,null,null,null,null,0,{"$f":"IF(L211<=0,Feuil1!$D$4,IF(H211=Feuil1!$F$3,Feuil1!D214,\"SAISIR TEXTE\"))","v":"soldé"}]
["L:\\2. FINANCES\\2.1 COMPTABILITE\\2.1.7 Bons de Commande\\Bons de commande 2021\\",null,null,null,null,null,null,null,null,null,null,0,{"$f":"IF(L212<=0,Feuil1!$D$4,IF(H212=Feuil1!$F$3,Feuil1!D215,\"SAISIR TEXTE\"))","v":"soldé"}]
["L:\\2. FINANCES\\2.1 COMPTABILITE\\2.1.7 Bons de Commande\\Bons de commande 2021\\",null,null,null,null,null,null,null,null,null,null,0,{"$f":"IF(L213<=0,Feuil1!$D$4,IF(H213=Feuil1!$F$3,Feuil1!D216,\"SAISIR TEXTE\"))","v":"soldé"}]
["L:\\2. FINANCES\\2.1 COMPTABILITE\\2.1.7 Bons de Commande\\Bons de commande 2021\\",null,null,null,null,null,null,null,null,null,null,0,{"$f":"IF(L214<=0,Feuil1!$D$4,IF(H214=Feuil1!$F$3,Feuil1!D217,\"SAISIR TEXTE\"))","v":"soldé"}]
["L:\\2. FINANCES\\2.1 COMPTABILITE\\2.1.7 Bons de Commande\\Bons de commande 2021\\",null,null,null,null,null,null,null,null,null,null,0,{"$f":"IF(L215<=0,Feuil1!$D$4,IF(H215=Feuil1!$F$3,Feuil1!D218,\"SAISIR TEXTE\"))","v":"soldé"}]
["L:\\2. FINANCES\\2.1 COMPTABILITE\\2.1.7 Bons de Commande\\Bons de commande 2021\\",null,null,null,null,null,null,null,null,null,null,0,{"$f":"IF(L216<=0,Feuil1!$D$4,IF(H216=Feuil1!$F$3,Feuil1!D219,\"SAISIR TEXTE\"))","v":"soldé"}]
["L:\\2. FINANCES\\2.1 COMPTABILITE\\2.1.7 Bons de Commande\\Bons de commande 2021\\",null,null,null,null,null,null,null,null,null,null,0,{"$f":"IF(L217<=0,Feuil1!$D$4,IF(H217=Feuil1!$F$3,Feuil1!D220,\"SAISIR TEXTE\"))","v":"soldé"}]
["L:\\2. FINANCES\\2.1 COMPTABILITE\\2.1.7 Bons de Commande\\Bons de commande 2021\\",null,null,null,null,null,null,null,null,null,null,0,{"$f":"IF(L218<=0,Feuil1!$D$4,IF(H218=Feuil1!$F$3,Feuil1!D221,\"SAISIR TEXTE\"))","v":"soldé"}]
["L:\\2. FINANCES\\2.1 COMPTABILITE\\2.1.7 Bons de Commande\\Bons de commande 2021\\",null,null,null,null,null,null,null,null,null,null,0,{"$f":"IF(L219<=0,Feuil1!$D$4,IF(H219=Feuil1!$F$3,Feuil1!D222,\"SAISIR TEXTE\"))","v":"soldé"}]
["L:\\2. FINANCES\\2.1 COMPTABILITE\\2.1.7 Bons de Commande\\Bons de commande 2021\\",null,null,null,null,null,null,null,null,null,null,0,{"$f":"IF(L220<=0,Feuil1!$D$4,IF(H220=Feuil1!$F$3,Feuil1!D223,\"SAISIR TEXTE\"))","v":"soldé"}]
["L:\\2. FINANCES\\2.1 COMPTABILITE\\2.1.7 Bons de Commande\\Bons de commande 2021\\",null,null,null,null,null,null,null,null,null,null,0,{"$f":"IF(L221<=0,Feuil1!$D$4,IF(H221=Feuil1!$F$3,Feuil1!D224,\"SAISIR TEXTE\"))","v":"soldé"}]
["L:\\2. FINANCES\\2.1 COMPTABILITE\\2.1.7 Bons de Commande\\Bons de commande 2021\\",null,null,null,null,null,null,null,null,null,null,0,{"$f":"IF(L222<=0,Feuil1!$D$4,IF(H222=Feuil1!$F$3,Feuil1!D225,\"SAISIR TEXTE\"))","v":"soldé"}]
["L:\\2. FINANCES\\2.1 COMPTABILITE\\2.1.7 Bons de Commande\\Bons de commande 2021\\",null,null,null,null,null,null,null,null,null,null,0,{"$f":"IF(L223<=0,Feuil1!$D$4,IF(H223=Feuil1!$F$3,Feuil1!D226,\"SAISIR TEXTE\"))","v":"soldé"}]
["L:\\2. FINANCES\\2.1 COMPTABILITE\\2.1.7 Bons de Commande\\Bons de commande 2021\\",null,null,null,null,null,null,null,null,null,null,0,{"$f":"IF(L224<=0,Feuil1!$D$4,IF(H224=Feuil1!$F$3,Feuil1!D227,\"SAISIR TEXTE\"))","v":"soldé"}]
["L:\\2. FINANCES\\2.1 COMPTABILITE\\2.1.7 Bons de Commande\\Bons de commande 2021\\",null,null,null,null,null,null,null,null,null,null,0,{"$f":"IF(L225<=0,Feuil1!$D$4,IF(H225=Feuil1!$F$3,Feuil1!D228,\"SAISIR TEXTE\"))","v":"soldé"}]
["L:\\2. FINANCES\\2.1 COMPTABILITE\\2.1.7 Bons de Commande\\Bons de commande 2021\\",null,null,null,null,null,null,null,null,null,null,0,{"$f":"IF(L226<=0,Feuil1!$D$4,IF(H226=Feuil1!$F$3,Feuil1!D229,\"SAISIR TEXTE\"))","v":"soldé"}]
["L:\\2. FINANCES\\2.1 COMPTABILITE\\2.1.7 Bons de Commande\\Bons de commande 2021\\",null,null,null,null,null,null,null,null,null,null,0,{"$f":"IF(L227<=0,Feuil1!$D$4,IF(H227=Feuil1!$F$3,Feuil1!D230,\"SAISIR TEXTE\"))","v":"soldé"}]
["L:\\2. FINANCES\\2.1 COMPTABILITE\\2.1.7 Bons de Commande\\Bons de commande 2021\\",null,null,null,null,null,null,null,null,null,null,0,{"$f":"IF(L228<=0,Feuil1!$D$4,IF(H228=Feuil1!$F$3,Feuil1!D231,\"SAISIR TEXTE\"))","v":"soldé"}]
["L:\\2. FINANCES\\2.1 COMPTABILITE\\2.1.7 Bons de Commande\\Bons de commande 2021\\",null,null,null,null,null,null,null,null,null,null,0,{"$f":"IF(L229<=0,Feuil1!$D$4,IF(H229=Feuil1!$F$3,Feuil1!D232,\"SAISIR TEXTE\"))","v":"soldé"}]
["L:\\2. FINANCES\\2.1 COMPTABILITE\\2.1.7 Bons de Commande\\Bons de commande 2021\\",null,null,null,null,null,null,null,null,null,null,0,{"$f":"IF(L230<=0,Feuil1!$D$4,IF(H230=Feuil1!$F$3,Feuil1!D233,\"SAISIR TEXTE\"))","v":"soldé"}]
["L:\\2. FINANCES\\2.1 COMPTABILITE\\2.1.7 Bons de Commande\\Bons de commande 2021\\",null,null,null,null,null,null,null,null,null,null,0,{"$f":"IF(L231<=0,Feuil1!$D$4,IF(H231=Feuil1!$F$3,Feuil1!D234,\"SAISIR TEXTE\"))","v":"soldé"}]
["L:\\2. FINANCES\\2.1 COMPTABILITE\\2.1.7 Bons de Commande\\Bons de commande 2021\\",null,null,null,null,null,null,null,null,null,null,0,{"$f":"IF(L232<=0,Feuil1!$D$4,IF(H232=Feuil1!$F$3,Feuil1!D235,\"SAISIR TEXTE\"))","v":"soldé"}]
["L:\\2. FINANCES\\2.1 COMPTABILITE\\2.1.7 Bons de Commande\\Bons de commande 2021\\",null,null,null,null,null,null,null,null,null,null,0,{"$f":"IF(L233<=0,Feuil1!$D$4,IF(H233=Feuil1!$F$3,Feuil1!D236,\"SAISIR TEXTE\"))","v":"soldé"}]
["L:\\2. FINANCES\\2.1 COMPTABILITE\\2.1.7 Bons de Commande\\Bons de commande 2021\\",null,null,null,null,null,null,null,null,null,null,0,{"$f":"IF(L234<=0,Feuil1!$D$4,IF(H234=Feuil1!$F$3,Feuil1!D237,\"SAISIR TEXTE\"))","v":"soldé"}]
["L:\\2. FINANCES\\2.1 COMPTABILITE\\2.1.7 Bons de Commande\\Bons de commande 2021\\",null,null,null,null,null,null,null,null,null,null,0,{"$f":"IF(L235<=0,Feuil1!$D$4,IF(H235=Feuil1!$F$3,Feuil1!D238,\"SAISIR TEXTE\"))","v":"soldé"}]
["L:\\2. FINANCES\\2.1 COMPTABILITE\\2.1.7 Bons de Commande\\Bons de commande 2021\\",null,null,null,null,null,null,null,null,null,null,0,{"$f":"IF(L236<=0,Feuil1!$D$4,IF(H236=Feuil1!$F$3,Feuil1!D239,\"SAISIR TEXTE\"))","v":"soldé"}]
["L:\\2. FINANCES\\2.1 COMPTABILITE\\2.1.7 Bons de Commande\\Bons de commande 2021\\",null,null,null,null,null,null,null,null,null,null,0,{"$f":"IF(L237<=0,Feuil1!$D$4,IF(H237=Feuil1!$F$3,Feuil1!D240,\"SAISIR TEXTE\"))","v":"soldé"}]
["L:\\2. FINANCES\\2.1 COMPTABILITE\\2.1.7 Bons de Commande\\Bons de commande 2021\\",null,null,null,null,null,null,null,null,null,null,0,{"$f":"IF(L238<=0,Feuil1!$D$4,IF(H238=Feuil1!$F$3,Feuil1!D241,\"SAISIR TEXTE\"))","v":"soldé"}]
["L:\\2. FINANCES\\2.1 COMPTABILITE\\2.1.7 Bons de Commande\\Bons de commande 2021\\",null,null,null,null,null,null,null,null,null,null,0,{"$f":"IF(L239<=0,Feuil1!$D$4,IF(H239=Feuil1!$F$3,Feuil1!D242,\"SAISIR TEXTE\"))","v":"soldé"}]
["L:\\2. FINANCES\\2.1 COMPTABILITE\\2.1.7 Bons de Commande\\Bons de commande 2021\\",null,null,null,null,null,null,null,null,null,null,0,{"$f":"IF(L240<=0,Feuil1!$D$4,IF(H240=Feuil1!$F$3,Feuil1!D243,\"SAISIR TEXTE\"))","v":"soldé"}]
["L:\\2. FINANCES\\2.1 COMPTABILITE\\2.1.7 Bons de Commande\\Bons de commande 2021\\",null,null,null,null,null,null,null,null,null,null,0,{"$f":"IF(L241<=0,Feuil1!$D$4,IF(H241=Feuil1!$F$3,Feuil1!D244,\"SAISIR TEXTE\"))","v":"soldé"}]
["L:\\2. FINANCES\\2.1 COMPTABILITE\\2.1.7 Bons de Commande\\Bons de commande 2021\\",null,null,null,null,null,null,null,null,null,null,0,{"$f":"IF(L242<=0,Feuil1!$D$4,IF(H242=Feuil1!$F$3,Feuil1!D245,\"SAISIR TEXTE\"))","v":"soldé"}]
["L:\\2. FINANCES\\2.1 COMPTABILITE\\2.1.7 Bons de Commande\\Bons de commande 2021\\",null,null,null,null,null,null,null,null,null,null,0,{"$f":"IF(L243<=0,Feuil1!$D$4,IF(H243=Feuil1!$F$3,Feuil1!D246,\"SAISIR TEXTE\"))","v":"soldé"}]
["L:\\2. FINANCES\\2.1 COMPTABILITE\\2.1.7 Bons de Commande\\Bons de commande 2021\\",null,null,null,null,null,null,null,null,null,null,0,{"$f":"IF(L244<=0,Feuil1!$D$4,IF(H244=Feuil1!$F$3,Feuil1!D247,\"SAISIR TEXTE\"))","v":"soldé"}]
["L:\\2. FINANCES\\2.1 COMPTABILITE\\2.1.7 Bons de Commande\\Bons de commande 2021\\",null,null,null,null,null,null,null,null,null,null,0,{"$f":"IF(L245<=0,Feuil1!$D$4,IF(H245=Feuil1!$F$3,Feuil1!D248,\"SAISIR TEXTE\"))","v":"soldé"}]
["L:\\2. FINANCES\\2.1 COMPTABILITE\\2.1.7 Bons de Commande\\Bons de commande 2021\\",null,null,null,null,null,null,null,null,null,null,0,{"$f":"IF(L246<=0,Feuil1!$D$4,IF(H246=Feuil1!$F$3,Feuil1!D249,\"SAISIR TEXTE\"))","v":"soldé"}]
["L:\\2. FINANCES\\2.1 COMPTABILITE\\2.1.7 Bons de Commande\\Bons de commande 2021\\",null,null,null,null,null,null,null,null,null,null,0,{"$f":"IF(L247<=0,Feuil1!$D$4,IF(H247=Feuil1!$F$3,Feuil1!D250,\"SAISIR TEXTE\"))","v":"soldé"}]
["L:\\2. FINANCES\\2.1 COMPTABILITE\\2.1.7 Bons de Commande\\Bons de commande 2021\\",null,null,null,null,null,null,null,null,null,null,0,{"$f":"IF(L248<=0,Feuil1!$D$4,IF(H248=Feuil1!$F$3,Feuil1!D251,\"SAISIR TEXTE\"))","v":"soldé"}]
["L:\\2. FINANCES\\2.1 COMPTABILITE\\2.1.7 Bons de Commande\\Bons de commande 2021\\",null,null,null,null,null,null,null,null,null,null,0,{"$f":"IF(L249<=0,Feuil1!$D$4,IF(H249=Feuil1!$F$3,Feuil1!D252,\"SAISIR TEXTE\"))","v":"soldé"}]
["L:\\2. FINANCES\\2.1 COMPTABILITE\\2.1.7 Bons de Commande\\Bons de commande 2021\\",null,null,null,null,null,null,null,null,null,null,0,{"$f":"IF(L250<=0,Feuil1!$D$4,IF(H250=Feuil1!$F$3,Feuil1!D253,\"SAISIR TEXTE\"))","v":"soldé"}]
["L:\\2. FINANCES\\2.1 COMPTABILITE\\2.1.7 Bons de Commande\\Bons de commande 2021\\",null,null,null,null,null,null,null,null,null,null,0,{"$f":"IF(L251<=0,Feuil1!$D$4,IF(H251=Feuil1!$F$3,Feuil1!D254,\"SAISIR TEXTE\"))","v":"soldé"}]
["L:\\2. FINANCES\\2.1 COMPTABILITE\\2.1.7 Bons de Commande\\Bons de commande 2021\\",null,null,null,null,null,null,null,null,null,null,0,{"$f":"IF(L252<=0,Feuil1!$D$4,IF(H252=Feuil1!$F$3,Feuil1!D255,\"SAISIR TEXTE\"))","v":"soldé"}]
["L:\\2. FINANCES\\2.1 COMPTABILITE\\2.1.7 Bons de Commande\\Bons de commande 2021\\",null,null,null,null,null,null,null,null,null,null,0,{"$f":"IF(L253<=0,Feuil1!$D$4,IF(H253=Feuil1!$F$3,Feuil1!D256,\"SAISIR TEXTE\"))","v":"soldé"}]
["L:\\2. FINANCES\\2.1 COMPTABILITE\\2.1.7 Bons de Commande\\Bons de commande 2021\\",null,null,null,null,null,null,null,null,null,null,0,{"$f":"IF(L254<=0,Feuil1!$D$4,IF(H254=Feuil1!$F$3,Feuil1!D257,\"SAISIR TEXTE\"))","v":"soldé"}]
["L:\\2. FINANCES\\2.1 COMPTABILITE\\2.1.7 Bons de Commande\\Bons de commande 2021\\",null,null,null,null,null,null,null,null,null,null,0,{"$f":"IF(L255<=0,Feuil1!$D$4,IF(H255=Feuil1!$F$3,Feuil1!D258,\"SAISIR TEXTE\"))","v":"soldé"}]
["L:\\2. FINANCES\\2.1 COMPTABILITE\\2.1.7 Bons de Commande\\Bons de commande 2021\\",null,null,null,null,null,null,null,null,null,null,0,{"$f":"IF(L256<=0,Feuil1!$D$4,IF(H256=Feuil1!$F$3,Feuil1!D259,\"SAISIR TEXTE\"))","v":"soldé"}]
["L:\\2. FINANCES\\2.1 COMPTABILITE\\2.1.7 Bons de Commande\\Bons de commande 2021\\",null,null,null,null,null,null,null,null,null,null,0,{"$f":"IF(L257<=0,Feuil1!$D$4,IF(H257=Feuil1!$F$3,Feuil1!D260,\"SAISIR TEXTE\"))","v":"soldé"}]
["L:\\2. FINANCES\\2.1 COMPTABILITE\\2.1.7 Bons de Commande\\Bons de commande 2021\\",null,null,null,null,null,null,null,null,null,null,0,{"$f":"IF(L258<=0,Feuil1!$D$4,IF(H258=Feuil1!$F$3,Feuil1!D261,\"SAISIR TEXTE\"))","v":"soldé"}]
["L:\\2. FINANCES\\2.1 COMPTABILITE\\2.1.7 Bons de Commande\\Bons de commande 2021\\",null,null,null,null,null,null,null,null,null,null,{"$f":"F259-K259","v":0},{"$f":"IF(L259<=0,Feuil1!$D$4,IF(H259=Feuil1!$F$3,Feuil1!D262,\"SAISIR TEXTE\"))","v":"soldé"}]
["L:\\2. FINANCES\\2.1 COMPTABILITE\\2.1.7 Bons de Commande\\Bons de commande 2021\\",null,null,null,null,null,null,null,null,null,null,0,{"$f":"IF(L260<=0,Feuil1!$D$4,IF(H260=Feuil1!$F$3,Feuil1!D263,\"SAISIR TEXTE\"))","v":"soldé"}]
["L:\\2. FINANCES\\2.1 COMPTABILITE\\2.1.7 Bons de Commande\\Bons de commande 2021\\",null,null,null,null,null,null,null,null,null,null,0,{"$f":"IF(L261<=0,Feuil1!$D$4,IF(H261=Feuil1!$F$3,Feuil1!D264,\"SAISIR TEXTE\"))","v":"soldé"}]
["L:\\2. FINANCES\\2.1 COMPTABILITE\\2.1.7 Bons de Commande\\Bons de commande 2021\\",null,null,null,null,null,null,null,null,null,null,0,{"$f":"IF(L262<=0,Feuil1!$D$4,IF(H262=Feuil1!$F$3,Feuil1!D265,\"SAISIR TEXTE\"))","v":"soldé"}]
["L:\\2. FINANCES\\2.1 COMPTABILITE\\2.1.7 Bons de Commande\\Bons de commande 2021\\",null,null,null,null,null,null,null,null,null,null,0,{"$f":"IF(L263<=0,Feuil1!$D$4,IF(H263=Feuil1!$F$3,Feuil1!D266,\"SAISIR TEXTE\"))","v":"soldé"}]
["L:\\2. FINANCES\\2.1 COMPTABILITE\\2.1.7 Bons de Commande\\Bons de commande 2021\\",null,null,null,null,null,null,null,null,null,null,0,{"$f":"IF(L264<=0,Feuil1!$D$4,IF(H264=Feuil1!$F$3,Feuil1!D267,\"SAISIR TEXTE\"))","v":"soldé"}]
["L:\\2. FINANCES\\2.1 COMPTABILITE\\2.1.7 Bons de Commande\\Bons de commande 2021\\",null,null,null,null,null,null,null,null,null,null,0,{"$f":"IF(L265<=0,Feuil1!$D$4,IF(H265=Feuil1!$F$3,Feuil1!D268,\"SAISIR TEXTE\"))","v":"soldé"}]
["L:\\2. FINANCES\\2.1 COMPTABILITE\\2.1.7 Bons de Commande\\Bons de commande 2021\\",null,null,null,null,null,null,null,null,null,null,0,{"$f":"IF(L266<=0,Feuil1!$D$4,IF(H266=Feuil1!$F$3,Feuil1!D269,\"SAISIR TEXTE\"))","v":"soldé"}]
["L:\\2. FINANCES\\2.1 COMPTABILITE\\2.1.7 Bons de Commande\\Bons de commande 2021\\",null,null,null,null,null,null,null,null,null,null,0,{"$f":"IF(L267<=0,Feuil1!$D$4,IF(H267=Feuil1!$F$3,Feuil1!D270,\"SAISIR TEXTE\"))","v":"soldé"}]
["L:\\2. FINANCES\\2.1 COMPTABILITE\\2.1.7 Bons de Commande\\Bons de commande 2021\\",null,null,null,null,null,null,null,null,null,null,0,{"$f":"IF(L268<=0,Feuil1!$D$4,IF(H268=Feuil1!$F$3,Feuil1!D271,\"SAISIR TEXTE\"))","v":"soldé"}]
["L:\\2. FINANCES\\2.1 COMPTABILITE\\2.1.7 Bons de Commande\\Bons de commande 2021\\",null,null,null,null,null,null,null,null,null,null,0,{"$f":"IF(L269<=0,Feuil1!$D$4,IF(H269=Feuil1!$F$3,Feuil1!D272,\"SAISIR TEXTE\"))","v":"soldé"}]
["L:\\2. FINANCES\\2.1 COMPTABILITE\\2.1.7 Bons de Commande\\Bons de commande 2021\\",null,null,null,null,null,null,null,null,null,null,0,{"$f":"IF(L270<=0,Feuil1!$D$4,IF(H270=Feuil1!$F$3,Feuil1!D273,\"SAISIR TEXTE\"))","v":"soldé"}]
["L:\\2. FINANCES\\2.1 COMPTABILITE\\2.1.7 Bons de Commande\\Bons de commande 2021\\",null,null,null,null,null,null,null,null,null,null,0,{"$f":"IF(L271<=0,Feuil1!$D$4,IF(H271=Feuil1!$F$3,Feuil1!D274,\"SAISIR TEXTE\"))","v":"soldé"}]
["L:\\2. FINANCES\\2.1 COMPTABILITE\\2.1.7 Bons de Commande\\Bons de commande 2021\\",null,null,null,null,null,null,null,null,null,null,0,{"$f":"IF(L272<=0,Feuil1!$D$4,IF(H272=Feuil1!$F$3,Feuil1!D275,\"SAISIR TEXTE\"))","v":"soldé"}]
["L:\\2. FINANCES\\2.1 COMPTABILITE\\2.1.7 Bons de Commande\\Bons de commande 2021\\",null,null,null,null,null,null,null,null,null,null,0,{"$f":"IF(L273<=0,Feuil1!$D$4,IF(H273=Feuil1!$F$3,Feuil1!D276,\"SAISIR TEXTE\"))","v":"soldé"}]
["L:\\2. FINANCES\\2.1 COMPTABILITE\\2.1.7 Bons de Commande\\Bons de commande 2021\\",null,null,null,null,null,null,null,null,null,null,0,{"$f":"IF(L274<=0,Feuil1!$D$4,IF(H274=Feuil1!$F$3,Feuil1!D277,\"SAISIR TEXTE\"))","v":"soldé"}]
["L:\\2. FINANCES\\2.1 COMPTABILITE\\2.1.7 Bons de Commande\\Bons de commande 2021\\",null,null,null,null,null,null,null,null,null,null,0,{"$f":"IF(L275<=0,Feuil1!$D$4,IF(H275=Feuil1!$F$3,Feuil1!D278,\"SAISIR TEXTE\"))","v":"soldé"}]
["L:\\2. FINANCES\\2.1 COMPTABILITE\\2.1.7 Bons de Commande\\Bons de commande 2021\\",null,null,null,null,null,null,null,null,null,null,0,{"$f":"IF(L276<=0,Feuil1!$D$4,IF(H276=Feuil1!$F$3,Feuil1!D279,\"SAISIR TEXTE\"))","v":"soldé"}]
["L:\\2. FINANCES\\2.1 COMPTABILITE\\2.1.7 Bons de Commande\\Bons de commande 2021\\",null,null,null,null,null,null,null,null,null,null,0,{"$f":"IF(L277<=0,Feuil1!$D$4,IF(H277=Feuil1!$F$3,Feuil1!D280,\"SAISIR TEXTE\"))","v":"soldé"}]
["L:\\2. FINANCES\\2.1 COMPTABILITE\\2.1.7 Bons de Commande\\Bons de commande 2021\\",null,null,null,null,null,null,null,null,null,null,0,{"$f":"IF(L278<=0,Feuil1!$D$4,IF(H278=Feuil1!$F$3,Feuil1!D281,\"SAISIR TEXTE\"))","v":"soldé"}]
["L:\\2. FINANCES\\2.1 COMPTABILITE\\2.1.7 Bons de Commande\\Bons de commande 2021\\",null,null,null,null,null,null,null,null,null,null,0,{"$f":"IF(L279<=0,Feuil1!$D$4,IF(H279=Feuil1!$F$3,Feuil1!D282,\"SAISIR TEXTE\"))","v":"soldé"}]
["L:\\2. FINANCES\\2.1 COMPTABILITE\\2.1.7 Bons de Commande\\Bons de commande 2021\\",null,null,null,null,null,null,null,null,null,null,0,{"$f":"IF(L280<=0,Feuil1!$D$4,IF(H280=Feuil1!$F$3,Feuil1!D283,\"SAISIR TEXTE\"))","v":"soldé"}]
["L:\\2. FINANCES\\2.1 COMPTABILITE\\2.1.7 Bons de Commande\\Bons de commande 2021\\",null,null,null,null,null,null,null,null,null,null,0,{"$f":"IF(L281<=0,Feuil1!$D$4,IF(H281=Feuil1!$F$3,Feuil1!D284,\"SAISIR TEXTE\"))","v":"soldé"}]
["L:\\2. FINANCES\\2.1 COMPTABILITE\\2.1.7 Bons de Commande\\Bons de commande 2021\\",null,null,null,null,null,null,null,null,null,null,0,{"$f":"IF(L282<=0,Feuil1!$D$4,IF(H282=Feuil1!$F$3,Feuil1!D285,\"SAISIR TEXTE\"))","v":"soldé"}]
["L:\\2. FINANCES\\2.1 COMPTABILITE\\2.1.7 Bons de Commande\\Bons de commande 2021\\",null,null,null,null,null,null,null,null,null,null,0,{"$f":"IF(L283<=0,Feuil1!$D$4,IF(H283=Feuil1!$F$3,Feuil1!D286,\"SAISIR TEXTE\"))","v":"soldé"}]
["L:\\2. FINANCES\\2.1 COMPTABILITE\\2.1.7 Bons de Commande\\Bons de commande 2021\\",null,null,null,null,null,null,null,null,null,null,0,{"$f":"IF(L284<=0,Feuil1!$D$4,IF(H284=Feuil1!$F$3,Feuil1!D287,\"SAISIR TEXTE\"))","v":"soldé"}]
["L:\\2. FINANCES\\2.1 COMPTABILITE\\2.1.7 Bons de Commande\\Bons de commande 2021\\",null,null,null,null,null,null,null,null,null,null,0,{"$f":"IF(L285<=0,Feuil1!$D$4,IF(H285=Feuil1!$F$3,Feuil1!D288,\"SAISIR TEXTE\"))","v":"soldé"}]
["L:\\2. FINANCES\\2.1 COMPTABILITE\\2.1.7 Bons de Commande\\Bons de commande 2021\\",null,null,null,null,null,null,null,null,null,null,0,{"$f":"IF(L286<=0,Feuil1!$D$4,IF(H286=Feuil1!$F$3,Feuil1!D289,\"SAISIR TEXTE\"))","v":"soldé"}]
["L:\\2. FINANCES\\2.1 COMPTABILITE\\2.1.7 Bons de Commande\\Bons de commande 2021\\",null,null,null,null,null,null,null,null,null,null,0,{"$f":"IF(L287<=0,Feuil1!$D$4,IF(H287=Feuil1!$F$3,Feuil1!D290,\"SAISIR TEXTE\"))","v":"soldé"}]
["L:\\2. FINANCES\\2.1 COMPTABILITE\\2.1.7 Bons de Commande\\Bons de commande 2021\\",null,null,null,null,null,null,null,null,null,null,0,{"$f":"IF(L288<=0,Feuil1!$D$4,IF(H288=Feuil1!$F$3,Feuil1!D291,\"SAISIR TEXTE\"))","v":"soldé"}]
["L:\\2. FINANCES\\2.1 COMPTABILITE\\2.1.7 Bons de Commande\\Bons de commande 2021\\",null,null,null,null,null,null,null,null,null,null,0,{"$f":"IF(L289<=0,Feuil1!$D$4,IF(H289=Feuil1!$F$3,Feuil1!D292,\"SAISIR TEXTE\"))","v":"soldé"}]
["L:\\2. FINANCES\\2.1 COMPTABILITE\\2.1.7 Bons de Commande\\Bons de commande 2021\\",null,null,null,null,null,null,null,null,null,null,0,{"$f":"IF(L290<=0,Feuil1!$D$4,IF(H290=Feuil1!$F$3,Feuil1!D293,\"SAISIR TEXTE\"))","v":"soldé"}]
["L:\\2. FINANCES\\2.1 COMPTABILITE\\2.1.7 Bons de Commande\\Bons de commande 2021\\",null,null,null,null,null,null,null,null,null,null,0,{"$f":"IF(L291<=0,Feuil1!$D$4,IF(H291=Feuil1!$F$3,Feuil1!D294,\"SAISIR TEXTE\"))","v":"soldé"}]
["L:\\2. FINANCES\\2.1 COMPTABILITE\\2.1.7 Bons de Commande\\Bons de commande 2021\\",null,null,null,null,null,null,null,null,null,null,0,{"$f":"IF(L292<=0,Feuil1!$D$4,IF(H292=Feuil1!$F$3,Feuil1!D295,\"SAISIR TEXTE\"))","v":"soldé"}]
["L:\\2. FINANCES\\2.1 COMPTABILITE\\2.1.7 Bons de Commande\\Bons de commande 2021\\",null,null,null,null,null,null,null,null,null,null,0,{"$f":"IF(L293<=0,Feuil1!$D$4,IF(H293=Feuil1!$F$3,Feuil1!D296,\"SAISIR TEXTE\"))","v":"soldé"}]
["L:\\2. FINANCES\\2.1 COMPTABILITE\\2.1.7 Bons de Commande\\Bons de commande 2021\\",null,null,null,null,null,null,null,null,null,null,0,{"$f":"IF(L294<=0,Feuil1!$D$4,IF(H294=Feuil1!$F$3,Feuil1!D297,\"SAISIR TEXTE\"))","v":"soldé"}]
["L:\\2. FINANCES\\2.1 COMPTABILITE\\2.1.7 Bons de Commande\\Bons de commande 2021\\",null,null,null,null,null,null,null,null,null,null,0,{"$f":"IF(L295<=0,Feuil1!$D$4,IF(H295=Feuil1!$F$3,Feuil1!D298,\"SAISIR TEXTE\"))","v":"soldé"}]
["L:\\2. FINANCES\\2.1 COMPTABILITE\\2.1.7 Bons de Commande\\Bons de commande 2021\\",null,null,null,null,null,null,null,null,null,null,0,{"$f":"IF(L296<=0,Feuil1!$D$4,IF(H296=Feuil1!$F$3,Feuil1!D299,\"SAISIR TEXTE\"))","v":"soldé"}]
["L:\\2. FINANCES\\2.1 COMPTABILITE\\2.1.7 Bons de Commande\\Bons de commande 2021\\",null,null,null,null,null,null,null,null,null,null,0,{"$f":"IF(L297<=0,Feuil1!$D$4,IF(H297=Feuil1!$F$3,Feuil1!D300,\"SAISIR TEXTE\"))","v":"soldé"}]
["L:\\2. FINANCES\\2.1 COMPTABILITE\\2.1.7 Bons de Commande\\Bons de commande 2021\\",null,null,null,null,null,null,null,null,null,null,0,{"$f":"IF(L298<=0,Feuil1!$D$4,IF(H298=Feuil1!$F$3,Feuil1!D301,\"SAISIR TEXTE\"))","v":"soldé"}]
["L:\\2. FINANCES\\2.1 COMPTABILITE\\2.1.7 Bons de Commande\\Bons de commande 2021\\",null,null,null,null,null,null,null,null,null,null,0,{"$f":"IF(L299<=0,Feuil1!$D$4,IF(H299=Feuil1!$F$3,Feuil1!D302,\"SAISIR TEXTE\"))","v":"soldé"}]
["L:\\2. FINANCES\\2.1 COMPTABILITE\\2.1.7 Bons de Commande\\Bons de commande 2021\\",null,null,null,null,null,null,null,null,null,null,0,{"$f":"IF(L300<=0,Feuil1!$D$4,IF(H300=Feuil1!$F$3,Feuil1!D303,\"SAISIR TEXTE\"))","v":"soldé"}]
["L:\\2. FINANCES\\2.1 COMPTABILITE\\2.1.7 Bons de Commande\\Bons de commande 2021\\",null,null,null,null,null,null,null,null,null,null,0,{"$f":"IF(L301<=0,Feuil1!$D$4,IF(H301=Feuil1!$F$3,Feuil1!D304,\"SAISIR TEXTE\"))","v":"soldé"}]
["L:\\2. FINANCES\\2.1 COMPTABILITE\\2.1.7 Bons de Commande\\Bons de commande 2021\\",null,null,null,null,null,null,null,null,null,null,0,{"$f":"IF(L302<=0,Feuil1!$D$4,IF(H302=Feuil1!$F$3,Feuil1!D305,\"SAISIR TEXTE\"))","v":"soldé"}]
["L:\\2. FINANCES\\2.1 COMPTABILITE\\2.1.7 Bons de Commande\\Bons de commande 2021\\",null,null,null,null,null,null,null,null,null,null,0,{"$f":"IF(L303<=0,Feuil1!$D$4,IF(H303=Feuil1!$F$3,Feuil1!D306,\"SAISIR TEXTE\"))","v":"soldé"}]
["L:\\2. FINANCES\\2.1 COMPTABILITE\\2.1.7 Bons de Commande\\Bons de commande 2021\\",null,null,null,null,null,null,null,null,null,null,0,{"$f":"IF(L304<=0,Feuil1!$D$4,IF(H304=Feuil1!$F$3,Feuil1!D307,\"SAISIR TEXTE\"))","v":"soldé"}]
["L:\\2. FINANCES\\2.1 COMPTABILITE\\2.1.7 Bons de Commande\\Bons de commande 2021\\",null,null,null,null,null,null,null,null,null,null,0,{"$f":"IF(L305<=0,Feuil1!$D$4,IF(H305=Feuil1!$F$3,Feuil1!D308,\"SAISIR TEXTE\"))","v":"soldé"}]
["L:\\2. FINANCES\\2.1 COMPTABILITE\\2.1.7 Bons de Commande\\Bons de commande 2021\\",null,null,null,null,null,null,null,null,null,null,0,{"$f":"IF(L306<=0,Feuil1!$D$4,IF(H306=Feuil1!$F$3,Feuil1!D309,\"SAISIR TEXTE\"))","v":"soldé"}]
["L:\\2. FINANCES\\2.1 COMPTABILITE\\2.1.7 Bons de Commande\\Bons de commande 2021\\",null,null,null,null,null,null,null,null,null,null,0,{"$f":"IF(L307<=0,Feuil1!$D$4,IF(H307=Feuil1!$F$3,Feuil1!D310,\"SAISIR TEXTE\"))","v":"soldé"}]
["L:\\2. FINANCES\\2.1 COMPTABILITE\\2.1.7 Bons de Commande\\Bons de commande 2021\\",null,null,null,null,null,null,null,null,null,null,0,{"$f":"IF(L308<=0,Feuil1!$D$4,IF(H308=Feuil1!$F$3,Feuil1!D311,\"SAISIR TEXTE\"))","v":"soldé"}]
["L:\\2. FINANCES\\2.1 COMPTABILITE\\2.1.7 Bons de Commande\\Bons de commande 2021\\",null,null,null,null,null,null,null,null,null,null,0,{"$f":"IF(L309<=0,Feuil1!$D$4,IF(H309=Feuil1!$F$3,Feuil1!D312,\"SAISIR TEXTE\"))","v":"soldé"}]
["L:\\2. FINANCES\\2.1 COMPTABILITE\\2.1.7 Bons de Commande\\Bons de commande 2021\\",null,null,null,null,null,null,null,null,null,null,0,{"$f":"IF(L310<=0,Feuil1!$D$4,IF(H310=Feuil1!$F$3,Feuil1!D313,\"SAISIR TEXTE\"))","v":"soldé"}]
["L:\\2. FINANCES\\2.1 COMPTABILITE\\2.1.7 Bons de Commande\\Bons de commande 2021\\",null,null,null,null,null,null,null,null,null,null,0,{"$f":"IF(L311<=0,Feuil1!$D$4,IF(H311=Feuil1!$F$3,Feuil1!D314,\"SAISIR TEXTE\"))","v":"soldé"}]
["L:\\2. FINANCES\\2.1 COMPTABILITE\\2.1.7 Bons de Commande\\Bons de commande 2021\\",null,null,null,null,null,null,null,null,null,null,0,{"$f":"IF(L312<=0,Feuil1!$D$4,IF(H312=Feuil1!$F$3,Feuil1!D315,\"SAISIR TEXTE\"))","v":"soldé"}]
["L:\\2. FINANCES\\2.1 COMPTABILITE\\2.1.7 Bons de Commande\\Bons de commande 2021\\",null,null,null,null,null,null,null,null,null,null,0,{"$f":"IF(L313<=0,Feuil1!$D$4,IF(H313=Feuil1!$F$3,Feuil1!D316,\"SAISIR TEXTE\"))","v":"soldé"}]
["L:\\2. FINANCES\\2.1 COMPTABILITE\\2.1.7 Bons de Commande\\Bons de commande 2021\\",null,null,null,null,null,null,null,null,null,null,0,{"$f":"IF(L314<=0,Feuil1!$D$4,IF(H314=Feuil1!$F$3,Feuil1!D317,\"SAISIR TEXTE\"))","v":"soldé"}]
["L:\\2. FINANCES\\2.1 COMPTABILITE\\2.1.7 Bons de Commande\\Bons de commande 2021\\",null,null,null,null,null,null,null,null,null,null,0,{"$f":"IF(L315<=0,Feuil1!$D$4,IF(H315=Feuil1!$F$3,Feuil1!D318,\"SAISIR TEXTE\"))","v":"soldé"}]
["L:\\2. FINANCES\\2.1 COMPTABILITE\\2.1.7 Bons de Commande\\Bons de commande 2021\\",null,null,null,null,null,null,null,null,null,null,0,{"$f":"IF(L316<=0,Feuil1!$D$4,IF(H316=Feuil1!$F$3,Feuil1!D319,\"SAISIR TEXTE\"))","v":"soldé"}]
["L:\\2. FINANCES\\2.1 COMPTABILITE\\2.1.7 Bons de Commande\\Bons de commande 2021\\",null,null,null,null,null,null,null,null,null,null,0,{"$f":"IF(L317<=0,Feuil1!$D$4,IF(H317=Feuil1!$F$3,Feuil1!D320,\"SAISIR TEXTE\"))","v":"soldé"}]
["L:\\2. FINANCES\\2.1 COMPTABILITE\\2.1.7 Bons de Commande\\Bons de commande 2021\\",null,null,null,null,null,null,null,null,null,null,0,{"$f":"IF(L318<=0,Feuil1!$D$4,IF(H318=Feuil1!$F$3,Feuil1!D321,\"SAISIR TEXTE\"))","v":"soldé"}]
["L:\\2. FINANCES\\2.1 COMPTABILITE\\2.1.7 Bons de Commande\\Bons de commande 2021\\",null,null,null,null,null,null,null,null,null,null,0,{"$f":"IF(L319<=0,Feuil1!$D$4,IF(H319=Feuil1!$F$3,Feuil1!D322,\"SAISIR TEXTE\"))","v":"soldé"}]
["L:\\2. FINANCES\\2.1 COMPTABILITE\\2.1.7 Bons de Commande\\Bons de commande 2021\\",null,null,null,null,null,null,null,null,null,null,0,{"$f":"IF(L320<=0,Feuil1!$D$4,IF(H320=Feuil1!$F$3,Feuil1!D323,\"SAISIR TEXTE\"))","v":"soldé"}]
["L:\\2. FINANCES\\2.1 COMPTABILITE\\2.1.7 Bons de Commande\\Bons de commande 2021\\",null,null,null,null,null,null,null,null,null,null,0,{"$f":"IF(L321<=0,Feuil1!$D$4,IF(H321=Feuil1!$F$3,Feuil1!D324,\"SAISIR TEXTE\"))","v":"soldé"}]
["L:\\2. FINANCES\\2.1 COMPTABILITE\\2.1.7 Bons de Commande\\Bons de commande 2021\\",null,null,null,null,null,null,null,null,null,null,0,{"$f":"IF(L322<=0,Feuil1!$D$4,IF(H322=Feuil1!$F$3,Feuil1!D325,\"SAISIR TEXTE\"))","v":"soldé"}]
["L:\\2. FINANCES\\2.1 COMPTABILITE\\2.1.7 Bons de Commande\\Bons de commande 2021\\",null,null,null,null,null,null,null,null,null,null,{"$f":"F323-K323","v":0},{"$f":"IF(L323<=0,Feuil1!$D$4,IF(H323=Feuil1!$F$3,Feuil1!D326,\"SAISIR TEXTE\"))","v":"soldé"}]
["L:\\2. FINANCES\\2.1 COMPTABILITE\\2.1.7 Bons de Commande\\Bons de commande 2021\\",null,null,null,null,null,null,null,null,null,null,0,{"$f":"IF(L324<=0,Feuil1!$D$4,IF(H324=Feuil1!$F$3,Feuil1!D327,\"SAISIR TEXTE\"))","v":"soldé"}]
["L:\\2. FINANCES\\2.1 COMPTABILITE\\2.1.7 Bons de Commande\\Bons de commande 2021\\",null,null,null,null,null,null,null,null,null,null,0,{"$f":"IF(L325<=0,Feuil1!$D$4,IF(H325=Feuil1!$F$3,Feuil1!D328,\"SAISIR TEXTE\"))","v":"soldé"}]
["L:\\2. FINANCES\\2.1 COMPTABILITE\\2.1.7 Bons de Commande\\Bons de commande 2021\\",null,null,null,null,null,null,null,null,null,null,0,{"$f":"IF(L326<=0,Feuil1!$D$4,IF(H326=Feuil1!$F$3,Feuil1!D329,\"SAISIR TEXTE\"))","v":"soldé"}]
["L:\\2. FINANCES\\2.1 COMPTABILITE\\2.1.7 Bons de Commande\\Bons de commande 2021\\",null,null,null,null,null,null,null,null,null,null,0,{"$f":"IF(L327<=0,Feuil1!$D$4,IF(H327=Feuil1!$F$3,Feuil1!D330,\"SAISIR TEXTE\"))","v":"soldé"}]
["L:\\2. FINANCES\\2.1 COMPTABILITE\\2.1.7 Bons de Commande\\Bons de commande 2021\\",null,null,null,null,null,null,null,null,null,null,0,{"$f":"IF(L328<=0,Feuil1!$D$4,IF(H328=Feuil1!$F$3,Feuil1!D331,\"SAISIR TEXTE\"))","v":"soldé"}]
["L:\\2. FINANCES\\2.1 COMPTABILITE\\2.1.7 Bons de Commande\\Bons de commande 2021\\",null,null,null,null,null,null,null,null,null,null,0,{"$f":"IF(L329<=0,Feuil1!$D$4,IF(H329=Feuil1!$F$3,Feuil1!D332,\"SAISIR TEXTE\"))","v":"soldé"}]
["L:\\2. FINANCES\\2.1 COMPTABILITE\\2.1.7 Bons de Commande\\Bons de commande 2021\\",null,null,null,null,null,null,null,null,null,null,0,{"$f":"IF(L330<=0,Feuil1!$D$4,IF(H330=Feuil1!$F$3,Feuil1!D333,\"SAISIR TEXTE\"))","v":"soldé"}]
["L:\\2. FINANCES\\2.1 COMPTABILITE\\2.1.7 Bons de Commande\\Bons de commande 2021\\",null,null,null,null,null,null,null,null,null,null,0,{"$f":"IF(L331<=0,Feuil1!$D$4,IF(H331=Feuil1!$F$3,Feuil1!D334,\"SAISIR TEXTE\"))","v":"soldé"}]
["L:\\2. FINANCES\\2.1 COMPTABILITE\\2.1.7 Bons de Commande\\Bons de commande 2021\\",null,null,null,null,null,null,null,null,null,null,0,{"$f":"IF(L332<=0,Feuil1!$D$4,IF(H332=Feuil1!$F$3,Feuil1!D335,\"SAISIR TEXTE\"))","v":"soldé"}]
["L:\\2. FINANCES\\2.1 COMPTABILITE\\2.1.7 Bons de Commande\\Bons de commande 2021\\",null,null,null,null,null,null,null,null,null,null,0,{"$f":"IF(L333<=0,Feuil1!$D$4,IF(H333=Feuil1!$F$3,Feuil1!D336,\"SAISIR TEXTE\"))","v":"soldé"}]
["L:\\2. FINANCES\\2.1 COMPTABILITE\\2.1.7 Bons de Commande\\Bons de commande 2021\\",null,null,null,null,null,null,null,null,null,null,0,{"$f":"IF(L334<=0,Feuil1!$D$4,IF(H334=Feuil1!$F$3,Feuil1!D337,\"SAISIR TEXTE\"))","v":"soldé"}]
["L:\\2. FINANCES\\2.1 COMPTABILITE\\2.1.7 Bons de Commande\\Bons de commande 2021\\",null,null,null,null,null,null,null,null,null,null,0,{"$f":"IF(L335<=0,Feuil1!$D$4,IF(H335=Feuil1!$F$3,Feuil1!D338,\"SAISIR TEXTE\"))","v":"soldé"}]
["L:\\2. FINANCES\\2.1 COMPTABILITE\\2.1.7 Bons de Commande\\Bons de commande 2021\\",null,null,null,null,null,null,null,null,null,null,0,{"$f":"IF(L336<=0,Feuil1!$D$4,IF(H336=Feuil1!$F$3,Feuil1!D339,\"SAISIR TEXTE\"))","v":"soldé"}]
["L:\\2. FINANCES\\2.1 COMPTABILITE\\2.1.7 Bons de Commande\\Bons de commande 2021\\",null,null,null,null,null,null,null,null,null,null,0,{"$f":"IF(L337<=0,Feuil1!$D$4,IF(H337=Feuil1!$F$3,Feuil1!D340,\"SAISIR TEXTE\"))","v":"soldé"}]
["L:\\2. FINANCES\\2.1 COMPTABILITE\\2.1.7 Bons de Commande\\Bons de commande 2021\\",null,null,null,null,null,null,null,null,null,null,0,{"$f":"IF(L338<=0,Feuil1!$D$4,IF(H338=Feuil1!$F$3,Feuil1!D341,\"SAISIR TEXTE\"))","v":"soldé"}]
["L:\\2. FINANCES\\2.1 COMPTABILITE\\2.1.7 Bons de Commande\\Bons de commande 2021\\",null,null,null,null,null,null,null,null,null,null,0,{"$f":"IF(L339<=0,Feuil1!$D$4,IF(H339=Feuil1!$F$3,Feuil1!D342,\"SAISIR TEXTE\"))","v":"soldé"}]
["L:\\2. FINANCES\\2.1 COMPTABILITE\\2.1.7 Bons de Commande\\Bons de commande 2021\\",null,null,null,null,null,null,null,null,null,null,0,{"$f":"IF(L340<=0,Feuil1!$D$4,IF(H340=Feuil1!$F$3,Feuil1!D343,\"SAISIR TEXTE\"))","v":"soldé"}]
["L:\\2. FINANCES\\2.1 COMPTABILITE\\2.1.7 Bons de Commande\\Bons de commande 2021\\",null,null,null,null,null,null,null,null,null,null,0,{"$f":"IF(L341<=0,Feuil1!$D$4,IF(H341=Feuil1!$F$3,Feuil1!D344,\"SAISIR TEXTE\"))","v":"soldé"}]
["L:\\2. FINANCES\\2.1 COMPTABILITE\\2.1.7 Bons de Commande\\Bons de commande 2021\\",null,null,null,null,null,null,null,null,null,null,0,{"$f":"IF(L342<=0,Feuil1!$D$4,IF(H342=Feuil1!$F$3,Feuil1!D345,\"SAISIR TEXTE\"))","v":"soldé"}]
["L:\\2. FINANCES\\2.1 COMPTABILITE\\2.1.7 Bons de Commande\\Bons de commande 2021\\",null,null,null,null,null,null,null,null,null,null,0,{"$f":"IF(L343<=0,Feuil1!$D$4,IF(H343=Feuil1!$F$3,Feuil1!D346,\"SAISIR TEXTE\"))","v":"soldé"}]
["L:\\2. FINANCES\\2.1 COMPTABILITE\\2.1.7 Bons de Commande\\Bons de commande 2021\\",null,null,null,null,null,null,null,null,null,null,0,{"$f":"IF(L344<=0,Feuil1!$D$4,IF(H344=Feuil1!$F$3,Feuil1!D347,\"SAISIR TEXTE\"))","v":"soldé"}]
["L:\\2. FINANCES\\2.1 COMPTABILITE\\2.1.7 Bons de Commande\\Bons de commande 2021\\",null,null,null,null,null,null,null,null,null,null,0,{"$f":"IF(L345<=0,Feuil1!$D$4,IF(H345=Feuil1!$F$3,Feuil1!D348,\"SAISIR TEXTE\"))","v":"soldé"}]
["L:\\2. FINANCES\\2.1 COMPTABILITE\\2.1.7 Bons de Commande\\Bons de commande 2021\\",null,null,null,null,null,null,null,null,null,null,0,{"$f":"IF(L346<=0,Feuil1!$D$4,IF(H346=Feuil1!$F$3,Feuil1!D349,\"SAISIR TEXTE\"))","v":"soldé"}]
["L:\\2. FINANCES\\2.1 COMPTABILITE\\2.1.7 Bons de Commande\\Bons de commande 2021\\",null,null,null,null,null,null,null,null,null,null,0,{"$f":"IF(L347<=0,Feuil1!$D$4,IF(H347=Feuil1!$F$3,Feuil1!D350,\"SAISIR TEXTE\"))","v":"soldé"}]
["L:\\2. FINANCES\\2.1 COMPTABILITE\\2.1.7 Bons de Commande\\Bons de commande 2021\\",null,null,null,null,null,null,null,null,null,null,0,{"$f":"IF(L348<=0,Feuil1!$D$4,IF(H348=Feuil1!$F$3,Feuil1!D351,\"SAISIR TEXTE\"))","v":"soldé"}]
["L:\\2. FINANCES\\2.1 COMPTABILITE\\2.1.7 Bons de Commande\\Bons de commande 2021\\",null,null,null,null,null,null,null,null,null,null,0,{"$f":"IF(L349<=0,Feuil1!$D$4,IF(H349=Feuil1!$F$3,Feuil1!D352,\"SAISIR TEXTE\"))","v":"soldé"}]
["L:\\2. FINANCES\\2.1 COMPTABILITE\\2.1.7 Bons de Commande\\Bons de commande 2021\\",null,null,null,null,null,null,null,null,null,null,0,{"$f":"IF(L350<=0,Feuil1!$D$4,IF(H350=Feuil1!$F$3,Feuil1!D353,\"SAISIR TEXTE\"))","v":"soldé"}]
["L:\\2. FINANCES\\2.1 COMPTABILITE\\2.1.7 Bons de Commande\\Bons de commande 2021\\",null,null,null,null,null,null,null,null,null,null,0,{"$f":"IF(L351<=0,Feuil1!$D$4,IF(H351=Feuil1!$F$3,Feuil1!D354,\"SAISIR TEXTE\"))","v":"soldé"}]
["L:\\2. FINANCES\\2.1 COMPTABILITE\\2.1.7 Bons de Commande\\Bons de commande 2021\\",null,null,null,null,null,null,null,null,null,null,0,{"$f":"IF(L352<=0,Feuil1!$D$4,IF(H352=Feuil1!$F$3,Feuil1!D355,\"SAISIR TEXTE\"))","v":"soldé"}]
["L:\\2. FINANCES\\2.1 COMPTABILITE\\2.1.7 Bons de Commande\\Bons de commande 2021\\",null,null,null,null,null,null,null,null,null,null,0,{"$f":"IF(L353<=0,Feuil1!$D$4,IF(H353=Feuil1!$F$3,Feuil1!D356,\"SAISIR TEXTE\"))","v":"soldé"}]
["L:\\2. FINANCES\\2.1 COMPTABILITE\\2.1.7 Bons de Commande\\Bons de commande 2021\\",null,null,null,null,null,null,null,null,null,null,0,{"$f":"IF(L354<=0,Feuil1!$D$4,IF(H354=Feuil1!$F$3,Feuil1!D357,\"SAISIR TEXTE\"))","v":"soldé"}]
["L:\\2. FINANCES\\2.1 COMPTABILITE\\2.1.7 Bons de Commande\\Bons de commande 2021\\",null,null,null,null,null,null,null,null,null,null,0,{"$f":"IF(L355<=0,Feuil1!$D$4,IF(H355=Feuil1!$F$3,Feuil1!D358,\"SAISIR TEXTE\"))","v":"soldé"}]
["L:\\2. FINANCES\\2.1 COMPTABILITE\\2.1.7 Bons de Commande\\Bons de commande 2021\\",null,null,null,null,null,null,null,null,null,null,0,{"$f":"IF(L356<=0,Feuil1!$D$4,IF(H356=Feuil1!$F$3,Feuil1!D359,\"SAISIR TEXTE\"))","v":"soldé"}]
["L:\\2. FINANCES\\2.1 COMPTABILITE\\2.1.7 Bons de Commande\\Bons de commande 2021\\",null,null,null,null,null,null,null,null,null,null,0,{"$f":"IF(L357<=0,Feuil1!$D$4,IF(H357=Feuil1!$F$3,Feuil1!D360,\"SAISIR TEXTE\"))","v":"soldé"}]
["L:\\2. FINANCES\\2.1 COMPTABILITE\\2.1.7 Bons de Commande\\Bons de commande 2021\\",null,null,null,null,null,null,null,null,null,null,0,{"$f":"IF(L358<=0,Feuil1!$D$4,IF(H358=Feuil1!$F$3,Feuil1!D361,\"SAISIR TEXTE\"))","v":"soldé"}]
["L:\\2. FINANCES\\2.1 COMPTABILITE\\2.1.7 Bons de Commande\\Bons de commande 2021\\",null,null,null,null,null,null,null,null,null,null,0,{"$f":"IF(L359<=0,Feuil1!$D$4,IF(H359=Feuil1!$F$3,Feuil1!D362,\"SAISIR TEXTE\"))","v":"soldé"}]
["L:\\2. FINANCES\\2.1 COMPTABILITE\\2.1.7 Bons de Commande\\Bons de commande 2021\\",null,null,null,null,null,null,null,null,null,null,0,{"$f":"IF(L360<=0,Feuil1!$D$4,IF(H360=Feuil1!$F$3,Feuil1!D363,\"SAISIR TEXTE\"))","v":"soldé"}]
["L:\\2. FINANCES\\2.1 COMPTABILITE\\2.1.7 Bons de Commande\\Bons de commande 2021\\",null,null,null,null,null,null,null,null,null,null,0,{"$f":"IF(L361<=0,Feuil1!$D$4,IF(H361=Feuil1!$F$3,Feuil1!D364,\"SAISIR TEXTE\"))","v":"soldé"}]
["L:\\2. FINANCES\\2.1 COMPTABILITE\\2.1.7 Bons de Commande\\Bons de commande 2021\\",null,null,null,null,null,null,null,null,null,null,0,{"$f":"IF(L362<=0,Feuil1!$D$4,IF(H362=Feuil1!$F$3,Feuil1!D365,\"SAISIR TEXTE\"))","v":"soldé"}]
["L:\\2. FINANCES\\2.1 COMPTABILITE\\2.1.7 Bons de Commande\\Bons de commande 2021\\",null,null,null,null,null,null,null,null,null,null,0,{"$f":"IF(L363<=0,Feuil1!$D$4,IF(H363=Feuil1!$F$3,Feuil1!D366,\"SAISIR TEXTE\"))","v":"soldé"}]
["L:\\2. FINANCES\\2.1 COMPTABILITE\\2.1.7 Bons de Commande\\Bons de commande 2021\\",null,null,null,null,null,null,null,null,null,null,0,{"$f":"IF(L364<=0,Feuil1!$D$4,IF(H364=Feuil1!$F$3,Feuil1!D367,\"SAISIR TEXTE\"))","v":"soldé"}]
["L:\\2. FINANCES\\2.1 COMPTABILITE\\2.1.7 Bons de Commande\\Bons de commande 2021\\",null,null,null,null,null,null,null,null,null,null,0,{"$f":"IF(L365<=0,Feuil1!$D$4,IF(H365=Feuil1!$F$3,Feuil1!D368,\"SAISIR TEXTE\"))","v":"soldé"}]
["L:\\2. FINANCES\\2.1 COMPTABILITE\\2.1.7 Bons de Commande\\Bons de commande 2021\\",null,null,null,null,null,null,null,null,null,null,0,{"$f":"IF(L366<=0,Feuil1!$D$4,IF(H366=Feuil1!$F$3,Feuil1!D369,\"SAISIR TEXTE\"))","v":"soldé"}]
["L:\\2. FINANCES\\2.1 COMPTABILITE\\2.1.7 Bons de Commande\\Bons de commande 2021\\",null,null,null,null,null,null,null,null,null,null,0,{"$f":"IF(L367<=0,Feuil1!$D$4,IF(H367=Feuil1!$F$3,Feuil1!D370,\"SAISIR TEXTE\"))","v":"soldé"}]
["L:\\2. FINANCES\\2.1 COMPTABILITE\\2.1.7 Bons de Commande\\Bons de commande 2021\\",null,null,null,null,null,null,null,null,null,null,0,{"$f":"IF(L368<=0,Feuil1!$D$4,IF(H368=Feuil1!$F$3,Feuil1!D371,\"SAISIR TEXTE\"))","v":"soldé"}]
["L:\\2. FINANCES\\2.1 COMPTABILITE\\2.1.7 Bons de Commande\\Bons de commande 2021\\",null,null,null,null,null,null,null,null,null,null,0,{"$f":"IF(L369<=0,Feuil1!$D$4,IF(H369=Feuil1!$F$3,Feuil1!D372,\"SAISIR TEXTE\"))","v":"soldé"}]
["L:\\2. FINANCES\\2.1 COMPTABILITE\\2.1.7 Bons de Commande\\Bons de commande 2021\\",null,null,null,null,null,null,null,null,null,null,0,{"$f":"IF(L370<=0,Feuil1!$D$4,IF(H370=Feuil1!$F$3,Feuil1!D373,\"SAISIR TEXTE\"))","v":"soldé"}]
["L:\\2. FINANCES\\2.1 COMPTABILITE\\2.1.7 Bons de Commande\\Bons de commande 2021\\",null,null,null,null,null,null,null,null,null,null,0,{"$f":"IF(L371<=0,Feuil1!$D$4,IF(H371=Feuil1!$F$3,Feuil1!D374,\"SAISIR TEXTE\"))","v":"soldé"}]
["L:\\2. FINANCES\\2.1 COMPTABILITE\\2.1.7 Bons de Commande\\Bons de commande 2021\\",null,null,null,null,null,null,null,null,null,null,0,{"$f":"IF(L372<=0,Feuil1!$D$4,IF(H372=Feuil1!$F$3,Feuil1!D375,\"SAISIR TEXTE\"))","v":"soldé"}]
["L:\\2. FINANCES\\2.1 COMPTABILITE\\2.1.7 Bons de Commande\\Bons de commande 2021\\",null,null,null,null,null,null,null,null,null,null,0,{"$f":"IF(L373<=0,Feuil1!$D$4,IF(H373=Feuil1!$F$3,Feuil1!D376,\"SAISIR TEXTE\"))","v":"soldé"}]
["L:\\2. FINANCES\\2.1 COMPTABILITE\\2.1.7 Bons de Commande\\Bons de commande 2021\\",null,null,null,null,null,null,null,null,null,null,0,{"$f":"IF(L374<=0,Feuil1!$D$4,IF(H374=Feuil1!$F$3,Feuil1!D377,\"SAISIR TEXTE\"))","v":"soldé"}]
["L:\\2. FINANCES\\2.1 COMPTABILITE\\2.1.7 Bons de Commande\\Bons de commande 2021\\",null,null,null,null,null,null,null,null,null,null,0,{"$f":"IF(L375<=0,Feuil1!$D$4,IF(H375=Feuil1!$F$3,Feuil1!D378,\"SAISIR TEXTE\"))","v":"soldé"}]
["L:\\2. FINANCES\\2.1 COMPTABILITE\\2.1.7 Bons de Commande\\Bons de commande 2021\\",null,null,null,null,null,null,null,null,null,null,0,{"$f":"IF(L376<=0,Feuil1!$D$4,IF(H376=Feuil1!$F$3,Feuil1!D379,\"SAISIR TEXTE\"))","v":"soldé"}]
["L:\\2. FINANCES\\2.1 COMPTABILITE\\2.1.7 Bons de Commande\\Bons de commande 2021\\",null,null,null,null,null,null,null,null,null,null,0,{"$f":"IF(L377<=0,Feuil1!$D$4,IF(H377=Feuil1!$F$3,Feuil1!D380,\"SAISIR TEXTE\"))","v":"soldé"}]
["L:\\2. FINANCES\\2.1 COMPTABILITE\\2.1.7 Bons de Commande\\Bons de commande 2021\\",null,null,null,null,null,null,null,null,null,null,0,{"$f":"IF(L378<=0,Feuil1!$D$4,IF(H378=Feuil1!$F$3,Feuil1!D381,\"SAISIR TEXTE\"))","v":"soldé"}]
["L:\\2. FINANCES\\2.1 COMPTABILITE\\2.1.7 Bons de Commande\\Bons de commande 2021\\",null,null,null,null,null,null,null,null,null,null,0,{"$f":"IF(L379<=0,Feuil1!$D$4,IF(H379=Feuil1!$F$3,Feuil1!D382,\"SAISIR TEXTE\"))","v":"soldé"}]
["L:\\2. FINANCES\\2.1 COMPTABILITE\\2.1.7 Bons de Commande\\Bons de commande 2021\\",null,null,null,null,null,null,null,null,null,null,0,{"$f":"IF(L380<=0,Feuil1!$D$4,IF(H380=Feuil1!$F$3,Feuil1!D383,\"SAISIR TEXTE\"))","v":"soldé"}]
["L:\\2. FINANCES\\2.1 COMPTABILITE\\2.1.7 Bons de Commande\\Bons de commande 2021\\",null,null,null,null,null,null,null,null,null,null,0,{"$f":"IF(L381<=0,Feuil1!$D$4,IF(H381=Feuil1!$F$3,Feuil1!D384,\"SAISIR TEXTE\"))","v":"soldé"}]
["L:\\2. FINANCES\\2.1 COMPTABILITE\\2.1.7 Bons de Commande\\Bons de commande 2021\\",null,null,null,null,null,null,null,null,null,null,0,{"$f":"IF(L382<=0,Feuil1!$D$4,IF(H382=Feuil1!$F$3,Feuil1!D385,\"SAISIR TEXTE\"))","v":"soldé"}]
["L:\\2. FINANCES\\2.1 COMPTABILITE\\2.1.7 Bons de Commande\\Bons de commande 2021\\",null,null,null,null,null,null,null,null,null,null,0,{"$f":"IF(L383<=0,Feuil1!$D$4,IF(H383=Feuil1!$F$3,Feuil1!D386,\"SAISIR TEXTE\"))","v":"soldé"}]
["L:\\2. FINANCES\\2.1 COMPTABILITE\\2.1.7 Bons de Commande\\Bons de commande 2021\\",null,null,null,null,null,null,null,null,null,null,0,{"$f":"IF(L384<=0,Feuil1!$D$4,IF(H384=Feuil1!$F$3,Feuil1!D387,\"SAISIR TEXTE\"))","v":"soldé"}]
["L:\\2. FINANCES\\2.1 COMPTABILITE\\2.1.7 Bons de Commande\\Bons de commande 2021\\",null,null,null,null,null,null,null,null,null,null,0,{"$f":"IF(L385<=0,Feuil1!$D$4,IF(H385=Feuil1!$F$3,Feuil1!D388,\"SAISIR TEXTE\"))","v":"soldé"}]
["L:\\2. FINANCES\\2.1 COMPTABILITE\\2.1.7 Bons de Commande\\Bons de commande 2021\\",null,null,null,null,null,null,null,null,null,null,0,{"$f":"IF(L386<=0,Feuil1!$D$4,IF(H386=Feuil1!$F$3,Feuil1!D389,\"SAISIR TEXTE\"))","v":"soldé"}]
["L:\\2. FINANCES\\2.1 COMPTABILITE\\2.1.7 Bons de Commande\\Bons de commande 2021\\",null,null,null,null,null,null,null,null,null,null,{"$f":"F387-K387","v":0},{"$f":"IF(L387<=0,Feuil1!$D$4,IF(H387=Feuil1!$F$3,Feuil1!D390,\"SAISIR TEXTE\"))","v":"soldé"}]
["L:\\2. FINANCES\\2.1 COMPTABILITE\\2.1.7 Bons de Commande\\Bons de commande 2021\\",null,null,null,null,null,null,null,null,null,null,0,{"$f":"IF(L388<=0,Feuil1!$D$4,IF(H388=Feuil1!$F$3,Feuil1!D391,\"SAISIR TEXTE\"))","v":"soldé"}]
["L:\\2. FINANCES\\2.1 COMPTABILITE\\2.1.7 Bons de Commande\\Bons de commande 2021\\",null,null,null,null,null,null,null,null,null,null,0,{"$f":"IF(L389<=0,Feuil1!$D$4,IF(H389=Feuil1!$F$3,Feuil1!D392,\"SAISIR TEXTE\"))","v":"soldé"}]
["L:\\2. FINANCES\\2.1 COMPTABILITE\\2.1.7 Bons de Commande\\Bons de commande 2021\\",null,null,null,null,null,null,null,null,null,null,0,{"$f":"IF(L390<=0,Feuil1!$D$4,IF(H390=Feuil1!$F$3,Feuil1!D393,\"SAISIR TEXTE\"))","v":"soldé"}]
["L:\\2. FINANCES\\2.1 COMPTABILITE\\2.1.7 Bons de Commande\\Bons de commande 2021\\",null,null,null,null,null,null,null,null,null,null,0,{"$f":"IF(L391<=0,Feuil1!$D$4,IF(H391=Feuil1!$F$3,Feuil1!D394,\"SAISIR TEXTE\"))","v":"soldé"}]
["L:\\2. FINANCES\\2.1 COMPTABILITE\\2.1.7 Bons de Commande\\Bons de commande 2021\\",null,null,null,null,null,null,null,null,null,null,0,{"$f":"IF(L392<=0,Feuil1!$D$4,IF(H392=Feuil1!$F$3,Feuil1!D395,\"SAISIR TEXTE\"))","v":"soldé"}]
["L:\\2. FINANCES\\2.1 COMPTABILITE\\2.1.7 Bons de Commande\\Bons de commande 2021\\",null,null,null,null,null,null,null,null,null,null,0,{"$f":"IF(L393<=0,Feuil1!$D$4,IF(H393=Feuil1!$F$3,Feuil1!D396,\"SAISIR TEXTE\"))","v":"soldé"}]
["L:\\2. FINANCES\\2.1 COMPTABILITE\\2.1.7 Bons de Commande\\Bons de commande 2021\\",null,null,null,null,null,null,null,null,null,null,0,{"$f":"IF(L394<=0,Feuil1!$D$4,IF(H394=Feuil1!$F$3,Feuil1!D397,\"SAISIR TEXTE\"))","v":"soldé"}]
["L:\\2. FINANCES\\2.1 COMPTABILITE\\2.1.7 Bons de Commande\\Bons de commande 2021\\",null,null,null,null,null,null,null,null,null,null,0,{"$f":"IF(L395<=0,Feuil1!$D$4,IF(H395=Feuil1!$F$3,Feuil1!D398,\"SAISIR TEXTE\"))","v":"soldé"}]
["L:\\2. FINANCES\\2.1 COMPTABILITE\\2.1.7 Bons de Commande\\Bons de commande 2021\\",null,null,null,null,null,null,null,null,null,null,0,{"$f":"IF(L396<=0,Feuil1!$D$4,IF(H396=Feuil1!$F$3,Feuil1!D399,\"SAISIR TEXTE\"))","v":"soldé"}]
["L:\\2. FINANCES\\2.1 COMPTABILITE\\2.1.7 Bons de Commande\\Bons de commande 2021\\",null,null,null,null,null,null,null,null,null,null,0,{"$f":"IF(L397<=0,Feuil1!$D$4,IF(H397=Feuil1!$F$3,Feuil1!D400,\"SAISIR TEXTE\"))","v":"soldé"}]
["L:\\2. FINANCES\\2.1 COMPTABILITE\\2.1.7 Bons de Commande\\Bons de commande 2021\\",null,null,null,null,null,null,null,null,null,null,0,{"$f":"IF(L398<=0,Feuil1!$D$4,IF(H398=Feuil1!$F$3,Feuil1!D401,\"SAISIR TEXTE\"))","v":"soldé"}]
["L:\\2. FINANCES\\2.1 COMPTABILITE\\2.1.7 Bons de Commande\\Bons de commande 2021\\",null,null,null,null,null,null,null,null,null,null,0,{"$f":"IF(L399<=0,Feuil1!$D$4,IF(H399=Feuil1!$F$3,Feuil1!D402,\"SAISIR TEXTE\"))","v":"soldé"}]
["L:\\2. FINANCES\\2.1 COMPTABILITE\\2.1.7 Bons de Commande\\Bons de commande 2021\\",null,null,null,null,null,null,null,null,null,null,0,{"$f":"IF(L400<=0,Feuil1!$D$4,IF(H400=Feuil1!$F$3,Feuil1!D403,\"SAISIR TEXTE\"))","v":"soldé"}]
["L:\\2. FINANCES\\2.1 COMPTABILITE\\2.1.7 Bons de Commande\\Bons de commande 2021\\",null,null,null,null,null,null,null,null,null,null,0,{"$f":"IF(L401<=0,Feuil1!$D$4,IF(H401=Feuil1!$F$3,Feuil1!D404,\"SAISIR TEXTE\"))","v":"soldé"}]
["L:\\2. FINANCES\\2.1 COMPTABILITE\\2.1.7 Bons de Commande\\Bons de commande 2021\\",null,null,null,null,null,null,null,null,null,null,0,{"$f":"IF(L402<=0,Feuil1!$D$4,IF(H402=Feuil1!$F$3,Feuil1!D405,\"SAISIR TEXTE\"))","v":"soldé"}]
["L:\\2. FINANCES\\2.1 COMPTABILITE\\2.1.7 Bons de Commande\\Bons de commande 2021\\",null,null,null,null,null,null,null,null,null,null,0,{"$f":"IF(L403<=0,Feuil1!$D$4,IF(H403=Feuil1!$F$3,Feuil1!D406,\"SAISIR TEXTE\"))","v":"soldé"}]
["L:\\2. FINANCES\\2.1 COMPTABILITE\\2.1.7 Bons de Commande\\Bons de commande 2021\\",null,null,null,null,null,null,null,null,null,null,0,{"$f":"IF(L404<=0,Feuil1!$D$4,IF(H404=Feuil1!$F$3,Feuil1!D407,\"SAISIR TEXTE\"))","v":"soldé"}]
["L:\\2. FINANCES\\2.1 COMPTABILITE\\2.1.7 Bons de Commande\\Bons de commande 2021\\",null,null,null,null,null,null,null,null,null,null,0,{"$f":"IF(L405<=0,Feuil1!$D$4,IF(H405=Feuil1!$F$3,Feuil1!D408,\"SAISIR TEXTE\"))","v":"soldé"}]
["L:\\2. FINANCES\\2.1 COMPTABILITE\\2.1.7 Bons de Commande\\Bons de commande 2021\\",null,null,null,null,null,null,null,null,null,null,0,{"$f":"IF(L406<=0,Feuil1!$D$4,IF(H406=Feuil1!$F$3,Feuil1!D409,\"SAISIR TEXTE\"))","v":"soldé"}]
["L:\\2. FINANCES\\2.1 COMPTABILITE\\2.1.7 Bons de Commande\\Bons de commande 2021\\",null,null,null,null,null,null,null,null,null,null,0,{"$f":"IF(L407<=0,Feuil1!$D$4,IF(H407=Feuil1!$F$3,Feuil1!D410,\"SAISIR TEXTE\"))","v":"soldé"}]
["L:\\2. FINANCES\\2.1 COMPTABILITE\\2.1.7 Bons de Commande\\Bons de commande 2021\\",null,null,null,null,null,null,null,null,null,null,0,{"$f":"IF(L408<=0,Feuil1!$D$4,IF(H408=Feuil1!$F$3,Feuil1!D411,\"SAISIR TEXTE\"))","v":"soldé"}]
["L:\\2. FINANCES\\2.1 COMPTABILITE\\2.1.7 Bons de Commande\\Bons de commande 2021\\",null,null,null,null,null,null,null,null,null,null,0,{"$f":"IF(L409<=0,Feuil1!$D$4,IF(H409=Feuil1!$F$3,Feuil1!D412,\"SAISIR TEXTE\"))","v":"soldé"}]
["L:\\2. FINANCES\\2.1 COMPTABILITE\\2.1.7 Bons de Commande\\Bons de commande 2021\\",null,null,null,null,null,null,null,null,null,null,0,{"$f":"IF(L410<=0,Feuil1!$D$4,IF(H410=Feuil1!$F$3,Feuil1!D413,\"SAISIR TEXTE\"))","v":"soldé"}]
["L:\\2. FINANCES\\2.1 COMPTABILITE\\2.1.7 Bons de Commande\\Bons de commande 2021\\",null,null,null,null,null,null,null,null,null,null,0,{"$f":"IF(L411<=0,Feuil1!$D$4,IF(H411=Feuil1!$F$3,Feuil1!D414,\"SAISIR TEXTE\"))","v":"soldé"}]
["L:\\2. FINANCES\\2.1 COMPTABILITE\\2.1.7 Bons de Commande\\Bons de commande 2021\\",null,null,null,null,null,null,null,null,null,null,0,{"$f":"IF(L412<=0,Feuil1!$D$4,IF(H412=Feuil1!$F$3,Feuil1!D415,\"SAISIR TEXTE\"))","v":"soldé"}]
["L:\\2. FINANCES\\2.1 COMPTABILITE\\2.1.7 Bons de Commande\\Bons de commande 2021\\",null,null,null,null,null,null,null,null,null,null,0,{"$f":"IF(L413<=0,Feuil1!$D$4,IF(H413=Feuil1!$F$3,Feuil1!D416,\"SAISIR TEXTE\"))","v":"soldé"}]
["L:\\2. FINANCES\\2.1 COMPTABILITE\\2.1.7 Bons de Commande\\Bons de commande 2021\\",null,null,null,null,null,null,null,null,null,null,0,{"$f":"IF(L414<=0,Feuil1!$D$4,IF(H414=Feuil1!$F$3,Feuil1!D417,\"SAISIR TEXTE\"))","v":"soldé"}]
["L:\\2. FINANCES\\2.1 COMPTABILITE\\2.1.7 Bons de Commande\\Bons de commande 2021\\",null,null,null,null,null,null,null,null,null,null,0,{"$f":"IF(L415<=0,Feuil1!$D$4,IF(H415=Feuil1!$F$3,Feuil1!D418,\"SAISIR TEXTE\"))","v":"soldé"}]
["L:\\2. FINANCES\\2.1 COMPTABILITE\\2.1.7 Bons de Commande\\Bons de commande 2021\\",null,null,null,null,null,null,null,null,null,null,0,{"$f":"IF(L416<=0,Feuil1!$D$4,IF(H416=Feuil1!$F$3,Feuil1!D419,\"SAISIR TEXTE\"))","v":"soldé"}]
["L:\\2. FINANCES\\2.1 COMPTABILITE\\2.1.7 Bons de Commande\\Bons de commande 2021\\",null,null,null,null,null,null,null,null,null,null,0,{"$f":"IF(L417<=0,Feuil1!$D$4,IF(H417=Feuil1!$F$3,Feuil1!D420,\"SAISIR TEXTE\"))","v":"soldé"}]
["L:\\2. FINANCES\\2.1 COMPTABILITE\\2.1.7 Bons de Commande\\Bons de commande 2021\\",null,null,null,null,null,null,null,null,null,null,0,{"$f":"IF(L418<=0,Feuil1!$D$4,IF(H418=Feuil1!$F$3,Feuil1!D421,\"SAISIR TEXTE\"))","v":"soldé"}]
["L:\\2. FINANCES\\2.1 COMPTABILITE\\2.1.7 Bons de Commande\\Bons de commande 2021\\",null,null,null,null,null,null,null,null,null,null,0,{"$f":"IF(L419<=0,Feuil1!$D$4,IF(H419=Feuil1!$F$3,Feuil1!D422,\"SAISIR TEXTE\"))","v":"soldé"}]
["L:\\2. FINANCES\\2.1 COMPTABILITE\\2.1.7 Bons de Commande\\Bons de commande 2021\\",null,null,null,null,null,null,null,null,null,null,0,{"$f":"IF(L420<=0,Feuil1!$D$4,IF(H420=Feuil1!$F$3,Feuil1!D423,\"SAISIR TEXTE\"))","v":"soldé"}]
["L:\\2. FINANCES\\2.1 COMPTABILITE\\2.1.7 Bons de Commande\\Bons de commande 2021\\",null,null,null,null,null,null,null,null,null,null,0,{"$f":"IF(L421<=0,Feuil1!$D$4,IF(H421=Feuil1!$F$3,Feuil1!D424,\"SAISIR TEXTE\"))","v":"soldé"}]
["L:\\2. FINANCES\\2.1 COMPTABILITE\\2.1.7 Bons de Commande\\Bons de commande 2021\\",null,null,null,null,null,null,null,null,null,null,0,{"$f":"IF(L422<=0,Feuil1!$D$4,IF(H422=Feuil1!$F$3,Feuil1!D425,\"SAISIR TEXTE\"))","v":"soldé"}]
["L:\\2. FINANCES\\2.1 COMPTABILITE\\2.1.7 Bons de Commande\\Bons de commande 2021\\",null,null,null,null,null,null,null,null,null,null,0,{"$f":"IF(L423<=0,Feuil1!$D$4,IF(H423=Feuil1!$F$3,Feuil1!D426,\"SAISIR TEXTE\"))","v":"soldé"}]
["L:\\2. FINANCES\\2.1 COMPTABILITE\\2.1.7 Bons de Commande\\Bons de commande 2021\\",null,null,null,null,null,null,null,null,null,null,0,{"$f":"IF(L424<=0,Feuil1!$D$4,IF(H424=Feuil1!$F$3,Feuil1!D427,\"SAISIR TEXTE\"))","v":"soldé"}]
["L:\\2. FINANCES\\2.1 COMPTABILITE\\2.1.7 Bons de Commande\\Bons de commande 2021\\",null,null,null,null,null,null,null,null,null,null,0,{"$f":"IF(L425<=0,Feuil1!$D$4,IF(H425=Feuil1!$F$3,Feuil1!D428,\"SAISIR TEXTE\"))","v":"soldé"}]
["L:\\2. FINANCES\\2.1 COMPTABILITE\\2.1.7 Bons de Commande\\Bons de commande 2021\\",null,null,null,null,null,null,null,null,null,null,0,{"$f":"IF(L426<=0,Feuil1!$D$4,IF(H426=Feuil1!$F$3,Feuil1!D429,\"SAISIR TEXTE\"))","v":"soldé"}]
["L:\\2. FINANCES\\2.1 COMPTABILITE\\2.1.7 Bons de Commande\\Bons de commande 2021\\",null,null,null,null,null,null,null,null,null,null,0,{"$f":"IF(L427<=0,Feuil1!$D$4,IF(H427=Feuil1!$F$3,Feuil1!D430,\"SAISIR TEXTE\"))","v":"soldé"}]
["L:\\2. FINANCES\\2.1 COMPTABILITE\\2.1.7 Bons de Commande\\Bons de commande 2021\\",null,null,null,null,null,null,null,null,null,null,0,{"$f":"IF(L428<=0,Feuil1!$D$4,IF(H428=Feuil1!$F$3,Feuil1!D431,\"SAISIR TEXTE\"))","v":"soldé"}]
["L:\\2. FINANCES\\2.1 COMPTABILITE\\2.1.7 Bons de Commande\\Bons de commande 2021\\",null,null,null,null,null,null,null,null,null,null,0,{"$f":"IF(L429<=0,Feuil1!$D$4,IF(H429=Feuil1!$F$3,Feuil1!D432,\"SAISIR TEXTE\"))","v":"soldé"}]
["L:\\2. FINANCES\\2.1 COMPTABILITE\\2.1.7 Bons de Commande\\Bons de commande 2021\\",null,null,null,null,null,null,null,null,null,null,0,{"$f":"IF(L430<=0,Feuil1!$D$4,IF(H430=Feuil1!$F$3,Feuil1!D433,\"SAISIR TEXTE\"))","v":"soldé"}]
["L:\\2. FINANCES\\2.1 COMPTABILITE\\2.1.7 Bons de Commande\\Bons de commande 2021\\",null,null,null,null,null,null,null,null,null,null,0,{"$f":"IF(L431<=0,Feuil1!$D$4,IF(H431=Feuil1!$F$3,Feuil1!D434,\"SAISIR TEXTE\"))","v":"soldé"}]
["L:\\2. FINANCES\\2.1 COMPTABILITE\\2.1.7 Bons de Commande\\Bons de commande 2021\\",null,null,null,null,null,null,null,null,null,null,0,{"$f":"IF(L432<=0,Feuil1!$D$4,IF(H432=Feuil1!$F$3,Feuil1!D435,\"SAISIR TEXTE\"))","v":"soldé"}]
["L:\\2. FINANCES\\2.1 COMPTABILITE\\2.1.7 Bons de Commande\\Bons de commande 2021\\",null,null,null,null,null,null,null,null,null,null,0,{"$f":"IF(L433<=0,Feuil1!$D$4,IF(H433=Feuil1!$F$3,Feuil1!D436,\"SAISIR TEXTE\"))","v":"soldé"}]
["L:\\2. FINANCES\\2.1 COMPTABILITE\\2.1.7 Bons de Commande\\Bons de commande 2021\\",null,null,null,null,null,null,null,null,null,null,0,{"$f":"IF(L434<=0,Feuil1!$D$4,IF(H434=Feuil1!$F$3,Feuil1!D437,\"SAISIR TEXTE\"))","v":"soldé"}]
["L:\\2. FINANCES\\2.1 COMPTABILITE\\2.1.7 Bons de Commande\\Bons de commande 2021\\",null,null,null,null,null,null,null,null,null,null,0,{"$f":"IF(L435<=0,Feuil1!$D$4,IF(H435=Feuil1!$F$3,Feuil1!D438,\"SAISIR TEXTE\"))","v":"soldé"}]
["L:\\2. FINANCES\\2.1 COMPTABILITE\\2.1.7 Bons de Commande\\Bons de commande 2021\\",null,null,null,null,null,null,null,null,null,null,0,{"$f":"IF(L436<=0,Feuil1!$D$4,IF(H436=Feuil1!$F$3,Feuil1!D439,\"SAISIR TEXTE\"))","v":"soldé"}]
["L:\\2. FINANCES\\2.1 COMPTABILITE\\2.1.7 Bons de Commande\\Bons de commande 2021\\",null,null,null,null,null,null,null,null,null,null,0,{"$f":"IF(L437<=0,Feuil1!$D$4,IF(H437=Feuil1!$F$3,Feuil1!D440,\"SAISIR TEXTE\"))","v":"soldé"}]
["L:\\2. FINANCES\\2.1 COMPTABILITE\\2.1.7 Bons de Commande\\Bons de commande 2021\\",null,null,null,null,null,null,null,null,null,null,0,{"$f":"IF(L438<=0,Feuil1!$D$4,IF(H438=Feuil1!$F$3,Feuil1!D441,\"SAISIR TEXTE\"))","v":"soldé"}]
["L:\\2. FINANCES\\2.1 COMPTABILITE\\2.1.7 Bons de Commande\\Bons de commande 2021\\",null,null,null,null,null,null,null,null,null,null,0,{"$f":"IF(L439<=0,Feuil1!$D$4,IF(H439=Feuil1!$F$3,Feuil1!D442,\"SAISIR TEXTE\"))","v":"soldé"}]
["L:\\2. FINANCES\\2.1 COMPTABILITE\\2.1.7 Bons de Commande\\Bons de commande 2021\\",null,null,null,null,null,null,null,null,null,null,0,{"$f":"IF(L440<=0,Feuil1!$D$4,IF(H440=Feuil1!$F$3,Feuil1!D443,\"SAISIR TEXTE\"))","v":"soldé"}]
["L:\\2. FINANCES\\2.1 COMPTABILITE\\2.1.7 Bons de Commande\\Bons de commande 2021\\",null,null,null,null,null,null,null,null,null,null,0,{"$f":"IF(L441<=0,Feuil1!$D$4,IF(H441=Feuil1!$F$3,Feuil1!D444,\"SAISIR TEXTE\"))","v":"soldé"}]
["L:\\2. FINANCES\\2.1 COMPTABILITE\\2.1.7 Bons de Commande\\Bons de commande 2021\\",null,null,null,null,null,null,null,null,null,null,0,{"$f":"IF(L442<=0,Feuil1!$D$4,IF(H442=Feuil1!$F$3,Feuil1!D445,\"SAISIR TEXTE\"))","v":"soldé"}]
["L:\\2. FINANCES\\2.1 COMPTABILITE\\2.1.7 Bons de Commande\\Bons de commande 2021\\",null,null,null,null,null,null,null,null,null,null,0,{"$f":"IF(L443<=0,Feuil1!$D$4,IF(H443=Feuil1!$F$3,Feuil1!D446,\"SAISIR TEXTE\"))","v":"soldé"}]
["L:\\2. FINANCES\\2.1 COMPTABILITE\\2.1.7 Bons de Commande\\Bons de commande 2021\\",null,null,null,null,null,null,null,null,null,null,0,{"$f":"IF(L444<=0,Feuil1!$D$4,IF(H444=Feuil1!$F$3,Feuil1!D447,\"SAISIR TEXTE\"))","v":"soldé"}]
["L:\\2. FINANCES\\2.1 COMPTABILITE\\2.1.7 Bons de Commande\\Bons de commande 2021\\",null,null,null,null,null,null,null,null,null,null,0,{"$f":"IF(L445<=0,Feuil1!$D$4,IF(H445=Feuil1!$F$3,Feuil1!D448,\"SAISIR TEXTE\"))","v":"soldé"}]
["L:\\2. FINANCES\\2.1 COMPTABILITE\\2.1.7 Bons de Commande\\Bons de commande 2021\\",null,null,null,null,null,null,null,null,null,null,0,{"$f":"IF(L446<=0,Feuil1!$D$4,IF(H446=Feuil1!$F$3,Feuil1!D449,\"SAISIR TEXTE\"))","v":"soldé"}]
["L:\\2. FINANCES\\2.1 COMPTABILITE\\2.1.7 Bons de Commande\\Bons de commande 2021\\",null,null,null,null,null,null,null,null,null,null,0,{"$f":"IF(L447<=0,Feuil1!$D$4,IF(H447=Feuil1!$F$3,Feuil1!D450,\"SAISIR TEXTE\"))","v":"soldé"}]
["L:\\2. FINANCES\\2.1 COMPTABILITE\\2.1.7 Bons de Commande\\Bons de commande 2021\\",null,null,null,null,null,null,null,null,null,null,0,{"$f":"IF(L448<=0,Feuil1!$D$4,IF(H448=Feuil1!$F$3,Feuil1!D451,\"SAISIR TEXTE\"))","v":"soldé"}]
["L:\\2. FINANCES\\2.1 COMPTABILITE\\2.1.7 Bons de Commande\\Bons de commande 2021\\",null,null,null,null,null,null,null,null,null,null,0,{"$f":"IF(L449<=0,Feuil1!$D$4,IF(H449=Feuil1!$F$3,Feuil1!D452,\"SAISIR TEXTE\"))","v":"soldé"}]
["L:\\2. FINANCES\\2.1 COMPTABILITE\\2.1.7 Bons de Commande\\Bons de commande 2021\\",null,null,null,null,null,null,null,null,null,null,0,{"$f":"IF(L450<=0,Feuil1!$D$4,IF(H450=Feuil1!$F$3,Feuil1!D453,\"SAISIR TEXTE\"))","v":"soldé"}]
["L:\\2. FINANCES\\2.1 COMPTABILITE\\2.1.7 Bons de Commande\\Bons de commande 2021\\",null,null,null,null,null,null,null,null,null,null,{"$f":"F451-K451","v":0},{"$f":"IF(L451<=0,Feuil1!$D$4,IF(H451=Feuil1!$F$3,Feuil1!D454,\"SAISIR TEXTE\"))","v":"soldé"}]
["L:\\2. FINANCES\\2.1 COMPTABILITE\\2.1.7 Bons de Commande\\Bons de commande 2021\\",null,null,null,null,null,null,null,null,null,null,0,{"$f":"IF(L452<=0,Feuil1!$D$4,IF(H452=Feuil1!$F$3,Feuil1!D455,\"SAISIR TEXTE\"))","v":"soldé"}]
["L:\\2. FINANCES\\2.1 COMPTABILITE\\2.1.7 Bons de Commande\\Bons de commande 2021\\",null,null,null,null,null,null,null,null,null,null,0,{"$f":"IF(L453<=0,Feuil1!$D$4,IF(H453=Feuil1!$F$3,Feuil1!D456,\"SAISIR TEXTE\"))","v":"soldé"}]
["L:\\2. FINANCES\\2.1 COMPTABILITE\\2.1.7 Bons de Commande\\Bons de commande 2021\\",null,null,null,null,null,null,null,null,null,null,0,{"$f":"IF(L454<=0,Feuil1!$D$4,IF(H454=Feuil1!$F$3,Feuil1!D457,\"SAISIR TEXTE\"))","v":"soldé"}]
["L:\\2. FINANCES\\2.1 COMPTABILITE\\2.1.7 Bons de Commande\\Bons de commande 2021\\",null,null,null,null,null,null,null,null,null,null,0,{"$f":"IF(L455<=0,Feuil1!$D$4,IF(H455=Feuil1!$F$3,Feuil1!D458,\"SAISIR TEXTE\"))","v":"soldé"}]
["L:\\2. FINANCES\\2.1 COMPTABILITE\\2.1.7 Bons de Commande\\Bons de commande 2021\\",null,null,null,null,null,null,null,null,null,null,0,{"$f":"IF(L456<=0,Feuil1!$D$4,IF(H456=Feuil1!$F$3,Feuil1!D459,\"SAISIR TEXTE\"))","v":"soldé"}]
["L:\\2. FINANCES\\2.1 COMPTABILITE\\2.1.7 Bons de Commande\\Bons de commande 2021\\",null,null,null,null,null,null,null,null,null,null,0,{"$f":"IF(L457<=0,Feuil1!$D$4,IF(H457=Feuil1!$F$3,Feuil1!D460,\"SAISIR TEXTE\"))","v":"soldé"}]
["L:\\2. FINANCES\\2.1 COMPTABILITE\\2.1.7 Bons de Commande\\Bons de commande 2021\\",null,null,null,null,null,null,null,null,null,null,0,{"$f":"IF(L458<=0,Feuil1!$D$4,IF(H458=Feuil1!$F$3,Feuil1!D461,\"SAISIR TEXTE\"))","v":"soldé"}]
["L:\\2. FINANCES\\2.1 COMPTABILITE\\2.1.7 Bons de Commande\\Bons de commande 2021\\",null,null,null,null,null,null,null,null,null,null,0,{"$f":"IF(L459<=0,Feuil1!$D$4,IF(H459=Feuil1!$F$3,Feuil1!D462,\"SAISIR TEXTE\"))","v":"soldé"}]
["L:\\2. FINANCES\\2.1 COMPTABILITE\\2.1.7 Bons de Commande\\Bons de commande 2021\\",null,null,null,null,null,null,null,null,null,null,0,{"$f":"IF(L460<=0,Feuil1!$D$4,IF(H460=Feuil1!$F$3,Feuil1!D463,\"SAISIR TEXTE\"))","v":"soldé"}]
["L:\\2. FINANCES\\2.1 COMPTABILITE\\2.1.7 Bons de Commande\\Bons de commande 2021\\",null,null,null,null,null,null,null,null,null,null,0,{"$f":"IF(L461<=0,Feuil1!$D$4,IF(H461=Feuil1!$F$3,Feuil1!D464,\"SAISIR TEXTE\"))","v":"soldé"}]
["L:\\2. FINANCES\\2.1 COMPTABILITE\\2.1.7 Bons de Commande\\Bons de commande 2021\\",null,null,null,null,null,null,null,null,null,null,0,{"$f":"IF(L462<=0,Feuil1!$D$4,IF(H462=Feuil1!$F$3,Feuil1!D465,\"SAISIR TEXTE\"))","v":"soldé"}]
["L:\\2. FINANCES\\2.1 COMPTABILITE\\2.1.7 Bons de Commande\\Bons de commande 2021\\",null,null,null,null,null,null,null,null,null,null,0,{"$f":"IF(L463<=0,Feuil1!$D$4,IF(H463=Feuil1!$F$3,Feuil1!D466,\"SAISIR TEXTE\"))","v":"soldé"}]
["L:\\2. FINANCES\\2.1 COMPTABILITE\\2.1.7 Bons de Commande\\Bons de commande 2021\\",null,null,null,null,null,null,null,null,null,null,0,{"$f":"IF(L464<=0,Feuil1!$D$4,IF(H464=Feuil1!$F$3,Feuil1!D467,\"SAISIR TEXTE\"))","v":"soldé"}]
["L:\\2. FINANCES\\2.1 COMPTABILITE\\2.1.7 Bons de Commande\\Bons de commande 2021\\",null,null,null,null,null,null,null,null,null,null,0,{"$f":"IF(L465<=0,Feuil1!$D$4,IF(H465=Feuil1!$F$3,Feuil1!D468,\"SAISIR TEXTE\"))","v":"soldé"}]
["L:\\2. FINANCES\\2.1 COMPTABILITE\\2.1.7 Bons de Commande\\Bons de commande 2021\\",null,null,null,null,null,null,null,null,null,null,0,{"$f":"IF(L466<=0,Feuil1!$D$4,IF(H466=Feuil1!$F$3,Feuil1!D469,\"SAISIR TEXTE\"))","v":"soldé"}]
["L:\\2. FINANCES\\2.1 COMPTABILITE\\2.1.7 Bons de Commande\\Bons de commande 2021\\",null,null,null,null,null,null,null,null,null,null,0,{"$f":"IF(L467<=0,Feuil1!$D$4,IF(H467=Feuil1!$F$3,Feuil1!D470,\"SAISIR TEXTE\"))","v":"soldé"}]
["L:\\2. FINANCES\\2.1 COMPTABILITE\\2.1.7 Bons de Commande\\Bons de commande 2021\\",null,null,null,null,null,null,null,null,null,null,0,{"$f":"IF(L468<=0,Feuil1!$D$4,IF(H468=Feuil1!$F$3,Feuil1!D471,\"SAISIR TEXTE\"))","v":"soldé"}]
["L:\\2. FINANCES\\2.1 COMPTABILITE\\2.1.7 Bons de Commande\\Bons de commande 2021\\",null,null,null,null,null,null,null,null,null,null,0,{"$f":"IF(L469<=0,Feuil1!$D$4,IF(H469=Feuil1!$F$3,Feuil1!D472,\"SAISIR TEXTE\"))","v":"soldé"}]
["L:\\2. FINANCES\\2.1 COMPTABILITE\\2.1.7 Bons de Commande\\Bons de commande 2021\\",null,null,null,null,null,null,null,null,null,null,0,{"$f":"IF(L470<=0,Feuil1!$D$4,IF(H470=Feuil1!$F$3,Feuil1!D473,\"SAISIR TEXTE\"))","v":"soldé"}]
["L:\\2. FINANCES\\2.1 COMPTABILITE\\2.1.7 Bons de Commande\\Bons de commande 2021\\",null,null,null,null,null,null,null,null,null,null,0,{"$f":"IF(L471<=0,Feuil1!$D$4,IF(H471=Feuil1!$F$3,Feuil1!D474,\"SAISIR TEXTE\"))","v":"soldé"}]
["L:\\2. FINANCES\\2.1 COMPTABILITE\\2.1.7 Bons de Commande\\Bons de commande 2021\\",null,null,null,null,null,null,null,null,null,null,0,{"$f":"IF(L472<=0,Feuil1!$D$4,IF(H472=Feuil1!$F$3,Feuil1!D475,\"SAISIR TEXTE\"))","v":"soldé"}]
["L:\\2. FINANCES\\2.1 COMPTABILITE\\2.1.7 Bons de Commande\\Bons de commande 2021\\",null,null,null,null,null,null,null,null,null,null,0,{"$f":"IF(L473<=0,Feuil1!$D$4,IF(H473=Feuil1!$F$3,Feuil1!D476,\"SAISIR TEXTE\"))","v":"soldé"}]
["L:\\2. FINANCES\\2.1 COMPTABILITE\\2.1.7 Bons de Commande\\Bons de commande 2021\\",null,null,null,null,null,null,null,null,null,null,0,{"$f":"IF(L474<=0,Feuil1!$D$4,IF(H474=Feuil1!$F$3,Feuil1!D477,\"SAISIR TEXTE\"))","v":"soldé"}]
["L:\\2. FINANCES\\2.1 COMPTABILITE\\2.1.7 Bons de Commande\\Bons de commande 2021\\",null,null,null,null,null,null,null,null,null,null,0,{"$f":"IF(L475<=0,Feuil1!$D$4,IF(H475=Feuil1!$F$3,Feuil1!D478,\"SAISIR TEXTE\"))","v":"soldé"}]
["L:\\2. FINANCES\\2.1 COMPTABILITE\\2.1.7 Bons de Commande\\Bons de commande 2021\\",null,null,null,null,null,null,null,null,null,null,0,{"$f":"IF(L476<=0,Feuil1!$D$4,IF(H476=Feuil1!$F$3,Feuil1!D479,\"SAISIR TEXTE\"))","v":"soldé"}]
["L:\\2. FINANCES\\2.1 COMPTABILITE\\2.1.7 Bons de Commande\\Bons de commande 2021\\",null,null,null,null,null,null,null,null,null,null,0,{"$f":"IF(L477<=0,Feuil1!$D$4,IF(H477=Feuil1!$F$3,Feuil1!D480,\"SAISIR TEXTE\"))","v":"soldé"}]
["L:\\2. FINANCES\\2.1 COMPTABILITE\\2.1.7 Bons de Commande\\Bons de commande 2021\\",null,null,null,null,null,null,null,null,null,null,0,{"$f":"IF(L478<=0,Feuil1!$D$4,IF(H478=Feuil1!$F$3,Feuil1!D481,\"SAISIR TEXTE\"))","v":"soldé"}]
["L:\\2. FINANCES\\2.1 COMPTABILITE\\2.1.7 Bons de Commande\\Bons de commande 2021\\",null,null,null,null,null,null,null,null,null,null,0,{"$f":"IF(L479<=0,Feuil1!$D$4,IF(H479=Feuil1!$F$3,Feuil1!D482,\"SAISIR TEXTE\"))","v":"soldé"}]
["L:\\2. FINANCES\\2.1 COMPTABILITE\\2.1.7 Bons de Commande\\Bons de commande 2021\\",null,null,null,null,null,null,null,null,null,null,0,{"$f":"IF(L480<=0,Feuil1!$D$4,IF(H480=Feuil1!$F$3,Feuil1!D483,\"SAISIR TEXTE\"))","v":"soldé"}]
["L:\\2. FINANCES\\2.1 COMPTABILITE\\2.1.7 Bons de Commande\\Bons de commande 2021\\",null,null,null,null,null,null,null,null,null,null,0,{"$f":"IF(L481<=0,Feuil1!$D$4,IF(H481=Feuil1!$F$3,Feuil1!D484,\"SAISIR TEXTE\"))","v":"soldé"}]
["L:\\2. FINANCES\\2.1 COMPTABILITE\\2.1.7 Bons de Commande\\Bons de commande 2021\\",null,null,null,null,null,null,null,null,null,null,0,{"$f":"IF(L482<=0,Feuil1!$D$4,IF(H482=Feuil1!$F$3,Feuil1!D485,\"SAISIR TEXTE\"))","v":"soldé"}]
["L:\\2. FINANCES\\2.1 COMPTABILITE\\2.1.7 Bons de Commande\\Bons de commande 2021\\",null,null,null,null,null,null,null,null,null,null,0,{"$f":"IF(L483<=0,Feuil1!$D$4,IF(H483=Feuil1!$F$3,Feuil1!D486,\"SAISIR TEXTE\"))","v":"soldé"}]
["L:\\2. FINANCES\\2.1 COMPTABILITE\\2.1.7 Bons de Commande\\Bons de commande 2021\\",null,null,null,null,null,null,null,null,null,null,0,{"$f":"IF(L484<=0,Feuil1!$D$4,IF(H484=Feuil1!$F$3,Feuil1!D487,\"SAISIR TEXTE\"))","v":"soldé"}]
["L:\\2. FINANCES\\2.1 COMPTABILITE\\2.1.7 Bons de Commande\\Bons de commande 2021\\",null,null,null,null,null,null,null,null,null,null,0,{"$f":"IF(L485<=0,Feuil1!$D$4,IF(H485=Feuil1!$F$3,Feuil1!D488,\"SAISIR TEXTE\"))","v":"soldé"}]
["L:\\2. FINANCES\\2.1 COMPTABILITE\\2.1.7 Bons de Commande\\Bons de commande 2021\\",null,null,null,null,null,null,null,null,null,null,0,{"$f":"IF(L486<=0,Feuil1!$D$4,IF(H486=Feuil1!$F$3,Feuil1!D489,\"SAISIR TEXTE\"))","v":"soldé"}]
["L:\\2. FINANCES\\2.1 COMPTABILITE\\2.1.7 Bons de Commande\\Bons de commande 2021\\",null,null,null,null,null,null,null,null,null,null,0,{"$f":"IF(L487<=0,Feuil1!$D$4,IF(H487=Feuil1!$F$3,Feuil1!D490,\"SAISIR TEXTE\"))","v":"soldé"}]
["L:\\2. FINANCES\\2.1 COMPTABILITE\\2.1.7 Bons de Commande\\Bons de commande 2021\\",null,null,null,null,null,null,null,null,null,null,0,{"$f":"IF(L488<=0,Feuil1!$D$4,IF(H488=Feuil1!$F$3,Feuil1!D491,\"SAISIR TEXTE\"))","v":"soldé"}]
["L:\\2. FINANCES\\2.1 COMPTABILITE\\2.1.7 Bons de Commande\\Bons de commande 2021\\",null,null,null,null,null,null,null,null,null,null,0,{"$f":"IF(L489<=0,Feuil1!$D$4,IF(H489=Feuil1!$F$3,Feuil1!D492,\"SAISIR TEXTE\"))","v":"soldé"}]
["L:\\2. FINANCES\\2.1 COMPTABILITE\\2.1.7 Bons de Commande\\Bons de commande 2021\\",null,null,null,null,null,null,null,null,null,null,0,{"$f":"IF(L490<=0,Feuil1!$D$4,IF(H490=Feuil1!$F$3,Feuil1!D493,\"SAISIR TEXTE\"))","v":"soldé"}]
["L:\\2. FINANCES\\2.1 COMPTABILITE\\2.1.7 Bons de Commande\\Bons de commande 2021\\",null,null,null,null,null,null,null,null,null,null,0,{"$f":"IF(L491<=0,Feuil1!$D$4,IF(H491=Feuil1!$F$3,Feuil1!D494,\"SAISIR TEXTE\"))","v":"soldé"}]
["L:\\2. FINANCES\\2.1 COMPTABILITE\\2.1.7 Bons de Commande\\Bons de commande 2021\\",null,null,null,null,null,null,null,null,null,null,0,{"$f":"IF(L492<=0,Feuil1!$D$4,IF(H492=Feuil1!$F$3,Feuil1!D495,\"SAISIR TEXTE\"))","v":"soldé"}]
["L:\\2. FINANCES\\2.1 COMPTABILITE\\2.1.7 Bons de Commande\\Bons de commande 2021\\",null,null,null,null,null,null,null,null,null,null,0,{"$f":"IF(L493<=0,Feuil1!$D$4,IF(H493=Feuil1!$F$3,Feuil1!D496,\"SAISIR TEXTE\"))","v":"soldé"}]
["L:\\2. FINANCES\\2.1 COMPTABILITE\\2.1.7 Bons de Commande\\Bons de commande 2021\\",null,null,null,null,null,null,null,null,null,null,0,{"$f":"IF(L494<=0,Feuil1!$D$4,IF(H494=Feuil1!$F$3,Feuil1!D497,\"SAISIR TEXTE\"))","v":"soldé"}]
["L:\\2. FINANCES\\2.1 COMPTABILITE\\2.1.7 Bons de Commande\\Bons de commande 2021\\",null,null,null,null,null,null,null,null,null,null,0,{"$f":"IF(L495<=0,Feuil1!$D$4,IF(H495=Feuil1!$F$3,Feuil1!D498,\"SAISIR TEXTE\"))","v":"soldé"}]
["L:\\2. FINANCES\\2.1 COMPTABILITE\\2.1.7 Bons de Commande\\Bons de commande 2021\\",null,null,null,null,null,null,null,null,null,null,0,{"$f":"IF(L496<=0,Feuil1!$D$4,IF(H496=Feuil1!$F$3,Feuil1!D499,\"SAISIR TEXTE\"))","v":"soldé"}]
["L:\\2. FINANCES\\2.1 COMPTABILITE\\2.1.7 Bons de Commande\\Bons de commande 2021\\",null,null,null,null,null,null,null,null,null,null,0,{"$f":"IF(L497<=0,Feuil1!$D$4,IF(H497=Feuil1!$F$3,Feuil1!D500,\"SAISIR TEXTE\"))","v":"soldé"}]
["L:\\2. FINANCES\\2.1 COMPTABILITE\\2.1.7 Bons de Commande\\Bons de commande 2021\\",null,null,null,null,null,null,null,null,null,null,0,{"$f":"IF(L498<=0,Feuil1!$D$4,IF(H498=Feuil1!$F$3,Feuil1!D501,\"SAISIR TEXTE\"))","v":"soldé"}]
["L:\\2. FINANCES\\2.1 COMPTABILITE\\2.1.7 Bons de Commande\\Bons de commande 2021\\",null,null,null,null,null,null,null,null,null,null,0,{"$f":"IF(L499<=0,Feuil1!$D$4,IF(H499=Feuil1!$F$3,Feuil1!D502,\"SAISIR TEXTE\"))","v":"soldé"}]
["L:\\2. FINANCES\\2.1 COMPTABILITE\\2.1.7 Bons de Commande\\Bons de commande 2021\\",null,null,null,null,null,null,null,null,null,null,0,{"$f":"IF(L500<=0,Feuil1!$D$4,IF(H500=Feuil1!$F$3,Feuil1!D503,\"SAISIR TEXTE\"))","v":"soldé"}]
["L:\\2. FINANCES\\2.1 COMPTABILITE\\2.1.7 Bons de Commande\\Bons de commande 2021\\",null,null,null,null,null,null,null,null,null,null,0,{"$f":"IF(L501<=0,Feuil1!$D$4,IF(H501=Feuil1!$F$3,Feuil1!D504,\"SAISIR TEXTE\"))","v":"soldé"}]
["L:\\2. FINANCES\\2.1 COMPTABILITE\\2.1.7 Bons de Commande\\Bons de commande 2021\\",null,null,null,null,null,null,null,null,null,null,0,{"$f":"IF(L502<=0,Feuil1!$D$4,IF(H502=Feuil1!$F$3,Feuil1!D505,\"SAISIR TEXTE\"))","v":"soldé"}]
["L:\\2. FINANCES\\2.1 COMPTABILITE\\2.1.7 Bons de Commande\\Bons de commande 2021\\",null,null,null,null,null,null,null,null,null,null,0,{"$f":"IF(L503<=0,Feuil1!$D$4,IF(H503=Feuil1!$F$3,Feuil1!D506,\"SAISIR TEXTE\"))","v":"soldé"}]
["L:\\2. FINANCES\\2.1 COMPTABILITE\\2.1.7 Bons de Commande\\Bons de commande 2021\\",null,null,null,null,null,null,null,null,null,null,0,{"$f":"IF(L504<=0,Feuil1!$D$4,IF(H504=Feuil1!$F$3,Feuil1!D507,\"SAISIR TEXTE\"))","v":"soldé"}]
["L:\\2. FINANCES\\2.1 COMPTABILITE\\2.1.7 Bons de Commande\\Bons de commande 2021\\",null,null,null,null,null,null,null,null,null,null,0,{"$f":"IF(L505<=0,Feuil1!$D$4,IF(H505=Feuil1!$F$3,Feuil1!D508,\"SAISIR TEXTE\"))","v":"soldé"}]
["L:\\2. FINANCES\\2.1 COMPTABILITE\\2.1.7 Bons de Commande\\Bons de commande 2021\\",null,null,null,null,null,null,null,null,null,null,0,{"$f":"IF(L506<=0,Feuil1!$D$4,IF(H506=Feuil1!$F$3,Feuil1!D509,\"SAISIR TEXTE\"))","v":"soldé"}]
["L:\\2. FINANCES\\2.1 COMPTABILITE\\2.1.7 Bons de Commande\\Bons de commande 2021\\",null,null,null,null,null,null,null,null,null,null,0,{"$f":"IF(L507<=0,Feuil1!$D$4,IF(H507=Feuil1!$F$3,Feuil1!D510,\"SAISIR TEXTE\"))","v":"soldé"}]
["L:\\2. FINANCES\\2.1 COMPTABILITE\\2.1.7 Bons de Commande\\Bons de commande 2021\\",null,null,null,null,null,null,null,null,null,null,0,{"$f":"IF(L508<=0,Feuil1!$D$4,IF(H508=Feuil1!$F$3,Feuil1!D511,\"SAISIR TEXTE\"))","v":"soldé"}]
["L:\\2. FINANCES\\2.1 COMPTABILITE\\2.1.7 Bons de Commande\\Bons de commande 2021\\",null,null,null,null,null,null,null,null,null,null,0,{"$f":"IF(L509<=0,Feuil1!$D$4,IF(H509=Feuil1!$F$3,Feuil1!D512,\"SAISIR TEXTE\"))","v":"soldé"}]
["L:\\2. FINANCES\\2.1 COMPTABILITE\\2.1.7 Bons de Commande\\Bons de commande 2021\\",null,null,null,null,null,null,null,null,null,null,0,{"$f":"IF(L510<=0,Feuil1!$D$4,IF(H510=Feuil1!$F$3,Feuil1!D513,\"SAISIR TEXTE\"))","v":"soldé"}]
["L:\\2. FINANCES\\2.1 COMPTABILITE\\2.1.7 Bons de Commande\\Bons de commande 2021\\",null,null,null,null,null,null,null,null,null,null,0,{"$f":"IF(L511<=0,Feuil1!$D$4,IF(H511=Feuil1!$F$3,Feuil1!D514,\"SAISIR TEXTE\"))","v":"soldé"}]
["L:\\2. FINANCES\\2.1 COMPTABILITE\\2.1.7 Bons de Commande\\Bons de commande 2021\\",null,null,null,null,null,null,null,null,null,null,0,{"$f":"IF(L512<=0,Feuil1!$D$4,IF(H512=Feuil1!$F$3,Feuil1!D515,\"SAISIR TEXTE\"))","v":"soldé"}]
["L:\\2. FINANCES\\2.1 COMPTABILITE\\2.1.7 Bons de Commande\\Bons de commande 2021\\",null,null,null,null,null,null,null,null,null,null,0,{"$f":"IF(L513<=0,Feuil1!$D$4,IF(H513=Feuil1!$F$3,Feuil1!D516,\"SAISIR TEXTE\"))","v":"soldé"}]
["L:\\2. FINANCES\\2.1 COMPTABILITE\\2.1.7 Bons de Commande\\Bons de commande 2021\\",null,null,null,null,null,null,null,null,null,null,0,{"$f":"IF(L514<=0,Feuil1!$D$4,IF(H514=Feuil1!$F$3,Feuil1!D517,\"SAISIR TEXTE\"))","v":"soldé"}]
["L:\\2. FINANCES\\2.1 COMPTABILITE\\2.1.7 Bons de Commande\\Bons de commande 2021\\",null,null,null,null,null,null,null,null,null,null,{"$f":"F515-K515","v":0},{"$f":"IF(L515<=0,Feuil1!$D$4,IF(H515=Feuil1!$F$3,Feuil1!D518,\"SAISIR TEXTE\"))","v":"soldé"}]
["L:\\2. FINANCES\\2.1 COMPTABILITE\\2.1.7 Bons de Commande\\Bons de commande 2021\\",null,null,null,null,null,null,null,null,null,null,0,{"$f":"IF(L516<=0,Feuil1!$D$4,IF(H516=Feuil1!$F$3,Feuil1!D519,\"SAISIR TEXTE\"))","v":"soldé"}]
["L:\\2. FINANCES\\2.1 COMPTABILITE\\2.1.7 Bons de Commande\\Bons de commande 2021\\",null,null,null,null,null,null,null,null,null,null,0,{"$f":"IF(L517<=0,Feuil1!$D$4,IF(H517=Feuil1!$F$3,Feuil1!D520,\"SAISIR TEXTE\"))","v":"soldé"}]
["L:\\2. FINANCES\\2.1 COMPTABILITE\\2.1.7 Bons de Commande\\Bons de commande 2021\\",null,null,null,null,null,null,null,null,null,null,0,{"$f":"IF(L518<=0,Feuil1!$D$4,IF(H518=Feuil1!$F$3,Feuil1!D521,\"SAISIR TEXTE\"))","v":"soldé"}]
["L:\\2. FINANCES\\2.1 COMPTABILITE\\2.1.7 Bons de Commande\\Bons de commande 2021\\",null,null,null,null,null,null,null,null,null,null,0,{"$f":"IF(L519<=0,Feuil1!$D$4,IF(H519=Feuil1!$F$3,Feuil1!D522,\"SAISIR TEXTE\"))","v":"soldé"}]
["L:\\2. FINANCES\\2.1 COMPTABILITE\\2.1.7 Bons de Commande\\Bons de commande 2021\\",null,null,null,null,null,null,null,null,null,null,0,{"$f":"IF(L520<=0,Feuil1!$D$4,IF(H520=Feuil1!$F$3,Feuil1!D523,\"SAISIR TEXTE\"))","v":"soldé"}]
["L:\\2. FINANCES\\2.1 COMPTABILITE\\2.1.7 Bons de Commande\\Bons de commande 2021\\",null,null,null,null,null,null,null,null,null,null,0,{"$f":"IF(L521<=0,Feuil1!$D$4,IF(H521=Feuil1!$F$3,Feuil1!D524,\"SAISIR TEXTE\"))","v":"soldé"}]
["L:\\2. FINANCES\\2.1 COMPTABILITE\\2.1.7 Bons de Commande\\Bons de commande 2021\\",null,null,null,null,null,null,null,null,null,null,0,{"$f":"IF(L522<=0,Feuil1!$D$4,IF(H522=Feuil1!$F$3,Feuil1!D525,\"SAISIR TEXTE\"))","v":"soldé"}]
["L:\\2. FINANCES\\2.1 COMPTABILITE\\2.1.7 Bons de Commande\\Bons de commande 2021\\",null,null,null,null,null,null,null,null,null,null,0,{"$f":"IF(L523<=0,Feuil1!$D$4,IF(H523=Feuil1!$F$3,Feuil1!D526,\"SAISIR TEXTE\"))","v":"soldé"}]
["L:\\2. FINANCES\\2.1 COMPTABILITE\\2.1.7 Bons de Commande\\Bons de commande 2021\\",null,null,null,null,null,null,null,null,null,null,0,{"$f":"IF(L524<=0,Feuil1!$D$4,IF(H524=Feuil1!$F$3,Feuil1!D527,\"SAISIR TEXTE\"))","v":"soldé"}]
["L:\\2. FINANCES\\2.1 COMPTABILITE\\2.1.7 Bons de Commande\\Bons de commande 2021\\",null,null,null,null,null,null,null,null,null,null,0,{"$f":"IF(L525<=0,Feuil1!$D$4,IF(H525=Feuil1!$F$3,Feuil1!D528,\"SAISIR TEXTE\"))","v":"soldé"}]
["L:\\2. FINANCES\\2.1 COMPTABILITE\\2.1.7 Bons de Commande\\Bons de commande 2021\\",null,null,null,null,null,null,null,null,null,null,0,{"$f":"IF(L526<=0,Feuil1!$D$4,IF(H526=Feuil1!$F$3,Feuil1!D529,\"SAISIR TEXTE\"))","v":"soldé"}]
["L:\\2. FINANCES\\2.1 COMPTABILITE\\2.1.7 Bons de Commande\\Bons de commande 2021\\",null,null,null,null,null,null,null,null,null,null,0,{"$f":"IF(L527<=0,Feuil1!$D$4,IF(H527=Feuil1!$F$3,Feuil1!D530,\"SAISIR TEXTE\"))","v":"soldé"}]
["L:\\2. FINANCES\\2.1 COMPTABILITE\\2.1.7 Bons de Commande\\Bons de commande 2021\\",null,null,null,null,null,null,null,null,null,null,0,{"$f":"IF(L528<=0,Feuil1!$D$4,IF(H528=Feuil1!$F$3,Feuil1!D531,\"SAISIR TEXTE\"))","v":"soldé"}]
["L:\\2. FINANCES\\2.1 COMPTABILITE\\2.1.7 Bons de Commande\\Bons de commande 2021\\",null,null,null,null,null,null,null,null,null,null,0,{"$f":"IF(L529<=0,Feuil1!$D$4,IF(H529=Feuil1!$F$3,Feuil1!D532,\"SAISIR TEXTE\"))","v":"soldé"}]
["L:\\2. FINANCES\\2.1 COMPTABILITE\\2.1.7 Bons de Commande\\Bons de commande 2021\\",null,null,null,null,null,null,null,null,null,null,0,{"$f":"IF(L530<=0,Feuil1!$D$4,IF(H530=Feuil1!$F$3,Feuil1!D533,\"SAISIR TEXTE\"))","v":"soldé"}]
["L:\\2. FINANCES\\2.1 COMPTABILITE\\2.1.7 Bons de Commande\\Bons de commande 2021\\",null,null,null,null,null,null,null,null,null,null,0,{"$f":"IF(L531<=0,Feuil1!$D$4,IF(H531=Feuil1!$F$3,Feuil1!D534,\"SAISIR TEXTE\"))","v":"soldé"}]
["L:\\2. FINANCES\\2.1 COMPTABILITE\\2.1.7 Bons de Commande\\Bons de commande 2021\\",null,null,null,null,null,null,null,null,null,null,0,{"$f":"IF(L532<=0,Feuil1!$D$4,IF(H532=Feuil1!$F$3,Feuil1!D535,\"SAISIR TEXTE\"))","v":"soldé"}]
["L:\\2. FINANCES\\2.1 COMPTABILITE\\2.1.7 Bons de Commande\\Bons de commande 2021\\",null,null,null,null,null,null,null,null,null,null,0,{"$f":"IF(L533<=0,Feuil1!$D$4,IF(H533=Feuil1!$F$3,Feuil1!D536,\"SAISIR TEXTE\"))","v":"soldé"}]
["L:\\2. FINANCES\\2.1 COMPTABILITE\\2.1.7 Bons de Commande\\Bons de commande 2021\\",null,null,null,null,null,null,null,null,null,null,0,{"$f":"IF(L534<=0,Feuil1!$D$4,IF(H534=Feuil1!$F$3,Feuil1!D537,\"SAISIR TEXTE\"))","v":"soldé"}]
["L:\\2. FINANCES\\2.1 COMPTABILITE\\2.1.7 Bons de Commande\\Bons de commande 2021\\",null,null,null,null,null,null,null,null,null,null,0,{"$f":"IF(L535<=0,Feuil1!$D$4,IF(H535=Feuil1!$F$3,Feuil1!D538,\"SAISIR TEXTE\"))","v":"soldé"}]
["L:\\2. FINANCES\\2.1 COMPTABILITE\\2.1.7 Bons de Commande\\Bons de commande 2021\\",null,null,null,null,null,null,null,null,null,null,0,{"$f":"IF(L536<=0,Feuil1!$D$4,IF(H536=Feuil1!$F$3,Feuil1!D539,\"SAISIR TEXTE\"))","v":"soldé"}]
["L:\\2. FINANCES\\2.1 COMPTABILITE\\2.1.7 Bons de Commande\\Bons de commande 2021\\",null,null,null,null,null,null,null,null,null,null,0,{"$f":"IF(L537<=0,Feuil1!$D$4,IF(H537=Feuil1!$F$3,Feuil1!D540,\"SAISIR TEXTE\"))","v":"soldé"}]
["L:\\2. FINANCES\\2.1 COMPTABILITE\\2.1.7 Bons de Commande\\Bons de commande 2021\\",null,null,null,null,null,null,null,null,null,null,0,{"$f":"IF(L538<=0,Feuil1!$D$4,IF(H538=Feuil1!$F$3,Feuil1!D541,\"SAISIR TEXTE\"))","v":"soldé"}]
["L:\\2. FINANCES\\2.1 COMPTABILITE\\2.1.7 Bons de Commande\\Bons de commande 2021\\",null,null,null,null,null,null,null,null,null,null,0,{"$f":"IF(L539<=0,Feuil1!$D$4,IF(H539=Feuil1!$F$3,Feuil1!D542,\"SAISIR TEXTE\"))","v":"soldé"}]
["L:\\2. FINANCES\\2.1 COMPTABILITE\\2.1.7 Bons de Commande\\Bons de commande 2021\\",null,null,null,null,null,null,null,null,null,null,0,{"$f":"IF(L540<=0,Feuil1!$D$4,IF(H540=Feuil1!$F$3,Feuil1!D543,\"SAISIR TEXTE\"))","v":"soldé"}]
["L:\\2. FINANCES\\2.1 COMPTABILITE\\2.1.7 Bons de Commande\\Bons de commande 2021\\",null,null,null,null,null,null,null,null,null,null,0,{"$f":"IF(L541<=0,Feuil1!$D$4,IF(H541=Feuil1!$F$3,Feuil1!D544,\"SAISIR TEXTE\"))","v":"soldé"}]
["L:\\2. FINANCES\\2.1 COMPTABILITE\\2.1.7 Bons de Commande\\Bons de commande 2021\\",null,null,null,null,null,null,null,null,null,null,0,{"$f":"IF(L542<=0,Feuil1!$D$4,IF(H542=Feuil1!$F$3,Feuil1!D545,\"SAISIR TEXTE\"))","v":"soldé"}]
["L:\\2. FINANCES\\2.1 COMPTABILITE\\2.1.7 Bons de Commande\\Bons de commande 2021\\",null,null,null,null,null,null,null,null,null,null,0,{"$f":"IF(L543<=0,Feuil1!$D$4,IF(H543=Feuil1!$F$3,Feuil1!D546,\"SAISIR TEXTE\"))","v":"soldé"}]
["L:\\2. FINANCES\\2.1 COMPTABILITE\\2.1.7 Bons de Commande\\Bons de commande 2021\\",null,null,null,null,null,null,null,null,null,null,0,{"$f":"IF(L544<=0,Feuil1!$D$4,IF(H544=Feuil1!$F$3,Feuil1!D547,\"SAISIR TEXTE\"))","v":"soldé"}]
["L:\\2. FINANCES\\2.1 COMPTABILITE\\2.1.7 Bons de Commande\\Bons de commande 2021\\",null,null,null,null,null,null,null,null,null,null,0,{"$f":"IF(L545<=0,Feuil1!$D$4,IF(H545=Feuil1!$F$3,Feuil1!D548,\"SAISIR TEXTE\"))","v":"soldé"}]
["L:\\2. FINANCES\\2.1 COMPTABILITE\\2.1.7 Bons de Commande\\Bons de commande 2021\\",null,null,null,null,null,null,null,null,null,null,0,{"$f":"IF(L546<=0,Feuil1!$D$4,IF(H546=Feuil1!$F$3,Feuil1!D549,\"SAISIR TEXTE\"))","v":"soldé"}]
["L:\\2. FINANCES\\2.1 COMPTABILITE\\2.1.7 Bons de Commande\\Bons de commande 2021\\",null,null,null,null,null,null,null,null,null,null,0,{"$f":"IF(L547<=0,Feuil1!$D$4,IF(H547=Feuil1!$F$3,Feuil1!D550,\"SAISIR TEXTE\"))","v":"soldé"}]
["L:\\2. FINANCES\\2.1 COMPTABILITE\\2.1.7 Bons de Commande\\Bons de commande 2021\\",null,null,null,null,null,null,null,null,null,null,0,{"$f":"IF(L548<=0,Feuil1!$D$4,IF(H548=Feuil1!$F$3,Feuil1!D551,\"SAISIR TEXTE\"))","v":"soldé"}]
["L:\\2. FINANCES\\2.1 COMPTABILITE\\2.1.7 Bons de Commande\\Bons de commande 2021\\",null,null,null,null,null,null,null,null,null,null,0,{"$f":"IF(L549<=0,Feuil1!$D$4,IF(H549=Feuil1!$F$3,Feuil1!D552,\"SAISIR TEXTE\"))","v":"soldé"}]
["L:\\2. FINANCES\\2.1 COMPTABILITE\\2.1.7 Bons de Commande\\Bons de commande 2021\\",null,null,null,null,null,null,null,null,null,null,0,{"$f":"IF(L550<=0,Feuil1!$D$4,IF(H550=Feuil1!$F$3,Feuil1!D553,\"SAISIR TEXTE\"))","v":"soldé"}]
["L:\\2. FINANCES\\2.1 COMPTABILITE\\2.1.7 Bons de Commande\\Bons de commande 2021\\",null,null,null,null,null,null,null,null,null,null,0,{"$f":"IF(L551<=0,Feuil1!$D$4,IF(H551=Feuil1!$F$3,Feuil1!D554,\"SAISIR TEXTE\"))","v":"soldé"}]
["L:\\2. FINANCES\\2.1 COMPTABILITE\\2.1.7 Bons de Commande\\Bons de commande 2021\\",null,null,null,null,null,null,null,null,null,null,0,{"$f":"IF(L552<=0,Feuil1!$D$4,IF(H552=Feuil1!$F$3,Feuil1!D555,\"SAISIR TEXTE\"))","v":"soldé"}]
["L:\\2. FINANCES\\2.1 COMPTABILITE\\2.1.7 Bons de Commande\\Bons de commande 2021\\",null,null,null,null,null,null,null,null,null,null,0,{"$f":"IF(L553<=0,Feuil1!$D$4,IF(H553=Feuil1!$F$3,Feuil1!D556,\"SAISIR TEXTE\"))","v":"soldé"}]
["L:\\2. FINANCES\\2.1 COMPTABILITE\\2.1.7 Bons de Commande\\Bons de commande 2021\\",null,null,null,null,null,null,null,null,null,null,0,{"$f":"IF(L554<=0,Feuil1!$D$4,IF(H554=Feuil1!$F$3,Feuil1!D557,\"SAISIR TEXTE\"))","v":"soldé"}]
["L:\\2. FINANCES\\2.1 COMPTABILITE\\2.1.7 Bons de Commande\\Bons de commande 2021\\",null,null,null,null,null,null,null,null,null,null,0,{"$f":"IF(L555<=0,Feuil1!$D$4,IF(H555=Feuil1!$F$3,Feuil1!D558,\"SAISIR TEXTE\"))","v":"soldé"}]
["L:\\2. FINANCES\\2.1 COMPTABILITE\\2.1.7 Bons de Commande\\Bons de commande 2021\\",null,null,null,null,null,null,null,null,null,null,0,{"$f":"IF(L556<=0,Feuil1!$D$4,IF(H556=Feuil1!$F$3,Feuil1!D559,\"SAISIR TEXTE\"))","v":"soldé"}]
["L:\\2. FINANCES\\2.1 COMPTABILITE\\2.1.7 Bons de Commande\\Bons de commande 2021\\",null,null,null,null,null,null,null,null,null,null,0,{"$f":"IF(L557<=0,Feuil1!$D$4,IF(H557=Feuil1!$F$3,Feuil1!D560,\"SAISIR TEXTE\"))","v":"soldé"}]
["L:\\2. FINANCES\\2.1 COMPTABILITE\\2.1.7 Bons de Commande\\Bons de commande 2021\\",null,null,null,null,null,null,null,null,null,null,0,{"$f":"IF(L558<=0,Feuil1!$D$4,IF(H558=Feuil1!$F$3,Feuil1!D561,\"SAISIR TEXTE\"))","v":"soldé"}]
["L:\\2. FINANCES\\2.1 COMPTABILITE\\2.1.7 Bons de Commande\\Bons de commande 2021\\",null,null,null,null,null,null,null,null,null,null,0,{"$f":"IF(L559<=0,Feuil1!$D$4,IF(H559=Feuil1!$F$3,Feuil1!D562,\"SAISIR TEXTE\"))","v":"soldé"}]
["L:\\2. FINANCES\\2.1 COMPTABILITE\\2.1.7 Bons de Commande\\Bons de commande 2021\\",null,null,null,null,null,null,null,null,null,null,0,{"$f":"IF(L560<=0,Feuil1!$D$4,IF(H560=Feuil1!$F$3,Feuil1!D563,\"SAISIR TEXTE\"))","v":"soldé"}]
["L:\\2. FINANCES\\2.1 COMPTABILITE\\2.1.7 Bons de Commande\\Bons de commande 2021\\",null,null,null,null,null,null,null,null,null,null,0,{"$f":"IF(L561<=0,Feuil1!$D$4,IF(H561=Feuil1!$F$3,Feuil1!D564,\"SAISIR TEXTE\"))","v":"soldé"}]
["L:\\2. FINANCES\\2.1 COMPTABILITE\\2.1.7 Bons de Commande\\Bons de commande 2021\\",null,null,null,null,null,null,null,null,null,null,0,{"$f":"IF(L562<=0,Feuil1!$D$4,IF(H562=Feuil1!$F$3,Feuil1!D565,\"SAISIR TEXTE\"))","v":"soldé"}]
["L:\\2. FINANCES\\2.1 COMPTABILITE\\2.1.7 Bons de Commande\\Bons de commande 2021\\",null,null,null,null,null,null,null,null,null,null,0,{"$f":"IF(L563<=0,Feuil1!$D$4,IF(H563=Feuil1!$F$3,Feuil1!D566,\"SAISIR TEXTE\"))","v":"soldé"}]
["L:\\2. FINANCES\\2.1 COMPTABILITE\\2.1.7 Bons de Commande\\Bons de commande 2021\\",null,null,null,null,null,null,null,null,null,null,0,{"$f":"IF(L564<=0,Feuil1!$D$4,IF(H564=Feuil1!$F$3,Feuil1!D567,\"SAISIR TEXTE\"))","v":"soldé"}]
["L:\\2. FINANCES\\2.1 COMPTABILITE\\2.1.7 Bons de Commande\\Bons de commande 2021\\",null,null,null,null,null,null,null,null,null,null,0,{"$f":"IF(L565<=0,Feuil1!$D$4,IF(H565=Feuil1!$F$3,Feuil1!D568,\"SAISIR TEXTE\"))","v":"soldé"}]
["L:\\2. FINANCES\\2.1 COMPTABILITE\\2.1.7 Bons de Commande\\Bons de commande 2021\\",null,null,null,null,null,null,null,null,null,null,0,{"$f":"IF(L566<=0,Feuil1!$D$4,IF(H566=Feuil1!$F$3,Feuil1!D569,\"SAISIR TEXTE\"))","v":"soldé"}]
["L:\\2. FINANCES\\2.1 COMPTABILITE\\2.1.7 Bons de Commande\\Bons de commande 2021\\",null,null,null,null,null,null,null,null,null,null,0,{"$f":"IF(L567<=0,Feuil1!$D$4,IF(H567=Feuil1!$F$3,Feuil1!D570,\"SAISIR TEXTE\"))","v":"soldé"}]
["L:\\2. FINANCES\\2.1 COMPTABILITE\\2.1.7 Bons de Commande\\Bons de commande 2021\\",null,null,null,null,null,null,null,null,null,null,0,{"$f":"IF(L568<=0,Feuil1!$D$4,IF(H568=Feuil1!$F$3,Feuil1!D571,\"SAISIR TEXTE\"))","v":"soldé"}]
["L:\\2. FINANCES\\2.1 COMPTABILITE\\2.1.7 Bons de Commande\\Bons de commande 2021\\",null,null,null,null,null,null,null,null,null,null,0,{"$f":"IF(L569<=0,Feuil1!$D$4,IF(H569=Feuil1!$F$3,Feuil1!D572,\"SAISIR TEXTE\"))","v":"soldé"}]
["L:\\2. FINANCES\\2.1 COMPTABILITE\\2.1.7 Bons de Commande\\Bons de commande 2021\\",null,null,null,null,null,null,null,null,null,null,0,{"$f":"IF(L570<=0,Feuil1!$D$4,IF(H570=Feuil1!$F$3,Feuil1!D573,\"SAISIR TEXTE\"))","v":"soldé"}]
["L:\\2. FINANCES\\2.1 COMPTABILITE\\2.1.7 Bons de Commande\\Bons de commande 2021\\",null,null,null,null,null,null,null,null,null,null,0,{"$f":"IF(L571<=0,Feuil1!$D$4,IF(H571=Feuil1!$F$3,Feuil1!D574,\"SAISIR TEXTE\"))","v":"soldé"}]
["L:\\2. FINANCES\\2.1 COMPTABILITE\\2.1.7 Bons de Commande\\Bons de commande 2021\\",null,null,null,null,null,null,null,null,null,null,0,{"$f":"IF(L572<=0,Feuil1!$D$4,IF(H572=Feuil1!$F$3,Feuil1!D575,\"SAISIR TEXTE\"))","v":"soldé"}]
["L:\\2. FINANCES\\2.1 COMPTABILITE\\2.1.7 Bons de Commande\\Bons de commande 2021\\",null,null,null,null,null,null,null,null,null,null,0,{"$f":"IF(L573<=0,Feuil1!$D$4,IF(H573=Feuil1!$F$3,Feuil1!D576,\"SAISIR TEXTE\"))","v":"soldé"}]
["L:\\2. FINANCES\\2.1 COMPTABILITE\\2.1.7 Bons de Commande\\Bons de commande 2021\\",null,null,null,null,null,null,null,null,null,null,0,{"$f":"IF(L574<=0,Feuil1!$D$4,IF(H574=Feuil1!$F$3,Feuil1!D577,\"SAISIR TEXTE\"))","v":"soldé"}]
["L:\\2. FINANCES\\2.1 COMPTABILITE\\2.1.7 Bons de Commande\\Bons de commande 2021\\",null,null,null,null,null,null,null,null,null,null,0,{"$f":"IF(L575<=0,Feuil1!$D$4,IF(H575=Feuil1!$F$3,Feuil1!D578,\"SAISIR TEXTE\"))","v":"soldé"}]
["L:\\2. FINANCES\\2.1 COMPTABILITE\\2.1.7 Bons de Commande\\Bons de commande 2021\\",null,null,null,null,null,null,null,null,null,null,0,{"$f":"IF(L576<=0,Feuil1!$D$4,IF(H576=Feuil1!$F$3,Feuil1!D579,\"SAISIR TEXTE\"))","v":"soldé"}]
["L:\\2. FINANCES\\2.1 COMPTABILITE\\2.1.7 Bons de Commande\\Bons de commande 2021\\",null,null,null,null,null,null,null,null,null,null,0,{"$f":"IF(L577<=0,Feuil1!$D$4,IF(H577=Feuil1!$F$3,Feuil1!D580,\"SAISIR TEXTE\"))","v":"soldé"}]
["L:\\2. FINANCES\\2.1 COMPTABILITE\\2.1.7 Bons de Commande\\Bons de commande 2021\\",null,null,null,null,null,null,null,null,null,null,0,{"$f":"IF(L578<=0,Feuil1!$D$4,IF(H578=Feuil1!$F$3,Feuil1!D581,\"SAISIR TEXTE\"))","v":"soldé"}]
["L:\\2. FINANCES\\2.1 COMPTABILITE\\2.1.7 Bons de Commande\\Bons de commande 2021\\",null,null,null,null,null,null,null,null,null,null,{"$f":"F579-K579","v":0},{"$f":"IF(L579<=0,Feuil1!$D$4,IF(H579=Feuil1!$F$3,Feuil1!D582,\"SAISIR TEXTE\"))","v":"soldé"}]
["L:\\2. FINANCES\\2.1 COMPTABILITE\\2.1.7 Bons de Commande\\Bons de commande 2021\\",null,null,null,null,null,null,null,null,null,null,0,{"$f":"IF(L580<=0,Feuil1!$D$4,IF(H580=Feuil1!$F$3,Feuil1!D583,\"SAISIR TEXTE\"))","v":"soldé"}]
["L:\\2. FINANCES\\2.1 COMPTABILITE\\2.1.7 Bons de Commande\\Bons de commande 2021\\",null,null,null,null,null,null,null,null,null,null,0,{"$f":"IF(L581<=0,Feuil1!$D$4,IF(H581=Feuil1!$F$3,Feuil1!D584,\"SAISIR TEXTE\"))","v":"soldé"}]
["L:\\2. FINANCES\\2.1 COMPTABILITE\\2.1.7 Bons de Commande\\Bons de commande 2021\\",null,null,null,null,null,null,null,null,null,null,0,{"$f":"IF(L582<=0,Feuil1!$D$4,IF(H582=Feuil1!$F$3,Feuil1!D585,\"SAISIR TEXTE\"))","v":"soldé"}]
["L:\\2. FINANCES\\2.1 COMPTABILITE\\2.1.7 Bons de Commande\\Bons de commande 2021\\",null,null,null,null,null,null,null,null,null,null,0,{"$f":"IF(L583<=0,Feuil1!$D$4,IF(H583=Feuil1!$F$3,Feuil1!D586,\"SAISIR TEXTE\"))","v":"soldé"}]
["L:\\2. FINANCES\\2.1 COMPTABILITE\\2.1.7 Bons de Commande\\Bons de commande 2021\\",null,null,null,null,null,null,null,null,null,null,0,{"$f":"IF(L584<=0,Feuil1!$D$4,IF(H584=Feuil1!$F$3,Feuil1!D587,\"SAISIR TEXTE\"))","v":"soldé"}]
["L:\\2. FINANCES\\2.1 COMPTABILITE\\2.1.7 Bons de Commande\\Bons de commande 2021\\",null,null,null,null,null,null,null,null,null,null,0,{"$f":"IF(L585<=0,Feuil1!$D$4,IF(H585=Feuil1!$F$3,Feuil1!D588,\"SAISIR TEXTE\"))","v":"soldé"}]
["L:\\2. FINANCES\\2.1 COMPTABILITE\\2.1.7 Bons de Commande\\Bons de commande 2021\\",null,null,null,null,null,null,null,null,null,null,0,{"$f":"IF(L586<=0,Feuil1!$D$4,IF(H586=Feuil1!$F$3,Feuil1!D589,\"SAISIR TEXTE\"))","v":"soldé"}]
["L:\\2. FINANCES\\2.1 COMPTABILITE\\2.1.7 Bons de Commande\\Bons de commande 2021\\",null,null,null,null,null,null,null,null,null,null,0,{"$f":"IF(L587<=0,Feuil1!$D$4,IF(H587=Feuil1!$F$3,Feuil1!D590,\"SAISIR TEXTE\"))","v":"soldé"}]
["L:\\2. FINANCES\\2.1 COMPTABILITE\\2.1.7 Bons de Commande\\Bons de commande 2021\\",null,null,null,null,null,null,null,null,null,null,0,{"$f":"IF(L588<=0,Feuil1!$D$4,IF(H588=Feuil1!$F$3,Feuil1!D591,\"SAISIR TEXTE\"))","v":"soldé"}]
["L:\\2. FINANCES\\2.1 COMPTABILITE\\2.1.7 Bons de Commande\\Bons de commande 2021\\",null,null,null,null,null,null,null,null,null,null,0,{"$f":"IF(L589<=0,Feuil1!$D$4,IF(H589=Feuil1!$F$3,Feuil1!D592,\"SAISIR TEXTE\"))","v":"soldé"}]
["L:\\2. FINANCES\\2.1 COMPTABILITE\\2.1.7 Bons de Commande\\Bons de commande 2021\\",null,null,null,null,null,null,null,null,null,null,0,{"$f":"IF(L590<=0,Feuil1!$D$4,IF(H590=Feuil1!$F$3,Feuil1!D593,\"SAISIR TEXTE\"))","v":"soldé"}]
["L:\\2. FINANCES\\2.1 COMPTABILITE\\2.1.7 Bons de Commande\\Bons de commande 2021\\",null,null,null,null,null,null,null,null,null,null,0,{"$f":"IF(L591<=0,Feuil1!$D$4,IF(H591=Feuil1!$F$3,Feuil1!D594,\"SAISIR TEXTE\"))","v":"soldé"}]
["L:\\2. FINANCES\\2.1 COMPTABILITE\\2.1.7 Bons de Commande\\Bons de commande 2021\\",null,null,null,null,null,null,null,null,null,null,0,{"$f":"IF(L592<=0,Feuil1!$D$4,IF(H592=Feuil1!$F$3,Feuil1!D595,\"SAISIR TEXTE\"))","v":"soldé"}]
["L:\\2. FINANCES\\2.1 COMPTABILITE\\2.1.7 Bons de Commande\\Bons de commande 2021\\",null,null,null,null,null,null,null,null,null,null,0,{"$f":"IF(L593<=0,Feuil1!$D$4,IF(H593=Feuil1!$F$3,Feuil1!D596,\"SAISIR TEXTE\"))","v":"soldé"}]
["L:\\2. FINANCES\\2.1 COMPTABILITE\\2.1.7 Bons de Commande\\Bons de commande 2021\\",null,null,null,null,null,null,null,null,null,null,0,{"$f":"IF(L594<=0,Feuil1!$D$4,IF(H594=Feuil1!$F$3,Feuil1!D597,\"SAISIR TEXTE\"))","v":"soldé"}]
["L:\\2. FINANCES\\2.1 COMPTABILITE\\2.1.7 Bons de Commande\\Bons de commande 2021\\",null,null,null,null,null,null,null,null,null,null,0,{"$f":"IF(L595<=0,Feuil1!$D$4,IF(H595=Feuil1!$F$3,Feuil1!D598,\"SAISIR TEXTE\"))","v":"soldé"}]
["L:\\2. FINANCES\\2.1 COMPTABILITE\\2.1.7 Bons de Commande\\Bons de commande 2021\\",null,null,null,null,null,null,null,null,null,null,0,{"$f":"IF(L596<=0,Feuil1!$D$4,IF(H596=Feuil1!$F$3,Feuil1!D599,\"SAISIR TEXTE\"))","v":"soldé"}]
["L:\\2. FINANCES\\2.1 COMPTABILITE\\2.1.7 Bons de Commande\\Bons de commande 2021\\",null,null,null,null,null,null,null,null,null,null,0,{"$f":"IF(L597<=0,Feuil1!$D$4,IF(H597=Feuil1!$F$3,Feuil1!D600,\"SAISIR TEXTE\"))","v":"soldé"}]
["L:\\2. FINANCES\\2.1 COMPTABILITE\\2.1.7 Bons de Commande\\Bons de commande 2021\\",null,null,null,null,null,null,null,null,null,null,0,{"$f":"IF(L598<=0,Feuil1!$D$4,IF(H598=Feuil1!$F$3,Feuil1!D601,\"SAISIR TEXTE\"))","v":"soldé"}]
["L:\\2. FINANCES\\2.1 COMPTABILITE\\2.1.7 Bons de Commande\\Bons de commande 2021\\",null,null,null,null,null,null,null,null,null,null,0,{"$f":"IF(L599<=0,Feuil1!$D$4,IF(H599=Feuil1!$F$3,Feuil1!D602,\"SAISIR TEXTE\"))","v":"soldé"}]
["L:\\2. FINANCES\\2.1 COMPTABILITE\\2.1.7 Bons de Commande\\Bons de commande 2021\\",null,null,null,null,null,null,null,null,null,null,0,{"$f":"IF(L600<=0,Feuil1!$D$4,IF(H600=Feuil1!$F$3,Feuil1!D603,\"SAISIR TEXTE\"))","v":"soldé"}]
["L:\\2. FINANCES\\2.1 COMPTABILITE\\2.1.7 Bons de Commande\\Bons de commande 2021\\",null,null,null,null,null,null,null,null,null,null,0,{"$f":"IF(L601<=0,Feuil1!$D$4,IF(H601=Feuil1!$F$3,Feuil1!D604,\"SAISIR TEXTE\"))","v":"soldé"}]
["L:\\2. FINANCES\\2.1 COMPTABILITE\\2.1.7 Bons de Commande\\Bons de commande 2021\\",null,null,null,null,null,null,null,null,null,null,0,{"$f":"IF(L602<=0,Feuil1!$D$4,IF(H602=Feuil1!$F$3,Feuil1!D605,\"SAISIR TEXTE\"))","v":"soldé"}]
["L:\\2. FINANCES\\2.1 COMPTABILITE\\2.1.7 Bons de Commande\\Bons de commande 2021\\",null,null,null,null,null,null,null,null,null,null,0,{"$f":"IF(L603<=0,Feuil1!$D$4,IF(H603=Feuil1!$F$3,Feuil1!D606,\"SAISIR TEXTE\"))","v":"soldé"}]
["L:\\2. FINANCES\\2.1 COMPTABILITE\\2.1.7 Bons de Commande\\Bons de commande 2021\\",null,null,null,null,null,null,null,null,null,null,0,{"$f":"IF(L604<=0,Feuil1!$D$4,IF(H604=Feuil1!$F$3,Feuil1!D607,\"SAISIR TEXTE\"))","v":"soldé"}]
["L:\\2. FINANCES\\2.1 COMPTABILITE\\2.1.7 Bons de Commande\\Bons de commande 2021\\",null,null,null,null,null,null,null,null,null,null,0,{"$f":"IF(L605<=0,Feuil1!$D$4,IF(H605=Feuil1!$F$3,Feuil1!D608,\"SAISIR TEXTE\"))","v":"soldé"}]
["L:\\2. FINANCES\\2.1 COMPTABILITE\\2.1.7 Bons de Commande\\Bons de commande 2021\\",null,null,null,null,null,null,null,null,null,null,0,{"$f":"IF(L606<=0,Feuil1!$D$4,IF(H606=Feuil1!$F$3,Feuil1!D609,\"SAISIR TEXTE\"))","v":"soldé"}]
["L:\\2. FINANCES\\2.1 COMPTABILITE\\2.1.7 Bons de Commande\\Bons de commande 2021\\",null,null,null,null,null,null,null,null,null,null,0,{"$f":"IF(L607<=0,Feuil1!$D$4,IF(H607=Feuil1!$F$3,Feuil1!D610,\"SAISIR TEXTE\"))","v":"soldé"}]
["L:\\2. FINANCES\\2.1 COMPTABILITE\\2.1.7 Bons de Commande\\Bons de commande 2021\\",null,null,null,null,null,null,null,null,null,null,0,{"$f":"IF(L608<=0,Feuil1!$D$4,IF(H608=Feuil1!$F$3,Feuil1!D611,\"SAISIR TEXTE\"))","v":"soldé"}]
["L:\\2. FINANCES\\2.1 COMPTABILITE\\2.1.7 Bons de Commande\\Bons de commande 2021\\",null,null,null,null,null,null,null,null,null,null,0,{"$f":"IF(L609<=0,Feuil1!$D$4,IF(H609=Feuil1!$F$3,Feuil1!D612,\"SAISIR TEXTE\"))","v":"soldé"}]
["L:\\2. FINANCES\\2.1 COMPTABILITE\\2.1.7 Bons de Commande\\Bons de commande 2021\\",null,null,null,null,null,null,null,null,null,null,0,{"$f":"IF(L610<=0,Feuil1!$D$4,IF(H610=Feuil1!$F$3,Feuil1!D613,\"SAISIR TEXTE\"))","v":"soldé"}]
["L:\\2. FINANCES\\2.1 COMPTABILITE\\2.1.7 Bons de Commande\\Bons de commande 2021\\",null,null,null,null,null,null,null,null,null,null,0,{"$f":"IF(L611<=0,Feuil1!$D$4,IF(H611=Feuil1!$F$3,Feuil1!D614,\"SAISIR TEXTE\"))","v":"soldé"}]
["L:\\2. FINANCES\\2.1 COMPTABILITE\\2.1.7 Bons de Commande\\Bons de commande 2021\\",null,null,null,null,null,null,null,null,null,null,0,{"$f":"IF(L612<=0,Feuil1!$D$4,IF(H612=Feuil1!$F$3,Feuil1!D615,\"SAISIR TEXTE\"))","v":"soldé"}]
["L:\\2. FINANCES\\2.1 COMPTABILITE\\2.1.7 Bons de Commande\\Bons de commande 2021\\",null,null,null,null,null,null,null,null,null,null,0,{"$f":"IF(L613<=0,Feuil1!$D$4,IF(H613=Feuil1!$F$3,Feuil1!D616,\"SAISIR TEXTE\"))","v":"soldé"}]
["L:\\2. FINANCES\\2.1 COMPTABILITE\\2.1.7 Bons de Commande\\Bons de commande 2021\\",null,null,null,null,null,null,null,null,null,null,0,{"$f":"IF(L614<=0,Feuil1!$D$4,IF(H614=Feuil1!$F$3,Feuil1!D617,\"SAISIR TEXTE\"))","v":"soldé"}]
["L:\\2. FINANCES\\2.1 COMPTABILITE\\2.1.7 Bons de Commande\\Bons de commande 2021\\",null,null,null,null,null,null,null,null,null,null,0,{"$f":"IF(L615<=0,Feuil1!$D$4,IF(H615=Feuil1!$F$3,Feuil1!D618,\"SAISIR TEXTE\"))","v":"soldé"}]
["L:\\2. FINANCES\\2.1 COMPTABILITE\\2.1.7 Bons de Commande\\Bons de commande 2021\\",null,null,null,null,null,null,null,null,null,null,0,{"$f":"IF(L616<=0,Feuil1!$D$4,IF(H616=Feuil1!$F$3,Feuil1!D619,\"SAISIR TEXTE\"))","v":"soldé"}]
["L:\\2. FINANCES\\2.1 COMPTABILITE\\2.1.7 Bons de Commande\\Bons de commande 2021\\",null,null,null,null,null,null,null,null,null,null,0,{"$f":"IF(L617<=0,Feuil1!$D$4,IF(H617=Feuil1!$F$3,Feuil1!D620,\"SAISIR TEXTE\"))","v":"soldé"}]
["L:\\2. FINANCES\\2.1 COMPTABILITE\\2.1.7 Bons de Commande\\Bons de commande 2021\\",null,null,null,null,null,null,null,null,null,null,0,{"$f":"IF(L618<=0,Feuil1!$D$4,IF(H618=Feuil1!$F$3,Feuil1!D621,\"SAISIR TEXTE\"))","v":"soldé"}]
["L:\\2. FINANCES\\2.1 COMPTABILITE\\2.1.7 Bons de Commande\\Bons de commande 2021\\",null,null,null,null,null,null,null,null,null,null,0,{"$f":"IF(L619<=0,Feuil1!$D$4,IF(H619=Feuil1!$F$3,Feuil1!D622,\"SAISIR TEXTE\"))","v":"soldé"}]
["L:\\2. FINANCES\\2.1 COMPTABILITE\\2.1.7 Bons de Commande\\Bons de commande 2021\\",null,null,null,null,null,null,null,null,null,null,0,{"$f":"IF(L620<=0,Feuil1!$D$4,IF(H620=Feuil1!$F$3,Feuil1!D623,\"SAISIR TEXTE\"))","v":"soldé"}]
["L:\\2. FINANCES\\2.1 COMPTABILITE\\2.1.7 Bons de Commande\\Bons de commande 2021\\",null,null,null,null,null,null,null,null,null,null,0,{"$f":"IF(L621<=0,Feuil1!$D$4,IF(H621=Feuil1!$F$3,Feuil1!D624,\"SAISIR TEXTE\"))","v":"soldé"}]
["L:\\2. FINANCES\\2.1 COMPTABILITE\\2.1.7 Bons de Commande\\Bons de commande 2021\\",null,null,null,null,null,null,null,null,null,null,0,{"$f":"IF(L622<=0,Feuil1!$D$4,IF(H622=Feuil1!$F$3,Feuil1!D625,\"SAISIR TEXTE\"))","v":"soldé"}]
["L:\\2. FINANCES\\2.1 COMPTABILITE\\2.1.7 Bons de Commande\\Bons de commande 2021\\",null,null,null,null,null,null,null,null,null,null,0,{"$f":"IF(L623<=0,Feuil1!$D$4,IF(H623=Feuil1!$F$3,Feuil1!D626,\"SAISIR TEXTE\"))","v":"soldé"}]
["L:\\2. FINANCES\\2.1 COMPTABILITE\\2.1.7 Bons de Commande\\Bons de commande 2021\\",null,null,null,null,null,null,null,null,null,null,0,{"$f":"IF(L624<=0,Feuil1!$D$4,IF(H624=Feuil1!$F$3,Feuil1!D627,\"SAISIR TEXTE\"))","v":"soldé"}]
["L:\\2. FINANCES\\2.1 COMPTABILITE\\2.1.7 Bons de Commande\\Bons de commande 2021\\",null,null,null,null,null,null,null,null,null,null,0,{"$f":"IF(L625<=0,Feuil1!$D$4,IF(H625=Feuil1!$F$3,Feuil1!D628,\"SAISIR TEXTE\"))","v":"soldé"}]
["L:\\2. FINANCES\\2.1 COMPTABILITE\\2.1.7 Bons de Commande\\Bons de commande 2021\\",null,null,null,null,null,null,null,null,null,null,0,{"$f":"IF(L626<=0,Feuil1!$D$4,IF(H626=Feuil1!$F$3,Feuil1!D629,\"SAISIR TEXTE\"))","v":"soldé"}]
["L:\\2. FINANCES\\2.1 COMPTABILITE\\2.1.7 Bons de Commande\\Bons de commande 2021\\",null,null,null,null,null,null,null,null,null,null,0,{"$f":"IF(L627<=0,Feuil1!$D$4,IF(H627=Feuil1!$F$3,Feuil1!D630,\"SAISIR TEXTE\"))","v":"soldé"}]
["L:\\2. FINANCES\\2.1 COMPTABILITE\\2.1.7 Bons de Commande\\Bons de commande 2021\\",null,null,null,null,null,null,null,null,null,null,0,{"$f":"IF(L628<=0,Feuil1!$D$4,IF(H628=Feuil1!$F$3,Feuil1!D631,\"SAISIR TEXTE\"))","v":"soldé"}]
["L:\\2. FINANCES\\2.1 COMPTABILITE\\2.1.7 Bons de Commande\\Bons de commande 2021\\",null,null,null,null,null,null,null,null,null,null,0,{"$f":"IF(L629<=0,Feuil1!$D$4,IF(H629=Feuil1!$F$3,Feuil1!D632,\"SAISIR TEXTE\"))","v":"soldé"}]
["L:\\2. FINANCES\\2.1 COMPTABILITE\\2.1.7 Bons de Commande\\Bons de commande 2021\\",null,null,null,null,null,null,null,null,null,null,0,{"$f":"IF(L630<=0,Feuil1!$D$4,IF(H630=Feuil1!$F$3,Feuil1!D633,\"SAISIR TEXTE\"))","v":"soldé"}]
["L:\\2. FINANCES\\2.1 COMPTABILITE\\2.1.7 Bons de Commande\\Bons de commande 2021\\",null,null,null,null,null,null,null,null,null,null,0,{"$f":"IF(L631<=0,Feuil1!$D$4,IF(H631=Feuil1!$F$3,Feuil1!D634,\"SAISIR TEXTE\"))","v":"soldé"}]
["L:\\2. FINANCES\\2.1 COMPTABILITE\\2.1.7 Bons de Commande\\Bons de commande 2021\\",null,null,null,null,null,null,null,null,null,null,0,{"$f":"IF(L632<=0,Feuil1!$D$4,IF(H632=Feuil1!$F$3,Feuil1!D635,\"SAISIR TEXTE\"))","v":"soldé"}]
["L:\\2. FINANCES\\2.1 COMPTABILITE\\2.1.7 Bons de Commande\\Bons de commande 2021\\",null,null,null,null,null,null,null,null,null,null,0,{"$f":"IF(L633<=0,Feuil1!$D$4,IF(H633=Feuil1!$F$3,Feuil1!D636,\"SAISIR TEXTE\"))","v":"soldé"}]
["L:\\2. FINANCES\\2.1 COMPTABILITE\\2.1.7 Bons de Commande\\Bons de commande 2021\\",null,null,null,null,null,null,null,null,null,null,0,{"$f":"IF(L634<=0,Feuil1!$D$4,IF(H634=Feuil1!$F$3,Feuil1!D637,\"SAISIR TEXTE\"))","v":"soldé"}]
["L:\\2. FINANCES\\2.1 COMPTABILITE\\2.1.7 Bons de Commande\\Bons de commande 2021\\",null,null,null,null,null,null,null,null,null,null,0,{"$f":"IF(L635<=0,Feuil1!$D$4,IF(H635=Feuil1!$F$3,Feuil1!D638,\"SAISIR TEXTE\"))","v":"soldé"}]
["L:\\2. FINANCES\\2.1 COMPTABILITE\\2.1.7 Bons de Commande\\Bons de commande 2021\\",null,null,null,null,null,null,null,null,null,null,0,{"$f":"IF(L636<=0,Feuil1!$D$4,IF(H636=Feuil1!$F$3,Feuil1!D639,\"SAISIR TEXTE\"))","v":"soldé"}]
["L:\\2. FINANCES\\2.1 COMPTABILITE\\2.1.7 Bons de Commande\\Bons de commande 2021\\",null,null,null,null,null,null,null,null,null,null,0,{"$f":"IF(L637<=0,Feuil1!$D$4,IF(H637=Feuil1!$F$3,Feuil1!D640,\"SAISIR TEXTE\"))","v":"soldé"}]
["L:\\2. FINANCES\\2.1 COMPTABILITE\\2.1.7 Bons de Commande\\Bons de commande 2021\\",null,null,null,null,null,null,null,null,null,null,0,{"$f":"IF(L638<=0,Feuil1!$D$4,IF(H638=Feuil1!$F$3,Feuil1!D641,\"SAISIR TEXTE\"))","v":"soldé"}]
["L:\\2. FINANCES\\2.1 COMPTABILITE\\2.1.7 Bons de Commande\\Bons de commande 2021\\",null,null,null,null,null,null,null,null,null,null,0,{"$f":"IF(L639<=0,Feuil1!$D$4,IF(H639=Feuil1!$F$3,Feuil1!D642,\"SAISIR TEXTE\"))","v":"soldé"}]
["L:\\2. FINANCES\\2.1 COMPTABILITE\\2.1.7 Bons de Commande\\Bons de commande 2021\\",null,null,null,null,null,null,null,null,null,null,0,{"$f":"IF(L640<=0,Feuil1!$D$4,IF(H640=Feuil1!$F$3,Feuil1!D643,\"SAISIR TEXTE\"))","v":"soldé"}]
["L:\\2. FINANCES\\2.1 COMPTABILITE\\2.1.7 Bons de Commande\\Bons de commande 2021\\",null,null,null,null,null,null,null,null,null,null,0,{"$f":"IF(L641<=0,Feuil1!$D$4,IF(H641=Feuil1!$F$3,Feuil1!D644,\"SAISIR TEXTE\"))","v":"soldé"}]
["L:\\2. FINANCES\\2.1 COMPTABILITE\\2.1.7 Bons de Commande\\Bons de commande 2021\\",null,null,null,null,null,null,null,null,null,null,0,{"$f":"IF(L642<=0,Feuil1!$D$4,IF(H642=Feuil1!$F$3,Feuil1!D645,\"SAISIR TEXTE\"))","v":"soldé"}]
["L:\\2. FINANCES\\2.1 COMPTABILITE\\2.1.7 Bons de Commande\\Bons de commande 2021\\",null,null,null,null,null,null,null,null,null,null,{"$f":"F643-K643","v":0},{"$f":"IF(L643<=0,Feuil1!$D$4,IF(H643=Feuil1!$F$3,Feuil1!D646,\"SAISIR TEXTE\"))","v":"soldé"}]
["L:\\2. FINANCES\\2.1 COMPTABILITE\\2.1.7 Bons de Commande\\Bons de commande 2021\\",null,null,null,null,null,null,null,null,null,null,0,{"$f":"IF(L644<=0,Feuil1!$D$4,IF(H644=Feuil1!$F$3,Feuil1!D647,\"SAISIR TEXTE\"))","v":"soldé"}]
["L:\\2. FINANCES\\2.1 COMPTABILITE\\2.1.7 Bons de Commande\\Bons de commande 2021\\",null,null,null,null,null,null,null,null,null,null,0,{"$f":"IF(L645<=0,Feuil1!$D$4,IF(H645=Feuil1!$F$3,Feuil1!D648,\"SAISIR TEXTE\"))","v":"soldé"}]
["L:\\2. FINANCES\\2.1 COMPTABILITE\\2.1.7 Bons de Commande\\Bons de commande 2021\\",null,null,null,null,null,null,null,null,null,null,0,{"$f":"IF(L646<=0,Feuil1!$D$4,IF(H646=Feuil1!$F$3,Feuil1!D649,\"SAISIR TEXTE\"))","v":"soldé"}]
["L:\\2. FINANCES\\2.1 COMPTABILITE\\2.1.7 Bons de Commande\\Bons de commande 2021\\",null,null,null,null,null,null,null,null,null,null,0,{"$f":"IF(L647<=0,Feuil1!$D$4,IF(H647=Feuil1!$F$3,Feuil1!D650,\"SAISIR TEXTE\"))","v":"soldé"}]
["L:\\2. FINANCES\\2.1 COMPTABILITE\\2.1.7 Bons de Commande\\Bons de commande 2021\\",null,null,null,null,null,null,null,null,null,null,0,{"$f":"IF(L648<=0,Feuil1!$D$4,IF(H648=Feuil1!$F$3,Feuil1!D651,\"SAISIR TEXTE\"))","v":"soldé"}]
["L:\\2. FINANCES\\2.1 COMPTABILITE\\2.1.7 Bons de Commande\\Bons de commande 2021\\",null,null,null,null,null,null,null,null,null,null,0,{"$f":"IF(L649<=0,Feuil1!$D$4,IF(H649=Feuil1!$F$3,Feuil1!D652,\"SAISIR TEXTE\"))","v":"soldé"}]
["L:\\2. FINANCES\\2.1 COMPTABILITE\\2.1.7 Bons de Commande\\Bons de commande 2021\\",null,null,null,null,null,null,null,null,null,null,0,{"$f":"IF(L650<=0,Feuil1!$D$4,IF(H650=Feuil1!$F$3,Feuil1!D653,\"SAISIR TEXTE\"))","v":"soldé"}]
["L:\\2. FINANCES\\2.1 COMPTABILITE\\2.1.7 Bons de Commande\\Bons de commande 2021\\",null,null,null,null,null,null,null,null,null,null,0,{"$f":"IF(L651<=0,Feuil1!$D$4,IF(H651=Feuil1!$F$3,Feuil1!D654,\"SAISIR TEXTE\"))","v":"soldé"}]
["L:\\2. FINANCES\\2.1 COMPTABILITE\\2.1.7 Bons de Commande\\Bons de commande 2021\\",null,null,null,null,null,null,null,null,null,null,0,{"$f":"IF(L652<=0,Feuil1!$D$4,IF(H652=Feuil1!$F$3,Feuil1!D655,\"SAISIR TEXTE\"))","v":"soldé"}]
["L:\\2. FINANCES\\2.1 COMPTABILITE\\2.1.7 Bons de Commande\\Bons de commande 2021\\",null,null,null,null,null,null,null,null,null,null,0,{"$f":"IF(L653<=0,Feuil1!$D$4,IF(H653=Feuil1!$F$3,Feuil1!D656,\"SAISIR TEXTE\"))","v":"soldé"}]
["L:\\2. FINANCES\\2.1 COMPTABILITE\\2.1.7 Bons de Commande\\Bons de commande 2021\\",null,null,null,null,null,null,null,null,null,null,0,{"$f":"IF(L654<=0,Feuil1!$D$4,IF(H654=Feuil1!$F$3,Feuil1!D657,\"SAISIR TEXTE\"))","v":"soldé"}]
["L:\\2. FINANCES\\2.1 COMPTABILITE\\2.1.7 Bons de Commande\\Bons de commande 2021\\",null,null,null,null,null,null,null,null,null,null,0,{"$f":"IF(L655<=0,Feuil1!$D$4,IF(H655=Feuil1!$F$3,Feuil1!D658,\"SAISIR TEXTE\"))","v":"soldé"}]
["L:\\2. FINANCES\\2.1 COMPTABILITE\\2.1.7 Bons de Commande\\Bons de commande 2021\\",null,null,null,null,null,null,null,null,null,null,0,{"$f":"IF(L656<=0,Feuil1!$D$4,IF(H656=Feuil1!$F$3,Feuil1!D659,\"SAISIR TEXTE\"))","v":"soldé"}]
["L:\\2. FINANCES\\2.1 COMPTABILITE\\2.1.7 Bons de Commande\\Bons de commande 2021\\",null,null,null,null,null,null,null,null,null,null,0,{"$f":"IF(L657<=0,Feuil1!$D$4,IF(H657=Feuil1!$F$3,Feuil1!D660,\"SAISIR TEXTE\"))","v":"soldé"}]
["L:\\2. FINANCES\\2.1 COMPTABILITE\\2.1.7 Bons de Commande\\Bons de commande 2021\\",null,null,null,null,null,null,null,null,null,null,0,{"$f":"IF(L658<=0,Feuil1!$D$4,IF(H658=Feuil1!$F$3,Feuil1!D661,\"SAISIR TEXTE\"))","v":"soldé"}]
["L:\\2. FINANCES\\2.1 COMPTABILITE\\2.1.7 Bons de Commande\\Bons de commande 2021\\",null,null,null,null,null,null,null,null,null,null,0,{"$f":"IF(L659<=0,Feuil1!$D$4,IF(H659=Feuil1!$F$3,Feuil1!D662,\"SAISIR TEXTE\"))","v":"soldé"}]
["L:\\2. FINANCES\\2.1 COMPTABILITE\\2.1.7 Bons de Commande\\Bons de commande 2021\\",null,null,null,null,null,null,null,null,null,null,0,{"$f":"IF(L660<=0,Feuil1!$D$4,IF(H660=Feuil1!$F$3,Feuil1!D663,\"SAISIR TEXTE\"))","v":"soldé"}]
["L:\\2. FINANCES\\2.1 COMPTABILITE\\2.1.7 Bons de Commande\\Bons de commande 2021\\",null,null,null,null,null,null,null,null,null,null,0,{"$f":"IF(L661<=0,Feuil1!$D$4,IF(H661=Feuil1!$F$3,Feuil1!D664,\"SAISIR TEXTE\"))","v":"soldé"}]
["L:\\2. FINANCES\\2.1 COMPTABILITE\\2.1.7 Bons de Commande\\Bons de commande 2021\\",null,null,null,null,null,null,null,null,null,null,0,{"$f":"IF(L662<=0,Feuil1!$D$4,IF(H662=Feuil1!$F$3,Feuil1!D665,\"SAISIR TEXTE\"))","v":"soldé"}]
["L:\\2. FINANCES\\2.1 COMPTABILITE\\2.1.7 Bons de Commande\\Bons de commande 2021\\",null,null,null,null,null,null,null,null,null,null,0,{"$f":"IF(L663<=0,Feuil1!$D$4,IF(H663=Feuil1!$F$3,Feuil1!D666,\"SAISIR TEXTE\"))","v":"soldé"}]
["L:\\2. FINANCES\\2.1 COMPTABILITE\\2.1.7 Bons de Commande\\Bons de commande 2021\\",null,null,null,null,null,null,null,null,null,null,0,{"$f":"IF(L664<=0,Feuil1!$D$4,IF(H664=Feuil1!$F$3,Feuil1!D667,\"SAISIR TEXTE\"))","v":"soldé"}]
["L:\\2. FINANCES\\2.1 COMPTABILITE\\2.1.7 Bons de Commande\\Bons de commande 2021\\",null,null,null,null,null,null,null,null,null,null,0,{"$f":"IF(L665<=0,Feuil1!$D$4,IF(H665=Feuil1!$F$3,Feuil1!D668,\"SAISIR TEXTE\"))","v":"soldé"}]
["L:\\2. FINANCES\\2.1 COMPTABILITE\\2.1.7 Bons de Commande\\Bons de commande 2021\\",null,null,null,null,null,null,null,null,null,null,0,{"$f":"IF(L666<=0,Feuil1!$D$4,IF(H666=Feuil1!$F$3,Feuil1!D669,\"SAISIR TEXTE\"))","v":"soldé"}]
["L:\\2. FINANCES\\2.1 COMPTABILITE\\2.1.7 Bons de Commande\\Bons de commande 2021\\",null,null,null,null,null,null,null,null,null,null,0,{"$f":"IF(L667<=0,Feuil1!$D$4,IF(H667=Feuil1!$F$3,Feuil1!D670,\"SAISIR TEXTE\"))","v":"soldé"}]
["L:\\2. FINANCES\\2.1 COMPTABILITE\\2.1.7 Bons de Commande\\Bons de commande 2021\\",null,null,null,null,null,null,null,null,null,null,0,{"$f":"IF(L668<=0,Feuil1!$D$4,IF(H668=Feuil1!$F$3,Feuil1!D671,\"SAISIR TEXTE\"))","v":"soldé"}]
["L:\\2. FINANCES\\2.1 COMPTABILITE\\2.1.7 Bons de Commande\\Bons de commande 2021\\",null,null,null,null,null,null,null,null,null,null,0,{"$f":"IF(L669<=0,Feuil1!$D$4,IF(H669=Feuil1!$F$3,Feuil1!D672,\"SAISIR TEXTE\"))","v":"soldé"}]
["L:\\2. FINANCES\\2.1 COMPTABILITE\\2.1.7 Bons de Commande\\Bons de commande 2021\\",null,null,null,null,null,null,null,null,null,null,0,{"$f":"IF(L670<=0,Feuil1!$D$4,IF(H670=Feuil1!$F$3,Feuil1!D673,\"SAISIR TEXTE\"))","v":"soldé"}]
["L:\\2. FINANCES\\2.1 COMPTABILITE\\2.1.7 Bons de Commande\\Bons de commande 2021\\",null,null,null,null,null,null,null,null,null,null,0,{"$f":"IF(L671<=0,Feuil1!$D$4,IF(H671=Feuil1!$F$3,Feuil1!D674,\"SAISIR TEXTE\"))","v":"soldé"}]
["L:\\2. FINANCES\\2.1 COMPTABILITE\\2.1.7 Bons de Commande\\Bons de commande 2021\\",null,null,null,null,null,null,null,null,null,null,0,{"$f":"IF(L672<=0,Feuil1!$D$4,IF(H672=Feuil1!$F$3,Feuil1!D675,\"SAISIR TEXTE\"))","v":"soldé"}]
["L:\\2. FINANCES\\2.1 COMPTABILITE\\2.1.7 Bons de Commande\\Bons de commande 2021\\",null,null,null,null,null,null,null,null,null,null,0,{"$f":"IF(L673<=0,Feuil1!$D$4,IF(H673=Feuil1!$F$3,Feuil1!D676,\"SAISIR TEXTE\"))","v":"soldé"}]
["L:\\2. FINANCES\\2.1 COMPTABILITE\\2.1.7 Bons de Commande\\Bons de commande 2021\\",null,null,null,null,null,null,null,null,null,null,0,{"$f":"IF(L674<=0,Feuil1!$D$4,IF(H674=Feuil1!$F$3,Feuil1!D677,\"SAISIR TEXTE\"))","v":"soldé"}]
["L:\\2. FINANCES\\2.1 COMPTABILITE\\2.1.7 Bons de Commande\\Bons de commande 2021\\",null,null,null,null,null,null,null,null,null,null,0,{"$f":"IF(L675<=0,Feuil1!$D$4,IF(H675=Feuil1!$F$3,Feuil1!D678,\"SAISIR TEXTE\"))","v":"soldé"}]
["L:\\2. FINANCES\\2.1 COMPTABILITE\\2.1.7 Bons de Commande\\Bons de commande 2021\\",null,null,null,null,null,null,null,null,null,null,0,{"$f":"IF(L676<=0,Feuil1!$D$4,IF(H676=Feuil1!$F$3,Feuil1!D679,\"SAISIR TEXTE\"))","v":"soldé"}]
["L:\\2. FINANCES\\2.1 COMPTABILITE\\2.1.7 Bons de Commande\\Bons de commande 2021\\",null,null,null,null,null,null,null,null,null,null,0,{"$f":"IF(L677<=0,Feuil1!$D$4,IF(H677=Feuil1!$F$3,Feuil1!D680,\"SAISIR TEXTE\"))","v":"soldé"}]
["L:\\2. FINANCES\\2.1 COMPTABILITE\\2.1.7 Bons de Commande\\Bons de commande 2021\\",null,null,null,null,null,null,null,null,null,null,0,{"$f":"IF(L678<=0,Feuil1!$D$4,IF(H678=Feuil1!$F$3,Feuil1!D681,\"SAISIR TEXTE\"))","v":"soldé"}]
["L:\\2. FINANCES\\2.1 COMPTABILITE\\2.1.7 Bons de Commande\\Bons de commande 2021\\",null,null,null,null,null,null,null,null,null,null,0,{"$f":"IF(L679<=0,Feuil1!$D$4,IF(H679=Feuil1!$F$3,Feuil1!D682,\"SAISIR TEXTE\"))","v":"soldé"}]
["L:\\2. FINANCES\\2.1 COMPTABILITE\\2.1.7 Bons de Commande\\Bons de commande 2021\\",null,null,null,null,null,null,null,null,null,null,0,{"$f":"IF(L680<=0,Feuil1!$D$4,IF(H680=Feuil1!$F$3,Feuil1!D683,\"SAISIR TEXTE\"))","v":"soldé"}]
["L:\\2. FINANCES\\2.1 COMPTABILITE\\2.1.7 Bons de Commande\\Bons de commande 2021\\",null,null,null,null,null,null,null,null,null,null,0,{"$f":"IF(L681<=0,Feuil1!$D$4,IF(H681=Feuil1!$F$3,Feuil1!D684,\"SAISIR TEXTE\"))","v":"soldé"}]
["L:\\2. FINANCES\\2.1 COMPTABILITE\\2.1.7 Bons de Commande\\Bons de commande 2021\\",null,null,null,null,null,null,null,null,null,null,0,{"$f":"IF(L682<=0,Feuil1!$D$4,IF(H682=Feuil1!$F$3,Feuil1!D685,\"SAISIR TEXTE\"))","v":"soldé"}]
["L:\\2. FINANCES\\2.1 COMPTABILITE\\2.1.7 Bons de Commande\\Bons de commande 2021\\",null,null,null,null,null,null,null,null,null,null,0,{"$f":"IF(L683<=0,Feuil1!$D$4,IF(H683=Feuil1!$F$3,Feuil1!D686,\"SAISIR TEXTE\"))","v":"soldé"}]
["L:\\2. FINANCES\\2.1 COMPTABILITE\\2.1.7 Bons de Commande\\Bons de commande 2021\\",null,null,null,null,null,null,null,null,null,null,0,{"$f":"IF(L684<=0,Feuil1!$D$4,IF(H684=Feuil1!$F$3,Feuil1!D687,\"SAISIR TEXTE\"))","v":"soldé"}]
["L:\\2. FINANCES\\2.1 COMPTABILITE\\2.1.7 Bons de Commande\\Bons de commande 2021\\",null,null,null,null,null,null,null,null,null,null,0,{"$f":"IF(L685<=0,Feuil1!$D$4,IF(H685=Feuil1!$F$3,Feuil1!D688,\"SAISIR TEXTE\"))","v":"soldé"}]
["L:\\2. FINANCES\\2.1 COMPTABILITE\\2.1.7 Bons de Commande\\Bons de commande 2021\\",null,null,null,null,null,null,null,null,null,null,0,{"$f":"IF(L686<=0,Feuil1!$D$4,IF(H686=Feuil1!$F$3,Feuil1!D689,\"SAISIR TEXTE\"))","v":"soldé"}]
["L:\\2. FINANCES\\2.1 COMPTABILITE\\2.1.7 Bons de Commande\\Bons de commande 2021\\",null,null,null,null,null,null,null,null,null,null,0,{"$f":"IF(L687<=0,Feuil1!$D$4,IF(H687=Feuil1!$F$3,Feuil1!D690,\"SAISIR TEXTE\"))","v":"soldé"}]
["L:\\2. FINANCES\\2.1 COMPTABILITE\\2.1.7 Bons de Commande\\Bons de commande 2021\\",null,null,null,null,null,null,null,null,null,null,0,{"$f":"IF(L688<=0,Feuil1!$D$4,IF(H688=Feuil1!$F$3,Feuil1!D691,\"SAISIR TEXTE\"))","v":"soldé"}]
["L:\\2. FINANCES\\2.1 COMPTABILITE\\2.1.7 Bons de Commande\\Bons de commande 2021\\",null,null,null,null,null,null,null,null,null,null,0,{"$f":"IF(L689<=0,Feuil1!$D$4,IF(H689=Feuil1!$F$3,Feuil1!D692,\"SAISIR TEXTE\"))","v":"soldé"}]
["L:\\2. FINANCES\\2.1 COMPTABILITE\\2.1.7 Bons de Commande\\Bons de commande 2021\\",null,null,null,null,null,null,null,null,null,null,0,{"$f":"IF(L690<=0,Feuil1!$D$4,IF(H690=Feuil1!$F$3,Feuil1!D693,\"SAISIR TEXTE\"))","v":"soldé"}]
["L:\\2. FINANCES\\2.1 COMPTABILITE\\2.1.7 Bons de Commande\\Bons de commande 2021\\",null,null,null,null,null,null,null,null,null,null,0,{"$f":"IF(L691<=0,Feuil1!$D$4,IF(H691=Feuil1!$F$3,Feuil1!D694,\"SAISIR TEXTE\"))","v":"soldé"}]
["L:\\2. FINANCES\\2.1 COMPTABILITE\\2.1.7 Bons de Commande\\Bons de commande 2021\\",null,null,null,null,null,null,null,null,null,null,0,{"$f":"IF(L692<=0,Feuil1!$D$4,IF(H692=Feuil1!$F$3,Feuil1!D695,\"SAISIR TEXTE\"))","v":"soldé"}]
["L:\\2. FINANCES\\2.1 COMPTABILITE\\2.1.7 Bons de Commande\\Bons de commande 2021\\",null,null,null,null,null,null,null,null,null,null,0,{"$f":"IF(L693<=0,Feuil1!$D$4,IF(H693=Feuil1!$F$3,Feuil1!D696,\"SAISIR TEXTE\"))","v":"soldé"}]
["L:\\2. FINANCES\\2.1 COMPTABILITE\\2.1.7 Bons de Commande\\Bons de commande 2021\\",null,null,null,null,null,null,null,null,null,null,0,{"$f":"IF(L694<=0,Feuil1!$D$4,IF(H694=Feuil1!$F$3,Feuil1!D697,\"SAISIR TEXTE\"))","v":"soldé"}]
["L:\\2. FINANCES\\2.1 COMPTABILITE\\2.1.7 Bons de Commande\\Bons de commande 2021\\",null,null,null,null,null,null,null,null,null,null,0,{"$f":"IF(L695<=0,Feuil1!$D$4,IF(H695=Feuil1!$F$3,Feuil1!D698,\"SAISIR TEXTE\"))","v":"soldé"}]
["L:\\2. FINANCES\\2.1 COMPTABILITE\\2.1.7 Bons de Commande\\Bons de commande 2021\\",null,null,null,null,null,null,null,null,null,null,0,{"$f":"IF(L696<=0,Feuil1!$D$4,IF(H696=Feuil1!$F$3,Feuil1!D699,\"SAISIR TEXTE\"))","v":"soldé"}]
["L:\\2. FINANCES\\2.1 COMPTABILITE\\2.1.7 Bons de Commande\\Bons de commande 2021\\",null,null,null,null,null,null,null,null,null,null,0,{"$f":"IF(L697<=0,Feuil1!$D$4,IF(H697=Feuil1!$F$3,Feuil1!D700,\"SAISIR TEXTE\"))","v":"soldé"}]
["L:\\2. FINANCES\\2.1 COMPTABILITE\\2.1.7 Bons de Commande\\Bons de commande 2021\\",null,null,null,null,null,null,null,null,null,null,0,{"$f":"IF(L698<=0,Feuil1!$D$4,IF(H698=Feuil1!$F$3,Feuil1!D701,\"SAISIR TEXTE\"))","v":"soldé"}]
["L:\\2. FINANCES\\2.1 COMPTABILITE\\2.1.7 Bons de Commande\\Bons de commande 2021\\",null,null,null,null,null,null,null,null,null,null,0,{"$f":"IF(L699<=0,Feuil1!$D$4,IF(H699=Feuil1!$F$3,Feuil1!D702,\"SAISIR TEXTE\"))","v":"soldé"}]
["L:\\2. FINANCES\\2.1 COMPTABILITE\\2.1.7 Bons de Commande\\Bons de commande 2021\\",null,null,null,null,null,null,null,null,null,null,0,{"$f":"IF(L700<=0,Feuil1!$D$4,IF(H700=Feuil1!$F$3,Feuil1!D703,\"SAISIR TEXTE\"))","v":"soldé"}]
["L:\\2. FINANCES\\2.1 COMPTABILITE\\2.1.7 Bons de Commande\\Bons de commande 2021\\",null,null,null,null,null,null,null,null,null,null,0,{"$f":"IF(L701<=0,Feuil1!$D$4,IF(H701=Feuil1!$F$3,Feuil1!D704,\"SAISIR TEXTE\"))","v":"soldé"}]
["L:\\2. FINANCES\\2.1 COMPTABILITE\\2.1.7 Bons de Commande\\Bons de commande 2021\\",null,null,null,null,null,null,null,null,null,null,0,{"$f":"IF(L702<=0,Feuil1!$D$4,IF(H702=Feuil1!$F$3,Feuil1!D705,\"SAISIR TEXTE\"))","v":"soldé"}]
["L:\\2. FINANCES\\2.1 COMPTABILITE\\2.1.7 Bons de Commande\\Bons de commande 2021\\",null,null,null,null,null,null,null,null,null,null,0,{"$f":"IF(L703<=0,Feuil1!$D$4,IF(H703=Feuil1!$F$3,Feuil1!D706,\"SAISIR TEXTE\"))","v":"soldé"}]
["L:\\2. FINANCES\\2.1 COMPTABILITE\\2.1.7 Bons de Commande\\Bons de commande 2021\\",null,null,null,null,null,null,null,null,null,null,0,{"$f":"IF(L704<=0,Feuil1!$D$4,IF(H704=Feuil1!$F$3,Feuil1!D707,\"SAISIR TEXTE\"))","v":"soldé"}]
["L:\\2. FINANCES\\2.1 COMPTABILITE\\2.1.7 Bons de Commande\\Bons de commande 2021\\",null,null,null,null,null,null,null,null,null,null,0,{"$f":"IF(L705<=0,Feuil1!$D$4,IF(H705=Feuil1!$F$3,Feuil1!D708,\"SAISIR TEXTE\"))","v":"soldé"}]
["L:\\2. FINANCES\\2.1 COMPTABILITE\\2.1.7 Bons de Commande\\Bons de commande 2021\\",null,null,null,null,null,null,null,null,null,null,0,{"$f":"IF(L706<=0,Feuil1!$D$4,IF(H706=Feuil1!$F$3,Feuil1!D709,\"SAISIR TEXTE\"))","v":"soldé"}]
["L:\\2. FINANCES\\2.1 COMPTABILITE\\2.1.7 Bons de Commande\\Bons de commande 2021\\",null,null,null,null,null,null,null,null,null,null,{"$f":"F707-K707","v":0},{"$f":"IF(L707<=0,Feuil1!$D$4,IF(H707=Feuil1!$F$3,Feuil1!D710,\"SAISIR TEXTE\"))","v":"soldé"}]
["L:\\2. FINANCES\\2.1 COMPTABILITE\\2.1.7 Bons de Commande\\Bons de commande 2021\\",null,null,null,null,null,null,null,null,null,null,0,{"$f":"IF(L708<=0,Feuil1!$D$4,IF(H708=Feuil1!$F$3,Feuil1!D711,\"SAISIR TEXTE\"))","v":"soldé"}]
["L:\\2. FINANCES\\2.1 COMPTABILITE\\2.1.7 Bons de Commande\\Bons de commande 2021\\",null,null,null,null,null,null,null,null,null,null,0,{"$f":"IF(L709<=0,Feuil1!$D$4,IF(H709=Feuil1!$F$3,Feuil1!D712,\"SAISIR TEXTE\"))","v":"soldé"}]
["L:\\2. FINANCES\\2.1 COMPTABILITE\\2.1.7 Bons de Commande\\Bons de commande 2021\\",null,null,null,null,null,null,null,null,null,null,0,{"$f":"IF(L710<=0,Feuil1!$D$4,IF(H710=Feuil1!$F$3,Feuil1!D713,\"SAISIR TEXTE\"))","v":"soldé"}]
["L:\\2. FINANCES\\2.1 COMPTABILITE\\2.1.7 Bons de Commande\\Bons de commande 2021\\",null,null,null,null,null,null,null,null,null,null,0,{"$f":"IF(L711<=0,Feuil1!$D$4,IF(H711=Feuil1!$F$3,Feuil1!D714,\"SAISIR TEXTE\"))","v":"soldé"}]
["L:\\2. FINANCES\\2.1 COMPTABILITE\\2.1.7 Bons de Commande\\Bons de commande 2021\\",null,null,null,null,null,null,null,null,null,null,0,{"$f":"IF(L712<=0,Feuil1!$D$4,IF(H712=Feuil1!$F$3,Feuil1!D715,\"SAISIR TEXTE\"))","v":"soldé"}]
["L:\\2. FINANCES\\2.1 COMPTABILITE\\2.1.7 Bons de Commande\\Bons de commande 2021\\",null,null,null,null,null,null,null,null,null,null,0,{"$f":"IF(L713<=0,Feuil1!$D$4,IF(H713=Feuil1!$F$3,Feuil1!D716,\"SAISIR TEXTE\"))","v":"soldé"}]
["L:\\2. FINANCES\\2.1 COMPTABILITE\\2.1.7 Bons de Commande\\Bons de commande 2021\\",null,null,null,null,null,null,null,null,null,null,0,{"$f":"IF(L714<=0,Feuil1!$D$4,IF(H714=Feuil1!$F$3,Feuil1!D717,\"SAISIR TEXTE\"))","v":"soldé"}]
["L:\\2. FINANCES\\2.1 COMPTABILITE\\2.1.7 Bons de Commande\\Bons de commande 2021\\",null,null,null,null,null,null,null,null,null,null,0,{"$f":"IF(L715<=0,Feuil1!$D$4,IF(H715=Feuil1!$F$3,Feuil1!D718,\"SAISIR TEXTE\"))","v":"soldé"}]
["L:\\2. FINANCES\\2.1 COMPTABILITE\\2.1.7 Bons de Commande\\Bons de commande 2021\\",null,null,null,null,null,null,null,null,null,null,0,{"$f":"IF(L716<=0,Feuil1!$D$4,IF(H716=Feuil1!$F$3,Feuil1!D719,\"SAISIR TEXTE\"))","v":"soldé"}]
["L:\\2. FINANCES\\2.1 COMPTABILITE\\2.1.7 Bons de Commande\\Bons de commande 2021\\",null,null,null,null,null,null,null,null,null,null,0,{"$f":"IF(L717<=0,Feuil1!$D$4,IF(H717=Feuil1!$F$3,Feuil1!D720,\"SAISIR TEXTE\"))","v":"soldé"}]
["L:\\2. FINANCES\\2.1 COMPTABILITE\\2.1.7 Bons de Commande\\Bons de commande 2021\\",null,null,null,null,null,null,null,null,null,null,0,{"$f":"IF(L718<=0,Feuil1!$D$4,IF(H718=Feuil1!$F$3,Feuil1!D721,\"SAISIR TEXTE\"))","v":"soldé"}]
["L:\\2. FINANCES\\2.1 COMPTABILITE\\2.1.7 Bons de Commande\\Bons de commande 2021\\",null,null,null,null,null,null,null,null,null,null,0,{"$f":"IF(L719<=0,Feuil1!$D$4,IF(H719=Feuil1!$F$3,Feuil1!D722,\"SAISIR TEXTE\"))","v":"soldé"}]
["L:\\2. FINANCES\\2.1 COMPTABILITE\\2.1.7 Bons de Commande\\Bons de commande 2021\\",null,null,null,null,null,null,null,null,null,null,0,{"$f":"IF(L720<=0,Feuil1!$D$4,IF(H720=Feuil1!$F$3,Feuil1!D723,\"SAISIR TEXTE\"))","v":"soldé"}]
["L:\\2. FINANCES\\2.1 COMPTABILITE\\2.1.7 Bons de Commande\\Bons de commande 2021\\",null,null,null,null,null,null,null,null,null,null,0,{"$f":"IF(L721<=0,Feuil1!$D$4,IF(H721=Feuil1!$F$3,Feuil1!D724,\"SAISIR TEXTE\"))","v":"soldé"}]
["L:\\2. FINANCES\\2.1 COMPTABILITE\\2.1.7 Bons de Commande\\Bons de commande 2021\\",null,null,null,null,null,null,null,null,null,null,0,{"$f":"IF(L722<=0,Feuil1!$D$4,IF(H722=Feuil1!$F$3,Feuil1!D725,\"SAISIR TEXTE\"))","v":"soldé"}]
["L:\\2. FINANCES\\2.1 COMPTABILITE\\2.1.7 Bons de Commande\\Bons de commande 2021\\",null,null,null,null,null,null,null,null,null,null,0,{"$f":"IF(L723<=0,Feuil1!$D$4,IF(H723=Feuil1!$F$3,Feuil1!D726,\"SAISIR TEXTE\"))","v":"soldé"}]
["L:\\2. FINANCES\\2.1 COMPTABILITE\\2.1.7 Bons de Commande\\Bons de commande 2021\\",null,null,null,null,null,null,null,null,null,null,0,{"$f":"IF(L724<=0,Feuil1!$D$4,IF(H724=Feuil1!$F$3,Feuil1!D727,\"SAISIR TEXTE\"))","v":"soldé"}]
["L:\\2. FINANCES\\2.1 COMPTABILITE\\2.1.7 Bons de Commande\\Bons de commande 2021\\",null,null,null,null,null,null,null,null,null,null,0,{"$f":"IF(L725<=0,Feuil1!$D$4,IF(H725=Feuil1!$F$3,Feuil1!D728,\"SAISIR TEXTE\"))","v":"soldé"}]
["L:\\2. FINANCES\\2.1 COMPTABILITE\\2.1.7 Bons de Commande\\Bons de commande 2021\\",null,null,null,null,null,null,null,null,null,null,0,{"$f":"IF(L726<=0,Feuil1!$D$4,IF(H726=Feuil1!$F$3,Feuil1!D729,\"SAISIR TEXTE\"))","v":"soldé"}]
["L:\\2. FINANCES\\2.1 COMPTABILITE\\2.1.7 Bons de Commande\\Bons de commande 2021\\",null,null,null,null,null,null,null,null,null,null,0,{"$f":"IF(L727<=0,Feuil1!$D$4,IF(H727=Feuil1!$F$3,Feuil1!D730,\"SAISIR TEXTE\"))","v":"soldé"}]
["L:\\2. FINANCES\\2.1 COMPTABILITE\\2.1.7 Bons de Commande\\Bons de commande 2021\\",null,null,null,null,null,null,null,null,null,null,0,{"$f":"IF(L728<=0,Feuil1!$D$4,IF(H728=Feuil1!$F$3,Feuil1!D731,\"SAISIR TEXTE\"))","v":"soldé"}]
["L:\\2. FINANCES\\2.1 COMPTABILITE\\2.1.7 Bons de Commande\\Bons de commande 2021\\",null,null,null,null,null,null,null,null,null,null,0,{"$f":"IF(L729<=0,Feuil1!$D$4,IF(H729=Feuil1!$F$3,Feuil1!D732,\"SAISIR TEXTE\"))","v":"soldé"}]
["L:\\2. FINANCES\\2.1 COMPTABILITE\\2.1.7 Bons de Commande\\Bons de commande 2021\\",null,null,null,null,null,null,null,null,null,null,0,{"$f":"IF(L730<=0,Feuil1!$D$4,IF(H730=Feuil1!$F$3,Feuil1!D733,\"SAISIR TEXTE\"))","v":"soldé"}]
["L:\\2. FINANCES\\2.1 COMPTABILITE\\2.1.7 Bons de Commande\\Bons de commande 2021\\",null,null,null,null,null,null,null,null,null,null,0,{"$f":"IF(L731<=0,Feuil1!$D$4,IF(H731=Feuil1!$F$3,Feuil1!D734,\"SAISIR TEXTE\"))","v":"soldé"}]
["L:\\2. FINANCES\\2.1 COMPTABILITE\\2.1.7 Bons de Commande\\Bons de commande 2021\\",null,null,null,null,null,null,null,null,null,null,0,{"$f":"IF(L732<=0,Feuil1!$D$4,IF(H732=Feuil1!$F$3,Feuil1!D735,\"SAISIR TEXTE\"))","v":"soldé"}]
["L:\\2. FINANCES\\2.1 COMPTABILITE\\2.1.7 Bons de Commande\\Bons de commande 2021\\",null,null,null,null,null,null,null,null,null,null,0,{"$f":"IF(L733<=0,Feuil1!$D$4,IF(H733=Feuil1!$F$3,Feuil1!D736,\"SAISIR TEXTE\"))","v":"soldé"}]
["L:\\2. FINANCES\\2.1 COMPTABILITE\\2.1.7 Bons de Commande\\Bons de commande 2021\\",null,null,null,null,null,null,null,null,null,null,0,{"$f":"IF(L734<=0,Feuil1!$D$4,IF(H734=Feuil1!$F$3,Feuil1!D737,\"SAISIR TEXTE\"))","v":"soldé"}]
["L:\\2. FINANCES\\2.1 COMPTABILITE\\2.1.7 Bons de Commande\\Bons de commande 2021\\",null,null,null,null,null,null,null,null,null,null,0,{"$f":"IF(L735<=0,Feuil1!$D$4,IF(H735=Feuil1!$F$3,Feuil1!D738,\"SAISIR TEXTE\"))","v":"soldé"}]
["L:\\2. FINANCES\\2.1 COMPTABILITE\\2.1.7 Bons de Commande\\Bons de commande 2021\\",null,null,null,null,null,null,null,null,null,null,0,{"$f":"IF(L736<=0,Feuil1!$D$4,IF(H736=Feuil1!$F$3,Feuil1!D739,\"SAISIR TEXTE\"))","v":"soldé"}]
["L:\\2. FINANCES\\2.1 COMPTABILITE\\2.1.7 Bons de Commande\\Bons de commande 2021\\",null,null,null,null,null,null,null,null,null,null,0,{"$f":"IF(L737<=0,Feuil1!$D$4,IF(H737=Feuil1!$F$3,Feuil1!D740,\"SAISIR TEXTE\"))","v":"soldé"}]
["L:\\2. FINANCES\\2.1 COMPTABILITE\\2.1.7 Bons de Commande\\Bons de commande 2021\\",null,null,null,null,null,null,null,null,null,null,0,{"$f":"IF(L738<=0,Feuil1!$D$4,IF(H738=Feuil1!$F$3,Feuil1!D741,\"SAISIR TEXTE\"))","v":"soldé"}]
["L:\\2. FINANCES\\2.1 COMPTABILITE\\2.1.7 Bons de Commande\\Bons de commande 2021\\",null,null,null,null,null,null,null,null,null,null,0,{"$f":"IF(L739<=0,Feuil1!$D$4,IF(H739=Feuil1!$F$3,Feuil1!D742,\"SAISIR TEXTE\"))","v":"soldé"}]
["L:\\2. FINANCES\\2.1 COMPTABILITE\\2.1.7 Bons de Commande\\Bons de commande 2021\\",null,null,null,null,null,null,null,null,null,null,0,{"$f":"IF(L740<=0,Feuil1!$D$4,IF(H740=Feuil1!$F$3,Feuil1!D743,\"SAISIR TEXTE\"))","v":"soldé"}]
["L:\\2. FINANCES\\2.1 COMPTABILITE\\2.1.7 Bons de Commande\\Bons de commande 2021\\",null,null,null,null,null,null,null,null,null,null,0,{"$f":"IF(L741<=0,Feuil1!$D$4,IF(H741=Feuil1!$F$3,Feuil1!D744,\"SAISIR TEXTE\"))","v":"soldé"}]
["L:\\2. FINANCES\\2.1 COMPTABILITE\\2.1.7 Bons de Commande\\Bons de commande 2021\\",null,null,null,null,null,null,null,null,null,null,0,{"$f":"IF(L742<=0,Feuil1!$D$4,IF(H742=Feuil1!$F$3,Feuil1!D745,\"SAISIR TEXTE\"))","v":"soldé"}]
["L:\\2. FINANCES\\2.1 COMPTABILITE\\2.1.7 Bons de Commande\\Bons de commande 2021\\",null,null,null,null,null,null,null,null,null,null,0,{"$f":"IF(L743<=0,Feuil1!$D$4,IF(H743=Feuil1!$F$3,Feuil1!D746,\"SAISIR TEXTE\"))","v":"soldé"}]
["L:\\2. FINANCES\\2.1 COMPTABILITE\\2.1.7 Bons de Commande\\Bons de commande 2021\\",null,null,null,null,null,null,null,null,null,null,0,{"$f":"IF(L744<=0,Feuil1!$D$4,IF(H744=Feuil1!$F$3,Feuil1!D747,\"SAISIR TEXTE\"))","v":"soldé"}]
["L:\\2. FINANCES\\2.1 COMPTABILITE\\2.1.7 Bons de Commande\\Bons de commande 2021\\",null,null,null,null,null,null,null,null,null,null,0,{"$f":"IF(L745<=0,Feuil1!$D$4,IF(H745=Feuil1!$F$3,Feuil1!D748,\"SAISIR TEXTE\"))","v":"soldé"}]
["L:\\2. FINANCES\\2.1 COMPTABILITE\\2.1.7 Bons de Commande\\Bons de commande 2021\\",null,null,null,null,null,null,null,null,null,null,0,{"$f":"IF(L746<=0,Feuil1!$D$4,IF(H746=Feuil1!$F$3,Feuil1!D749,\"SAISIR TEXTE\"))","v":"soldé"}]
["L:\\2. FINANCES\\2.1 COMPTABILITE\\2.1.7 Bons de Commande\\Bons de commande 2021\\",null,null,null,null,null,null,null,null,null,null,0,{"$f":"IF(L747<=0,Feuil1!$D$4,IF(H747=Feuil1!$F$3,Feuil1!D750,\"SAISIR TEXTE\"))","v":"soldé"}]
["L:\\2. FINANCES\\2.1 COMPTABILITE\\2.1.7 Bons de Commande\\Bons de commande 2021\\",null,null,null,null,null,null,null,null,null,null,0,{"$f":"IF(L748<=0,Feuil1!$D$4,IF(H748=Feuil1!$F$3,Feuil1!D751,\"SAISIR TEXTE\"))","v":"soldé"}]
["L:\\2. FINANCES\\2.1 COMPTABILITE\\2.1.7 Bons de Commande\\Bons de commande 2021\\",null,null,null,null,null,null,null,null,null,null,0,{"$f":"IF(L749<=0,Feuil1!$D$4,IF(H749=Feuil1!$F$3,Feuil1!D752,\"SAISIR TEXTE\"))","v":"soldé"}]
["L:\\2. FINANCES\\2.1 COMPTABILITE\\2.1.7 Bons de Commande\\Bons de commande 2021\\",null,null,null,null,null,null,null,null,null,null,0,{"$f":"IF(L750<=0,Feuil1!$D$4,IF(H750=Feuil1!$F$3,Feuil1!D753,\"SAISIR TEXTE\"))","v":"soldé"}]
["L:\\2. FINANCES\\2.1 COMPTABILITE\\2.1.7 Bons de Commande\\Bons de commande 2021\\",null,null,null,null,null,null,null,null,null,null,0,{"$f":"IF(L751<=0,Feuil1!$D$4,IF(H751=Feuil1!$F$3,Feuil1!D754,\"SAISIR TEXTE\"))","v":"soldé"}]
["L:\\2. FINANCES\\2.1 COMPTABILITE\\2.1.7 Bons de Commande\\Bons de commande 2021\\",null,null,null,null,null,null,null,null,null,null,0,{"$f":"IF(L752<=0,Feuil1!$D$4,IF(H752=Feuil1!$F$3,Feuil1!D755,\"SAISIR TEXTE\"))","v":"soldé"}]
["L:\\2. FINANCES\\2.1 COMPTABILITE\\2.1.7 Bons de Commande\\Bons de commande 2021\\",null,null,null,null,null,null,null,null,null,null,0,{"$f":"IF(L753<=0,Feuil1!$D$4,IF(H753=Feuil1!$F$3,Feuil1!D756,\"SAISIR TEXTE\"))","v":"soldé"}]
["L:\\2. FINANCES\\2.1 COMPTABILITE\\2.1.7 Bons de Commande\\Bons de commande 2021\\",null,null,null,null,null,null,null,null,null,null,0,{"$f":"IF(L754<=0,Feuil1!$D$4,IF(H754=Feuil1!$F$3,Feuil1!D757,\"SAISIR TEXTE\"))","v":"soldé"}]
["L:\\2. FINANCES\\2.1 COMPTABILITE\\2.1.7 Bons de Commande\\Bons de commande 2021\\",null,null,null,null,null,null,null,null,null,null,0,{"$f":"IF(L755<=0,Feuil1!$D$4,IF(H755=Feuil1!$F$3,Feuil1!D758,\"SAISIR TEXTE\"))","v":"soldé"}]
["L:\\2. FINANCES\\2.1 COMPTABILITE\\2.1.7 Bons de Commande\\Bons de commande 2021\\",null,null,null,null,null,null,null,null,null,null,0,{"$f":"IF(L756<=0,Feuil1!$D$4,IF(H756=Feuil1!$F$3,Feuil1!D759,\"SAISIR TEXTE\"))","v":"soldé"}]
["L:\\2. FINANCES\\2.1 COMPTABILITE\\2.1.7 Bons de Commande\\Bons de commande 2021\\",null,null,null,null,null,null,null,null,null,null,0,{"$f":"IF(L757<=0,Feuil1!$D$4,IF(H757=Feuil1!$F$3,Feuil1!D760,\"SAISIR TEXTE\"))","v":"soldé"}]
["L:\\2. FINANCES\\2.1 COMPTABILITE\\2.1.7 Bons de Commande\\Bons de commande 2021\\",null,null,null,null,null,null,null,null,null,null,0,{"$f":"IF(L758<=0,Feuil1!$D$4,IF(H758=Feuil1!$F$3,Feuil1!D761,\"SAISIR TEXTE\"))","v":"soldé"}]
["L:\\2. FINANCES\\2.1 COMPTABILITE\\2.1.7 Bons de Commande\\Bons de commande 2021\\",null,null,null,null,null,null,null,null,null,null,0,{"$f":"IF(L759<=0,Feuil1!$D$4,IF(H759=Feuil1!$F$3,Feuil1!D762,\"SAISIR TEXTE\"))","v":"soldé"}]
["L:\\2. FINANCES\\2.1 COMPTABILITE\\2.1.7 Bons de Commande\\Bons de commande 2021\\",null,null,null,null,null,null,null,null,null,null,0,{"$f":"IF(L760<=0,Feuil1!$D$4,IF(H760=Feuil1!$F$3,Feuil1!D763,\"SAISIR TEXTE\"))","v":"soldé"}]
["L:\\2. FINANCES\\2.1 COMPTABILITE\\2.1.7 Bons de Commande\\Bons de commande 2021\\",null,null,null,null,null,null,null,null,null,null,0,{"$f":"IF(L761<=0,Feuil1!$D$4,IF(H761=Feuil1!$F$3,Feuil1!D764,\"SAISIR TEXTE\"))","v":"soldé"}]
["L:\\2. FINANCES\\2.1 COMPTABILITE\\2.1.7 Bons de Commande\\Bons de commande 2021\\",null,null,null,null,null,null,null,null,null,null,0,{"$f":"IF(L762<=0,Feuil1!$D$4,IF(H762=Feuil1!$F$3,Feuil1!D765,\"SAISIR TEXTE\"))","v":"soldé"}]
["L:\\2. FINANCES\\2.1 COMPTABILITE\\2.1.7 Bons de Commande\\Bons de commande 2021\\",null,null,null,null,null,null,null,null,null,null,0,{"$f":"IF(L763<=0,Feuil1!$D$4,IF(H763=Feuil1!$F$3,Feuil1!D766,\"SAISIR TEXTE\"))","v":"soldé"}]
["L:\\2. FINANCES\\2.1 COMPTABILITE\\2.1.7 Bons de Commande\\Bons de commande 2021\\",null,null,null,null,null,null,null,null,null,null,0,{"$f":"IF(L764<=0,Feuil1!$D$4,IF(H764=Feuil1!$F$3,Feuil1!D767,\"SAISIR TEXTE\"))","v":"soldé"}]
["L:\\2. FINANCES\\2.1 COMPTABILITE\\2.1.7 Bons de Commande\\Bons de commande 2021\\",null,null,null,null,null,null,null,null,null,null,0,{"$f":"IF(L765<=0,Feuil1!$D$4,IF(H765=Feuil1!$F$3,Feuil1!D768,\"SAISIR TEXTE\"))","v":"soldé"}]
["L:\\2. FINANCES\\2.1 COMPTABILITE\\2.1.7 Bons de Commande\\Bons de commande 2021\\",null,null,null,null,null,null,null,null,null,null,0,{"$f":"IF(L766<=0,Feuil1!$D$4,IF(H766=Feuil1!$F$3,Feuil1!D769,\"SAISIR TEXTE\"))","v":"soldé"}]
["L:\\2. FINANCES\\2.1 COMPTABILITE\\2.1.7 Bons de Commande\\Bons de commande 2021\\",null,null,null,null,null,null,null,null,null,null,0,{"$f":"IF(L767<=0,Feuil1!$D$4,IF(H767=Feuil1!$F$3,Feuil1!D770,\"SAISIR TEXTE\"))","v":"soldé"}]
["L:\\2. FINANCES\\2.1 COMPTABILITE\\2.1.7 Bons de Commande\\Bons de commande 2021\\",null,null,null,null,null,null,null,null,null,null,0,{"$f":"IF(L768<=0,Feuil1!$D$4,IF(H768=Feuil1!$F$3,Feuil1!D771,\"SAISIR TEXTE\"))","v":"soldé"}]
["L:\\2. FINANCES\\2.1 COMPTABILITE\\2.1.7 Bons de Commande\\Bons de commande 2021\\",null,null,null,null,null,null,null,null,null,null,0,{"$f":"IF(L769<=0,Feuil1!$D$4,IF(H769=Feuil1!$F$3,Feuil1!D772,\"SAISIR TEXTE\"))","v":"soldé"}]
["L:\\2. FINANCES\\2.1 COMPTABILITE\\2.1.7 Bons de Commande\\Bons de commande 2021\\",null,null,null,null,null,null,null,null,null,null,0,{"$f":"IF(L770<=0,Feuil1!$D$4,IF(H770=Feuil1!$F$3,Feuil1!D773,\"SAISIR TEXTE\"))","v":"soldé"}]
["L:\\2. FINANCES\\2.1 COMPTABILITE\\2.1.7 Bons de Commande\\Bons de commande 2021\\",null,null,null,null,null,null,null,null,null,null,{"$f":"F771-K771","v":0},{"$f":"IF(L771<=0,Feuil1!$D$4,IF(H771=Feuil1!$F$3,Feuil1!D774,\"SAISIR TEXTE\"))","v":"soldé"}]
["L:\\2. FINANCES\\2.1 COMPTABILITE\\2.1.7 Bons de Commande\\Bons de commande 2021\\",null,null,null,null,null,null,null,null,null,null,0,{"$f":"IF(L772<=0,Feuil1!$D$4,IF(H772=Feuil1!$F$3,Feuil1!D775,\"SAISIR TEXTE\"))","v":"soldé"}]
["L:\\2. FINANCES\\2.1 COMPTABILITE\\2.1.7 Bons de Commande\\Bons de commande 2021\\",null,null,null,null,null,null,null,null,null,null,0,{"$f":"IF(L773<=0,Feuil1!$D$4,IF(H773=Feuil1!$F$3,Feuil1!D776,\"SAISIR TEXTE\"))","v":"soldé"}]
["L:\\2. FINANCES\\2.1 COMPTABILITE\\2.1.7 Bons de Commande\\Bons de commande 2021\\",null,null,null,null,null,null,null,null,null,null,0,{"$f":"IF(L774<=0,Feuil1!$D$4,IF(H774=Feuil1!$F$3,Feuil1!D777,\"SAISIR TEXTE\"))","v":"soldé"}]
["L:\\2. FINANCES\\2.1 COMPTABILITE\\2.1.7 Bons de Commande\\Bons de commande 2021\\",null,null,null,null,null,null,null,null,null,null,0,{"$f":"IF(L775<=0,Feuil1!$D$4,IF(H775=Feuil1!$F$3,Feuil1!D778,\"SAISIR TEXTE\"))","v":"soldé"}]
["L:\\2. FINANCES\\2.1 COMPTABILITE\\2.1.7 Bons de Commande\\Bons de commande 2021\\",null,null,null,null,null,null,null,null,null,null,0,{"$f":"IF(L776<=0,Feuil1!$D$4,IF(H776=Feuil1!$F$3,Feuil1!D779,\"SAISIR TEXTE\"))","v":"soldé"}]
["L:\\2. FINANCES\\2.1 COMPTABILITE\\2.1.7 Bons de Commande\\Bons de commande 2021\\",null,null,null,null,null,null,null,null,null,null,0,{"$f":"IF(L777<=0,Feuil1!$D$4,IF(H777=Feuil1!$F$3,Feuil1!D780,\"SAISIR TEXTE\"))","v":"soldé"}]
["L:\\2. FINANCES\\2.1 COMPTABILITE\\2.1.7 Bons de Commande\\Bons de commande 2021\\",null,null,null,null,null,null,null,null,null,null,0,{"$f":"IF(L778<=0,Feuil1!$D$4,IF(H778=Feuil1!$F$3,Feuil1!D781,\"SAISIR TEXTE\"))","v":"soldé"}]
["L:\\2. FINANCES\\2.1 COMPTABILITE\\2.1.7 Bons de Commande\\Bons de commande 2021\\",null,null,null,null,null,null,null,null,null,null,0,{"$f":"IF(L779<=0,Feuil1!$D$4,IF(H779=Feuil1!$F$3,Feuil1!D782,\"SAISIR TEXTE\"))","v":"soldé"}]
["L:\\2. FINANCES\\2.1 COMPTABILITE\\2.1.7 Bons de Commande\\Bons de commande 2021\\",null,null,null,null,null,null,null,null,null,null,0,{"$f":"IF(L780<=0,Feuil1!$D$4,IF(H780=Feuil1!$F$3,Feuil1!D783,\"SAISIR TEXTE\"))","v":"soldé"}]
["L:\\2. FINANCES\\2.1 COMPTABILITE\\2.1.7 Bons de Commande\\Bons de commande 2021\\",null,null,null,null,null,null,null,null,null,null,0,{"$f":"IF(L781<=0,Feuil1!$D$4,IF(H781=Feuil1!$F$3,Feuil1!D784,\"SAISIR TEXTE\"))","v":"soldé"}]
["L:\\2. FINANCES\\2.1 COMPTABILITE\\2.1.7 Bons de Commande\\Bons de commande 2021\\",null,null,null,null,null,null,null,null,null,null,0,{"$f":"IF(L782<=0,Feuil1!$D$4,IF(H782=Feuil1!$F$3,Feuil1!D785,\"SAISIR TEXTE\"))","v":"soldé"}]
["L:\\2. FINANCES\\2.1 COMPTABILITE\\2.1.7 Bons de Commande\\Bons de commande 2021\\",null,null,null,null,null,null,null,null,null,null,0,{"$f":"IF(L783<=0,Feuil1!$D$4,IF(H783=Feuil1!$F$3,Feuil1!D786,\"SAISIR TEXTE\"))","v":"soldé"}]
["L:\\2. FINANCES\\2.1 COMPTABILITE\\2.1.7 Bons de Commande\\Bons de commande 2021\\",null,null,null,null,null,null,null,null,null,null,0,{"$f":"IF(L784<=0,Feuil1!$D$4,IF(H784=Feuil1!$F$3,Feuil1!D787,\"SAISIR TEXTE\"))","v":"soldé"}]
["L:\\2. FINANCES\\2.1 COMPTABILITE\\2.1.7 Bons de Commande\\Bons de commande 2021\\",null,null,null,null,null,null,null,null,null,null,0,{"$f":"IF(L785<=0,Feuil1!$D$4,IF(H785=Feuil1!$F$3,Feuil1!D788,\"SAISIR TEXTE\"))","v":"soldé"}]
["L:\\2. FINANCES\\2.1 COMPTABILITE\\2.1.7 Bons de Commande\\Bons de commande 2021\\",null,null,null,null,null,null,null,null,null,null,0,{"$f":"IF(L786<=0,Feuil1!$D$4,IF(H786=Feuil1!$F$3,Feuil1!D789,\"SAISIR TEXTE\"))","v":"soldé"}]
["L:\\2. FINANCES\\2.1 COMPTABILITE\\2.1.7 Bons de Commande\\Bons de commande 2021\\",null,null,null,null,null,null,null,null,null,null,0,{"$f":"IF(L787<=0,Feuil1!$D$4,IF(H787=Feuil1!$F$3,Feuil1!D790,\"SAISIR TEXTE\"))","v":"soldé"}]
["L:\\2. FINANCES\\2.1 COMPTABILITE\\2.1.7 Bons de Commande\\Bons de commande 2021\\",null,null,null,null,null,null,null,null,null,null,0,{"$f":"IF(L788<=0,Feuil1!$D$4,IF(H788=Feuil1!$F$3,Feuil1!D791,\"SAISIR TEXTE\"))","v":"soldé"}]
["L:\\2. FINANCES\\2.1 COMPTABILITE\\2.1.7 Bons de Commande\\Bons de commande 2021\\",null,null,null,null,null,null,null,null,null,null,0,{"$f":"IF(L789<=0,Feuil1!$D$4,IF(H789=Feuil1!$F$3,Feuil1!D792,\"SAISIR TEXTE\"))","v":"soldé"}]
["L:\\2. FINANCES\\2.1 COMPTABILITE\\2.1.7 Bons de Commande\\Bons de commande 2021\\",null,null,null,null,null,null,null,null,null,null,0,{"$f":"IF(L790<=0,Feuil1!$D$4,IF(H790=Feuil1!$F$3,Feuil1!D793,\"SAISIR TEXTE\"))","v":"soldé"}]
["L:\\2. FINANCES\\2.1 COMPTABILITE\\2.1.7 Bons de Commande\\Bons de commande 2021\\",null,null,null,null,null,null,null,null,null,null,0,{"$f":"IF(L791<=0,Feuil1!$D$4,IF(H791=Feuil1!$F$3,Feuil1!D794,\"SAISIR TEXTE\"))","v":"soldé"}]
["L:\\2. FINANCES\\2.1 COMPTABILITE\\2.1.7 Bons de Commande\\Bons de commande 2021\\",null,null,null,null,null,null,null,null,null,null,0,{"$f":"IF(L792<=0,Feuil1!$D$4,IF(H792=Feuil1!$F$3,Feuil1!D795,\"SAISIR TEXTE\"))","v":"soldé"}]
["L:\\2. FINANCES\\2.1 COMPTABILITE\\2.1.7 Bons de Commande\\Bons de commande 2021\\",null,null,null,null,null,null,null,null,null,null,0,{"$f":"IF(L793<=0,Feuil1!$D$4,IF(H793=Feuil1!$F$3,Feuil1!D796,\"SAISIR TEXTE\"))","v":"soldé"}]
["L:\\2. FINANCES\\2.1 COMPTABILITE\\2.1.7 Bons de Commande\\Bons de commande 2021\\",null,null,null,null,null,null,null,null,null,null,0,{"$f":"IF(L794<=0,Feuil1!$D$4,IF(H794=Feuil1!$F$3,Feuil1!D797,\"SAISIR TEXTE\"))","v":"soldé"}]
["L:\\2. FINANCES\\2.1 COMPTABILITE\\2.1.7 Bons de Commande\\Bons de commande 2021\\",null,null,null,null,null,null,null,null,null,null,0,{"$f":"IF(L795<=0,Feuil1!$D$4,IF(H795=Feuil1!$F$3,Feuil1!D798,\"SAISIR TEXTE\"))","v":"soldé"}]
["L:\\2. FINANCES\\2.1 COMPTABILITE\\2.1.7 Bons de Commande\\Bons de commande 2021\\",null,null,null,null,null,null,null,null,null,null,0,{"$f":"IF(L796<=0,Feuil1!$D$4,IF(H796=Feuil1!$F$3,Feuil1!D799,\"SAISIR TEXTE\"))","v":"soldé"}]
["L:\\2. FINANCES\\2.1 COMPTABILITE\\2.1.7 Bons de Commande\\Bons de commande 2021\\",null,null,null,null,null,null,null,null,null,null,0,{"$f":"IF(L797<=0,Feuil1!$D$4,IF(H797=Feuil1!$F$3,Feuil1!D800,\"SAISIR TEXTE\"))","v":"soldé"}]
["L:\\2. FINANCES\\2.1 COMPTABILITE\\2.1.7 Bons de Commande\\Bons de commande 2021\\",null,null,null,null,null,null,null,null,null,null,0,{"$f":"IF(L798<=0,Feuil1!$D$4,IF(H798=Feuil1!$F$3,Feuil1!D801,\"SAISIR TEXTE\"))","v":"soldé"}]
["L:\\2. FINANCES\\2.1 COMPTABILITE\\2.1.7 Bons de Commande\\Bons de commande 2021\\",null,null,null,null,null,null,null,null,null,null,0,{"$f":"IF(L799<=0,Feuil1!$D$4,IF(H799=Feuil1!$F$3,Feuil1!D802,\"SAISIR TEXTE\"))","v":"soldé"}]
["L:\\2. FINANCES\\2.1 COMPTABILITE\\2.1.7 Bons de Commande\\Bons de commande 2021\\",null,null,null,null,null,null,null,null,null,null,0,{"$f":"IF(L800<=0,Feuil1!$D$4,IF(H800=Feuil1!$F$3,Feuil1!D803,\"SAISIR TEXTE\"))","v":"soldé"}]
["L:\\2. FINANCES\\2.1 COMPTABILITE\\2.1.7 Bons de Commande\\Bons de commande 2021\\",null,null,null,null,null,null,null,null,null,null,0,{"$f":"IF(L801<=0,Feuil1!$D$4,IF(H801=Feuil1!$F$3,Feuil1!D804,\"SAISIR TEXTE\"))","v":"soldé"}]
["L:\\2. FINANCES\\2.1 COMPTABILITE\\2.1.7 Bons de Commande\\Bons de commande 2021\\",null,null,null,null,null,null,null,null,null,null,0,{"$f":"IF(L802<=0,Feuil1!$D$4,IF(H802=Feuil1!$F$3,Feuil1!D805,\"SAISIR TEXTE\"))","v":"soldé"}]
["L:\\2. FINANCES\\2.1 COMPTABILITE\\2.1.7 Bons de Commande\\Bons de commande 2021\\",null,null,null,null,null,null,null,null,null,null,0,{"$f":"IF(L803<=0,Feuil1!$D$4,IF(H803=Feuil1!$F$3,Feuil1!D806,\"SAISIR TEXTE\"))","v":"soldé"}]
["L:\\2. FINANCES\\2.1 COMPTABILITE\\2.1.7 Bons de Commande\\Bons de commande 2021\\",null,null,null,null,null,null,null,null,null,null,0,{"$f":"IF(L804<=0,Feuil1!$D$4,IF(H804=Feuil1!$F$3,Feuil1!D807,\"SAISIR TEXTE\"))","v":"soldé"}]
["L:\\2. FINANCES\\2.1 COMPTABILITE\\2.1.7 Bons de Commande\\Bons de commande 2021\\",null,null,null,null,null,null,null,null,null,null,0,{"$f":"IF(L805<=0,Feuil1!$D$4,IF(H805=Feuil1!$F$3,Feuil1!D808,\"SAISIR TEXTE\"))","v":"soldé"}]
["L:\\2. FINANCES\\2.1 COMPTABILITE\\2.1.7 Bons de Commande\\Bons de commande 2021\\",null,null,null,null,null,null,null,null,null,null,0,{"$f":"IF(L806<=0,Feuil1!$D$4,IF(H806=Feuil1!$F$3,Feuil1!D809,\"SAISIR TEXTE\"))","v":"soldé"}]
["L:\\2. FINANCES\\2.1 COMPTABILITE\\2.1.7 Bons de Commande\\Bons de commande 2021\\",null,null,null,null,null,null,null,null,null,null,0,{"$f":"IF(L807<=0,Feuil1!$D$4,IF(H807=Feuil1!$F$3,Feuil1!D810,\"SAISIR TEXTE\"))","v":"soldé"}]
["L:\\2. FINANCES\\2.1 COMPTABILITE\\2.1.7 Bons de Commande\\Bons de commande 2021\\",null,null,null,null,null,null,null,null,null,null,0,{"$f":"IF(L808<=0,Feuil1!$D$4,IF(H808=Feuil1!$F$3,Feuil1!D811,\"SAISIR TEXTE\"))","v":"soldé"}]
["L:\\2. FINANCES\\2.1 COMPTABILITE\\2.1.7 Bons de Commande\\Bons de commande 2021\\",null,null,null,null,null,null,null,null,null,null,0,{"$f":"IF(L809<=0,Feuil1!$D$4,IF(H809=Feuil1!$F$3,Feuil1!D812,\"SAISIR TEXTE\"))","v":"soldé"}]
["L:\\2. FINANCES\\2.1 COMPTABILITE\\2.1.7 Bons de Commande\\Bons de commande 2021\\",null,null,null,null,null,null,null,null,null,null,0,{"$f":"IF(L810<=0,Feuil1!$D$4,IF(H810=Feuil1!$F$3,Feuil1!D813,\"SAISIR TEXTE\"))","v":"soldé"}]
["L:\\2. FINANCES\\2.1 COMPTABILITE\\2.1.7 Bons de Commande\\Bons de commande 2021\\",null,null,null,null,null,null,null,null,null,null,0,{"$f":"IF(L811<=0,Feuil1!$D$4,IF(H811=Feuil1!$F$3,Feuil1!D814,\"SAISIR TEXTE\"))","v":"soldé"}]
["L:\\2. FINANCES\\2.1 COMPTABILITE\\2.1.7 Bons de Commande\\Bons de commande 2021\\",null,null,null,null,null,null,null,null,null,null,0,{"$f":"IF(L812<=0,Feuil1!$D$4,IF(H812=Feuil1!$F$3,Feuil1!D815,\"SAISIR TEXTE\"))","v":"soldé"}]
["L:\\2. FINANCES\\2.1 COMPTABILITE\\2.1.7 Bons de Commande\\Bons de commande 2021\\",null,null,null,null,null,null,null,null,null,null,0,{"$f":"IF(L813<=0,Feuil1!$D$4,IF(H813=Feuil1!$F$3,Feuil1!D816,\"SAISIR TEXTE\"))","v":"soldé"}]
["L:\\2. FINANCES\\2.1 COMPTABILITE\\2.1.7 Bons de Commande\\Bons de commande 2021\\",null,null,null,null,null,null,null,null,null,null,0,{"$f":"IF(L814<=0,Feuil1!$D$4,IF(H814=Feuil1!$F$3,Feuil1!D817,\"SAISIR TEXTE\"))","v":"soldé"}]
["L:\\2. FINANCES\\2.1 COMPTABILITE\\2.1.7 Bons de Commande\\Bons de commande 2021\\",null,null,null,null,null,null,null,null,null,null,0,{"$f":"IF(L815<=0,Feuil1!$D$4,IF(H815=Feuil1!$F$3,Feuil1!D818,\"SAISIR TEXTE\"))","v":"soldé"}]
["L:\\2. FINANCES\\2.1 COMPTABILITE\\2.1.7 Bons de Commande\\Bons de commande 2021\\",null,null,null,null,null,null,null,null,null,null,0,{"$f":"IF(L816<=0,Feuil1!$D$4,IF(H816=Feuil1!$F$3,Feuil1!D819,\"SAISIR TEXTE\"))","v":"soldé"}]
["L:\\2. FINANCES\\2.1 COMPTABILITE\\2.1.7 Bons de Commande\\Bons de commande 2021\\",null,null,null,null,null,null,null,null,null,null,0,{"$f":"IF(L817<=0,Feuil1!$D$4,IF(H817=Feuil1!$F$3,Feuil1!D820,\"SAISIR TEXTE\"))","v":"soldé"}]
["L:\\2. FINANCES\\2.1 COMPTABILITE\\2.1.7 Bons de Commande\\Bons de commande 2021\\",null,null,null,null,null,null,null,null,null,null,0,{"$f":"IF(L818<=0,Feuil1!$D$4,IF(H818=Feuil1!$F$3,Feuil1!D821,\"SAISIR TEXTE\"))","v":"soldé"}]
["L:\\2. FINANCES\\2.1 COMPTABILITE\\2.1.7 Bons de Commande\\Bons de commande 2021\\",null,null,null,null,null,null,null,null,null,null,0,{"$f":"IF(L819<=0,Feuil1!$D$4,IF(H819=Feuil1!$F$3,Feuil1!D822,\"SAISIR TEXTE\"))","v":"soldé"}]
["L:\\2. FINANCES\\2.1 COMPTABILITE\\2.1.7 Bons de Commande\\Bons de commande 2021\\",null,null,null,null,null,null,null,null,null,null,0,{"$f":"IF(L820<=0,Feuil1!$D$4,IF(H820=Feuil1!$F$3,Feuil1!D823,\"SAISIR TEXTE\"))","v":"soldé"}]
["L:\\2. FINANCES\\2.1 COMPTABILITE\\2.1.7 Bons de Commande\\Bons de commande 2021\\",null,null,null,null,null,null,null,null,null,null,0,{"$f":"IF(L821<=0,Feuil1!$D$4,IF(H821=Feuil1!$F$3,Feuil1!D824,\"SAISIR TEXTE\"))","v":"soldé"}]
["L:\\2. FINANCES\\2.1 COMPTABILITE\\2.1.7 Bons de Commande\\Bons de commande 2021\\",null,null,null,null,null,null,null,null,null,null,0,{"$f":"IF(L822<=0,Feuil1!$D$4,IF(H822=Feuil1!$F$3,Feuil1!D825,\"SAISIR TEXTE\"))","v":"soldé"}]
["L:\\2. FINANCES\\2.1 COMPTABILITE\\2.1.7 Bons de Commande\\Bons de commande 2021\\",null,null,null,null,null,null,null,null,null,null,0,{"$f":"IF(L823<=0,Feuil1!$D$4,IF(H823=Feuil1!$F$3,Feuil1!D826,\"SAISIR TEXTE\"))","v":"soldé"}]
["L:\\2. FINANCES\\2.1 COMPTABILITE\\2.1.7 Bons de Commande\\Bons de commande 2021\\",null,null,null,null,null,null,null,null,null,null,0,{"$f":"IF(L824<=0,Feuil1!$D$4,IF(H824=Feuil1!$F$3,Feuil1!D827,\"SAISIR TEXTE\"))","v":"soldé"}]
["L:\\2. FINANCES\\2.1 COMPTABILITE\\2.1.7 Bons de Commande\\Bons de commande 2021\\",null,null,null,null,null,null,null,null,null,null,0,{"$f":"IF(L825<=0,Feuil1!$D$4,IF(H825=Feuil1!$F$3,Feuil1!D828,\"SAISIR TEXTE\"))","v":"soldé"}]
["L:\\2. FINANCES\\2.1 COMPTABILITE\\2.1.7 Bons de Commande\\Bons de commande 2021\\",null,null,null,null,null,null,null,null,null,null,0,{"$f":"IF(L826<=0,Feuil1!$D$4,IF(H826=Feuil1!$F$3,Feuil1!D829,\"SAISIR TEXTE\"))","v":"soldé"}]
["L:\\2. FINANCES\\2.1 COMPTABILITE\\2.1.7 Bons de Commande\\Bons de commande 2021\\",null,null,null,null,null,null,null,null,null,null,0,{"$f":"IF(L827<=0,Feuil1!$D$4,IF(H827=Feuil1!$F$3,Feuil1!D830,\"SAISIR TEXTE\"))","v":"soldé"}]
["L:\\2. FINANCES\\2.1 COMPTABILITE\\2.1.7 Bons de Commande\\Bons de commande 2021\\",null,null,null,null,null,null,null,null,null,null,0,{"$f":"IF(L828<=0,Feuil1!$D$4,IF(H828=Feuil1!$F$3,Feuil1!D831,\"SAISIR TEXTE\"))","v":"soldé"}]
["L:\\2. FINANCES\\2.1 COMPTABILITE\\2.1.7 Bons de Commande\\Bons de commande 2021\\",null,null,null,null,null,null,null,null,null,null,0,{"$f":"IF(L829<=0,Feuil1!$D$4,IF(H829=Feuil1!$F$3,Feuil1!D832,\"SAISIR TEXTE\"))","v":"soldé"}]
["L:\\2. FINANCES\\2.1 COMPTABILITE\\2.1.7 Bons de Commande\\Bons de commande 2021\\",null,null,null,null,null,null,null,null,null,null,0,{"$f":"IF(L830<=0,Feuil1!$D$4,IF(H830=Feuil1!$F$3,Feuil1!D833,\"SAISIR TEXTE\"))","v":"soldé"}]
["L:\\2. FINANCES\\2.1 COMPTABILITE\\2.1.7 Bons de Commande\\Bons de commande 2021\\",null,null,null,null,null,null,null,null,null,null,0,{"$f":"IF(L831<=0,Feuil1!$D$4,IF(H831=Feuil1!$F$3,Feuil1!D834,\"SAISIR TEXTE\"))","v":"soldé"}]
["L:\\2. FINANCES\\2.1 COMPTABILITE\\2.1.7 Bons de Commande\\Bons de commande 2021\\",null,null,null,null,null,null,null,null,null,null,0,{"$f":"IF(L832<=0,Feuil1!$D$4,IF(H832=Feuil1!$F$3,Feuil1!D835,\"SAISIR TEXTE\"))","v":"soldé"}]
["L:\\2. FINANCES\\2.1 COMPTABILITE\\2.1.7 Bons de Commande\\Bons de commande 2021\\",null,null,null,null,null,null,null,null,null,null,0,{"$f":"IF(L833<=0,Feuil1!$D$4,IF(H833=Feuil1!$F$3,Feuil1!D836,\"SAISIR TEXTE\"))","v":"soldé"}]
["L:\\2. FINANCES\\2.1 COMPTABILITE\\2.1.7 Bons de Commande\\Bons de commande 2021\\",null,null,null,null,null,null,null,null,null,null,0,{"$f":"IF(L834<=0,Feuil1!$D$4,IF(H834=Feuil1!$F$3,Feuil1!D837,\"SAISIR TEXTE\"))","v":"soldé"}]
["L:\\2. FINANCES\\2.1 COMPTABILITE\\2.1.7 Bons de Commande\\Bons de commande 2021\\",null,null,null,null,null,null,null,null,null,null,{"$f":"F835-K835","v":0},{"$f":"IF(L835<=0,Feuil1!$D$4,IF(H835=Feuil1!$F$3,Feuil1!D838,\"SAISIR TEXTE\"))","v":"soldé"}]
["L:\\2. FINANCES\\2.1 COMPTABILITE\\2.1.7 Bons de Commande\\Bons de commande 2021\\",null,null,null,null,null,null,null,null,null,null,0,{"$f":"IF(L836<=0,Feuil1!$D$4,IF(H836=Feuil1!$F$3,Feuil1!D839,\"SAISIR TEXTE\"))","v":"soldé"}]
["L:\\2. FINANCES\\2.1 COMPTABILITE\\2.1.7 Bons de Commande\\Bons de commande 2021\\",null,null,null,null,null,null,null,null,null,null,0,{"$f":"IF(L837<=0,Feuil1!$D$4,IF(H837=Feuil1!$F$3,Feuil1!D840,\"SAISIR TEXTE\"))","v":"soldé"}]
["L:\\2. FINANCES\\2.1 COMPTABILITE\\2.1.7 Bons de Commande\\Bons de commande 2021\\",null,null,null,null,null,null,null,null,null,null,0,{"$f":"IF(L838<=0,Feuil1!$D$4,IF(H838=Feuil1!$F$3,Feuil1!D841,\"SAISIR TEXTE\"))","v":"soldé"}]
["L:\\2. FINANCES\\2.1 COMPTABILITE\\2.1.7 Bons de Commande\\Bons de commande 2021\\",null,null,null,null,null,null,null,null,null,null,0,{"$f":"IF(L839<=0,Feuil1!$D$4,IF(H839=Feuil1!$F$3,Feuil1!D842,\"SAISIR TEXTE\"))","v":"soldé"}]
["L:\\2. FINANCES\\2.1 COMPTABILITE\\2.1.7 Bons de Commande\\Bons de commande 2021\\",null,null,null,null,null,null,null,null,null,null,0,{"$f":"IF(L840<=0,Feuil1!$D$4,IF(H840=Feuil1!$F$3,Feuil1!D843,\"SAISIR TEXTE\"))","v":"soldé"}]
["L:\\2. FINANCES\\2.1 COMPTABILITE\\2.1.7 Bons de Commande\\Bons de commande 2021\\",null,null,null,null,null,null,null,null,null,null,0,{"$f":"IF(L841<=0,Feuil1!$D$4,IF(H841=Feuil1!$F$3,Feuil1!D844,\"SAISIR TEXTE\"))","v":"soldé"}]
["L:\\2. FINANCES\\2.1 COMPTABILITE\\2.1.7 Bons de Commande\\Bons de commande 2021\\",null,null,null,null,null,null,null,null,null,null,0,{"$f":"IF(L842<=0,Feuil1!$D$4,IF(H842=Feuil1!$F$3,Feuil1!D845,\"SAISIR TEXTE\"))","v":"soldé"}]
["L:\\2. FINANCES\\2.1 COMPTABILITE\\2.1.7 Bons de Commande\\Bons de commande 2021\\",null,null,null,null,null,null,null,null,null,null,0,{"$f":"IF(L843<=0,Feuil1!$D$4,IF(H843=Feuil1!$F$3,Feuil1!D846,\"SAISIR TEXTE\"))","v":"soldé"}]
["L:\\2. FINANCES\\2.1 COMPTABILITE\\2.1.7 Bons de Commande\\Bons de commande 2021\\",null,null,null,null,null,null,null,null,null,null,0,{"$f":"IF(L844<=0,Feuil1!$D$4,IF(H844=Feuil1!$F$3,Feuil1!D847,\"SAISIR TEXTE\"))","v":"soldé"}]
["L:\\2. FINANCES\\2.1 COMPTABILITE\\2.1.7 Bons de Commande\\Bons de commande 2021\\",null,null,null,null,null,null,null,null,null,null,0,{"$f":"IF(L845<=0,Feuil1!$D$4,IF(H845=Feuil1!$F$3,Feuil1!D848,\"SAISIR TEXTE\"))","v":"soldé"}]
["L:\\2. FINANCES\\2.1 COMPTABILITE\\2.1.7 Bons de Commande\\Bons de commande 2021\\",null,null,null,null,null,null,null,null,null,null,0,{"$f":"IF(L846<=0,Feuil1!$D$4,IF(H846=Feuil1!$F$3,Feuil1!D849,\"SAISIR TEXTE\"))","v":"soldé"}]
["L:\\2. FINANCES\\2.1 COMPTABILITE\\2.1.7 Bons de Commande\\Bons de commande 2021\\",null,null,null,null,null,null,null,null,null,null,0,{"$f":"IF(L847<=0,Feuil1!$D$4,IF(H847=Feuil1!$F$3,Feuil1!D850,\"SAISIR TEXTE\"))","v":"soldé"}]
["L:\\2. FINANCES\\2.1 COMPTABILITE\\2.1.7 Bons de Commande\\Bons de commande 2021\\",null,null,null,null,null,null,null,null,null,null,0,{"$f":"IF(L848<=0,Feuil1!$D$4,IF(H848=Feuil1!$F$3,Feuil1!D851,\"SAISIR TEXTE\"))","v":"soldé"}]
["L:\\2. FINANCES\\2.1 COMPTABILITE\\2.1.7 Bons de Commande\\Bons de commande 2021\\",null,null,null,null,null,null,null,null,null,null,0,{"$f":"IF(L849<=0,Feuil1!$D$4,IF(H849=Feuil1!$F$3,Feuil1!D852,\"SAISIR TEXTE\"))","v":"soldé"}]
["L:\\2. FINANCES\\2.1 COMPTABILITE\\2.1.7 Bons de Commande\\Bons de commande 2021\\",null,null,null,null,null,null,null,null,null,null,0,{"$f":"IF(L850<=0,Feuil1!$D$4,IF(H850=Feuil1!$F$3,Feuil1!D853,\"SAISIR TEXTE\"))","v":"soldé"}]
["L:\\2. FINANCES\\2.1 COMPTABILITE\\2.1.7 Bons de Commande\\Bons de commande 2021\\",null,null,null,null,null,null,null,null,null,null,0,{"$f":"IF(L851<=0,Feuil1!$D$4,IF(H851=Feuil1!$F$3,Feuil1!D854,\"SAISIR TEXTE\"))","v":"soldé"}]
["L:\\2. FINANCES\\2.1 COMPTABILITE\\2.1.7 Bons de Commande\\Bons de commande 2021\\",null,null,null,null,null,null,null,null,null,null,0,{"$f":"IF(L852<=0,Feuil1!$D$4,IF(H852=Feuil1!$F$3,Feuil1!D855,\"SAISIR TEXTE\"))","v":"soldé"}]
["L:\\2. FINANCES\\2.1 COMPTABILITE\\2.1.7 Bons de Commande\\Bons de commande 2021\\",null,null,null,null,null,null,null,null,null,null,0,{"$f":"IF(L853<=0,Feuil1!$D$4,IF(H853=Feuil1!$F$3,Feuil1!D856,\"SAISIR TEXTE\"))","v":"soldé"}]
["L:\\2. FINANCES\\2.1 COMPTABILITE\\2.1.7 Bons de Commande\\Bons de commande 2021\\",null,null,null,null,null,null,null,null,null,null,0,{"$f":"IF(L854<=0,Feuil1!$D$4,IF(H854=Feuil1!$F$3,Feuil1!D857,\"SAISIR TEXTE\"))","v":"soldé"}]
["L:\\2. FINANCES\\2.1 COMPTABILITE\\2.1.7 Bons de Commande\\Bons de commande 2021\\",null,null,null,null,null,null,null,null,null,null,0,{"$f":"IF(L855<=0,Feuil1!$D$4,IF(H855=Feuil1!$F$3,Feuil1!D858,\"SAISIR TEXTE\"))","v":"soldé"}]
["L:\\2. FINANCES\\2.1 COMPTABILITE\\2.1.7 Bons de Commande\\Bons de commande 2021\\",null,null,null,null,null,null,null,null,null,null,0,{"$f":"IF(L856<=0,Feuil1!$D$4,IF(H856=Feuil1!$F$3,Feuil1!D859,\"SAISIR TEXTE\"))","v":"soldé"}]
["L:\\2. FINANCES\\2.1 COMPTABILITE\\2.1.7 Bons de Commande\\Bons de commande 2021\\",null,null,null,null,null,null,null,null,null,null,0,{"$f":"IF(L857<=0,Feuil1!$D$4,IF(H857=Feuil1!$F$3,Feuil1!D860,\"SAISIR TEXTE\"))","v":"soldé"}]
["L:\\2. FINANCES\\2.1 COMPTABILITE\\2.1.7 Bons de Commande\\Bons de commande 2021\\",null,null,null,null,null,null,null,null,null,null,0,{"$f":"IF(L858<=0,Feuil1!$D$4,IF(H858=Feuil1!$F$3,Feuil1!D861,\"SAISIR TEXTE\"))","v":"soldé"}]
["L:\\2. FINANCES\\2.1 COMPTABILITE\\2.1.7 Bons de Commande\\Bons de commande 2021\\",null,null,null,null,null,null,null,null,null,null,0,{"$f":"IF(L859<=0,Feuil1!$D$4,IF(H859=Feuil1!$F$3,Feuil1!D862,\"SAISIR TEXTE\"))","v":"soldé"}]
["L:\\2. FINANCES\\2.1 COMPTABILITE\\2.1.7 Bons de Commande\\Bons de commande 2021\\",null,null,null,null,null,null,null,null,null,null,0,{"$f":"IF(L860<=0,Feuil1!$D$4,IF(H860=Feuil1!$F$3,Feuil1!D863,\"SAISIR TEXTE\"))","v":"soldé"}]
["L:\\2. FINANCES\\2.1 COMPTABILITE\\2.1.7 Bons de Commande\\Bons de commande 2021\\",null,null,null,null,null,null,null,null,null,null,0,{"$f":"IF(L861<=0,Feuil1!$D$4,IF(H861=Feuil1!$F$3,Feuil1!D864,\"SAISIR TEXTE\"))","v":"soldé"}]
["L:\\2. FINANCES\\2.1 COMPTABILITE\\2.1.7 Bons de Commande\\Bons de commande 2021\\",null,null,null,null,null,null,null,null,null,null,0,{"$f":"IF(L862<=0,Feuil1!$D$4,IF(H862=Feuil1!$F$3,Feuil1!D865,\"SAISIR TEXTE\"))","v":"soldé"}]
["L:\\2. FINANCES\\2.1 COMPTABILITE\\2.1.7 Bons de Commande\\Bons de commande 2021\\",null,null,null,null,null,null,null,null,null,null,0,{"$f":"IF(L863<=0,Feuil1!$D$4,IF(H863=Feuil1!$F$3,Feuil1!D866,\"SAISIR TEXTE\"))","v":"soldé"}]
["L:\\2. FINANCES\\2.1 COMPTABILITE\\2.1.7 Bons de Commande\\Bons de commande 2021\\",null,null,null,null,null,null,null,null,null,null,0,{"$f":"IF(L864<=0,Feuil1!$D$4,IF(H864=Feuil1!$F$3,Feuil1!D867,\"SAISIR TEXTE\"))","v":"soldé"}]
["L:\\2. FINANCES\\2.1 COMPTABILITE\\2.1.7 Bons de Commande\\Bons de commande 2021\\",null,null,null,null,null,null,null,null,null,null,0,{"$f":"IF(L865<=0,Feuil1!$D$4,IF(H865=Feuil1!$F$3,Feuil1!D868,\"SAISIR TEXTE\"))","v":"soldé"}]
["L:\\2. FINANCES\\2.1 COMPTABILITE\\2.1.7 Bons de Commande\\Bons de commande 2021\\",null,null,null,null,null,null,null,null,null,null,0,{"$f":"IF(L866<=0,Feuil1!$D$4,IF(H866=Feuil1!$F$3,Feuil1!D869,\"SAISIR TEXTE\"))","v":"soldé"}]
["L:\\2. FINANCES\\2.1 COMPTABILITE\\2.1.7 Bons de Commande\\Bons de commande 2021\\",null,null,null,null,null,null,null,null,null,null,0,{"$f":"IF(L867<=0,Feuil1!$D$4,IF(H867=Feuil1!$F$3,Feuil1!D870,\"SAISIR TEXTE\"))","v":"soldé"}]
["L:\\2. FINANCES\\2.1 COMPTABILITE\\2.1.7 Bons de Commande\\Bons de commande 2021\\",null,null,null,null,null,null,null,null,null,null,0,{"$f":"IF(L868<=0,Feuil1!$D$4,IF(H868=Feuil1!$F$3,Feuil1!D871,\"SAISIR TEXTE\"))","v":"soldé"}]
["L:\\2. FINANCES\\2.1 COMPTABILITE\\2.1.7 Bons de Commande\\Bons de commande 2021\\",null,null,null,null,null,null,null,null,null,null,0,{"$f":"IF(L869<=0,Feuil1!$D$4,IF(H869=Feuil1!$F$3,Feuil1!D872,\"SAISIR TEXTE\"))","v":"soldé"}]
["L:\\2. FINANCES\\2.1 COMPTABILITE\\2.1.7 Bons de Commande\\Bons de commande 2021\\",null,null,null,null,null,null,null,null,null,null,0,{"$f":"IF(L870<=0,Feuil1!$D$4,IF(H870=Feuil1!$F$3,Feuil1!D873,\"SAISIR TEXTE\"))","v":"soldé"}]
["L:\\2. FINANCES\\2.1 COMPTABILITE\\2.1.7 Bons de Commande\\Bons de commande 2021\\",null,null,null,null,null,null,null,null,null,null,0,{"$f":"IF(L871<=0,Feuil1!$D$4,IF(H871=Feuil1!$F$3,Feuil1!D874,\"SAISIR TEXTE\"))","v":"soldé"}]
["L:\\2. FINANCES\\2.1 COMPTABILITE\\2.1.7 Bons de Commande\\Bons de commande 2021\\",null,null,null,null,null,null,null,null,null,null,0,{"$f":"IF(L872<=0,Feuil1!$D$4,IF(H872=Feuil1!$F$3,Feuil1!D875,\"SAISIR TEXTE\"))","v":"soldé"}]
["L:\\2. FINANCES\\2.1 COMPTABILITE\\2.1.7 Bons de Commande\\Bons de commande 2021\\",null,null,null,null,null,null,null,null,null,null,0,{"$f":"IF(L873<=0,Feuil1!$D$4,IF(H873=Feuil1!$F$3,Feuil1!D876,\"SAISIR TEXTE\"))","v":"soldé"}]
["L:\\2. FINANCES\\2.1 COMPTABILITE\\2.1.7 Bons de Commande\\Bons de commande 2021\\",null,null,null,null,null,null,null,null,null,null,0,{"$f":"IF(L874<=0,Feuil1!$D$4,IF(H874=Feuil1!$F$3,Feuil1!D877,\"SAISIR TEXTE\"))","v":"soldé"}]
["L:\\2. FINANCES\\2.1 COMPTABILITE\\2.1.7 Bons de Commande\\Bons de commande 2021\\",null,null,null,null,null,null,null,null,null,null,0,{"$f":"IF(L875<=0,Feuil1!$D$4,IF(H875=Feuil1!$F$3,Feuil1!D878,\"SAISIR TEXTE\"))","v":"soldé"}]
["L:\\2. FINANCES\\2.1 COMPTABILITE\\2.1.7 Bons de Commande\\Bons de commande 2021\\",null,null,null,null,null,null,null,null,null,null,0,{"$f":"IF(L876<=0,Feuil1!$D$4,IF(H876=Feuil1!$F$3,Feuil1!D879,\"SAISIR TEXTE\"))","v":"soldé"}]
["L:\\2. FINANCES\\2.1 COMPTABILITE\\2.1.7 Bons de Commande\\Bons de commande 2021\\",null,null,null,null,null,null,null,null,null,null,0,{"$f":"IF(L877<=0,Feuil1!$D$4,IF(H877=Feuil1!$F$3,Feuil1!D880,\"SAISIR TEXTE\"))","v":"soldé"}]
["L:\\2. FINANCES\\2.1 COMPTABILITE\\2.1.7 Bons de Commande\\Bons de commande 2021\\",null,null,null,null,null,null,null,null,null,null,0,{"$f":"IF(L878<=0,Feuil1!$D$4,IF(H878=Feuil1!$F$3,Feuil1!D881,\"SAISIR TEXTE\"))","v":"soldé"}]
["L:\\2. FINANCES\\2.1 COMPTABILITE\\2.1.7 Bons de Commande\\Bons de commande 2021\\",null,null,null,null,null,null,null,null,null,null,0,{"$f":"IF(L879<=0,Feuil1!$D$4,IF(H879=Feuil1!$F$3,Feuil1!D882,\"SAISIR TEXTE\"))","v":"soldé"}]
["L:\\2. FINANCES\\2.1 COMPTABILITE\\2.1.7 Bons de Commande\\Bons de commande 2021\\",null,null,null,null,null,null,null,null,null,null,0,{"$f":"IF(L880<=0,Feuil1!$D$4,IF(H880=Feuil1!$F$3,Feuil1!D883,\"SAISIR TEXTE\"))","v":"soldé"}]
["L:\\2. FINANCES\\2.1 COMPTABILITE\\2.1.7 Bons de Commande\\Bons de commande 2021\\",null,null,null,null,null,null,null,null,null,null,0,{"$f":"IF(L881<=0,Feuil1!$D$4,IF(H881=Feuil1!$F$3,Feuil1!D884,\"SAISIR TEXTE\"))","v":"soldé"}]
["L:\\2. FINANCES\\2.1 COMPTABILITE\\2.1.7 Bons de Commande\\Bons de commande 2021\\",null,null,null,null,null,null,null,null,null,null,0,{"$f":"IF(L882<=0,Feuil1!$D$4,IF(H882=Feuil1!$F$3,Feuil1!D885,\"SAISIR TEXTE\"))","v":"soldé"}]
["L:\\2. FINANCES\\2.1 COMPTABILITE\\2.1.7 Bons de Commande\\Bons de commande 2021\\",null,null,null,null,null,null,null,null,null,null,0,{"$f":"IF(L883<=0,Feuil1!$D$4,IF(H883=Feuil1!$F$3,Feuil1!D886,\"SAISIR TEXTE\"))","v":"soldé"}]
["L:\\2. FINANCES\\2.1 COMPTABILITE\\2.1.7 Bons de Commande\\Bons de commande 2021\\",null,null,null,null,null,null,null,null,null,null,0,{"$f":"IF(L884<=0,Feuil1!$D$4,IF(H884=Feuil1!$F$3,Feuil1!D887,\"SAISIR TEXTE\"))","v":"soldé"}]
["L:\\2. FINANCES\\2.1 COMPTABILITE\\2.1.7 Bons de Commande\\Bons de commande 2021\\",null,null,null,null,null,null,null,null,null,null,0,{"$f":"IF(L885<=0,Feuil1!$D$4,IF(H885=Feuil1!$F$3,Feuil1!D888,\"SAISIR TEXTE\"))","v":"soldé"}]
["L:\\2. FINANCES\\2.1 COMPTABILITE\\2.1.7 Bons de Commande\\Bons de commande 2021\\",null,null,null,null,null,null,null,null,null,null,0,{"$f":"IF(L886<=0,Feuil1!$D$4,IF(H886=Feuil1!$F$3,Feuil1!D889,\"SAISIR TEXTE\"))","v":"soldé"}]
["L:\\2. FINANCES\\2.1 COMPTABILITE\\2.1.7 Bons de Commande\\Bons de commande 2021\\",null,null,null,null,null,null,null,null,null,null,0,{"$f":"IF(L887<=0,Feuil1!$D$4,IF(H887=Feuil1!$F$3,Feuil1!D890,\"SAISIR TEXTE\"))","v":"soldé"}]
["L:\\2. FINANCES\\2.1 COMPTABILITE\\2.1.7 Bons de Commande\\Bons de commande 2021\\",null,null,null,null,null,null,null,null,null,null,0,{"$f":"IF(L888<=0,Feuil1!$D$4,IF(H888=Feuil1!$F$3,Feuil1!D891,\"SAISIR TEXTE\"))","v":"soldé"}]
["L:\\2. FINANCES\\2.1 COMPTABILITE\\2.1.7 Bons de Commande\\Bons de commande 2021\\",null,null,null,null,null,null,null,null,null,null,0,{"$f":"IF(L889<=0,Feuil1!$D$4,IF(H889=Feuil1!$F$3,Feuil1!D892,\"SAISIR TEXTE\"))","v":"soldé"}]
["L:\\2. FINANCES\\2.1 COMPTABILITE\\2.1.7 Bons de Commande\\Bons de commande 2021\\",null,null,null,null,null,null,null,null,null,null,0,{"$f":"IF(L890<=0,Feuil1!$D$4,IF(H890=Feuil1!$F$3,Feuil1!D893,\"SAISIR TEXTE\"))","v":"soldé"}]
["L:\\2. FINANCES\\2.1 COMPTABILITE\\2.1.7 Bons de Commande\\Bons de commande 2021\\",null,null,null,null,null,null,null,null,null,null,0,{"$f":"IF(L891<=0,Feuil1!$D$4,IF(H891=Feuil1!$F$3,Feuil1!D894,\"SAISIR TEXTE\"))","v":"soldé"}]
["L:\\2. FINANCES\\2.1 COMPTABILITE\\2.1.7 Bons de Commande\\Bons de commande 2021\\",null,null,null,null,null,null,null,null,null,null,0,{"$f":"IF(L892<=0,Feuil1!$D$4,IF(H892=Feuil1!$F$3,Feuil1!D895,\"SAISIR TEXTE\"))","v":"soldé"}]
["L:\\2. FINANCES\\2.1 COMPTABILITE\\2.1.7 Bons de Commande\\Bons de commande 2021\\",null,null,null,null,null,null,null,null,null,null,0,{"$f":"IF(L893<=0,Feuil1!$D$4,IF(H893=Feuil1!$F$3,Feuil1!D896,\"SAISIR TEXTE\"))","v":"soldé"}]
["L:\\2. FINANCES\\2.1 COMPTABILITE\\2.1.7 Bons de Commande\\Bons de commande 2021\\",null,null,null,null,null,null,null,null,null,null,0,{"$f":"IF(L894<=0,Feuil1!$D$4,IF(H894=Feuil1!$F$3,Feuil1!D897,\"SAISIR TEXTE\"))","v":"soldé"}]
["L:\\2. FINANCES\\2.1 COMPTABILITE\\2.1.7 Bons de Commande\\Bons de commande 2021\\",null,null,null,null,null,null,null,null,null,null,0,{"$f":"IF(L895<=0,Feuil1!$D$4,IF(H895=Feuil1!$F$3,Feuil1!D898,\"SAISIR TEXTE\"))","v":"soldé"}]
["L:\\2. FINANCES\\2.1 COMPTABILITE\\2.1.7 Bons de Commande\\Bons de commande 2021\\",null,null,null,null,null,null,null,null,null,null,0,{"$f":"IF(L896<=0,Feuil1!$D$4,IF(H896=Feuil1!$F$3,Feuil1!D899,\"SAISIR TEXTE\"))","v":"soldé"}]
["L:\\2. FINANCES\\2.1 COMPTABILITE\\2.1.7 Bons de Commande\\Bons de commande 2021\\",null,null,null,null,null,null,null,null,null,null,0,{"$f":"IF(L897<=0,Feuil1!$D$4,IF(H897=Feuil1!$F$3,Feuil1!D900,\"SAISIR TEXTE\"))","v":"soldé"}]
["L:\\2. FINANCES\\2.1 COMPTABILITE\\2.1.7 Bons de Commande\\Bons de commande 2021\\",null,null,null,null,null,null,null,null,null,null,0,{"$f":"IF(L898<=0,Feuil1!$D$4,IF(H898=Feuil1!$F$3,Feuil1!D901,\"SAISIR TEXTE\"))","v":"soldé"}]
["L:\\2. FINANCES\\2.1 COMPTABILITE\\2.1.7 Bons de Commande\\Bons de commande 2021\\",null,null,null,null,null,null,null,null,null,null,{"$f":"F899-K899","v":0},{"$f":"IF(L899<=0,Feuil1!$D$4,IF(H899=Feuil1!$F$3,Feuil1!D902,\"SAISIR TEXTE\"))","v":"soldé"}]
["L:\\2. FINANCES\\2.1 COMPTABILITE\\2.1.7 Bons de Commande\\Bons de commande 2021\\",null,null,null,null,null,null,null,null,null,null,0,{"$f":"IF(L900<=0,Feuil1!$D$4,IF(H900=Feuil1!$F$3,Feuil1!D903,\"SAISIR TEXTE\"))","v":"soldé"}]
["L:\\2. FINANCES\\2.1 COMPTABILITE\\2.1.7 Bons de Commande\\Bons de commande 2021\\",null,null,null,null,null,null,null,null,null,null,0,{"$f":"IF(L901<=0,Feuil1!$D$4,IF(H901=Feuil1!$F$3,Feuil1!D904,\"SAISIR TEXTE\"))","v":"soldé"}]
["L:\\2. FINANCES\\2.1 COMPTABILITE\\2.1.7 Bons de Commande\\Bons de commande 2021\\",null,null,null,null,null,null,null,null,null,null,0,{"$f":"IF(L902<=0,Feuil1!$D$4,IF(H902=Feuil1!$F$3,Feuil1!D905,\"SAISIR TEXTE\"))","v":"soldé"}]
["L:\\2. FINANCES\\2.1 COMPTABILITE\\2.1.7 Bons de Commande\\Bons de commande 2021\\",null,null,null,null,null,null,null,null,null,null,0,{"$f":"IF(L903<=0,Feuil1!$D$4,IF(H903=Feuil1!$F$3,Feuil1!D906,\"SAISIR TEXTE\"))","v":"soldé"}]
["L:\\2. FINANCES\\2.1 COMPTABILITE\\2.1.7 Bons de Commande\\Bons de commande 2021\\",null,null,null,null,null,null,null,null,null,null,0,{"$f":"IF(L904<=0,Feuil1!$D$4,IF(H904=Feuil1!$F$3,Feuil1!D907,\"SAISIR TEXTE\"))","v":"soldé"}]
["L:\\2. FINANCES\\2.1 COMPTABILITE\\2.1.7 Bons de Commande\\Bons de commande 2021\\",null,null,null,null,null,null,null,null,null,null,0,{"$f":"IF(L905<=0,Feuil1!$D$4,IF(H905=Feuil1!$F$3,Feuil1!D908,\"SAISIR TEXTE\"))","v":"soldé"}]
["L:\\2. FINANCES\\2.1 COMPTABILITE\\2.1.7 Bons de Commande\\Bons de commande 2021\\",null,null,null,null,null,null,null,null,null,null,0,{"$f":"IF(L906<=0,Feuil1!$D$4,IF(H906=Feuil1!$F$3,Feuil1!D909,\"SAISIR TEXTE\"))","v":"soldé"}]
["L:\\2. FINANCES\\2.1 COMPTABILITE\\2.1.7 Bons de Commande\\Bons de commande 2021\\",null,null,null,null,null,null,null,null,null,null,0,{"$f":"IF(L907<=0,Feuil1!$D$4,IF(H907=Feuil1!$F$3,Feuil1!D910,\"SAISIR TEXTE\"))","v":"soldé"}]
["L:\\2. FINANCES\\2.1 COMPTABILITE\\2.1.7 Bons de Commande\\Bons de commande 2021\\",null,null,null,null,null,null,null,null,null,null,0,{"$f":"IF(L908<=0,Feuil1!$D$4,IF(H908=Feuil1!$F$3,Feuil1!D911,\"SAISIR TEXTE\"))","v":"soldé"}]
["L:\\2. FINANCES\\2.1 COMPTABILITE\\2.1.7 Bons de Commande\\Bons de commande 2021\\",null,null,null,null,null,null,null,null,null,null,0,{"$f":"IF(L909<=0,Feuil1!$D$4,IF(H909=Feuil1!$F$3,Feuil1!D912,\"SAISIR TEXTE\"))","v":"soldé"}]
["L:\\2. FINANCES\\2.1 COMPTABILITE\\2.1.7 Bons de Commande\\Bons de commande 2021\\",null,null,null,null,null,null,null,null,null,null,0,{"$f":"IF(L910<=0,Feuil1!$D$4,IF(H910=Feuil1!$F$3,Feuil1!D913,\"SAISIR TEXTE\"))","v":"soldé"}]
["L:\\2. FINANCES\\2.1 COMPTABILITE\\2.1.7 Bons de Commande\\Bons de commande 2021\\",null,null,null,null,null,null,null,null,null,null,0,{"$f":"IF(L911<=0,Feuil1!$D$4,IF(H911=Feuil1!$F$3,Feuil1!D914,\"SAISIR TEXTE\"))","v":"soldé"}]
["L:\\2. FINANCES\\2.1 COMPTABILITE\\2.1.7 Bons de Commande\\Bons de commande 2021\\",null,null,null,null,null,null,null,null,null,null,0,{"$f":"IF(L912<=0,Feuil1!$D$4,IF(H912=Feuil1!$F$3,Feuil1!D915,\"SAISIR TEXTE\"))","v":"soldé"}]
["L:\\2. FINANCES\\2.1 COMPTABILITE\\2.1.7 Bons de Commande\\Bons de commande 2021\\",null,null,null,null,null,null,null,null,null,null,0,{"$f":"IF(L913<=0,Feuil1!$D$4,IF(H913=Feuil1!$F$3,Feuil1!D916,\"SAISIR TEXTE\"))","v":"soldé"}]
["L:\\2. FINANCES\\2.1 COMPTABILITE\\2.1.7 Bons de Commande\\Bons de commande 2021\\",null,null,null,null,null,null,null,null,null,null,0,{"$f":"IF(L914<=0,Feuil1!$D$4,IF(H914=Feuil1!$F$3,Feuil1!D917,\"SAISIR TEXTE\"))","v":"soldé"}]
["L:\\2. FINANCES\\2.1 COMPTABILITE\\2.1.7 Bons de Commande\\Bons de commande 2021\\",null,null,null,null,null,null,null,null,null,null,0,{"$f":"IF(L915<=0,Feuil1!$D$4,IF(H915=Feuil1!$F$3,Feuil1!D918,\"SAISIR TEXTE\"))","v":"soldé"}]
["L:\\2. FINANCES\\2.1 COMPTABILITE\\2.1.7 Bons de Commande\\Bons de commande 2021\\",null,null,null,null,null,null,null,null,null,null,0,{"$f":"IF(L916<=0,Feuil1!$D$4,IF(H916=Feuil1!$F$3,Feuil1!D919,\"SAISIR TEXTE\"))","v":"soldé"}]
["L:\\2. FINANCES\\2.1 COMPTABILITE\\2.1.7 Bons de Commande\\Bons de commande 2021\\",null,null,null,null,null,null,null,null,null,null,0,{"$f":"IF(L917<=0,Feuil1!$D$4,IF(H917=Feuil1!$F$3,Feuil1!D920,\"SAISIR TEXTE\"))","v":"soldé"}]
["L:\\2. FINANCES\\2.1 COMPTABILITE\\2.1.7 Bons de Commande\\Bons de commande 2021\\",null,null,null,null,null,null,null,null,null,null,0,{"$f":"IF(L918<=0,Feuil1!$D$4,IF(H918=Feuil1!$F$3,Feuil1!D921,\"SAISIR TEXTE\"))","v":"soldé"}]
["L:\\2. FINANCES\\2.1 COMPTABILITE\\2.1.7 Bons de Commande\\Bons de commande 2021\\",null,null,null,null,null,null,null,null,null,null,0,{"$f":"IF(L919<=0,Feuil1!$D$4,IF(H919=Feuil1!$F$3,Feuil1!D922,\"SAISIR TEXTE\"))","v":"soldé"}]
["L:\\2. FINANCES\\2.1 COMPTABILITE\\2.1.7 Bons de Commande\\Bons de commande 2021\\",null,null,null,null,null,null,null,null,null,null,0,{"$f":"IF(L920<=0,Feuil1!$D$4,IF(H920=Feuil1!$F$3,Feuil1!D923,\"SAISIR TEXTE\"))","v":"soldé"}]
["L:\\2. FINANCES\\2.1 COMPTABILITE\\2.1.7 Bons de Commande\\Bons de commande 2021\\",null,null,null,null,null,null,null,null,null,null,0,{"$f":"IF(L921<=0,Feuil1!$D$4,IF(H921=Feuil1!$F$3,Feuil1!D924,\"SAISIR TEXTE\"))","v":"soldé"}]
["L:\\2. FINANCES\\2.1 COMPTABILITE\\2.1.7 Bons de Commande\\Bons de commande 2021\\",null,null,null,null,null,null,null,null,null,null,0,{"$f":"IF(L922<=0,Feuil1!$D$4,IF(H922=Feuil1!$F$3,Feuil1!D925,\"SAISIR TEXTE\"))","v":"soldé"}]
["L:\\2. FINANCES\\2.1 COMPTABILITE\\2.1.7 Bons de Commande\\Bons de commande 2021\\",null,null,null,null,null,null,null,null,null,null,0,{"$f":"IF(L923<=0,Feuil1!$D$4,IF(H923=Feuil1!$F$3,Feuil1!D926,\"SAISIR TEXTE\"))","v":"soldé"}]
["L:\\2. FINANCES\\2.1 COMPTABILITE\\2.1.7 Bons de Commande\\Bons de commande 2021\\",null,null,null,null,null,null,null,null,null,null,0,{"$f":"IF(L924<=0,Feuil1!$D$4,IF(H924=Feuil1!$F$3,Feuil1!D927,\"SAISIR TEXTE\"))","v":"soldé"}]
["L:\\2. FINANCES\\2.1 COMPTABILITE\\2.1.7 Bons de Commande\\Bons de commande 2021\\",null,null,null,null,null,null,null,null,null,null,0,{"$f":"IF(L925<=0,Feuil1!$D$4,IF(H925=Feuil1!$F$3,Feuil1!D928,\"SAISIR TEXTE\"))","v":"soldé"}]
["L:\\2. FINANCES\\2.1 COMPTABILITE\\2.1.7 Bons de Commande\\Bons de commande 2021\\",null,null,null,null,null,null,null,null,null,null,0,{"$f":"IF(L926<=0,Feuil1!$D$4,IF(H926=Feuil1!$F$3,Feuil1!D929,\"SAISIR TEXTE\"))","v":"soldé"}]
["L:\\2. FINANCES\\2.1 COMPTABILITE\\2.1.7 Bons de Commande\\Bons de commande 2021\\",null,null,null,null,null,null,null,null,null,null,0,{"$f":"IF(L927<=0,Feuil1!$D$4,IF(H927=Feuil1!$F$3,Feuil1!D930,\"SAISIR TEXTE\"))","v":"soldé"}]
["L:\\2. FINANCES\\2.1 COMPTABILITE\\2.1.7 Bons de Commande\\Bons de commande 2021\\",null,null,null,null,null,null,null,null,null,null,0,{"$f":"IF(L928<=0,Feuil1!$D$4,IF(H928=Feuil1!$F$3,Feuil1!D931,\"SAISIR TEXTE\"))","v":"soldé"}]
["L:\\2. FINANCES\\2.1 COMPTABILITE\\2.1.7 Bons de Commande\\Bons de commande 2021\\",null,null,null,null,null,null,null,null,null,null,0,{"$f":"IF(L929<=0,Feuil1!$D$4,IF(H929=Feuil1!$F$3,Feuil1!D932,\"SAISIR TEXTE\"))","v":"soldé"}]
["L:\\2. FINANCES\\2.1 COMPTABILITE\\2.1.7 Bons de Commande\\Bons de commande 2021\\",null,null,null,null,null,null,null,null,null,null,0,{"$f":"IF(L930<=0,Feuil1!$D$4,IF(H930=Feuil1!$F$3,Feuil1!D933,\"SAISIR TEXTE\"))","v":"soldé"}]
["L:\\2. FINANCES\\2.1 COMPTABILITE\\2.1.7 Bons de Commande\\Bons de commande 2021\\",null,null,null,null,null,null,null,null,null,null,0,{"$f":"IF(L931<=0,Feuil1!$D$4,IF(H931=Feuil1!$F$3,Feuil1!D934,\"SAISIR TEXTE\"))","v":"soldé"}]
["L:\\2. FINANCES\\2.1 COMPTABILITE\\2.1.7 Bons de Commande\\Bons de commande 2021\\",null,null,null,null,null,null,null,null,null,null,0,{"$f":"IF(L932<=0,Feuil1!$D$4,IF(H932=Feuil1!$F$3,Feuil1!D935,\"SAISIR TEXTE\"))","v":"soldé"}]
["L:\\2. FINANCES\\2.1 COMPTABILITE\\2.1.7 Bons de Commande\\Bons de commande 2021\\",null,null,null,null,null,null,null,null,null,null,0,{"$f":"IF(L933<=0,Feuil1!$D$4,IF(H933=Feuil1!$F$3,Feuil1!D936,\"SAISIR TEXTE\"))","v":"soldé"}]
["L:\\2. FINANCES\\2.1 COMPTABILITE\\2.1.7 Bons de Commande\\Bons de commande 2021\\",null,null,null,null,null,null,null,null,null,null,0,{"$f":"IF(L934<=0,Feuil1!$D$4,IF(H934=Feuil1!$F$3,Feuil1!D937,\"SAISIR TEXTE\"))","v":"soldé"}]
["L:\\2. FINANCES\\2.1 COMPTABILITE\\2.1.7 Bons de Commande\\Bons de commande 2021\\",null,null,null,null,null,null,null,null,null,null,0,{"$f":"IF(L935<=0,Feuil1!$D$4,IF(H935=Feuil1!$F$3,Feuil1!D938,\"SAISIR TEXTE\"))","v":"soldé"}]
["L:\\2. FINANCES\\2.1 COMPTABILITE\\2.1.7 Bons de Commande\\Bons de commande 2021\\",null,null,null,null,null,null,null,null,null,null,0,{"$f":"IF(L936<=0,Feuil1!$D$4,IF(H936=Feuil1!$F$3,Feuil1!D939,\"SAISIR TEXTE\"))","v":"soldé"}]
["L:\\2. FINANCES\\2.1 COMPTABILITE\\2.1.7 Bons de Commande\\Bons de commande 2021\\",null,null,null,null,null,null,null,null,null,null,0,{"$f":"IF(L937<=0,Feuil1!$D$4,IF(H937=Feuil1!$F$3,Feuil1!D940,\"SAISIR TEXTE\"))","v":"soldé"}]
["L:\\2. FINANCES\\2.1 COMPTABILITE\\2.1.7 Bons de Commande\\Bons de commande 2021\\",null,null,null,null,null,null,null,null,null,null,0,{"$f":"IF(L938<=0,Feuil1!$D$4,IF(H938=Feuil1!$F$3,Feuil1!D941,\"SAISIR TEXTE\"))","v":"soldé"}]
["L:\\2. FINANCES\\2.1 COMPTABILITE\\2.1.7 Bons de Commande\\Bons de commande 2021\\",null,null,null,null,null,null,null,null,null,null,0,{"$f":"IF(L939<=0,Feuil1!$D$4,IF(H939=Feuil1!$F$3,Feuil1!D942,\"SAISIR TEXTE\"))","v":"soldé"}]
["L:\\2. FINANCES\\2.1 COMPTABILITE\\2.1.7 Bons de Commande\\Bons de commande 2021\\",null,null,null,null,null,null,null,null,null,null,0,{"$f":"IF(L940<=0,Feuil1!$D$4,IF(H940=Feuil1!$F$3,Feuil1!D943,\"SAISIR TEXTE\"))","v":"soldé"}]
["L:\\2. FINANCES\\2.1 COMPTABILITE\\2.1.7 Bons de Commande\\Bons de commande 2021\\",null,null,null,null,null,null,null,null,null,null,0,{"$f":"IF(L941<=0,Feuil1!$D$4,IF(H941=Feuil1!$F$3,Feuil1!D944,\"SAISIR TEXTE\"))","v":"soldé"}]
["L:\\2. FINANCES\\2.1 COMPTABILITE\\2.1.7 Bons de Commande\\Bons de commande 2021\\",null,null,null,null,null,null,null,null,null,null,0,{"$f":"IF(L942<=0,Feuil1!$D$4,IF(H942=Feuil1!$F$3,Feuil1!D945,\"SAISIR TEXTE\"))","v":"soldé"}]
["L:\\2. FINANCES\\2.1 COMPTABILITE\\2.1.7 Bons de Commande\\Bons de commande 2021\\",null,null,null,null,null,null,null,null,null,null,0,{"$f":"IF(L943<=0,Feuil1!$D$4,IF(H943=Feuil1!$F$3,Feuil1!D946,\"SAISIR TEXTE\"))","v":"soldé"}]
["L:\\2. FINANCES\\2.1 COMPTABILITE\\2.1.7 Bons de Commande\\Bons de commande 2021\\",null,null,null,null,null,null,null,null,null,null,0,{"$f":"IF(L944<=0,Feuil1!$D$4,IF(H944=Feuil1!$F$3,Feuil1!D947,\"SAISIR TEXTE\"))","v":"soldé"}]
["L:\\2. FINANCES\\2.1 COMPTABILITE\\2.1.7 Bons de Commande\\Bons de commande 2021\\",null,null,null,null,null,null,null,null,null,null,0,{"$f":"IF(L945<=0,Feuil1!$D$4,IF(H945=Feuil1!$F$3,Feuil1!D948,\"SAISIR TEXTE\"))","v":"soldé"}]
["L:\\2. FINANCES\\2.1 COMPTABILITE\\2.1.7 Bons de Commande\\Bons de commande 2021\\",null,null,null,null,null,null,null,null,null,null,0,{"$f":"IF(L946<=0,Feuil1!$D$4,IF(H946=Feuil1!$F$3,Feuil1!D949,\"SAISIR TEXTE\"))","v":"soldé"}]
["L:\\2. FINANCES\\2.1 COMPTABILITE\\2.1.7 Bons de Commande\\Bons de commande 2021\\",null,null,null,null,null,null,null,null,null,null,0,{"$f":"IF(L947<=0,Feuil1!$D$4,IF(H947=Feuil1!$F$3,Feuil1!D950,\"SAISIR TEXTE\"))","v":"soldé"}]
["L:\\2. FINANCES\\2.1 COMPTABILITE\\2.1.7 Bons de Commande\\Bons de commande 2021\\",null,null,null,null,null,null,null,null,null,null,0,{"$f":"IF(L948<=0,Feuil1!$D$4,IF(H948=Feuil1!$F$3,Feuil1!D951,\"SAISIR TEXTE\"))","v":"soldé"}]
["L:\\2. FINANCES\\2.1 COMPTABILITE\\2.1.7 Bons de Commande\\Bons de commande 2021\\",null,null,null,null,null,null,null,null,null,null,0,{"$f":"IF(L949<=0,Feuil1!$D$4,IF(H949=Feuil1!$F$3,Feuil1!D952,\"SAISIR TEXTE\"))","v":"soldé"}]
["L:\\2. FINANCES\\2.1 COMPTABILITE\\2.1.7 Bons de Commande\\Bons de commande 2021\\",null,null,null,null,null,null,null,null,null,null,0,{"$f":"IF(L950<=0,Feuil1!$D$4,IF(H950=Feuil1!$F$3,Feuil1!D953,\"SAISIR TEXTE\"))","v":"soldé"}]
["L:\\2. FINANCES\\2.1 COMPTABILITE\\2.1.7 Bons de Commande\\Bons de commande 2021\\",null,null,null,null,null,null,null,null,null,null,0,{"$f":"IF(L951<=0,Feuil1!$D$4,IF(H951=Feuil1!$F$3,Feuil1!D954,\"SAISIR TEXTE\"))","v":"soldé"}]
["L:\\2. FINANCES\\2.1 COMPTABILITE\\2.1.7 Bons de Commande\\Bons de commande 2021\\",null,null,null,null,null,null,null,null,null,null,0,{"$f":"IF(L952<=0,Feuil1!$D$4,IF(H952=Feuil1!$F$3,Feuil1!D955,\"SAISIR TEXTE\"))","v":"soldé"}]
["L:\\2. FINANCES\\2.1 COMPTABILITE\\2.1.7 Bons de Commande\\Bons de commande 2021\\",null,null,null,null,null,null,null,null,null,null,0,{"$f":"IF(L953<=0,Feuil1!$D$4,IF(H953=Feuil1!$F$3,Feuil1!D956,\"SAISIR TEXTE\"))","v":"soldé"}]
["L:\\2. FINANCES\\2.1 COMPTABILITE\\2.1.7 Bons de Commande\\Bons de commande 2021\\",null,null,null,null,null,null,null,null,null,null,0,{"$f":"IF(L954<=0,Feuil1!$D$4,IF(H954=Feuil1!$F$3,Feuil1!D957,\"SAISIR TEXTE\"))","v":"soldé"}]
["L:\\2. FINANCES\\2.1 COMPTABILITE\\2.1.7 Bons de Commande\\Bons de commande 2021\\",null,null,null,null,null,null,null,null,null,null,0,{"$f":"IF(L955<=0,Feuil1!$D$4,IF(H955=Feuil1!$F$3,Feuil1!D958,\"SAISIR TEXTE\"))","v":"soldé"}]
["L:\\2. FINANCES\\2.1 COMPTABILITE\\2.1.7 Bons de Commande\\Bons de commande 2021\\",null,null,null,null,null,null,null,null,null,null,0,{"$f":"IF(L956<=0,Feuil1!$D$4,IF(H956=Feuil1!$F$3,Feuil1!D959,\"SAISIR TEXTE\"))","v":"soldé"}]
["L:\\2. FINANCES\\2.1 COMPTABILITE\\2.1.7 Bons de Commande\\Bons de commande 2021\\",null,null,null,null,null,null,null,null,null,null,0,{"$f":"IF(L957<=0,Feuil1!$D$4,IF(H957=Feuil1!$F$3,Feuil1!D960,\"SAISIR TEXTE\"))","v":"soldé"}]
["L:\\2. FINANCES\\2.1 COMPTABILITE\\2.1.7 Bons de Commande\\Bons de commande 2021\\",null,null,null,null,null,null,null,null,null,null,0,{"$f":"IF(L958<=0,Feuil1!$D$4,IF(H958=Feuil1!$F$3,Feuil1!D961,\"SAISIR TEXTE\"))","v":"soldé"}]
["L:\\2. FINANCES\\2.1 COMPTABILITE\\2.1.7 Bons de Commande\\Bons de commande 2021\\",null,null,null,null,null,null,null,null,null,null,0,{"$f":"IF(L959<=0,Feuil1!$D$4,IF(H959=Feuil1!$F$3,Feuil1!D962,\"SAISIR TEXTE\"))","v":"soldé"}]
["L:\\2. FINANCES\\2.1 COMPTABILITE\\2.1.7 Bons de Commande\\Bons de commande 2021\\",null,null,null,null,null,null,null,null,null,null,0,{"$f":"IF(L960<=0,Feuil1!$D$4,IF(H960=Feuil1!$F$3,Feuil1!D963,\"SAISIR TEXTE\"))","v":"soldé"}]
["L:\\2. FINANCES\\2.1 COMPTABILITE\\2.1.7 Bons de Commande\\Bons de commande 2021\\",null,null,null,null,null,null,null,null,null,null,0,{"$f":"IF(L961<=0,Feuil1!$D$4,IF(H961=Feuil1!$F$3,Feuil1!D964,\"SAISIR TEXTE\"))","v":"soldé"}]
["L:\\2. FINANCES\\2.1 COMPTABILITE\\2.1.7 Bons de Commande\\Bons de commande 2021\\",null,null,null,null,null,null,null,null,null,null,0,{"$f":"IF(L962<=0,Feuil1!$D$4,IF(H962=Feuil1!$F$3,Feuil1!D965,\"SAISIR TEXTE\"))","v":"soldé"}]
["L:\\2. FINANCES\\2.1 COMPTABILITE\\2.1.7 Bons de Commande\\Bons de commande 2021\\",null,null,null,null,null,null,null,null,null,null,{"$f":"F963-K963","v":0},{"$f":"IF(L963<=0,Feuil1!$D$4,IF(H963=Feuil1!$F$3,Feuil1!D966,\"SAISIR TEXTE\"))","v":"soldé"}]
["L:\\2. FINANCES\\2.1 COMPTABILITE\\2.1.7 Bons de Commande\\Bons de commande 2021\\",null,null,null,null,null,null,null,null,null,null,0,{"$f":"IF(L964<=0,Feuil1!$D$4,IF(H964=Feuil1!$F$3,Feuil1!D967,\"SAISIR TEXTE\"))","v":"soldé"}]
["L:\\2. FINANCES\\2.1 COMPTABILITE\\2.1.7 Bons de Commande\\Bons de commande 2021\\",null,null,null,null,null,null,null,null,null,null,0,{"$f":"IF(L965<=0,Feuil1!$D$4,IF(H965=Feuil1!$F$3,Feuil1!D968,\"SAISIR TEXTE\"))","v":"soldé"}]
["L:\\2. FINANCES\\2.1 COMPTABILITE\\2.1.7 Bons de Commande\\Bons de commande 2021\\",null,null,null,null,null,null,null,null,null,null,0,{"$f":"IF(L966<=0,Feuil1!$D$4,IF(H966=Feuil1!$F$3,Feuil1!D969,\"SAISIR TEXTE\"))","v":"soldé"}]
["L:\\2. FINANCES\\2.1 COMPTABILITE\\2.1.7 Bons de Commande\\Bons de commande 2021\\",null,null,null,null,null,null,null,null,null,null,0,{"$f":"IF(L967<=0,Feuil1!$D$4,IF(H967=Feuil1!$F$3,Feuil1!D970,\"SAISIR TEXTE\"))","v":"soldé"}]
["L:\\2. FINANCES\\2.1 COMPTABILITE\\2.1.7 Bons de Commande\\Bons de commande 2021\\",null,null,null,null,null,null,null,null,null,null,0,{"$f":"IF(L968<=0,Feuil1!$D$4,IF(H968=Feuil1!$F$3,Feuil1!D971,\"SAISIR TEXTE\"))","v":"soldé"}]
["L:\\2. FINANCES\\2.1 COMPTABILITE\\2.1.7 Bons de Commande\\Bons de commande 2021\\",null,null,null,null,null,null,null,null,null,null,0,{"$f":"IF(L969<=0,Feuil1!$D$4,IF(H969=Feuil1!$F$3,Feuil1!D972,\"SAISIR TEXTE\"))","v":"soldé"}]
["L:\\2. FINANCES\\2.1 COMPTABILITE\\2.1.7 Bons de Commande\\Bons de commande 2021\\",null,null,null,null,null,null,null,null,null,null,0,{"$f":"IF(L970<=0,Feuil1!$D$4,IF(H970=Feuil1!$F$3,Feuil1!D973,\"SAISIR TEXTE\"))","v":"soldé"}]
["L:\\2. FINANCES\\2.1 COMPTABILITE\\2.1.7 Bons de Commande\\Bons de commande 2021\\",null,null,null,null,null,null,null,null,null,null,0,{"$f":"IF(L971<=0,Feuil1!$D$4,IF(H971=Feuil1!$F$3,Feuil1!D974,\"SAISIR TEXTE\"))","v":"soldé"}]
["L:\\2. FINANCES\\2.1 COMPTABILITE\\2.1.7 Bons de Commande\\Bons de commande 2021\\",null,null,null,null,null,null,null,null,null,null,0,{"$f":"IF(L972<=0,Feuil1!$D$4,IF(H972=Feuil1!$F$3,Feuil1!D975,\"SAISIR TEXTE\"))","v":"soldé"}]
["L:\\2. FINANCES\\2.1 COMPTABILITE\\2.1.7 Bons de Commande\\Bons de commande 2021\\",null,null,null,null,null,null,null,null,null,null,0,{"$f":"IF(L973<=0,Feuil1!$D$4,IF(H973=Feuil1!$F$3,Feuil1!D976,\"SAISIR TEXTE\"))","v":"soldé"}]
["L:\\2. FINANCES\\2.1 COMPTABILITE\\2.1.7 Bons de Commande\\Bons de commande 2021\\",null,null,null,null,null,null,null,null,null,null,0,{"$f":"IF(L974<=0,Feuil1!$D$4,IF(H974=Feuil1!$F$3,Feuil1!D977,\"SAISIR TEXTE\"))","v":"soldé"}]
["L:\\2. FINANCES\\2.1 COMPTABILITE\\2.1.7 Bons de Commande\\Bons de commande 2021\\",null,null,null,null,null,null,null,null,null,null,0,{"$f":"IF(L975<=0,Feuil1!$D$4,IF(H975=Feuil1!$F$3,Feuil1!D978,\"SAISIR TEXTE\"))","v":"soldé"}]
["L:\\2. FINANCES\\2.1 COMPTABILITE\\2.1.7 Bons de Commande\\Bons de commande 2021\\",null,null,null,null,null,null,null,null,null,null,0,{"$f":"IF(L976<=0,Feuil1!$D$4,IF(H976=Feuil1!$F$3,Feuil1!D979,\"SAISIR TEXTE\"))","v":"soldé"}]
["L:\\2. FINANCES\\2.1 COMPTABILITE\\2.1.7 Bons de Commande\\Bons de commande 2021\\",null,null,null,null,null,null,null,null,null,null,0,{"$f":"IF(L977<=0,Feuil1!$D$4,IF(H977=Feuil1!$F$3,Feuil1!D980,\"SAISIR TEXTE\"))","v":"soldé"}]
["L:\\2. FINANCES\\2.1 COMPTABILITE\\2.1.7 Bons de Commande\\Bons de commande 2021\\",null,null,null,null,null,null,null,null,null,null,0,{"$f":"IF(L978<=0,Feuil1!$D$4,IF(H978=Feuil1!$F$3,Feuil1!D981,\"SAISIR TEXTE\"))","v":"soldé"}]
["L:\\2. FINANCES\\2.1 COMPTABILITE\\2.1.7 Bons de Commande\\Bons de commande 2021\\",null,null,null,null,null,null,null,null,null,null,0,{"$f":"IF(L979<=0,Feuil1!$D$4,IF(H979=Feuil1!$F$3,Feuil1!D982,\"SAISIR TEXTE\"))","v":"soldé"}]
["L:\\2. FINANCES\\2.1 COMPTABILITE\\2.1.7 Bons de Commande\\Bons de commande 2021\\",null,null,null,null,null,null,null,null,null,null,0,{"$f":"IF(L980<=0,Feuil1!$D$4,IF(H980=Feuil1!$F$3,Feuil1!D983,\"SAISIR TEXTE\"))","v":"soldé"}]
["L:\\2. FINANCES\\2.1 COMPTABILITE\\2.1.7 Bons de Commande\\Bons de commande 2021\\",null,null,null,null,null,null,null,null,null,null,0,{"$f":"IF(L981<=0,Feuil1!$D$4,IF(H981=Feuil1!$F$3,Feuil1!D984,\"SAISIR TEXTE\"))","v":"soldé"}]
["L:\\2. FINANCES\\2.1 COMPTABILITE\\2.1.7 Bons de Commande\\Bons de commande 2021\\",null,null,null,null,null,null,null,null,null,null,0,{"$f":"IF(L982<=0,Feuil1!$D$4,IF(H982=Feuil1!$F$3,Feuil1!D985,\"SAISIR TEXTE\"))","v":"soldé"}]
["L:\\2. FINANCES\\2.1 COMPTABILITE\\2.1.7 Bons de Commande\\Bons de commande 2021\\",null,null,null,null,null,null,null,null,null,null,0,{"$f":"IF(L983<=0,Feuil1!$D$4,IF(H983=Feuil1!$F$3,Feuil1!D986,\"SAISIR TEXTE\"))","v":"soldé"}]
["L:\\2. FINANCES\\2.1 COMPTABILITE\\2.1.7 Bons de Commande\\Bons de commande 2021\\",null,null,null,null,null,null,null,null,null,null,0,{"$f":"IF(L984<=0,Feuil1!$D$4,IF(H984=Feuil1!$F$3,Feuil1!D987,\"SAISIR TEXTE\"))","v":"soldé"}]
["L:\\2. FINANCES\\2.1 COMPTABILITE\\2.1.7 Bons de Commande\\Bons de commande 2021\\",null,null,null,null,null,null,null,null,null,null,0,{"$f":"IF(L985<=0,Feuil1!$D$4,IF(H985=Feuil1!$F$3,Feuil1!D988,\"SAISIR TEXTE\"))","v":"soldé"}]
["L:\\2. FINANCES\\2.1 COMPTABILITE\\2.1.7 Bons de Commande\\Bons de commande 2021\\",null,null,null,null,null,null,null,null,null,null,0,{"$f":"IF(L986<=0,Feuil1!$D$4,IF(H986=Feuil1!$F$3,Feuil1!D989,\"SAISIR TEXTE\"))","v":"soldé"}]
["L:\\2. FINANCES\\2.1 COMPTABILITE\\2.1.7 Bons de Commande\\Bons de commande 2021\\",null,null,null,null,null,null,null,null,null,null,0,{"$f":"IF(L987<=0,Feuil1!$D$4,IF(H987=Feuil1!$F$3,Feuil1!D990,\"SAISIR TEXTE\"))","v":"soldé"}]
["L:\\2. FINANCES\\2.1 COMPTABILITE\\2.1.7 Bons de Commande\\Bons de commande 2021\\",null,null,null,null,null,null,null,null,null,null,0,{"$f":"IF(L988<=0,Feuil1!$D$4,IF(H988=Feuil1!$F$3,Feuil1!D991,\"SAISIR TEXTE\"))","v":"soldé"}]
["L:\\2. FINANCES\\2.1 COMPTABILITE\\2.1.7 Bons de Commande\\Bons de commande 2021\\",null,null,null,null,null,null,null,null,null,null,0,{"$f":"IF(L989<=0,Feuil1!$D$4,IF(H989=Feuil1!$F$3,Feuil1!D992,\"SAISIR TEXTE\"))","v":"soldé"}]
["L:\\2. FINANCES\\2.1 COMPTABILITE\\2.1.7 Bons de Commande\\Bons de commande 2021\\",null,null,null,null,null,null,null,null,null,null,0,{"$f":"IF(L990<=0,Feuil1!$D$4,IF(H990=Feuil1!$F$3,Feuil1!D993,\"SAISIR TEXTE\"))","v":"soldé"}]
["L:\\2. FINANCES\\2.1 COMPTABILITE\\2.1.7 Bons de Commande\\Bons de commande 2021\\",null,null,null,null,null,null,null,null,null,null,0,{"$f":"IF(L991<=0,Feuil1!$D$4,IF(H991=Feuil1!$F$3,Feuil1!D994,\"SAISIR TEXTE\"))","v":"soldé"}]
["L:\\2. FINANCES\\2.1 COMPTABILITE\\2.1.7 Bons de Commande\\Bons de commande 2021\\",null,null,null,null,null,null,null,null,null,null,0,{"$f":"IF(L992<=0,Feuil1!$D$4,IF(H992=Feuil1!$F$3,Feuil1!D995,\"SAISIR TEXTE\"))","v":"soldé"}]
["L:\\2. FINANCES\\2.1 COMPTABILITE\\2.1.7 Bons de Commande\\Bons de commande 2021\\",null,null,null,null,null,null,null,null,null,null,0,{"$f":"IF(L993<=0,Feuil1!$D$4,IF(H993=Feuil1!$F$3,Feuil1!D996,\"SAISIR TEXTE\"))","v":"soldé"}]
["L:\\2. FINANCES\\2.1 COMPTABILITE\\2.1.7 Bons de Commande\\Bons de commande 2021\\",null,null,null,null,null,null,null,null,null,null,0,{"$f":"IF(L994<=0,Feuil1!$D$4,IF(H994=Feuil1!$F$3,Feuil1!D997,\"SAISIR TEXTE\"))","v":"soldé"}]
["L:\\2. FINANCES\\2.1 COMPTABILITE\\2.1.7 Bons de Commande\\Bons de commande 2021\\",null,null,null,null,null,null,null,null,null,null,0,{"$f":"IF(L995<=0,Feuil1!$D$4,IF(H995=Feuil1!$F$3,Feuil1!D998,\"SAISIR TEXTE\"))","v":"soldé"}]
["L:\\2. FINANCES\\2.1 COMPTABILITE\\2.1.7 Bons de Commande\\Bons de commande 2021\\",null,null,null,null,null,null,null,null,null,null,0,{"$f":"IF(L996<=0,Feuil1!$D$4,IF(H996=Feuil1!$F$3,Feuil1!D999,\"SAISIR TEXTE\"))","v":"soldé"}]
["L:\\2. FINANCES\\2.1 COMPTABILITE\\2.1.7 Bons de Commande\\Bons de commande 2021\\",null,null,null,null,null,null,null,null,null,null,0,{"$f":"IF(L997<=0,Feuil1!$D$4,IF(H997=Feuil1!$F$3,Feuil1!D1000,\"SAISIR TEXTE\"))","v":"soldé"}]
["L:\\2. FINANCES\\2.1 COMPTABILITE\\2.1.7 Bons de Commande\\Bons de commande 2021\\",null,null,null,null,null,null,null,null,null,null,0,{"$f":"IF(L998<=0,Feuil1!$D$4,IF(H998=Feuil1!$F$3,Feuil1!D1001,\"SAISIR TEXTE\"))","v":"soldé"}]
["L:\\2. FINANCES\\2.1 COMPTABILITE\\2.1.7 Bons de Commande\\Bons de commande 2021\\",null,null,null,null,null,null,null,null,null,null,0,{"$f":"IF(L999<=0,Feuil1!$D$4,IF(H999=Feuil1!$F$3,Feuil1!D1002,\"SAISIR TEXTE\"))","v":"soldé"}]
["L:\\2. FINANCES\\2.1 COMPTABILITE\\2.1.7 Bons de Commande\\Bons de commande 2021\\",null,null,null,null,null,null,null,null,null,null,0,{"$f":"IF(L1000<=0,Feuil1!$D$4,IF(H1000=Feuil1!$F$3,Feuil1!D1003,\"SAISIR TEXTE\"))","v":"soldé"}]
["L:\\2. FINANCES\\2.1 COMPTABILITE\\2.1.7 Bons de Commande\\Bons de commande 2021\\",null,null,null,null,null,null,null,null,null,null,0,{"$f":"IF(L1001<=0,Feuil1!$D$4,IF(H1001=Feuil1!$F$3,Feuil1!D1004,\"SAISIR TEXTE\"))","v":"soldé"}]
["L:\\2. FINANCES\\2.1 COMPTABILITE\\2.1.7 Bons de Commande\\Bons de commande 2021\\",null,null,null,null,null,null,null,null,null,null,0,{"$f":"IF(L1002<=0,Feuil1!$D$4,IF(H1002=Feuil1!$F$3,Feuil1!D1005,\"SAISIR TEXTE\"))","v":"soldé"}]
["L:\\2. FINANCES\\2.1 COMPTABILITE\\2.1.7 Bons de Commande\\Bons de commande 2021\\",null,null,null,null,null,null,null,null,null,null,0,{"$f":"IF(L1003<=0,Feuil1!$D$4,IF(H1003=Feuil1!$F$3,Feuil1!D1006,\"SAISIR TEXTE\"))","v":"soldé"}]
["L:\\2. FINANCES\\2.1 COMPTABILITE\\2.1.7 Bons de Commande\\Bons de commande 2021\\",null,null,null,null,null,null,null,null,null,null,0,{"$f":"IF(L1004<=0,Feuil1!$D$4,IF(H1004=Feuil1!$F$3,Feuil1!D1007,\"SAISIR TEXTE\"))","v":"soldé"}]
["L:\\2. FINANCES\\2.1 COMPTABILITE\\2.1.7 Bons de Commande\\Bons de commande 2021\\",null,null,null,null,null,null,null,null,null,null,0,{"$f":"IF(L1005<=0,Feuil1!$D$4,IF(H1005=Feuil1!$F$3,Feuil1!D1008,\"SAISIR TEXTE\"))","v":"soldé"}]
["L:\\2. FINANCES\\2.1 COMPTABILITE\\2.1.7 Bons de Commande\\Bons de commande 2021\\",null,null,null,null,null,null,null,null,null,null,0,{"$f":"IF(L1006<=0,Feuil1!$D$4,IF(H1006=Feuil1!$F$3,Feuil1!D1009,\"SAISIR TEXTE\"))","v":"soldé"}]
["L:\\2. FINANCES\\2.1 COMPTABILITE\\2.1.7 Bons de Commande\\Bons de commande 2021\\",null,null,null,null,null,null,null,null,null,null,0,{"$f":"IF(L1007<=0,Feuil1!$D$4,IF(H1007=Feuil1!$F$3,Feuil1!D1010,\"SAISIR TEXTE\"))","v":"soldé"}]
["L:\\2. FINANCES\\2.1 COMPTABILITE\\2.1.7 Bons de Commande\\Bons de commande 2021\\",null,null,null,null,null,null,null,null,null,null,0,{"$f":"IF(L1008<=0,Feuil1!$D$4,IF(H1008=Feuil1!$F$3,Feuil1!D1011,\"SAISIR TEXTE\"))","v":"soldé"}]
["L:\\2. FINANCES\\2.1 COMPTABILITE\\2.1.7 Bons de Commande\\Bons de commande 2021\\",null,null,null,null,null,null,null,null,null,null,0,{"$f":"IF(L1009<=0,Feuil1!$D$4,IF(H1009=Feuil1!$F$3,Feuil1!D1012,\"SAISIR TEXTE\"))","v":"soldé"}]
["L:\\2. FINANCES\\2.1 COMPTABILITE\\2.1.7 Bons de Commande\\Bons de commande 2021\\",null,null,null,null,null,null,null,null,null,null,0,{"$f":"IF(L1010<=0,Feuil1!$D$4,IF(H1010=Feuil1!$F$3,Feuil1!D1013,\"SAISIR TEXTE\"))","v":"soldé"}]
["L:\\2. FINANCES\\2.1 COMPTABILITE\\2.1.7 Bons de Commande\\Bons de commande 2021\\",null,null,null,null,null,null,null,null,null,null,0,{"$f":"IF(L1011<=0,Feuil1!$D$4,IF(H1011=Feuil1!$F$3,Feuil1!D1014,\"SAISIR TEXTE\"))","v":"soldé"}]
["L:\\2. FINANCES\\2.1 COMPTABILITE\\2.1.7 Bons de Commande\\Bons de commande 2021\\",null,null,null,null,null,null,null,null,null,null,0,{"$f":"IF(L1012<=0,Feuil1!$D$4,IF(H1012=Feuil1!$F$3,Feuil1!D1015,\"SAISIR TEXTE\"))","v":"soldé"}]
["L:\\2. FINANCES\\2.1 COMPTABILITE\\2.1.7 Bons de Commande\\Bons de commande 2021\\",null,null,null,null,null,null,null,null,null,null,0,{"$f":"IF(L1013<=0,Feuil1!$D$4,IF(H1013=Feuil1!$F$3,Feuil1!D1016,\"SAISIR TEXTE\"))","v":"soldé"}]
["L:\\2. FINANCES\\2.1 COMPTABILITE\\2.1.7 Bons de Commande\\Bons de commande 2021\\",null,null,null,null,null,null,null,null,null,null,0,{"$f":"IF(L1014<=0,Feuil1!$D$4,IF(H1014=Feuil1!$F$3,Feuil1!D1017,\"SAISIR TEXTE\"))","v":"soldé"}]
["L:\\2. FINANCES\\2.1 COMPTABILITE\\2.1.7 Bons de Commande\\Bons de commande 2021\\",null,null,null,null,null,null,null,null,null,null,0,{"$f":"IF(L1015<=0,Feuil1!$D$4,IF(H1015=Feuil1!$F$3,Feuil1!D1018,\"SAISIR TEXTE\"))","v":"soldé"}]
["L:\\2. FINANCES\\2.1 COMPTABILITE\\2.1.7 Bons de Commande\\Bons de commande 2021\\",null,null,null,null,null,null,null,null,null,null,0,{"$f":"IF(L1016<=0,Feuil1!$D$4,IF(H1016=Feuil1!$F$3,Feuil1!D1019,\"SAISIR TEXTE\"))","v":"soldé"}]
["L:\\2. FINANCES\\2.1 COMPTABILITE\\2.1.7 Bons de Commande\\Bons de commande 2021\\",null,null,null,null,null,null,null,null,null,null,0,{"$f":"IF(L1017<=0,Feuil1!$D$4,IF(H1017=Feuil1!$F$3,Feuil1!D1020,\"SAISIR TEXTE\"))","v":"soldé"}]
["L:\\2. FINANCES\\2.1 COMPTABILITE\\2.1.7 Bons de Commande\\Bons de commande 2021\\",null,null,null,null,null,null,null,null,null,null,0,{"$f":"IF(L1018<=0,Feuil1!$D$4,IF(H1018=Feuil1!$F$3,Feuil1!D1021,\"SAISIR TEXTE\"))","v":"soldé"}]
["L:\\2. FINANCES\\2.1 COMPTABILITE\\2.1.7 Bons de Commande\\Bons de commande 2021\\",null,null,null,null,null,null,null,null,null,null,0,{"$f":"IF(L1019<=0,Feuil1!$D$4,IF(H1019=Feuil1!$F$3,Feuil1!D1022,\"SAISIR TEXTE\"))","v":"soldé"}]
["L:\\2. FINANCES\\2.1 COMPTABILITE\\2.1.7 Bons de Commande\\Bons de commande 2021\\",null,null,null,null,null,null,null,null,null,null,0,{"$f":"IF(L1020<=0,Feuil1!$D$4,IF(H1020=Feuil1!$F$3,Feuil1!D1023,\"SAISIR TEXTE\"))","v":"soldé"}]
["L:\\2. FINANCES\\2.1 COMPTABILITE\\2.1.7 Bons de Commande\\Bons de commande 2021\\",null,null,null,null,null,null,null,null,null,null,0,{"$f":"IF(L1021<=0,Feuil1!$D$4,IF(H1021=Feuil1!$F$3,Feuil1!D1024,\"SAISIR TEXTE\"))","v":"soldé"}]
["L:\\2. FINANCES\\2.1 COMPTABILITE\\2.1.7 Bons de Commande\\Bons de commande 2021\\",null,null,null,null,null,null,null,null,null,null,0,{"$f":"IF(L1022<=0,Feuil1!$D$4,IF(H1022=Feuil1!$F$3,Feuil1!D1025,\"SAISIR TEXTE\"))","v":"soldé"}]
["L:\\2. FINANCES\\2.1 COMPTABILITE\\2.1.7 Bons de Commande\\Bons de commande 2021\\",null,null,null,null,null,null,null,null,null,null,0,{"$f":"IF(L1023<=0,Feuil1!$D$4,IF(H1023=Feuil1!$F$3,Feuil1!D1026,\"SAISIR TEXTE\"))","v":"soldé"}]
["L:\\2. FINANCES\\2.1 COMPTABILITE\\2.1.7 Bons de Commande\\Bons de commande 2021\\",null,null,null,null,null,null,null,null,null,null,0,{"$f":"IF(L1024<=0,Feuil1!$D$4,IF(H1024=Feuil1!$F$3,Feuil1!D1027,\"SAISIR TEXTE\"))","v":"soldé"}]
["L:\\2. FINANCES\\2.1 COMPTABILITE\\2.1.7 Bons de Commande\\Bons de commande 2021\\",null,null,null,null,null,null,null,null,null,null,0,{"$f":"IF(L1025<=0,Feuil1!$D$4,IF(H1025=Feuil1!$F$3,Feuil1!D1028,\"SAISIR TEXTE\"))","v":"soldé"}]
["L:\\2. FINANCES\\2.1 COMPTABILITE\\2.1.7 Bons de Commande\\Bons de commande 2021\\",null,null,null,null,null,null,null,null,null,null,0,{"$f":"IF(L1026<=0,Feuil1!$D$4,IF(H1026=Feuil1!$F$3,Feuil1!D1029,\"SAISIR TEXTE\"))","v":"soldé"}]
["L:\\2. FINANCES\\2.1 COMPTABILITE\\2.1.7 Bons de Commande\\Bons de commande 2021\\",null,null,null,null,null,null,null,null,null,null,{"$f":"F1027-K1027","v":0},{"$f":"IF(L1027<=0,Feuil1!$D$4,IF(H1027=Feuil1!$F$3,Feuil1!D1030,\"SAISIR TEXTE\"))","v":"soldé"}]
["L:\\2. FINANCES\\2.1 COMPTABILITE\\2.1.7 Bons de Commande\\Bons de commande 2021\\",null,null,null,null,null,null,null,null,null,null,0,{"$f":"IF(L1028<=0,Feuil1!$D$4,IF(H1028=Feuil1!$F$3,Feuil1!D1031,\"SAISIR TEXTE\"))","v":"soldé"}]
["L:\\2. FINANCES\\2.1 COMPTABILITE\\2.1.7 Bons de Commande\\Bons de commande 2021\\",null,null,null,null,null,null,null,null,null,null,0,{"$f":"IF(L1029<=0,Feuil1!$D$4,IF(H1029=Feuil1!$F$3,Feuil1!D1032,\"SAISIR TEXTE\"))","v":"soldé"}]
["L:\\2. FINANCES\\2.1 COMPTABILITE\\2.1.7 Bons de Commande\\Bons de commande 2021\\",null,null,null,null,null,null,null,null,null,null,0,{"$f":"IF(L1030<=0,Feuil1!$D$4,IF(H1030=Feuil1!$F$3,Feuil1!D1033,\"SAISIR TEXTE\"))","v":"soldé"}]
["L:\\2. FINANCES\\2.1 COMPTABILITE\\2.1.7 Bons de Commande\\Bons de commande 2021\\",null,null,null,null,null,null,null,null,null,null,0,{"$f":"IF(L1031<=0,Feuil1!$D$4,IF(H1031=Feuil1!$F$3,Feuil1!D1034,\"SAISIR TEXTE\"))","v":"soldé"}]
["L:\\2. FINANCES\\2.1 COMPTABILITE\\2.1.7 Bons de Commande\\Bons de commande 2021\\",null,null,null,null,null,null,null,null,null,null,0,{"$f":"IF(L1032<=0,Feuil1!$D$4,IF(H1032=Feuil1!$F$3,Feuil1!D1035,\"SAISIR TEXTE\"))","v":"soldé"}]
["L:\\2. FINANCES\\2.1 COMPTABILITE\\2.1.7 Bons de Commande\\Bons de commande 2021\\",null,null,null,null,null,null,null,null,null,null,0,{"$f":"IF(L1033<=0,Feuil1!$D$4,IF(H1033=Feuil1!$F$3,Feuil1!D1036,\"SAISIR TEXTE\"))","v":"soldé"}]
["L:\\2. FINANCES\\2.1 COMPTABILITE\\2.1.7 Bons de Commande\\Bons de commande 2021\\",null,null,null,null,null,null,null,null,null,null,0,{"$f":"IF(L1034<=0,Feuil1!$D$4,IF(H1034=Feuil1!$F$3,Feuil1!D1037,\"SAISIR TEXTE\"))","v":"soldé"}]
["L:\\2. FINANCES\\2.1 COMPTABILITE\\2.1.7 Bons de Commande\\Bons de commande 2021\\",null,null,null,null,null,null,null,null,null,null,0,{"$f":"IF(L1035<=0,Feuil1!$D$4,IF(H1035=Feuil1!$F$3,Feuil1!D1038,\"SAISIR TEXTE\"))","v":"soldé"}]
["L:\\2. FINANCES\\2.1 COMPTABILITE\\2.1.7 Bons de Commande\\Bons de commande 2021\\",null,null,null,null,null,null,null,null,null,null,0,{"$f":"IF(L1036<=0,Feuil1!$D$4,IF(H1036=Feuil1!$F$3,Feuil1!D1039,\"SAISIR TEXTE\"))","v":"soldé"}]
["L:\\2. FINANCES\\2.1 COMPTABILITE\\2.1.7 Bons de Commande\\Bons de commande 2021\\",null,null,null,null,null,null,null,null,null,null,0,{"$f":"IF(L1037<=0,Feuil1!$D$4,IF(H1037=Feuil1!$F$3,Feuil1!D1040,\"SAISIR TEXTE\"))","v":"soldé"}]
["L:\\2. FINANCES\\2.1 COMPTABILITE\\2.1.7 Bons de Commande\\Bons de commande 2021\\",null,null,null,null,null,null,null,null,null,null,0,{"$f":"IF(L1038<=0,Feuil1!$D$4,IF(H1038=Feuil1!$F$3,Feuil1!D1041,\"SAISIR TEXTE\"))","v":"soldé"}]
["L:\\2. FINANCES\\2.1 COMPTABILITE\\2.1.7 Bons de Commande\\Bons de commande 2021\\",null,null,null,null,null,null,null,null,null,null,0,{"$f":"IF(L1039<=0,Feuil1!$D$4,IF(H1039=Feuil1!$F$3,Feuil1!D1042,\"SAISIR TEXTE\"))","v":"soldé"}]
["L:\\2. FINANCES\\2.1 COMPTABILITE\\2.1.7 Bons de Commande\\Bons de commande 2021\\",null,null,null,null,null,null,null,null,null,null,0,{"$f":"IF(L1040<=0,Feuil1!$D$4,IF(H1040=Feuil1!$F$3,Feuil1!D1043,\"SAISIR TEXTE\"))","v":"soldé"}]
["L:\\2. FINANCES\\2.1 COMPTABILITE\\2.1.7 Bons de Commande\\Bons de commande 2021\\",null,null,null,null,null,null,null,null,null,null,0,{"$f":"IF(L1041<=0,Feuil1!$D$4,IF(H1041=Feuil1!$F$3,Feuil1!D1044,\"SAISIR TEXTE\"))","v":"soldé"}]
["L:\\2. FINANCES\\2.1 COMPTABILITE\\2.1.7 Bons de Commande\\Bons de commande 2021\\",null,null,null,null,null,null,null,null,null,null,0,{"$f":"IF(L1042<=0,Feuil1!$D$4,IF(H1042=Feuil1!$F$3,Feuil1!D1045,\"SAISIR TEXTE\"))","v":"soldé"}]
["L:\\2. FINANCES\\2.1 COMPTABILITE\\2.1.7 Bons de Commande\\Bons de commande 2021\\",null,null,null,null,null,null,null,null,null,null,0,{"$f":"IF(L1043<=0,Feuil1!$D$4,IF(H1043=Feuil1!$F$3,Feuil1!D1046,\"SAISIR TEXTE\"))","v":"soldé"}]
["L:\\2. FINANCES\\2.1 COMPTABILITE\\2.1.7 Bons de Commande\\Bons de commande 2021\\",null,null,null,null,null,null,null,null,null,null,0,{"$f":"IF(L1044<=0,Feuil1!$D$4,IF(H1044=Feuil1!$F$3,Feuil1!D1047,\"SAISIR TEXTE\"))","v":"soldé"}]
["L:\\2. FINANCES\\2.1 COMPTABILITE\\2.1.7 Bons de Commande\\Bons de commande 2021\\",null,null,null,null,null,null,null,null,null,null,0,{"$f":"IF(L1045<=0,Feuil1!$D$4,IF(H1045=Feuil1!$F$3,Feuil1!D1048,\"SAISIR TEXTE\"))","v":"soldé"}]
["L:\\2. FINANCES\\2.1 COMPTABILITE\\2.1.7 Bons de Commande\\Bons de commande 2021\\",null,null,null,null,null,null,null,null,null,null,0,{"$f":"IF(L1046<=0,Feuil1!$D$4,IF(H1046=Feuil1!$F$3,Feuil1!D1049,\"SAISIR TEXTE\"))","v":"soldé"}]
["L:\\2. FINANCES\\2.1 COMPTABILITE\\2.1.7 Bons de Commande\\Bons de commande 2021\\",null,null,null,null,null,null,null,null,null,null,0,{"$f":"IF(L1047<=0,Feuil1!$D$4,IF(H1047=Feuil1!$F$3,Feuil1!D1050,\"SAISIR TEXTE\"))","v":"soldé"}]
["L:\\2. FINANCES\\2.1 COMPTABILITE\\2.1.7 Bons de Commande\\Bons de commande 2021\\",null,null,null,null,null,null,null,null,null,null,0,{"$f":"IF(L1048<=0,Feuil1!$D$4,IF(H1048=Feuil1!$F$3,Feuil1!D1051,\"SAISIR TEXTE\"))","v":"soldé"}]
["L:\\2. FINANCES\\2.1 COMPTABILITE\\2.1.7 Bons de Commande\\Bons de commande 2021\\",null,null,null,null,null,null,null,null,null,null,0,{"$f":"IF(L1049<=0,Feuil1!$D$4,IF(H1049=Feuil1!$F$3,Feuil1!D1052,\"SAISIR TEXTE\"))","v":"soldé"}]
["L:\\2. FINANCES\\2.1 COMPTABILITE\\2.1.7 Bons de Commande\\Bons de commande 2021\\",null,null,null,null,null,null,null,null,null,null,0,{"$f":"IF(L1050<=0,Feuil1!$D$4,IF(H1050=Feuil1!$F$3,Feuil1!D1053,\"SAISIR TEXTE\"))","v":"soldé"}]
["L:\\2. FINANCES\\2.1 COMPTABILITE\\2.1.7 Bons de Commande\\Bons de commande 2021\\",null,null,null,null,null,null,null,null,null,null,0,{"$f":"IF(L1051<=0,Feuil1!$D$4,IF(H1051=Feuil1!$F$3,Feuil1!D1054,\"SAISIR TEXTE\"))","v":"soldé"}]
["L:\\2. FINANCES\\2.1 COMPTABILITE\\2.1.7 Bons de Commande\\Bons de commande 2021\\",null,null,null,null,null,null,null,null,null,null,0,{"$f":"IF(L1052<=0,Feuil1!$D$4,IF(H1052=Feuil1!$F$3,Feuil1!D1055,\"SAISIR TEXTE\"))","v":"soldé"}]
["L:\\2. FINANCES\\2.1 COMPTABILITE\\2.1.7 Bons de Commande\\Bons de commande 2021\\",null,null,null,null,null,null,null,null,null,null,0,{"$f":"IF(L1053<=0,Feuil1!$D$4,IF(H1053=Feuil1!$F$3,Feuil1!D1056,\"SAISIR TEXTE\"))","v":"soldé"}]
["L:\\2. FINANCES\\2.1 COMPTABILITE\\2.1.7 Bons de Commande\\Bons de commande 2021\\",null,null,null,null,null,null,null,null,null,null,0,{"$f":"IF(L1054<=0,Feuil1!$D$4,IF(H1054=Feuil1!$F$3,Feuil1!D1057,\"SAISIR TEXTE\"))","v":"soldé"}]
["L:\\2. FINANCES\\2.1 COMPTABILITE\\2.1.7 Bons de Commande\\Bons de commande 2021\\",null,null,null,null,null,null,null,null,null,null,0,{"$f":"IF(L1055<=0,Feuil1!$D$4,IF(H1055=Feuil1!$F$3,Feuil1!D1058,\"SAISIR TEXTE\"))","v":"soldé"}]
["L:\\2. FINANCES\\2.1 COMPTABILITE\\2.1.7 Bons de Commande\\Bons de commande 2021\\",null,null,null,null,null,null,null,null,null,null,0,{"$f":"IF(L1056<=0,Feuil1!$D$4,IF(H1056=Feuil1!$F$3,Feuil1!D1059,\"SAISIR TEXTE\"))","v":"soldé"}]
["L:\\2. FINANCES\\2.1 COMPTABILITE\\2.1.7 Bons de Commande\\Bons de commande 2021\\",null,null,null,null,null,null,null,null,null,null,0,{"$f":"IF(L1057<=0,Feuil1!$D$4,IF(H1057=Feuil1!$F$3,Feuil1!D1060,\"SAISIR TEXTE\"))","v":"soldé"}]
["L:\\2. FINANCES\\2.1 COMPTABILITE\\2.1.7 Bons de Commande\\Bons de commande 2021\\",null,null,null,null,null,null,null,null,null,null,0,{"$f":"IF(L1058<=0,Feuil1!$D$4,IF(H1058=Feuil1!$F$3,Feuil1!D1061,\"SAISIR TEXTE\"))","v":"soldé"}]
["L:\\2. FINANCES\\2.1 COMPTABILITE\\2.1.7 Bons de Commande\\Bons de commande 2021\\",null,null,null,null,null,null,null,null,null,null,0,{"$f":"IF(L1059<=0,Feuil1!$D$4,IF(H1059=Feuil1!$F$3,Feuil1!D1062,\"SAISIR TEXTE\"))","v":"soldé"}]
["L:\\2. FINANCES\\2.1 COMPTABILITE\\2.1.7 Bons de Commande\\Bons de commande 2021\\",null,null,null,null,null,null,null,null,null,null,0,{"$f":"IF(L1060<=0,Feuil1!$D$4,IF(H1060=Feuil1!$F$3,Feuil1!D1063,\"SAISIR TEXTE\"))","v":"soldé"}]
["L:\\2. FINANCES\\2.1 COMPTABILITE\\2.1.7 Bons de Commande\\Bons de commande 2021\\",null,null,null,null,null,null,null,null,null,null,0,{"$f":"IF(L1061<=0,Feuil1!$D$4,IF(H1061=Feuil1!$F$3,Feuil1!D1064,\"SAISIR TEXTE\"))","v":"soldé"}]
["L:\\2. FINANCES\\2.1 COMPTABILITE\\2.1.7 Bons de Commande\\Bons de commande 2021\\",null,null,null,null,null,null,null,null,null,null,0,{"$f":"IF(L1062<=0,Feuil1!$D$4,IF(H1062=Feuil1!$F$3,Feuil1!D1065,\"SAISIR TEXTE\"))","v":"soldé"}]
["L:\\2. FINANCES\\2.1 COMPTABILITE\\2.1.7 Bons de Commande\\Bons de commande 2021\\",null,null,null,null,null,null,null,null,null,null,0,{"$f":"IF(L1063<=0,Feuil1!$D$4,IF(H1063=Feuil1!$F$3,Feuil1!D1066,\"SAISIR TEXTE\"))","v":"soldé"}]
["L:\\2. FINANCES\\2.1 COMPTABILITE\\2.1.7 Bons de Commande\\Bons de commande 2021\\",null,null,null,null,null,null,null,null,null,null,0,{"$f":"IF(L1064<=0,Feuil1!$D$4,IF(H1064=Feuil1!$F$3,Feuil1!D1067,\"SAISIR TEXTE\"))","v":"soldé"}]
["L:\\2. FINANCES\\2.1 COMPTABILITE\\2.1.7 Bons de Commande\\Bons de commande 2021\\",null,null,null,null,null,null,null,null,null,null,0,{"$f":"IF(L1065<=0,Feuil1!$D$4,IF(H1065=Feuil1!$F$3,Feuil1!D1068,\"SAISIR TEXTE\"))","v":"soldé"}]
["L:\\2. FINANCES\\2.1 COMPTABILITE\\2.1.7 Bons de Commande\\Bons de commande 2021\\",null,null,null,null,null,null,null,null,null,null,0,{"$f":"IF(L1066<=0,Feuil1!$D$4,IF(H1066=Feuil1!$F$3,Feuil1!D1069,\"SAISIR TEXTE\"))","v":"soldé"}]
["L:\\2. FINANCES\\2.1 COMPTABILITE\\2.1.7 Bons de Commande\\Bons de commande 2021\\",null,null,null,null,null,null,null,null,null,null,0,{"$f":"IF(L1067<=0,Feuil1!$D$4,IF(H1067=Feuil1!$F$3,Feuil1!D1070,\"SAISIR TEXTE\"))","v":"soldé"}]
["L:\\2. FINANCES\\2.1 COMPTABILITE\\2.1.7 Bons de Commande\\Bons de commande 2021\\",null,null,null,null,null,null,null,null,null,null,0,{"$f":"IF(L1068<=0,Feuil1!$D$4,IF(H1068=Feuil1!$F$3,Feuil1!D1071,\"SAISIR TEXTE\"))","v":"soldé"}]
["L:\\2. FINANCES\\2.1 COMPTABILITE\\2.1.7 Bons de Commande\\Bons de commande 2021\\",null,null,null,null,null,null,null,null,null,null,0,{"$f":"IF(L1069<=0,Feuil1!$D$4,IF(H1069=Feuil1!$F$3,Feuil1!D1072,\"SAISIR TEXTE\"))","v":"soldé"}]
["L:\\2. FINANCES\\2.1 COMPTABILITE\\2.1.7 Bons de Commande\\Bons de commande 2021\\",null,null,null,null,null,null,null,null,null,null,0,{"$f":"IF(L1070<=0,Feuil1!$D$4,IF(H1070=Feuil1!$F$3,Feuil1!D1073,\"SAISIR TEXTE\"))","v":"soldé"}]
["L:\\2. FINANCES\\2.1 COMPTABILITE\\2.1.7 Bons de Commande\\Bons de commande 2021\\",null,null,null,null,null,null,null,null,null,null,0,{"$f":"IF(L1071<=0,Feuil1!$D$4,IF(H1071=Feuil1!$F$3,Feuil1!D1074,\"SAISIR TEXTE\"))","v":"soldé"}]
["L:\\2. FINANCES\\2.1 COMPTABILITE\\2.1.7 Bons de Commande\\Bons de commande 2021\\",null,null,null,null,null,null,null,null,null,null,0,{"$f":"IF(L1072<=0,Feuil1!$D$4,IF(H1072=Feuil1!$F$3,Feuil1!D1075,\"SAISIR TEXTE\"))","v":"soldé"}]
["L:\\2. FINANCES\\2.1 COMPTABILITE\\2.1.7 Bons de Commande\\Bons de commande 2021\\",null,null,null,null,null,null,null,null,null,null,0,{"$f":"IF(L1073<=0,Feuil1!$D$4,IF(H1073=Feuil1!$F$3,Feuil1!D1076,\"SAISIR TEXTE\"))","v":"soldé"}]
["L:\\2. FINANCES\\2.1 COMPTABILITE\\2.1.7 Bons de Commande\\Bons de commande 2021\\",null,null,null,null,null,null,null,null,null,null,0,{"$f":"IF(L1074<=0,Feuil1!$D$4,IF(H1074=Feuil1!$F$3,Feuil1!D1077,\"SAISIR TEXTE\"))","v":"soldé"}]
["L:\\2. FINANCES\\2.1 COMPTABILITE\\2.1.7 Bons de Commande\\Bons de commande 2021\\",null,null,null,null,null,null,null,null,null,null,0,{"$f":"IF(L1075<=0,Feuil1!$D$4,IF(H1075=Feuil1!$F$3,Feuil1!D1078,\"SAISIR TEXTE\"))","v":"soldé"}]
["L:\\2. FINANCES\\2.1 COMPTABILITE\\2.1.7 Bons de Commande\\Bons de commande 2021\\",null,null,null,null,null,null,null,null,null,null,0,{"$f":"IF(L1076<=0,Feuil1!$D$4,IF(H1076=Feuil1!$F$3,Feuil1!D1079,\"SAISIR TEXTE\"))","v":"soldé"}]
["L:\\2. FINANCES\\2.1 COMPTABILITE\\2.1.7 Bons de Commande\\Bons de commande 2021\\",null,null,null,null,null,null,null,null,null,null,0,{"$f":"IF(L1077<=0,Feuil1!$D$4,IF(H1077=Feuil1!$F$3,Feuil1!D1080,\"SAISIR TEXTE\"))","v":"soldé"}]
["L:\\2. FINANCES\\2.1 COMPTABILITE\\2.1.7 Bons de Commande\\Bons de commande 2021\\",null,null,null,null,null,null,null,null,null,null,0,{"$f":"IF(L1078<=0,Feuil1!$D$4,IF(H1078=Feuil1!$F$3,Feuil1!D1081,\"SAISIR TEXTE\"))","v":"soldé"}]
["L:\\2. FINANCES\\2.1 COMPTABILITE\\2.1.7 Bons de Commande\\Bons de commande 2021\\",null,null,null,null,null,null,null,null,null,null,0,{"$f":"IF(L1079<=0,Feuil1!$D$4,IF(H1079=Feuil1!$F$3,Feuil1!D1082,\"SAISIR TEXTE\"))","v":"soldé"}]
["L:\\2. FINANCES\\2.1 COMPTABILITE\\2.1.7 Bons de Commande\\Bons de commande 2021\\",null,null,null,null,null,null,null,null,null,null,0,{"$f":"IF(L1080<=0,Feuil1!$D$4,IF(H1080=Feuil1!$F$3,Feuil1!D1083,\"SAISIR TEXTE\"))","v":"soldé"}]
["L:\\2. FINANCES\\2.1 COMPTABILITE\\2.1.7 Bons de Commande\\Bons de commande 2021\\",null,null,null,null,null,null,null,null,null,null,0,{"$f":"IF(L1081<=0,Feuil1!$D$4,IF(H1081=Feuil1!$F$3,Feuil1!D1084,\"SAISIR TEXTE\"))","v":"soldé"}]
["L:\\2. FINANCES\\2.1 COMPTABILITE\\2.1.7 Bons de Commande\\Bons de commande 2021\\",null,null,null,null,null,null,null,null,null,null,0,{"$f":"IF(L1082<=0,Feuil1!$D$4,IF(H1082=Feuil1!$F$3,Feuil1!D1085,\"SAISIR TEXTE\"))","v":"soldé"}]
["L:\\2. FINANCES\\2.1 COMPTABILITE\\2.1.7 Bons de Commande\\Bons de commande 2021\\",null,null,null,null,null,null,null,null,null,null,0,{"$f":"IF(L1083<=0,Feuil1!$D$4,IF(H1083=Feuil1!$F$3,Feuil1!D1086,\"SAISIR TEXTE\"))","v":"soldé"}]
["L:\\2. FINANCES\\2.1 COMPTABILITE\\2.1.7 Bons de Commande\\Bons de commande 2021\\",null,null,null,null,null,null,null,null,null,null,0,{"$f":"IF(L1084<=0,Feuil1!$D$4,IF(H1084=Feuil1!$F$3,Feuil1!D1087,\"SAISIR TEXTE\"))","v":"soldé"}]
["L:\\2. FINANCES\\2.1 COMPTABILITE\\2.1.7 Bons de Commande\\Bons de commande 2021\\",null,null,null,null,null,null,null,null,null,null,0,{"$f":"IF(L1085<=0,Feuil1!$D$4,IF(H1085=Feuil1!$F$3,Feuil1!D1088,\"SAISIR TEXTE\"))","v":"soldé"}]
["L:\\2. FINANCES\\2.1 COMPTABILITE\\2.1.7 Bons de Commande\\Bons de commande 2021\\",null,null,null,null,null,null,null,null,null,null,0,{"$f":"IF(L1086<=0,Feuil1!$D$4,IF(H1086=Feuil1!$F$3,Feuil1!D1089,\"SAISIR TEXTE\"))","v":"soldé"}]
["L:\\2. FINANCES\\2.1 COMPTABILITE\\2.1.7 Bons de Commande\\Bons de commande 2021\\",null,null,null,null,null,null,null,null,null,null,0,{"$f":"IF(L1087<=0,Feuil1!$D$4,IF(H1087=Feuil1!$F$3,Feuil1!D1090,\"SAISIR TEXTE\"))","v":"soldé"}]
["L:\\2. FINANCES\\2.1 COMPTABILITE\\2.1.7 Bons de Commande\\Bons de commande 2021\\",null,null,null,null,null,null,null,null,null,null,0,{"$f":"IF(L1088<=0,Feuil1!$D$4,IF(H1088=Feuil1!$F$3,Feuil1!D1091,\"SAISIR TEXTE\"))","v":"soldé"}]
["L:\\2. FINANCES\\2.1 COMPTABILITE\\2.1.7 Bons de Commande\\Bons de commande 2021\\",null,null,null,null,null,null,null,null,null,null,0,{"$f":"IF(L1089<=0,Feuil1!$D$4,IF(H1089=Feuil1!$F$3,Feuil1!D1092,\"SAISIR TEXTE\"))","v":"soldé"}]
["L:\\2. FINANCES\\2.1 COMPTABILITE\\2.1.7 Bons de Commande\\Bons de commande 2021\\",null,null,null,null,null,null,null,null,null,null,0,{"$f":"IF(L1090<=0,Feuil1!$D$4,IF(H1090=Feuil1!$F$3,Feuil1!D1093,\"SAISIR TEXTE\"))","v":"soldé"}]
["L:\\2. FINANCES\\2.1 COMPTABILITE\\2.1.7 Bons de Commande\\Bons de commande 2021\\",null,null,null,null,null,null,null,null,null,null,{"$f":"F1091-K1091","v":0},{"$f":"IF(L1091<=0,Feuil1!$D$4,IF(H1091=Feuil1!$F$3,Feuil1!D1094,\"SAISIR TEXTE\"))","v":"soldé"}]
["L:\\2. FINANCES\\2.1 COMPTABILITE\\2.1.7 Bons de Commande\\Bons de commande 2021\\",null,null,null,null,null,null,null,null,null,null,0,{"$f":"IF(L1092<=0,Feuil1!$D$4,IF(H1092=Feuil1!$F$3,Feuil1!D1095,\"SAISIR TEXTE\"))","v":"soldé"}]
["L:\\2. FINANCES\\2.1 COMPTABILITE\\2.1.7 Bons de Commande\\Bons de commande 2021\\",null,null,null,null,null,null,null,null,null,null,0,{"$f":"IF(L1093<=0,Feuil1!$D$4,IF(H1093=Feuil1!$F$3,Feuil1!D1096,\"SAISIR TEXTE\"))","v":"soldé"}]
["L:\\2. FINANCES\\2.1 COMPTABILITE\\2.1.7 Bons de Commande\\Bons de commande 2021\\",null,null,null,null,null,null,null,null,null,null,0,{"$f":"IF(L1094<=0,Feuil1!$D$4,IF(H1094=Feuil1!$F$3,Feuil1!D1097,\"SAISIR TEXTE\"))","v":"soldé"}]
["L:\\2. FINANCES\\2.1 COMPTABILITE\\2.1.7 Bons de Commande\\Bons de commande 2021\\",null,null,null,null,null,null,null,null,null,null,0,{"$f":"IF(L1095<=0,Feuil1!$D$4,IF(H1095=Feuil1!$F$3,Feuil1!D1098,\"SAISIR TEXTE\"))","v":"soldé"}]
["L:\\2. FINANCES\\2.1 COMPTABILITE\\2.1.7 Bons de Commande\\Bons de commande 2021\\",null,null,null,null,null,null,null,null,null,null,0,{"$f":"IF(L1096<=0,Feuil1!$D$4,IF(H1096=Feuil1!$F$3,Feuil1!D1099,\"SAISIR TEXTE\"))","v":"soldé"}]
["L:\\2. FINANCES\\2.1 COMPTABILITE\\2.1.7 Bons de Commande\\Bons de commande 2021\\",null,null,null,null,null,null,null,null,null,null,0,{"$f":"IF(L1097<=0,Feuil1!$D$4,IF(H1097=Feuil1!$F$3,Feuil1!D1100,\"SAISIR TEXTE\"))","v":"soldé"}]
["L:\\2. FINANCES\\2.1 COMPTABILITE\\2.1.7 Bons de Commande\\Bons de commande 2021\\",null,null,null,null,null,null,null,null,null,null,0,{"$f":"IF(L1098<=0,Feuil1!$D$4,IF(H1098=Feuil1!$F$3,Feuil1!D1101,\"SAISIR TEXTE\"))","v":"soldé"}]
["L:\\2. FINANCES\\2.1 COMPTABILITE\\2.1.7 Bons de Commande\\Bons de commande 2021\\",null,null,null,null,null,null,null,null,null,null,0,{"$f":"IF(L1099<=0,Feuil1!$D$4,IF(H1099=Feuil1!$F$3,Feuil1!D1102,\"SAISIR TEXTE\"))","v":"soldé"}]
[]
[null,null,null,null,null,{"$f":"SUM(F2:F1100)","v":0}]